Workbook

Sheet Instructions
I2: Validation - Croisement des tables
B3: Instructions:
A4: 1 | B4: Dupliquer votre modèle de détermination avant de passer aux étapes suivantes. | I4: Ovoltotrec | J4: Rapport GTYF | K4: Rapport ECONO
A5: 2 | B5: Coller les OUTPUTs ci-dessous dans votre modèle de détermination. | I5: =VLOOKUP("Ovoltotrec",Output!$C:$AM,8,FALSE) -> 67800 | J5: =VLOOKUP("OVOLTOTREC",GTYF!$C:$AQ,8,FALSE)=I5 -> TRUE | K5: =VLOOKUP("OVOLTOTREC",Econo!$C:$AQ,8,FALSE)=I5 -> TRUE
B6: Outputs pour Cahier_Détermination_2023
A7: 3 | B7: Ajouter l'agrégat FCIMPROD_SNAT au thème 5 de la section LANSCAPE de votre modèle et les courbes SNAT
B8: *AGGREGATE FCIMPROD_SNAT FCxxxx
A9: 4 | B9: Copier coller la syntaxe TARGET_GTYF_DET, TARGET_ECONO, TARGET AREA, TARGET DETAIL (voir plus bas) dans la section "Reports" du scénario de détermination.
B10: *TARGET GTYF_DET.dbf
B11: *TARGET_ECONO.dbf
B12: *TARGET AREA.dbf et *TARGET DETAIL.dbf
A13: 5 | B13: Insérer la syntaxe économique dans les sections Output, Lanscape, …
A14: 6 | B14: Compiler le scénario (Faire une fleche sur vos scénarios)
A15: 7 | B15: Ouvrir vos rapports Output, GTYF et ECONO directement de WS. Contrôle A --> Contrôle C
A16: 8 | B16: Copier/coller vos rapports Output, GTYF et ECONO dans les onglets appropriés. Attention de respecter le nombres de colonnes. Les onglets Output, GTYF et ECONO sont préformatés et contiennent des formules aux colonnes AM à AP.
A17: 9 | B17: Valider que la cellule I5 indique vrai lorsque vous aurez collé vos données dans les onglets "Output", "GTYF" et ÉCONO" pour s'assurer que les données proviennent de la même optimisation.
A18: 10 | B18: Utiliser le fichier DBF pour copier/coller votre calendrier de COS dans l'onglet Cedule_COS et y ajouter les COS absents (COS fermés ou toujours ouverts) et compléter leur calendrier par des "0" ou des "1".
A19: 11 | B19: Compléter toutes les cellules et onglets de couleur | D19: jaune
A20: 12 | B20: Notez que les tableaux 9, 10, 13, 15 et 17 ont des instructions particulières

Sheet Suivi_modif
B2: Modifications apportées au cahier:
B3: Version originale (v1) | C3: Version de départ
B4: Version modifiée 2 novembre 2021 (v2) | C4: Correction du calcul de % de sapin en P0 (cellule O9)
B5: Version modifiée 4 novembre 2021 (v3) | C5: Correction du % récolte volume sur pied destiné à l'aménagement (Tableau - CelluleV59)
B6: Version modifiée 4 novembre 2021 (v3) | C6: Correction des valideurs Vrai/Faux (Tableau - Cellule W101, W102, W103)
B7: Version modifiée 8 novembre 2021 (v4) | C7: Onglet "UTA" - Amélioration de la syntaxe des rechercheV
B8: Version modifiée 8 novembre 2021 (v4) | C8: Tableau 3 - ligne 50: changé la police de caractère pour du Arial
B9: Version modifiée 9 novembre 2021 (v5) | C9: Onglet "Target_ECONO": La syntaxe du rapport a été corrigée.
B10: Version modifiée 11 novembre 2021 (v6) | C10: Tableau 1 - Entente Crie - Correction pour considérer le code "EXEC" pour les UA avec Entente Crie
B11: Version modifiée 15 novembre 2021 (v7) | C11: Tableau 3 - ligne 49 en caractère gras - ligne 51 en caractère normal
B12: Version modifiée 19 novembre 2021 (v8) | C12: Tableau 9 - Dernière ligne du tableau effacée
B13: Version modifiée 22 novembre 2021 (v9) | C13: Tableau 4 - Première colonne (ha/an) changé la mise en forme pour avoir des 0 ha/an au lieu de "-" Voir figure --> Format: Nombre - Utiliser séparateur de millier - sans décimales
B14: Version modifiée 25 novembre 2021 (v10) | C14: Tableau 8, cellules G102 (Coupes partielles de peuplements résineux) et G103 (Coupes partielles de peuplements de feuillus tolérants et de pins) arrondies à la dizaine près et ajouté note en bas
B15: 2021-12-08 | C15: Correction à faire dans la cellule H143: changer le format et sélectionner +0% ; -0%; 0%
B18: Validation par LABBE1 2021-11-12
B20: 1. Validation des intrants, Période onglet OUTPUT = Output.dbf, Onglet GTYF = GTYF_DET.dbf et Onglet Econo = ECONO_x.dbf
B21: Onglet OUTPUT | C21: OK
B22: Onglet GTYF | C22: OK
B23: Onglet Econo | C23: OK
B24: 2. Validation des tableaux, Confrontation avec le cahier d'analyse de la détermination (BENAN) et le fichier de consignation
B25: Validation des catégories de superficie | C25: Ok
B26: Tableau 1 | C26: OK
B27: Tableau 3 | C27: OK
B28: Tableau 4 | C28: OK
B29: Tableau 8 | C29: OK
B30: Tableau 9 | C30: OK
B31: Tableau 10 | C31: OK
B32: Tableau 13 | C32: OK
B33: 3. Validation des figures, Confrontation avec le cahier d'analyse de la détermination (BENAN) et le fichier de consignation
B34: Figure 2 | C34: OK
B35: Figure 3 | C35: OK
B36: Figure 4 | C36: OK
B37: Figure 5 | C37: OK
B38: Figure 6 | C38: OK
B39: Figure 7 | C39: OK
B40: Figure 9b | C40: OK
B41: Figure 9c | C41: OK
B42: Figure 10a | C42: OK
B43: Figure 10c | C43: OK
B44: Figure 11b | C44: OK
B45: Figure 14 | C45: OK
B46: Figure 15a | C46: OK
B47: Figure 19 | C47: OK
B48: Figure 20 | C48: OK
B49: Figure 21 | C49: OK
B50: Figure 22 | C50: OK
B51: 4. Validation des UTA
B52: Conforme au nombre d'UTA du modèle | C52: OK

Sheet Tableaux
T1: Instructions : Compléter les cellules oranges | AB1: Avec l'utilisation de l'outil à Éric
B2: PROER1 : vous pouvez utiliser l'outil FoxPro pour compléter les cellules oranges : | T2: 1) Cellule V11 : Inscrire la superficie totale brute de la carte WS | AB2: 387481.2
B3: l'outil intérroge la carte Woodstock et met les valeurs dans un fichier Excel | T3: 2) Cellule V15 : Inscrire la superficie WS des GS RP1 et RP2 (ça ne devrait être que du EXEX et EXTI) | AB3: 0
B4: interroge_carte_WS_pour cahier_analyse.FXP | T4: 3) Cellule V24 : Inscrire la superficie WS des GS RP3 à RP9 sur INC | AB4: 10147.4
B5: T:\Donnees\Courant\CPF_2023-2028\Comite_Vague_2\30_Phase1\32_Sce1\Outils | T5: 4) Cellule V25 : Inscrire la superficie WS des GS SNAT sur INC (qui ne sont pas des RP) | AB5: 5750.3
T6: 5) Cellules L20 à S21 : Inscrire la superficie de la carte WS pour chacune des cases oranges
B7: Catégories | I7: Superficie | Z7: Total | AA7: Sup_aff | AB7: 866.8
I8: ha | J8: % | V8: Période | Z8: Total | AA8: Sup_empche | AB8: 1668.1
B9: Superficie totale du territoire d'analyse (EXHU exclu) | I9: =V11-V16 -> 387481.2 | J9: =IFERROR(I9/I9,"-") -> 1 | S9: =LEFT(B$25,10) -> Tableau 1. | T9: Output | U9: Superficie | V9: 0 | Z9: Total | AA9: Sup_ecot | AB9: 1152.4
B10: Pertes (emprise chemin, écotone, improductif) | I10: =U20+V20+Y20 -> 3089.9 | J10: =I10/I9 -> 0.007974322367 | S10: =LEFT(B$25,10) -> Tableau 1. | T10: OSUPTOT | U10: WS | V10: =VLOOKUP(T10,Output!$C:$H,6,FALSE) -> 384391.3 | Z10: INC | AA10: Sup_brivAB | AB10: 1661.7
B11: Territoire improductif (EXEX + EXTI) | I11: =SUM(V13:V14) -> 186327.3 | J11: =I11/I9 -> 0.480867975 | S11: Tableau 1. | U11: Brute | V11: =AB2 -> 387481.2 | X11: Sup_soustraite : | Y11: =T20+U20+V20+Y20+AA20 -> 3963 | Z11: INC | AA11: Sup_brivCD | AB11: 1815.8
B12: sans possibilité de remise en production | I12: =I11-I13 -> 186327.3 | J12: - | S12: Tableau 1. | U12: pertes | V12: =U20+V20+Y20 -> 3089.9 | X12: Sup nette : | Y12: =V11-Y11 -> 383518.2 | Z12: Total | AA12: Sup_impro | AB12: 269.4
B13: avec possibilité de remise en production (RP1 et RP2) | I13: =V15 -> 0 | J13: - | S13: Tableau 1. | T13: OSUPEXEX | U13: EXEX | V13: =VLOOKUP(T13,Output!$C:$H,6,FALSE) -> 38621.9 | Z13: Total | AA13: Sup_pentf | AB13: 6.3
S14: Tableau 1. | T14: OSUPEXTI | U14: EXTI | V14: =VLOOKUP(T14,Output!$C:$H,6,FALSE) -> 147705.4 | Z14: INC | AA14: Sup_pentf | AB14: 0.7
B15: Territoire inclus dans l’UA mais exclu des activités d'aménagement (EXIN) | I15: =V17+X17+Y17 -> 141767.3 | J15: =I15/I9 -> 0.3658688473 | S15: Tableau 1. | U15: RP1/RP2 | V15: =AB3 -> 0 | X15: Superficie | Y15: sup_redu
B16: pentes abruptes et sommets (codes F et S) --> potentiellement récoltables | I16: =AA21 -> 0.7 | J16: - | S16: Tableau 1. | T16: OSUPEXHU | U16: EXHU | V16: =VLOOKUP(T16,Output!$C:$H,6,FALSE) -> 0 | X16: EXEC | Y16: EXEC
B17: bandes riveraines (densité AB) --> potentiellement récoltables | I17: =W21 -> 1661.7 | J17: - | S17: Tableau 1. | T17: OSUPEXIN | U17: EXIN | V17: =VLOOKUP(T17,Output!$C:$H,6,FALSE) -> 74905.8 | X17: 60164.1 | Y17: 6697.4
B18: bandes riveraines (densité CD) --> potentiellement récoltables | I18: =X21 -> 1815.8 | J18: - | S18: Tableau 1. | T18: ↓ | U18: ↓ | V18: ↓ | Y18: ↓ | AA18: ↓
B19: autres | I19: =I15-I16-I17-I18 -> 138289.1 | S19: Tableau 1. | T19: Sup_aff | U19: Sup_empche | V19: Sup_ecot | W19: Sup_brivAB | X19: Sup_brivCD | Y19: Sup_impro | Z19: Sup_aut | AA19: Sup_pentf
B20: Territoire destiné à l'aménagement forestier (INC) | I20: =V22 -> 56296.7 | J20: =I20/I9 -> 0.1452888553 | S20: Tableau 1. | T20: =AB7 -> 866.8 | U20: =AB8 -> 1668.1 | V20: =AB9 -> 1152.4 | Y20: =AB12 -> 269.4 | AA20: =AB13 -> 6.3 | AB20: Total
B21: forestier exploitable | I21: =V22-I22-I23 -> 40399 | J21: - | S21: Tableau 1. | W21: =AB10 -> 1661.7 | X21: =AB11 -> 1815.8 | AA21: =AB14 -> 0.7 | AB21: INC
B22: forestier inexploitable avec possibilité de remise en production (RP3 à RP15) | I22: =V24 -> 10147.4 | J22: - | S22: Tableau 1. | T22: OSUPINC | U22: INC | V22: =VLOOKUP(T22,Output!$C:$H,6,FALSE) -> 56296.7
B23: forestier inexploitable sans possibilité de remise en production (SNAT) | I23: =V25 -> 5750.3 | J23: - | S23: Tableau 1.
S24: Tableau 1. | U24: RP3 à RP9 | V24: =AB4 -> 10147.4
B25: Tableau 1. Répartition de la superficie de l'unité d'aménagement pas catégorie de territoire | S25: Tableau 1. | U25: SNAT | V25: =AB5 -> 5750.3
B26: Catégories | F26: Superficies
F27: Hectares | G27: %
B28: Superficie totale de l’unité d’aménagement | F28: =ROUND(I9,-1) -> 387480 | G28: =F28/F28 -> 1
B29: Retraits de superficie
B30: Territoire non forestier | F30: =ROUND(I10+I11,-1) -> 189420 | G30: =F30/F28 -> 0.4888510375
B31: Territoire forestier peu productif (30 à 50 m³/ha) | F31: =ROUND(I22+I23,-1) -> 15900 | G31: =F31/F28 -> 0.04103437597
B32: Territoire forestier exclu de l’aménagement | F32: =ROUND(F28-F30-F31-F33,-1) -> 141760 | G32: =F32/F28 -> 0.3658511407 | N32: À compléter UA : | O32: UA:
B33: Superficie destinée à l’aménagement forestier | F33: =ROUND(I21,-1) -> 40400 | G33: =F33/F28 -> 0.1042634459 | O33: 08663 | T33: Légende | U33: Output | V33: P2@P6
S34: =LEFT(B$46,10) -> Tableau 3. | T34: Sepm | U34: OVOLGSEPMREC | V34: =IFERROR(VLOOKUP($U34,Output!$C:$AM,37,FALSE)/5,0) -> 13360
S35: Tableau 3.
S36: Tableau 3. | T36: Tho | U36: OVOLTHOREC | V36: =IFERROR(VLOOKUP($U36,Output!$C:$AM,37,FALSE)/5,0) -> 0
S37: Tableau 3. | T37: Pru | U37: OVOLPRUREC | V37: =IFERROR(VLOOKUP($U37,Output!$C:$AM,37,FALSE)/5,0) -> 0
S38: Tableau 3. | T38: Pins | U38: OVOLGPINSREC | V38: =IFERROR(VLOOKUP($U38,Output!$C:$AM,37,FALSE)/5,0) -> 0
S39: Tableau 3. | T39: Peu | U39: OVOLGPEUREC | V39: =IFERROR(VLOOKUP($U39,Output!$C:$AM,37,FALSE)/5,0) -> 94.8188
S40: Tableau 3. | T40: Bop | U40: OVOLGBPREC | V40: =IFERROR(VLOOKUP($U40,Output!$C:$AM,37,FALSE)/5,0) -> 105.1812
S41: Tableau 3. | T41: Boj | U41: OVOLBOJREC | V41: =IFERROR(VLOOKUP($U41,Output!$C:$AM,37,FALSE)/5,0) -> 0
S42: Tableau 3. | T42: Ers | U42: OVOLERSREC | V42: =IFERROR(VLOOKUP($U42,Output!$C:$AM,37,FALSE)/5,0) -> 0
S43: Tableau 3. | T43: Err | U43: OVOLGEROREC | V43: =IFERROR(VLOOKUP($U43,Output!$C:$AM,37,FALSE)/5,0) -> 0
S44: Tableau 3. | T44: Autre .F. (Auf) | V44: =V47-V42-V41 -> 0
S45: Tableau 3. | T45: résineux | U45: OVOLGRREC | V45: =IFERROR(VLOOKUP($U45,Output!$C:$AM,37,FALSE)/5,0) -> 13360
B46: Tableau 3. Possibilités forestières par essence ou par groupe d’essences et écart avec la période 2018-2023 | S46: Tableau 3. | T46: intolérant | U46: OVOLGFIREC | V46: =IFERROR(VLOOKUP($U46,Output!$C:$AM,37,FALSE)/5,0) -> 200
B47: Périodes | C47: ="Possibilités forestières (m"&CHAR(179)&" bruts/an)" -> Possibilités forestières (m³ bruts/an) | S47: Tableau 3. | T47: Tolérant | U47: OVOLGFTREC | V47: =IFERROR(VLOOKUP($U47,Output!$C:$AM,37,FALSE)/5,0) -> 0
C48: SEPM | D48: Thuya | E48: Pruche | F48: Pins blanc et rouge | G48: Peupliers | H48: Bouleau à papier | I48: Bouleau jaune | J48: Érables à sucre et rouge | K48: Autres feuillus durs | L48: Total | N48: Possibilité forestière unitaire (PAC / Sup destinée à l'aménagement) | S48: Tableau 3. | T48: Total récoltés | U48: OVOLTOTREC | V48: =IFERROR(VLOOKUP($U48,Output!$C:$AM,37,FALSE)/5,0) -> 13560
B49: 2023-2028 | C49: =ROUND(V$34,-2) -> 13400 | D49: =ROUND(V$36,-2) -> 0 | E49: =ROUND(V$37,-2) -> 0 | F49: =ROUND(V$38,-2) -> 0 | G49: =ROUND(V$39,-2) -> 100 | H49: =ROUND(V$40,-2) -> 100 | I49: =ROUND(V$41,-2) -> 0 | J49: =ROUND(V$50,-2) -> 0 | K49: =ROUND(V$44,-2) -> 0 | L49: =SUM(C49:K49) -> 13600 | N49: =V57 -> 0.3356435644 | S49: Tableau 3. | T49: FN sur pied | U49: OVOLGFNREC | V49: =IFERROR(VLOOKUP($U49,Output!$C:$AM,37,FALSE)/5,0) -> 0
C50: =C49/$L$49 -> 0.9852941176 | D50: 0 | E50: 0 | F50: 0 | G50: 0.007352941176 | H50: 0.007352941176 | I50: 0 | J50: 0 | K50: 0 | L50: =SUM(C50:K50) -> 1 | S50: Tableau 3. | T50: ER | V50: =V42+V43 -> 0
B51: 2018-2023 | C51: =VLOOKUP($O$33,DataLocal!$A$6:$W$35,13,FALSE) -> 14400 | D51: =VLOOKUP($O$33,DataLocal!$A$6:$W$35,14,FALSE) -> 0 | E51: =VLOOKUP($O$33,DataLocal!$A$6:$W$35,15,FALSE) -> 0 | F51: =VLOOKUP($O$33,DataLocal!$A$6:$W$35,16,FALSE) -> 0 | G51: =VLOOKUP($O$33,DataLocal!$A$6:$W$35,17,FALSE) -> 300 | H51: =VLOOKUP($O$33,DataLocal!$A$6:$W$35,18,FALSE) -> 0 | I51: =VLOOKUP($O$33,DataLocal!$A$6:$W$35,19,FALSE) -> 0 | J51: =VLOOKUP($O$33,DataLocal!$A$6:$W$35,20,FALSE) -> 0 | K51: =VLOOKUP($O$33,DataLocal!$A$6:$W$35,21,FALSE) -> 0 | L51: =VLOOKUP($O$33,DataLocal!$A$6:$W$35,23,FALSE) -> 14700 | N51: % du volume sur pied initial | S51: Tableau 3. | U51: OVOLSABREC | V51: =IFERROR(VLOOKUP($U51,Output!$C:$AM,37,FALSE)/5,0) -> 351.0948
B52: Écart | C52: =IFERROR((C49/C$51)-1,0) -> -0.06944444444 | D52: 0 | E52: 0 | F52: 0 | G52: -0.6666666667 | H52: 0 | I52: 0 | J52: 0 | K52: 0 | L52: -0.07482993197 | N52: =V59 -> 0.008558444837 | S52: Tableau 3. | U52: OVOLGEPXREC | V52: =IFERROR(VLOOKUP($U52,Output!$C:$AM,37,FALSE)/5,0) -> 10960.5672
B53: ="Répartition de la composante SEPM des possibilités forestières 2023-2028 : sapin ("&IFERROR(ROUND(V51/V34*100,0),0)&"%), épinettes ("&IFERROR(ROUND(V52/V34*100,0),0)&"%), pin gris ("&IFERROR(ROUND(V53/V34*100,0),0)&"%) et mélèzes ("&IFERROR(ROUND(V54/V34*100,0),0)&"%)." -> Répartition de la composante SEPM des possibilités forestières 2023-2028 : sapin (3%), épinettes (82%), pin gris (15%) et mélèzes (0%). | S53: Tableau 3. | U53: OVOLGPGREC | V53: =IFERROR(VLOOKUP($U53,Output!$C:$AM,37,FALSE)/5,0) -> 1983.092
B54: ="Répartition de la composante Érables à sucre et rouge des possibilités forestières 2023-2028 : érable à sucre("&IFERROR(ROUND(V42/(V42+V43)*100,0),0)&"%) et érable rouge ("&IFERROR(ROUND(V43/(V42+V43)*100,0),0)&"%)." -> Répartition de la composante Érables à sucre et rouge des possibilités forestières 2023-2028 : érable à sucre(0%) et érable rouge (0%). | S54: Tableau 3. | U54: OVOLGMLREC | V54: =IFERROR(VLOOKUP($U54,Output!$C:$AM,37,FALSE)/5,0) -> 65.2464
B55: Copier/Coller le tableau ci-dessus avec les lignes 53 et 54 | S55: Tableau 3. | U55: OSUPINC | V55: =IFERROR(VLOOKUP($U55,Output!$C:$AM,6,FALSE),0) -> 56296.7
S56: Tableau 3. | U56: OVOLTOTPIEDINC | V56: =IFERROR(VLOOKUP($U56,Output!$C:$AM,7,FALSE),0) -> 1994910.48
S57: Tableau 3. | U57: Possibilité forestière unitaire | V57: =IFERROR(V48/F33,0) -> 0.3356435644
S58: Tableau 3. | U58: % récolte volume sur pied
U59: % récolte volume sur pied destiné à l'aménagement | V59: =V48/Figures!V19 -> 0.008558444837
B61: Tableau 4. Répartition des superficies récoltées et des possibilités forestières par grand type de forêt
B62: Grands types de forêt | D62: Superficie récoltée* | H62: Possibilités forestières* | P62: Enlever Peu pas de superficie | S62: =LEFT(B$61,10) -> Tableau 4. | V62: Output total non arrondi | W62: Écart entre la somme du tableau et le output total
D63: Coupes totales | F63: Coupes partielles | H63: Résineux | J63: Feuillus tolérants | L63: Feuillus intolérants | N63: Total | P63: Feuillus intolérants | S63: Tableau 4. | T63: Total | Z63: P2 à P6
D64: ha/an | E64: % | F64: ha/an | G64: % | H64: m³ bruts/an | I64: % | J64: ="m"&CHAR(179)&" bruts/an" -> m³ bruts/an | K64: % | L64: ="m"&CHAR(179)&" bruts/an" -> m³ bruts/an | M64: % | N64: ="m"&CHAR(179)&" bruts/an" -> m³ bruts/an | O64: % | P64: ="m"&CHAR(179)&" bruts/an" -> m³ bruts/an | Q64: % | S64: Tableau 4. | T64: ha/an | U64: % | Y64: Famille de courbe | Z64: OSUPINC | AA64: OSUPREALREGAFIN | AB64: OSUPREALREGAPAR | AC64: OSUPREALREGAPRE | AD64: OVOLGRREC | AE64: OVOLGAURREC | AF64: OVOLGFIREC | AG64: OVOLGFTREC | AH64: OVOLTOTREC
B65: Bétulaies blanches | D65: =ROUND(AA65/5,-1) -> 0 | E65: =IFERROR(D65/D$79,0) -> 0 | F65: =ROUND(AB65/5,-1) -> 0 | G65: =IFERROR(F65/F$79,0) -> 0 | H65: =ROUND(AD65/5,-2) -> 0 | I65: =IFERROR(H65/H$79,0) -> 0 | J65: =ROUND(AG65/5,-2) -> 0 | K65: =IFERROR(J65/J$79,0) -> 0 | L65: =ROUND(AF65/5,-2) -> 0 | M65: =L65/L$79 -> 0 | N65: =H65+J65+L65 -> 0 | O65: =N65/$N$79 -> 0 | P65: 0 | Q65: 0 | S65: Tableau 4. | T65: =D65+F65 -> 0 | U65: =IFERROR(T65/T$79,0) -> 0 | V65: =(AA65+AB65)/5 -> 0 | W65: =T65-V65 -> 0 | Y65: (FCTYF_BOP) | Z65: =VLOOKUP(Z$64&$Y65,GTYF!$C:$AP,6,FALSE) -> 0 | AA65: =VLOOKUP(AA$64&$Y65,GTYF!$C:$AP,37,FALSE) -> 0 | AB65: =VLOOKUP(AB$64&$Y65,GTYF!$C:$AP,37,FALSE) -> 0 | AC65: =VLOOKUP(AC$64&$Y65,GTYF!$C:$AP,37,FALSE) -> 0 | AD65: =VLOOKUP(AD$64&$Y65,GTYF!$C:$AP,37,FALSE) -> 0 | AE65: =VLOOKUP(AE$64&$Y65,GTYF!$C:$AP,37,FALSE) -> 0 | AF65: =VLOOKUP(AF$64&$Y65,GTYF!$C:$AP,37,FALSE) -> 0 | AG65: =VLOOKUP(AG$64&$Y65,GTYF!$C:$AP,37,FALSE) -> 0 | AH65: =VLOOKUP(AH$64&$Y65,GTYF!$C:$AP,37,FALSE) -> 0
B66: Bétulaies blanches à résineux | D66: 0 | E66: =IFERROR(D66/D$79,0) -> 0 | F66: 0 | G66: =IFERROR(F66/F$79,0) -> 0 | H66: =ROUND(AD66/5,-2) -> 0 | I66: =IFERROR(H66/H$79,0) -> 0 | J66: =ROUND(AG66/5,-2) -> 0 | K66: 0 | L66: =ROUND(AF66/5,-2) -> 0 | M66: =L66/L$79 -> 0 | N66: =H66+J66+L66 -> 0 | O66: 0 | P66: 0 | Q66: 0 | S66: Tableau 4. | T66: 0 | U66: =IFERROR(T66/T$79,0) -> 0 | V66: =(AA66+AB66)/5 -> 0 | W66: 0 | Y66: (FCTYF_BOPR) | Z66: =VLOOKUP(Z$64&$Y66,GTYF!$C:$AP,6,FALSE) -> 0 | AA66: =VLOOKUP(AA$64&$Y66,GTYF!$C:$AP,37,FALSE) -> 0 | AB66: =VLOOKUP(AB$64&$Y66,GTYF!$C:$AP,37,FALSE) -> 0 | AC66: =VLOOKUP(AC$64&$Y66,GTYF!$C:$AP,37,FALSE) -> 0 | AD66: =VLOOKUP(AD$64&$Y66,GTYF!$C:$AP,37,FALSE) -> 0 | AE66: =VLOOKUP(AE$64&$Y66,GTYF!$C:$AP,37,FALSE) -> 0 | AF66: =VLOOKUP(AF$64&$Y66,GTYF!$C:$AP,37,FALSE) -> 0 | AG66: =VLOOKUP(AG$64&$Y66,GTYF!$C:$AP,37,FALSE) -> 0 | AH66: =VLOOKUP(AH$64&$Y66,GTYF!$C:$AP,37,FALSE) -> 0
B67: Cédrières | D67: 0 | E67: 0 | F67: 0 | G67: 0 | H67: =ROUND(AD67/5,-2) -> 0 | I67: 0 | J67: 0 | K67: 0 | L67: 0 | M67: 0 | N67: 0 | O67: 0 | P67: 0 | Q67: 0 | S67: Tableau 4. | T67: 0 | U67: 0 | V67: =(AA67+AB67)/5 -> 0 | W67: 0 | Y67: (FCTYF_THO) | Z67: =VLOOKUP(Z$64&$Y67,GTYF!$C:$AP,6,FALSE) -> 0 | AA67: =VLOOKUP(AA$64&$Y67,GTYF!$C:$AP,37,FALSE) -> 0 | AB67: =VLOOKUP(AB$64&$Y67,GTYF!$C:$AP,37,FALSE) -> 0 | AC67: =VLOOKUP(AC$64&$Y67,GTYF!$C:$AP,37,FALSE) -> 0 | AD67: =VLOOKUP(AD$64&$Y67,GTYF!$C:$AP,37,FALSE) -> 0 | AE67: =VLOOKUP(AE$64&$Y67,GTYF!$C:$AP,37,FALSE) -> 0 | AF67: =VLOOKUP(AF$64&$Y67,GTYF!$C:$AP,37,FALSE) -> 0 | AG67: =VLOOKUP(AG$64&$Y67,GTYF!$C:$AP,37,FALSE) -> 0 | AH67: =VLOOKUP(AH$64&$Y67,GTYF!$C:$AP,37,FALSE) -> 0
B68: Érablières rouges | D68: 0 | E68: 0 | F68: 0 | G68: 0 | H68: 0 | I68: 0 | J68: 0 | K68: 0 | L68: 0 | M68: 0 | N68: 0 | O68: 0 | P68: 0 | Q68: 0 | S68: Tableau 4. | T68: 0 | U68: 0 | V68: =(AA68+AB68)/5 -> 0 | W68: 0 | Y68: (FCTYF_ERO) | Z68: =VLOOKUP(Z$64&$Y68,GTYF!$C:$AP,6,FALSE) -> 0 | AA68: =VLOOKUP(AA$64&$Y68,GTYF!$C:$AP,37,FALSE) -> 0 | AB68: =VLOOKUP(AB$64&$Y68,GTYF!$C:$AP,37,FALSE) -> 0 | AC68: =VLOOKUP(AC$64&$Y68,GTYF!$C:$AP,37,FALSE) -> 0 | AD68: =VLOOKUP(AD$64&$Y68,GTYF!$C:$AP,37,FALSE) -> 0 | AE68: =VLOOKUP(AE$64&$Y68,GTYF!$C:$AP,37,FALSE) -> 0 | AF68: =VLOOKUP(AF$64&$Y68,GTYF!$C:$AP,37,FALSE) -> 0 | AG68: =VLOOKUP(AG$64&$Y68,GTYF!$C:$AP,37,FALSE) -> 0 | AH68: =VLOOKUP(AH$64&$Y68,GTYF!$C:$AP,37,FALSE) -> 0
B69: Feuillus tolérants | D69: 0 | E69: 0 | F69: 0 | G69: 0 | H69: 0 | I69: 0 | J69: 0 | K69: 0 | L69: 0 | M69: 0 | N69: 0 | O69: 0 | P69: 0 | Q69: 0 | S69: Tableau 4. | T69: 0 | U69: 0 | V69: 0 | W69: 0 | Y69: (FCTYF_FT) | Z69: =VLOOKUP(Z$64&$Y69,GTYF!$C:$AP,6,FALSE) -> 0 | AA69: =VLOOKUP(AA$64&$Y69,GTYF!$C:$AP,37,FALSE) -> 0 | AB69: =VLOOKUP(AB$64&$Y69,GTYF!$C:$AP,37,FALSE) -> 0 | AC69: =VLOOKUP(AC$64&$Y69,GTYF!$C:$AP,37,FALSE) -> 0 | AD69: =VLOOKUP(AD$64&$Y69,GTYF!$C:$AP,37,FALSE) -> 0 | AE69: =VLOOKUP(AE$64&$Y69,GTYF!$C:$AP,37,FALSE) -> 0 | AF69: =VLOOKUP(AF$64&$Y69,GTYF!$C:$AP,37,FALSE) -> 0 | AG69: =VLOOKUP(AG$64&$Y69,GTYF!$C:$AP,37,FALSE) -> 0 | AH69: =VLOOKUP(AH$64&$Y69,GTYF!$C:$AP,37,FALSE) -> 0
B70: Feuillus tolérants à résineux | D70: 0 | E70: 0 | F70: 0 | G70: 0 | H70: 0 | I70: 0 | J70: 0 | K70: 0 | L70: 0 | M70: 0 | N70: 0 | O70: 0 | P70: 0 | Q70: 0 | S70: Tableau 4. | T70: 0 | U70: 0 | V70: 0 | W70: 0 | Y70: (FCTYF_FTR) | Z70: =VLOOKUP(Z$64&$Y70,GTYF!$C:$AP,6,FALSE) -> 0 | AA70: =VLOOKUP(AA$64&$Y70,GTYF!$C:$AP,37,FALSE) -> 0 | AB70: =VLOOKUP(AB$64&$Y70,GTYF!$C:$AP,37,FALSE) -> 0 | AC70: =VLOOKUP(AC$64&$Y70,GTYF!$C:$AP,37,FALSE) -> 0 | AD70: =VLOOKUP(AD$64&$Y70,GTYF!$C:$AP,37,FALSE) -> 0 | AE70: =VLOOKUP(AE$64&$Y70,GTYF!$C:$AP,37,FALSE) -> 0 | AF70: =VLOOKUP(AF$64&$Y70,GTYF!$C:$AP,37,FALSE) -> 0 | AG70: =VLOOKUP(AG$64&$Y70,GTYF!$C:$AP,37,FALSE) -> 0 | AH70: =VLOOKUP(AH$64&$Y70,GTYF!$C:$AP,37,FALSE) -> 0
B71: Pessières | D71: =ROUND(AA71/5,-1) -> 150 | E71: 0.8823529412 | F71: 0 | G71: 0 | H71: 11200 | I71: 0.8421052632 | J71: 0 | K71: 0 | L71: 100 | M71: 1 | N71: 11300 | O71: 0.8432835821 | P71: 100 | Q71: 0.5 | S71: Tableau 4. | T71: 150 | U71: 0.8823529412 | V71: 152.7904 | W71: =T71-V71 -> -2.7904 | Y71: (FCTYF_EPX) | Z71: =VLOOKUP(Z$64&$Y71,GTYF!$C:$AP,6,FALSE) -> 35828.9 | AA71: =VLOOKUP(AA$64&$Y71,GTYF!$C:$AP,37,FALSE) -> 763.952 | AB71: =VLOOKUP(AB$64&$Y71,GTYF!$C:$AP,37,FALSE) -> 0 | AC71: =VLOOKUP(AC$64&$Y71,GTYF!$C:$AP,37,FALSE) -> 763.952 | AD71: =VLOOKUP(AD$64&$Y71,GTYF!$C:$AP,37,FALSE) -> 56213.982 | AE71: =VLOOKUP(AE$64&$Y71,GTYF!$C:$AP,37,FALSE) -> 0 | AF71: =VLOOKUP(AF$64&$Y71,GTYF!$C:$AP,37,FALSE) -> 679.012 | AG71: =VLOOKUP(AG$64&$Y71,GTYF!$C:$AP,37,FALSE) -> 0 | AH71: =VLOOKUP(AH$64&$Y71,GTYF!$C:$AP,37,FALSE) -> 56892.994
B72: Peupleraies | D72: 0 | E72: 0 | F72: 0 | G72: 0 | H72: 0 | I72: 0 | J72: 0 | K72: 0 | L72: 0 | M72: 0 | N72: 0 | O72: 0 | P72: 100 | Q72: 0.5 | S72: Tableau 4. | T72: 0 | U72: 0 | V72: 0.3964 | W72: -0.3964 | Y72: (FCTYF_PEU) | Z72: =VLOOKUP(Z$64&$Y72,GTYF!$C:$AP,6,FALSE) -> 294.1 | AA72: =VLOOKUP(AA$64&$Y72,GTYF!$C:$AP,37,FALSE) -> 1.982 | AB72: =VLOOKUP(AB$64&$Y72,GTYF!$C:$AP,37,FALSE) -> 0 | AC72: =VLOOKUP(AC$64&$Y72,GTYF!$C:$AP,37,FALSE) -> 1.982 | AD72: =VLOOKUP(AD$64&$Y72,GTYF!$C:$AP,37,FALSE) -> 38.446 | AE72: =VLOOKUP(AE$64&$Y72,GTYF!$C:$AP,37,FALSE) -> 0 | AF72: =VLOOKUP(AF$64&$Y72,GTYF!$C:$AP,37,FALSE) -> 277.858 | AG72: =VLOOKUP(AG$64&$Y72,GTYF!$C:$AP,37,FALSE) -> 0 | AH72: =VLOOKUP(AH$64&$Y72,GTYF!$C:$AP,37,FALSE) -> 316.304
B73: Peupleraies à résineux | D73: 0 | E73: 0 | F73: 0 | G73: 0 | H73: 0 | I73: 0 | J73: 0 | K73: 0 | L73: 0 | M73: 0 | N73: 0 | O73: 0 | P73: 0 | Q73: 0 | S73: Tableau 4. | T73: 0 | U73: 0 | V73: 0 | W73: 0 | Y73: (FCTYF_PEUR) | Z73: =VLOOKUP(Z$64&$Y73,GTYF!$C:$AP,6,FALSE) -> 323.7 | AA73: =VLOOKUP(AA$64&$Y73,GTYF!$C:$AP,37,FALSE) -> 0 | AB73: =VLOOKUP(AB$64&$Y73,GTYF!$C:$AP,37,FALSE) -> 0 | AC73: =VLOOKUP(AC$64&$Y73,GTYF!$C:$AP,37,FALSE) -> 0 | AD73: =VLOOKUP(AD$64&$Y73,GTYF!$C:$AP,37,FALSE) -> 0 | AE73: =VLOOKUP(AE$64&$Y73,GTYF!$C:$AP,37,FALSE) -> 0 | AF73: =VLOOKUP(AF$64&$Y73,GTYF!$C:$AP,37,FALSE) -> 0 | AG73: =VLOOKUP(AG$64&$Y73,GTYF!$C:$AP,37,FALSE) -> 0 | AH73: =VLOOKUP(AH$64&$Y73,GTYF!$C:$AP,37,FALSE) -> 0
B74: Pinèdes blanches | D74: 0 | E74: 0 | F74: 0 | G74: 0 | H74: 0 | I74: 0 | J74: 0 | K74: 0 | L74: 0 | M74: 0 | N74: 0 | O74: 0 | P74: 0 | Q74: 0 | S74: Tableau 4. | T74: 0 | U74: 0 | V74: 0 | W74: 0 | Y74: (FCTYF_PIN) | Z74: =VLOOKUP(Z$64&$Y74,GTYF!$C:$AP,6,FALSE) -> 0 | AA74: =VLOOKUP(AA$64&$Y74,GTYF!$C:$AP,37,FALSE) -> 0 | AB74: =VLOOKUP(AB$64&$Y74,GTYF!$C:$AP,37,FALSE) -> 0 | AC74: =VLOOKUP(AC$64&$Y74,GTYF!$C:$AP,37,FALSE) -> 0 | AD74: =VLOOKUP(AD$64&$Y74,GTYF!$C:$AP,37,FALSE) -> 0 | AE74: =VLOOKUP(AE$64&$Y74,GTYF!$C:$AP,37,FALSE) -> 0 | AF74: =VLOOKUP(AF$64&$Y74,GTYF!$C:$AP,37,FALSE) -> 0 | AG74: =VLOOKUP(AG$64&$Y74,GTYF!$C:$AP,37,FALSE) -> 0 | AH74: =VLOOKUP(AH$64&$Y74,GTYF!$C:$AP,37,FALSE) -> 0
B75: Pinèdes grises | D75: 20 | E75: 0.1176470588 | F75: 0 | G75: 0 | H75: 2100 | I75: 0.1578947368 | J75: 0 | K75: 0 | L75: 0 | M75: 0 | N75: 2100 | O75: 0.1567164179 | P75: 0 | Q75: 0 | S75: Tableau 4. | T75: 20 | U75: 0.1176470588 | V75: 21.9784 | W75: -1.9784 | Y75: (FCTYF_PIG) | Z75: =VLOOKUP(Z$64&$Y75,GTYF!$C:$AP,6,FALSE) -> 1677.3 | AA75: =VLOOKUP(AA$64&$Y75,GTYF!$C:$AP,37,FALSE) -> 109.892 | AB75: =VLOOKUP(AB$64&$Y75,GTYF!$C:$AP,37,FALSE) -> 0 | AC75: =VLOOKUP(AC$64&$Y75,GTYF!$C:$AP,37,FALSE) -> 109.892 | AD75: =VLOOKUP(AD$64&$Y75,GTYF!$C:$AP,37,FALSE) -> 10547.568 | AE75: =VLOOKUP(AE$64&$Y75,GTYF!$C:$AP,37,FALSE) -> 0 | AF75: =VLOOKUP(AF$64&$Y75,GTYF!$C:$AP,37,FALSE) -> 43.13 | AG75: =VLOOKUP(AG$64&$Y75,GTYF!$C:$AP,37,FALSE) -> 0 | AH75: =VLOOKUP(AH$64&$Y75,GTYF!$C:$AP,37,FALSE) -> 10590.702
B76: Prucheraies | D76: 0 | E76: 0 | F76: 0 | G76: 0 | H76: 0 | I76: 0 | J76: 0 | K76: 0 | L76: 0 | M76: 0 | N76: 0 | O76: 0 | P76: 0 | Q76: 0 | S76: Tableau 4. | T76: 0 | U76: 0 | V76: 0 | W76: 0 | Y76: (FCTYF_PRU) | Z76: =VLOOKUP(Z$64&$Y76,GTYF!$C:$AP,6,FALSE) -> 0 | AA76: =VLOOKUP(AA$64&$Y76,GTYF!$C:$AP,37,FALSE) -> 0 | AB76: =VLOOKUP(AB$64&$Y76,GTYF!$C:$AP,37,FALSE) -> 0 | AC76: =VLOOKUP(AC$64&$Y76,GTYF!$C:$AP,37,FALSE) -> 0 | AD76: =VLOOKUP(AD$64&$Y76,GTYF!$C:$AP,37,FALSE) -> 0 | AE76: =VLOOKUP(AE$64&$Y76,GTYF!$C:$AP,37,FALSE) -> 0 | AF76: =VLOOKUP(AF$64&$Y76,GTYF!$C:$AP,37,FALSE) -> 0 | AG76: =VLOOKUP(AG$64&$Y76,GTYF!$C:$AP,37,FALSE) -> 0 | AH76: =VLOOKUP(AH$64&$Y76,GTYF!$C:$AP,37,FALSE) -> 0
B77: Résineux à feuillus | D77: 0 | E77: 0 | F77: 0 | G77: 0 | H77: 0 | I77: 0 | J77: 0 | K77: 0 | L77: 0 | M77: 0 | N77: 0 | O77: 0 | P77: 0 | Q77: 0 | S77: Tableau 4. | T77: 0 | U77: 0 | V77: 0 | W77: 0 | Y77: (FCTYF_RF) | Z77: =VLOOKUP(Z$64&$Y77,GTYF!$C:$AP,6,FALSE) -> 2275 | AA77: =VLOOKUP(AA$64&$Y77,GTYF!$C:$AP,37,FALSE) -> 0 | AB77: =VLOOKUP(AB$64&$Y77,GTYF!$C:$AP,37,FALSE) -> 0 | AC77: =VLOOKUP(AC$64&$Y77,GTYF!$C:$AP,37,FALSE) -> 0 | AD77: =VLOOKUP(AD$64&$Y77,GTYF!$C:$AP,37,FALSE) -> 0 | AE77: =VLOOKUP(AE$64&$Y77,GTYF!$C:$AP,37,FALSE) -> 0 | AF77: =VLOOKUP(AF$64&$Y77,GTYF!$C:$AP,37,FALSE) -> 0 | AG77: =VLOOKUP(AG$64&$Y77,GTYF!$C:$AP,37,FALSE) -> 0 | AH77: =VLOOKUP(AH$64&$Y77,GTYF!$C:$AP,37,FALSE) -> 0
B78: Sapinières | D78: 0 | E78: 0 | F78: 0 | G78: 0 | H78: 0 | I78: 0 | J78: =ROUND(AG78/5,-2) -> 0 | K78: 0 | L78: 0 | M78: 0 | N78: 0 | O78: 0 | P78: 0 | Q78: 0 | S78: Tableau 4. | T78: 0 | U78: 0 | V78: 0 | W78: 0 | Y78: (FCTYF_SAB) | Z78: =VLOOKUP(Z$64&$Y78,GTYF!$C:$AP,6,FALSE) -> 0 | AA78: =VLOOKUP(AA$64&$Y78,GTYF!$C:$AP,37,FALSE) -> 0 | AB78: =VLOOKUP(AB$64&$Y78,GTYF!$C:$AP,37,FALSE) -> 0 | AC78: =VLOOKUP(AC$64&$Y78,GTYF!$C:$AP,37,FALSE) -> 0 | AD78: =VLOOKUP(AD$64&$Y78,GTYF!$C:$AP,37,FALSE) -> 0 | AE78: =VLOOKUP(AE$64&$Y78,GTYF!$C:$AP,37,FALSE) -> 0 | AF78: =VLOOKUP(AF$64&$Y78,GTYF!$C:$AP,37,FALSE) -> 0 | AG78: =VLOOKUP(AG$64&$Y78,GTYF!$C:$AP,37,FALSE) -> 0 | AH78: =VLOOKUP(AH$64&$Y78,GTYF!$C:$AP,37,FALSE) -> 0
B79: Total | D79: =SUM(D65:D78) -> 170 | E79: =SUM(E65:E78) -> 1 | F79: =SUM(F65:F78) -> 0 | G79: =SUM(G65:G78) -> 0 | H79: =SUM(H65:H78) -> 13300 | I79: =SUM(I65:I78) -> 1 | J79: 0 | K79: 0 | L79: 100 | M79: 1 | N79: =SUM(N65:N78) -> 13400 | O79: 1 | P79: 200 | Q79: 1 | S79: Tableau 4. | T79: =SUM(T65:T78) -> 170 | U79: =SUM(U65:U78) -> 1 | V79: =SUM(V65:V78) -> 175.1652 | W79: -5.1652 | Y79: Somme | Z79: =SUM(Z65:Z78) -> 40399 | AA79: =SUM(AA65:AA78) -> 875.826 | AB79: =SUM(AB65:AB78) -> 0 | AC79: =SUM(AC65:AC78) -> 875.826
B80: * Les superficies sont arrondies à la dizaine près et les volumes à la centaine près. Cette opération peut engendrer de légères distorsions sur les sommes | S80: Tableau 4. | Y80: Total (Output) | Z80: =VLOOKUP(Z$64,Output!$C:$AP,6,FALSE) -> 56296.7
Y81: Écart | Z81: =Z79-Z80 -> -15897.7
N82: Écart de possibilité
N83: =Instructions!I5/5-N79 -> 160 | O83: Valideur
B84: Tableau 8. Traitements commerciaux supportant les possibilités forestières
B85: Traitements commerciaux (récolte) | G85: Superficie annuelle moyenne (ha/an) | H85: Superficie antérieure (ha/an) | I85: Écart (ha/an)
T88: Légende | U88: Name | V88: PERIOD2@6
B89: Coupe avec protection de la régénération et des sols (CPRS) | G89: =IFERROR(ROUND(V89,-1),0)-G90-G91 -> 180 | H89: =IFERROR(ROUND(VLOOKUP(O33,DataLocal!$A:$BH,37,FALSE),-1),0) -> 190 | I89: =G89-H89 -> -10 | S89: =LEFT(B$84,10) -> Tableau 8. | T89: Coupes avec protection de la régénération et des sols (CPRS) | U89: OSUPCT | V89: =IFERROR(VLOOKUP(U89,Output!$C:$AQ,37,FALSE)/5,"0000") -> 175.1644
B90: Coupe avec protection des petites tiges marchandes (CPPTM) | G90: =IFERROR(ROUND(V90,-1),0) -> 0 | H90: =IFERROR(ROUND(VLOOKUP(O33,DataLocal!$A:$BH,38,FALSE),-1),0) -> 0 | I90: =G90-H90 -> 0 | S90: Tableau 8. | T90: Coupe avec protection des petites tiges marchandes (CPPTM) | U90: OSUPREALACPPTM | V90: =IFERROR(VLOOKUP(U90,Output!$C:$AQ,37,FALSE)/5,"0000") -> 0
B91: Coupe avec réserve de semenciers (CRS) | G91: =IFERROR(ROUND(V91,-1),0) -> 0 | H91: =IFERROR(ROUND(VLOOKUP(33,DataLocal!$A:$BH,39,FALSE),-1),0) -> 0 | I91: 0 | S91: Tableau 8. | T91: Coupe avec réserve de semenciers (CRS) | U91: OSUPREALACRS | V91: =IFERROR(VLOOKUP(U91,Output!$C:$AQ,37,FALSE)/5,"0000") -> 0
B92: Total des coupes finales | G92: =SUM(G89:G91) -> 180 | H92: =SUM(H89:H91) -> 190 | I92: -10 | S92: Tableau 8.
B93: Éclaircie commerciale | G93: =IFERROR(ROUND(V93,-1),0) -> 0 | H93: =IFERROR(ROUND(VLOOKUP(O33,DataLocal!$A:$BH,40,FALSE),-1),0) -> 0 | I93: 0 | S93: Tableau 8. | T93: Éclaircie commerciale (EC) | U93: OSUPEC_SEPM | V93: =IFERROR(VLOOKUP(U93,Output!$C:$AQ,37,FALSE)/5,"0000") -> 0
B94: Coupe progressive régulière | G94: =IFERROR(ROUND(V94+V95,-1),0) -> 0 | H94: =IFERROR(ROUND(VLOOKUP(O33,DataLocal!$A:$BH,41,FALSE),-1),0) -> 0 | I94: 0 | S94: Tableau 8. | T94: Coupe progressive régulière initiale (CPROG) | U94: OSUPCPROG_INI | V94: =IFERROR(VLOOKUP(U94,Output!$C:$AQ,37,FALSE)/5,"0000") -> 0000
B95: Coupe progressive irrégulière à régénération lente (CPIL) | G95: =IFERROR(ROUND(V96+V97,-1),0) -> 0 | H95: =IFERROR(ROUND(VLOOKUP(O33,DataLocal!$A:$BH,42,FALSE),-1),0) -> 10 | I95: -10 | S95: Tableau 8. | T95: Coupe progressive régulière finale (CPROG) | U95: OSUPCPROG_FIN | V95: =IFERROR(VLOOKUP(U95,Output!$C:$AQ,37,FALSE)/5,"0000") -> 0000
B96: Coupe progressive irrégulière à couvert permanent (CPICP) | G96: =IFERROR(ROUND(V98,-1),0) -> 0 | H96: =IFERROR(ROUND(VLOOKUP(O33,DataLocal!$A:$BH,43,FALSE),-1),0) -> 0 | I96: 0 | S96: Tableau 8. | T96: Coupe progessive irrégulière initiale (CPIRL) | U96: OSUPCPIRL_INI | V96: =IFERROR(VLOOKUP(U96,Output!$C:$AQ,37,FALSE)/5,"0000") -> 0
B97: Coupes de jardinage ou d'amélioration | G97: =IFERROR(ROUND(V99,-1),0) -> 0 | H97: =IFERROR(ROUND(VLOOKUP(O33,DataLocal!$A:$BH,44,FALSE),-1),0) -> 0 | I97: 0 | T97: Coupe progessive irrégulière finale (CPIRL) | U97: OSUPCPIRL_FIN | V97: =IFERROR(VLOOKUP(U97,Output!$C:$AQ,37,FALSE)/5,"0000") -> 0
B98: Total des coupes partielles | G98: =SUM(G93:G97) -> 0 | H98: =SUM(H93:H97) -> 10 | I98: -10 | S98: =LEFT(B$84,10) -> Tableau 8. | T98: Coupe à couvert permanent (CPICP) | U98: OSUPCPICP | V98: =IFERROR(VLOOKUP(U98,Output!$C:$AQ,37,FALSE)/5,"0000") -> 0000
B99: Total des activités de récolte | G99: =G92+G98 -> 180 | H99: =H98+H92 -> 200 | I99: -20 | S99: =LEFT(B$84,10) -> Tableau 8. | T99: Coupe de jardinage (CJ) | U99: OSUPCJ | V99: =IFERROR(VLOOKUP(U99,Output!$C:$AQ,37,FALSE)/5,"0000") -> 0000
B100: % des coupes totales / récolte | G100: =IFERROR(G92/G99,0) -> 1 | H100: =IFERROR(H92/H99,0) -> 0.95 | I100: =ROUND(G100-H100,2) -> 0.05 | W100: Valideur
B101: % des coupes partielles / récolte | G101: =IFERROR(G98/G99,0) -> 0 | H101: =IFERROR(H98/H99,0) -> 0.05 | I101: =ROUND(G101-H101,2) -> -0.05 | S101: =LEFT(B$84,10) -> Tableau 8. | U101: OSUPREALREGAPAR | V101: =VLOOKUP(U101,Output!$C:$AQ,37,FALSE)/5 -> 0 | W101: =ROUND(SUM(V93:V99),0)=ROUND(V101,0) -> TRUE
B102: Coupes partielles de peuplements résineux | G102: =ROUND((AB67+AB71+AB75+AB76+AB77+AB78)/5,-1) -> 0 | H102: =IFERROR(ROUND(VLOOKUP(O33,DataLocal!$A:$BH,45,FALSE),-1),0) -> 10 | I102: -10 | S102: =LEFT(B$84,10) -> Tableau 8. | U102: OSUPREALREGAFIN | V102: =VLOOKUP(U102,Output!$C:$AQ,37,FALSE)/5 -> 175.1644 | W102: =ROUND((V89),0)=ROUND(V102,0) -> TRUE
B103: Coupes partielles de peuplements de feuillus tolérants et de pins | G103: =ROUND((AB69+AB70+AB74)/5,-1) -> 0 | H103: =IFERROR(ROUND(VLOOKUP(O33,DataLocal!$A:$BH,46,FALSE),-1),0) -> 0 | I103: 0 | S103: =LEFT(B$84,10) -> Tableau 8. | U103: OSUPREALREGAPRE | V103: =VLOOKUP(U103,Output!$C:$AQ,37,FALSE)/5 -> 175.1644 | W103: =ROUND(V89+SUM(V93:V99),0)=ROUND(V103,0) -> TRUE
B109: Tableau 9. Variables descriptives reliées aux coupes partielles et totales par grand type de forêt | L109: La CRV est-elle compabilisée avec les coupes partielles (regaPar)?
B110: Grands types de forêt | E110: Coupes partielles | H110: Coupes totales | L110: Si Oui - Remplacer alors les valeurs (colonne H et I) par celles-ci
E111: Rotation moyenne | F111: Prélèvement moyen | G111: Surface terrière moyenne avant coupe | H111: Âge moyen des peuplements | I111: Volume moyen toutes essences | J111: Dimension des bois SEPM | M111: Âge moyen des peuplements | N111: Volume moyen toutes essences | P111: Âge moyen des peuplements
S113: Référence Tableau 63 du cahier d'analyse VF
E115: Années | F115: ="m"&CHAR(179)&"/ha" -> m³/ha | G115: ="m"&CHAR(178)&"/ha" -> m²/ha | H115: Années | I115: ="m"&CHAR(179)&"/an" -> m³/an | J115: ="dcm"&CHAR(179)&"/tige" -> dcm³/tige | M115: Années | N115: ="m"&CHAR(179)&"/an" -> m³/an | P115: Années | S115: =LEFT(B$109,10) -> Tableau 9. | V115: OSUPREALREGAPRE | W115: OSUPINC | X115: OVOLGSEPMRECREGAFIN | Y115: ONBTGSEPMRECREGAFIN | Z115: OVOLTOTRECACT | AA115: OVOLTOTRECACFP | AB115: OVOLTOTRECACRS | AC115: OVOLTOTRECACPPTM | AD115: OSUPREALREGAFIN | AE115: OVOLTOTRECACRV | AF115: OAGETOTRECACT | AG115: OAGETOTRECACFP | AH115: OAGETOTRECACRS | AI115: OAGETOTRECACPPTM | AJ115: OSUPREALREGAFIN | AK115: OAGETOTRECACRV | AM115: OVOLTOTRECaEC | AN115: OVOLTOTRECaEC2 | AO115: OVOLTOTRECaEC3 | AP115: OVOLTOTRECaCA | AQ115: OVOLTOTRECaCA2 | AR115: OVOLTOTRECaCPROG | AS115: OVOLTOTRECaCPIL | AT115: OVOLTOTRECaCPIP | AU115: OVOLTOTRECaCPFORT | AV115: OVOLTOTRECaCPFAIBL | AW115: OVOLTOTRECaCP | AX115: OVOLTOTRECaCPJ | AY115: OVOLTOTRECaCJ | AZ115: SOMME | BA115: OSUPREALREGAPAR
B116: =T116 -> Bétulaies blanches | E116: - | F116: =IFERROR($AZ116/$BA116,"-") -> - | G116: - | H116: =IFERROR(($AF116+$AG116+$AH116+$AI116+$AK116)/$AJ116*5,"-") -> - | I116: =IFERROR(($Z116+$AA116+$AB116+$AC116+$AE116)/$AD116,"-") -> - | J116: =(IFERROR(X116/Y116*1000,"-")) -> - | M116: =IFERROR(($AF116+$AG116+$AH116+$AI116)/$AJ116*5,"-") -> - | N116: =IFERROR(($Z116+$AA116+$AB116+$AC116)/$AD116,"-") -> - | P116: =IFERROR(($AF116+$AG116+$AH116+$AI116+$AK116)/$AJ116*5,"-") -> - | S116: =LEFT(B$109,10) -> Tableau 9. | T116: Bétulaies blanches | U116: (FCTYF_BOP) | V116: =VLOOKUP(V$115&$U116,GTYF!$C:$AQ,37,FALSE) -> 0 | W116: =VLOOKUP(W$115&$U116,GTYF!$C:$AQ,6,FALSE) -> 0 | X116: =VLOOKUP(X$115&$U116,GTYF!$C:$AQ,37,FALSE) -> 0 | Y116: =VLOOKUP(Y$115&$U116,GTYF!$C:$AQ,37,FALSE) -> 0 | Z116: =VLOOKUP(Z$115&$U116,GTYF!$C:$AQ,37,FALSE) -> 0 | AA116: =VLOOKUP(AA$115&$U116,GTYF!$C:$AQ,37,FALSE) -> 0 | AB116: =VLOOKUP(AB$115&$U116,GTYF!$C:$AQ,37,FALSE) -> 0 | AC116: =VLOOKUP(AC$115&$U116,GTYF!$C:$AQ,37,FALSE) -> 0 | AD116: =VLOOKUP(AD$115&$U116,GTYF!$C:$AQ,37,FALSE) -> 0 | AE116: =VLOOKUP(AE$115&$U116,GTYF!$C:$AQ,37,FALSE) -> 0 | AF116: =VLOOKUP(AF$115&$U116,GTYF!$C:$AQ,37,FALSE) -> 0 | AG116: =VLOOKUP(AG$115&$U116,GTYF!$C:$AQ,37,FALSE) -> 0 | AH116: =VLOOKUP(AH$115&$U116,GTYF!$C:$AQ,37,FALSE) -> 0 | AI116: =VLOOKUP(AI$115&$U116,GTYF!$C:$AQ,37,FALSE) -> 0 | AJ116: =VLOOKUP(AJ$115&$U116,GTYF!$C:$AQ,37,FALSE) -> 0 | AK116: =VLOOKUP(AK$115&$U116,GTYF!$C:$AQ,37,FALSE) -> 0 | AM116: =VLOOKUP(AM$115&$U116,GTYF!$C:$AQ,37,FALSE) -> 0 | AN116: =VLOOKUP(AN$115&$U116,GTYF!$C:$AQ,37,FALSE) -> 0 | AO116: =VLOOKUP(AO$115&$U116,GTYF!$C:$AQ,37,FALSE) -> 0 | AP116: =VLOOKUP(AP$115&$U116,GTYF!$C:$AQ,37,FALSE) -> 0 | AQ116: =VLOOKUP(AQ$115&$U116,GTYF!$C:$AQ,37,FALSE) -> 0 | AR116: =VLOOKUP(AR$115&$U116,GTYF!$C:$AQ,37,FALSE) -> 0 | AS116: =VLOOKUP(AS$115&$U116,GTYF!$C:$AQ,37,FALSE) -> 0 | AT116: =VLOOKUP(AT$115&$U116,GTYF!$C:$AQ,37,FALSE) -> 0 | AU116: =VLOOKUP(AU$115&$U116,GTYF!$C:$AQ,37,FALSE) -> 0 | AV116: =VLOOKUP(AV$115&$U116,GTYF!$C:$AQ,37,FALSE) -> 0 | AW116: =VLOOKUP(AW$115&$U116,GTYF!$C:$AQ,37,FALSE) -> 0 | AX116: =VLOOKUP(AX$115&$U116,GTYF!$C:$AQ,37,FALSE) -> 0 | AY116: =VLOOKUP(AY$115&$U116,GTYF!$C:$AQ,37,FALSE) -> 0 | AZ116: =SUM(AM116:AY116) -> 0 | BA116: =VLOOKUP(BA$115&$U116,GTYF!$C:$AQ,37,FALSE) -> 0
B117: Bétulaies blanches à résineux | E117: - | F117: - | G117: - | H117: =IFERROR(($AF117+$AG117+$AH117+$AI117+$AK117)/$AJ117*5,"-") -> - | I117: =IFERROR(($Z117+$AA117+$AB117+$AC117+$AE117)/$AD117,"-") -> - | J117: =(IFERROR(X117/Y117*1000,"-")) -> - | M117: =IFERROR(($AF117+$AG117+$AH117+$AI117)/$AJ117*5,"-") -> - | N117: =IFERROR(($Z117+$AA117+$AB117+$AC117)/$AD117,"-") -> - | P117: =IFERROR(($AF117+$AG117+$AH117+$AI117+$AK117)/$AJ117*5,"-") -> - | S117: Tableau 9. | T117: Bétulaies blanches à résineux | U117: (FCTYF_BOPR) | V117: =VLOOKUP(V$115&$U117,GTYF!$C:$AQ,37,FALSE) -> 0 | W117: =VLOOKUP(W$115&$U117,GTYF!$C:$AQ,6,FALSE) -> 0 | X117: =VLOOKUP(X$115&$U117,GTYF!$C:$AQ,37,FALSE) -> 0 | Y117: =VLOOKUP(Y$115&$U117,GTYF!$C:$AQ,37,FALSE) -> 0 | Z117: =VLOOKUP(Z$115&$U117,GTYF!$C:$AQ,37,FALSE) -> 0 | AA117: =VLOOKUP(AA$115&$U117,GTYF!$C:$AQ,37,FALSE) -> 0 | AB117: =VLOOKUP(AB$115&$U117,GTYF!$C:$AQ,37,FALSE) -> 0 | AC117: =VLOOKUP(AC$115&$U117,GTYF!$C:$AQ,37,FALSE) -> 0 | AD117: =VLOOKUP(AD$115&$U117,GTYF!$C:$AQ,37,FALSE) -> 0 | AE117: =VLOOKUP(AE$115&$U117,GTYF!$C:$AQ,37,FALSE) -> 0 | AF117: =VLOOKUP(AF$115&$U117,GTYF!$C:$AQ,37,FALSE) -> 0 | AG117: =VLOOKUP(AG$115&$U117,GTYF!$C:$AQ,37,FALSE) -> 0 | AH117: =VLOOKUP(AH$115&$U117,GTYF!$C:$AQ,37,FALSE) -> 0 | AI117: =VLOOKUP(AI$115&$U117,GTYF!$C:$AQ,37,FALSE) -> 0 | AJ117: =VLOOKUP(AJ$115&$U117,GTYF!$C:$AQ,37,FALSE) -> 0 | AK117: =VLOOKUP(AK$115&$U117,GTYF!$C:$AQ,37,FALSE) -> 0 | AM117: =VLOOKUP(AM$115&$U117,GTYF!$C:$AQ,37,FALSE) -> 0 | AN117: =VLOOKUP(AN$115&$U117,GTYF!$C:$AQ,37,FALSE) -> 0 | AO117: =VLOOKUP(AO$115&$U117,GTYF!$C:$AQ,37,FALSE) -> 0 | AP117: =VLOOKUP(AP$115&$U117,GTYF!$C:$AQ,37,FALSE) -> 0 | AQ117: =VLOOKUP(AQ$115&$U117,GTYF!$C:$AQ,37,FALSE) -> 0 | AR117: =VLOOKUP(AR$115&$U117,GTYF!$C:$AQ,37,FALSE) -> 0 | AS117: =VLOOKUP(AS$115&$U117,GTYF!$C:$AQ,37,FALSE) -> 0 | AT117: =VLOOKUP(AT$115&$U117,GTYF!$C:$AQ,37,FALSE) -> 0 | AU117: =VLOOKUP(AU$115&$U117,GTYF!$C:$AQ,37,FALSE) -> 0 | AV117: =VLOOKUP(AV$115&$U117,GTYF!$C:$AQ,37,FALSE) -> 0 | AW117: =VLOOKUP(AW$115&$U117,GTYF!$C:$AQ,37,FALSE) -> 0 | AX117: =VLOOKUP(AX$115&$U117,GTYF!$C:$AQ,37,FALSE) -> 0 | AY117: =VLOOKUP(AY$115&$U117,GTYF!$C:$AQ,37,FALSE) -> 0 | AZ117: =SUM(AM117:AY117) -> 0 | BA117: =VLOOKUP(BA$115&$U117,GTYF!$C:$AQ,37,FALSE) -> 0
B118: Cédrières | E118: - | F118: - | G118: - | H118: =IFERROR(($AF118+$AG118+$AH118+$AI118+$AK118)/$AJ118*5,"-") -> - | I118: - | J118: =(IFERROR(X118/Y118*1000,"-")) -> - | M118: - | N118: - | P118: =IFERROR(($AF118+$AG118+$AH118+$AI118+$AK118)/$AJ118*5,"-") -> - | S118: Tableau 9. | T118: Cédrières | U118: (FCTYF_THO) | V118: =VLOOKUP(V$115&$U118,GTYF!$C:$AQ,37,FALSE) -> 0 | W118: =VLOOKUP(W$115&$U118,GTYF!$C:$AQ,6,FALSE) -> 0 | X118: =VLOOKUP(X$115&$U118,GTYF!$C:$AQ,37,FALSE) -> 0 | Y118: =VLOOKUP(Y$115&$U118,GTYF!$C:$AQ,37,FALSE) -> 0 | Z118: =VLOOKUP(Z$115&$U118,GTYF!$C:$AQ,37,FALSE) -> 0 | AA118: =VLOOKUP(AA$115&$U118,GTYF!$C:$AQ,37,FALSE) -> 0 | AB118: =VLOOKUP(AB$115&$U118,GTYF!$C:$AQ,37,FALSE) -> 0 | AC118: =VLOOKUP(AC$115&$U118,GTYF!$C:$AQ,37,FALSE) -> 0 | AD118: =VLOOKUP(AD$115&$U118,GTYF!$C:$AQ,37,FALSE) -> 0 | AE118: =VLOOKUP(AE$115&$U118,GTYF!$C:$AQ,37,FALSE) -> 0 | AF118: =VLOOKUP(AF$115&$U118,GTYF!$C:$AQ,37,FALSE) -> 0 | AG118: =VLOOKUP(AG$115&$U118,GTYF!$C:$AQ,37,FALSE) -> 0 | AH118: =VLOOKUP(AH$115&$U118,GTYF!$C:$AQ,37,FALSE) -> 0 | AI118: =VLOOKUP(AI$115&$U118,GTYF!$C:$AQ,37,FALSE) -> 0 | AJ118: =VLOOKUP(AJ$115&$U118,GTYF!$C:$AQ,37,FALSE) -> 0 | AK118: =VLOOKUP(AK$115&$U118,GTYF!$C:$AQ,37,FALSE) -> 0 | AM118: =VLOOKUP(AM$115&$U118,GTYF!$C:$AQ,37,FALSE) -> 0 | AN118: =VLOOKUP(AN$115&$U118,GTYF!$C:$AQ,37,FALSE) -> 0 | AO118: =VLOOKUP(AO$115&$U118,GTYF!$C:$AQ,37,FALSE) -> 0 | AP118: =VLOOKUP(AP$115&$U118,GTYF!$C:$AQ,37,FALSE) -> 0 | AQ118: =VLOOKUP(AQ$115&$U118,GTYF!$C:$AQ,37,FALSE) -> 0 | AR118: =VLOOKUP(AR$115&$U118,GTYF!$C:$AQ,37,FALSE) -> 0 | AS118: =VLOOKUP(AS$115&$U118,GTYF!$C:$AQ,37,FALSE) -> 0 | AT118: =VLOOKUP(AT$115&$U118,GTYF!$C:$AQ,37,FALSE) -> 0 | AU118: =VLOOKUP(AU$115&$U118,GTYF!$C:$AQ,37,FALSE) -> 0 | AV118: =VLOOKUP(AV$115&$U118,GTYF!$C:$AQ,37,FALSE) -> 0 | AW118: =VLOOKUP(AW$115&$U118,GTYF!$C:$AQ,37,FALSE) -> 0 | AX118: =VLOOKUP(AX$115&$U118,GTYF!$C:$AQ,37,FALSE) -> 0 | AY118: =VLOOKUP(AY$115&$U118,GTYF!$C:$AQ,37,FALSE) -> 0 | AZ118: 0 | BA118: =VLOOKUP(BA$115&$U118,GTYF!$C:$AQ,37,FALSE) -> 0
B119: Érablières rouges | E119: - | F119: - | G119: - | H119: - | I119: - | J119: - | M119: - | N119: - | P119: - | S119: Tableau 9. | T119: Érablières rouges | U119: (FCTYF_ERO) | V119: =VLOOKUP(V$115&$U119,GTYF!$C:$AQ,37,FALSE) -> 0 | W119: =VLOOKUP(W$115&$U119,GTYF!$C:$AQ,6,FALSE) -> 0 | X119: =VLOOKUP(X$115&$U119,GTYF!$C:$AQ,37,FALSE) -> 0 | Y119: =VLOOKUP(Y$115&$U119,GTYF!$C:$AQ,37,FALSE) -> 0 | Z119: =VLOOKUP(Z$115&$U119,GTYF!$C:$AQ,37,FALSE) -> 0 | AA119: =VLOOKUP(AA$115&$U119,GTYF!$C:$AQ,37,FALSE) -> 0 | AB119: =VLOOKUP(AB$115&$U119,GTYF!$C:$AQ,37,FALSE) -> 0 | AC119: =VLOOKUP(AC$115&$U119,GTYF!$C:$AQ,37,FALSE) -> 0 | AD119: =VLOOKUP(AD$115&$U119,GTYF!$C:$AQ,37,FALSE) -> 0 | AE119: =VLOOKUP(AE$115&$U119,GTYF!$C:$AQ,37,FALSE) -> 0 | AF119: =VLOOKUP(AF$115&$U119,GTYF!$C:$AQ,37,FALSE) -> 0 | AG119: =VLOOKUP(AG$115&$U119,GTYF!$C:$AQ,37,FALSE) -> 0 | AH119: =VLOOKUP(AH$115&$U119,GTYF!$C:$AQ,37,FALSE) -> 0 | AI119: =VLOOKUP(AI$115&$U119,GTYF!$C:$AQ,37,FALSE) -> 0 | AJ119: =VLOOKUP(AJ$115&$U119,GTYF!$C:$AQ,37,FALSE) -> 0 | AK119: =VLOOKUP(AK$115&$U119,GTYF!$C:$AQ,37,FALSE) -> 0 | AM119: =VLOOKUP(AM$115&$U119,GTYF!$C:$AQ,37,FALSE) -> 0 | AN119: =VLOOKUP(AN$115&$U119,GTYF!$C:$AQ,37,FALSE) -> 0 | AO119: =VLOOKUP(AO$115&$U119,GTYF!$C:$AQ,37,FALSE) -> 0 | AP119: =VLOOKUP(AP$115&$U119,GTYF!$C:$AQ,37,FALSE) -> 0 | AQ119: =VLOOKUP(AQ$115&$U119,GTYF!$C:$AQ,37,FALSE) -> 0 | AR119: =VLOOKUP(AR$115&$U119,GTYF!$C:$AQ,37,FALSE) -> 0 | AS119: =VLOOKUP(AS$115&$U119,GTYF!$C:$AQ,37,FALSE) -> 0 | AT119: =VLOOKUP(AT$115&$U119,GTYF!$C:$AQ,37,FALSE) -> 0 | AU119: =VLOOKUP(AU$115&$U119,GTYF!$C:$AQ,37,FALSE) -> 0 | AV119: =VLOOKUP(AV$115&$U119,GTYF!$C:$AQ,37,FALSE) -> 0 | AW119: =VLOOKUP(AW$115&$U119,GTYF!$C:$AQ,37,FALSE) -> 0 | AX119: =VLOOKUP(AX$115&$U119,GTYF!$C:$AQ,37,FALSE) -> 0 | AY119: =VLOOKUP(AY$115&$U119,GTYF!$C:$AQ,37,FALSE) -> 0 | AZ119: 0 | BA119: =VLOOKUP(BA$115&$U119,GTYF!$C:$AQ,37,FALSE) -> 0
B120: Feuillus tolérants | E120: - | F120: - | G120: - | H120: - | I120: - | J120: - | M120: - | N120: - | P120: - | S120: Tableau 9. | T120: Feuillus tolérants | U120: (FCTYF_FT) | V120: =VLOOKUP(V$115&$U120,GTYF!$C:$AQ,37,FALSE) -> 0 | W120: =VLOOKUP(W$115&$U120,GTYF!$C:$AQ,6,FALSE) -> 0 | X120: =VLOOKUP(X$115&$U120,GTYF!$C:$AQ,37,FALSE) -> 0 | Y120: =VLOOKUP(Y$115&$U120,GTYF!$C:$AQ,37,FALSE) -> 0 | Z120: =VLOOKUP(Z$115&$U120,GTYF!$C:$AQ,37,FALSE) -> 0 | AA120: =VLOOKUP(AA$115&$U120,GTYF!$C:$AQ,37,FALSE) -> 0 | AB120: =VLOOKUP(AB$115&$U120,GTYF!$C:$AQ,37,FALSE) -> 0 | AC120: =VLOOKUP(AC$115&$U120,GTYF!$C:$AQ,37,FALSE) -> 0 | AD120: =VLOOKUP(AD$115&$U120,GTYF!$C:$AQ,37,FALSE) -> 0 | AE120: =VLOOKUP(AE$115&$U120,GTYF!$C:$AQ,37,FALSE) -> 0 | AF120: =VLOOKUP(AF$115&$U120,GTYF!$C:$AQ,37,FALSE) -> 0 | AG120: =VLOOKUP(AG$115&$U120,GTYF!$C:$AQ,37,FALSE) -> 0 | AH120: =VLOOKUP(AH$115&$U120,GTYF!$C:$AQ,37,FALSE) -> 0 | AI120: =VLOOKUP(AI$115&$U120,GTYF!$C:$AQ,37,FALSE) -> 0 | AJ120: =VLOOKUP(AJ$115&$U120,GTYF!$C:$AQ,37,FALSE) -> 0 | AK120: =VLOOKUP(AK$115&$U120,GTYF!$C:$AQ,37,FALSE) -> 0 | AM120: =VLOOKUP(AM$115&$U120,GTYF!$C:$AQ,37,FALSE) -> 0 | AN120: =VLOOKUP(AN$115&$U120,GTYF!$C:$AQ,37,FALSE) -> 0 | AO120: =VLOOKUP(AO$115&$U120,GTYF!$C:$AQ,37,FALSE) -> 0 | AP120: =VLOOKUP(AP$115&$U120,GTYF!$C:$AQ,37,FALSE) -> 0 | AQ120: =VLOOKUP(AQ$115&$U120,GTYF!$C:$AQ,37,FALSE) -> 0 | AR120: =VLOOKUP(AR$115&$U120,GTYF!$C:$AQ,37,FALSE) -> 0 | AS120: =VLOOKUP(AS$115&$U120,GTYF!$C:$AQ,37,FALSE) -> 0 | AT120: =VLOOKUP(AT$115&$U120,GTYF!$C:$AQ,37,FALSE) -> 0 | AU120: =VLOOKUP(AU$115&$U120,GTYF!$C:$AQ,37,FALSE) -> 0 | AV120: =VLOOKUP(AV$115&$U120,GTYF!$C:$AQ,37,FALSE) -> 0 | AW120: =VLOOKUP(AW$115&$U120,GTYF!$C:$AQ,37,FALSE) -> 0 | AX120: =VLOOKUP(AX$115&$U120,GTYF!$C:$AQ,37,FALSE) -> 0 | AY120: =VLOOKUP(AY$115&$U120,GTYF!$C:$AQ,37,FALSE) -> 0 | AZ120: 0 | BA120: =VLOOKUP(BA$115&$U120,GTYF!$C:$AQ,37,FALSE) -> 0
B121: Feuillus tolérants à résineux | E121: - | F121: =IFERROR($AZ121/$BA121,"-") -> - | G121: - | H121: - | I121: - | J121: - | M121: - | N121: - | P121: - | S121: Tableau 9. | T121: Feuillus tolérants à résineux | U121: (FCTYF_FTR) | V121: =VLOOKUP(V$115&$U121,GTYF!$C:$AQ,37,FALSE) -> 0 | W121: =VLOOKUP(W$115&$U121,GTYF!$C:$AQ,6,FALSE) -> 0 | X121: =VLOOKUP(X$115&$U121,GTYF!$C:$AQ,37,FALSE) -> 0 | Y121: =VLOOKUP(Y$115&$U121,GTYF!$C:$AQ,37,FALSE) -> 0 | Z121: =VLOOKUP(Z$115&$U121,GTYF!$C:$AQ,37,FALSE) -> 0 | AA121: =VLOOKUP(AA$115&$U121,GTYF!$C:$AQ,37,FALSE) -> 0 | AB121: =VLOOKUP(AB$115&$U121,GTYF!$C:$AQ,37,FALSE) -> 0 | AC121: =VLOOKUP(AC$115&$U121,GTYF!$C:$AQ,37,FALSE) -> 0 | AD121: =VLOOKUP(AD$115&$U121,GTYF!$C:$AQ,37,FALSE) -> 0 | AE121: =VLOOKUP(AE$115&$U121,GTYF!$C:$AQ,37,FALSE) -> 0 | AF121: =VLOOKUP(AF$115&$U121,GTYF!$C:$AQ,37,FALSE) -> 0 | AG121: =VLOOKUP(AG$115&$U121,GTYF!$C:$AQ,37,FALSE) -> 0 | AH121: =VLOOKUP(AH$115&$U121,GTYF!$C:$AQ,37,FALSE) -> 0 | AI121: =VLOOKUP(AI$115&$U121,GTYF!$C:$AQ,37,FALSE) -> 0 | AJ121: =VLOOKUP(AJ$115&$U121,GTYF!$C:$AQ,37,FALSE) -> 0 | AK121: =VLOOKUP(AK$115&$U121,GTYF!$C:$AQ,37,FALSE) -> 0 | AM121: =VLOOKUP(AM$115&$U121,GTYF!$C:$AQ,37,FALSE) -> 0 | AN121: =VLOOKUP(AN$115&$U121,GTYF!$C:$AQ,37,FALSE) -> 0 | AO121: =VLOOKUP(AO$115&$U121,GTYF!$C:$AQ,37,FALSE) -> 0 | AP121: =VLOOKUP(AP$115&$U121,GTYF!$C:$AQ,37,FALSE) -> 0 | AQ121: =VLOOKUP(AQ$115&$U121,GTYF!$C:$AQ,37,FALSE) -> 0 | AR121: =VLOOKUP(AR$115&$U121,GTYF!$C:$AQ,37,FALSE) -> 0 | AS121: =VLOOKUP(AS$115&$U121,GTYF!$C:$AQ,37,FALSE) -> 0 | AT121: =VLOOKUP(AT$115&$U121,GTYF!$C:$AQ,37,FALSE) -> 0 | AU121: =VLOOKUP(AU$115&$U121,GTYF!$C:$AQ,37,FALSE) -> 0 | AV121: =VLOOKUP(AV$115&$U121,GTYF!$C:$AQ,37,FALSE) -> 0 | AW121: =VLOOKUP(AW$115&$U121,GTYF!$C:$AQ,37,FALSE) -> 0 | AX121: =VLOOKUP(AX$115&$U121,GTYF!$C:$AQ,37,FALSE) -> 0 | AY121: =VLOOKUP(AY$115&$U121,GTYF!$C:$AQ,37,FALSE) -> 0 | AZ121: =SUM(AM121:AY121) -> 0 | BA121: =VLOOKUP(BA$115&$U121,GTYF!$C:$AQ,37,FALSE) -> 0
B122: Pessières | E122: - | F122: - | G122: - | H122: >120 | I122: 74.4719485 | J122: 83.58881804 | M122: 191.1463809 | N122: 74.4719485 | P122: 191.1463809 | S122: Tableau 9. | T122: Pessières | U122: (FCTYF_EPX) | V122: =VLOOKUP(V$115&$U122,GTYF!$C:$AQ,37,FALSE) -> 763.952 | W122: =VLOOKUP(W$115&$U122,GTYF!$C:$AQ,6,FALSE) -> 35828.9 | X122: =VLOOKUP(X$115&$U122,GTYF!$C:$AQ,37,FALSE) -> 56213.982 | Y122: =VLOOKUP(Y$115&$U122,GTYF!$C:$AQ,37,FALSE) -> 672506.004 | Z122: =VLOOKUP(Z$115&$U122,GTYF!$C:$AQ,37,FALSE) -> 56892.994 | AA122: =VLOOKUP(AA$115&$U122,GTYF!$C:$AQ,37,FALSE) -> 0 | AB122: =VLOOKUP(AB$115&$U122,GTYF!$C:$AQ,37,FALSE) -> 0 | AC122: =VLOOKUP(AC$115&$U122,GTYF!$C:$AQ,37,FALSE) -> 0 | AD122: =VLOOKUP(AD$115&$U122,GTYF!$C:$AQ,37,FALSE) -> 763.952 | AE122: =VLOOKUP(AE$115&$U122,GTYF!$C:$AQ,37,FALSE) -> 0 | AF122: =VLOOKUP(AF$115&$U122,GTYF!$C:$AQ,37,FALSE) -> 29205.332 | AG122: =VLOOKUP(AG$115&$U122,GTYF!$C:$AQ,37,FALSE) -> 0 | AH122: =VLOOKUP(AH$115&$U122,GTYF!$C:$AQ,37,FALSE) -> 0 | AI122: =VLOOKUP(AI$115&$U122,GTYF!$C:$AQ,37,FALSE) -> 0 | AJ122: =VLOOKUP(AJ$115&$U122,GTYF!$C:$AQ,37,FALSE) -> 763.952 | AK122: =VLOOKUP(AK$115&$U122,GTYF!$C:$AQ,37,FALSE) -> 0 | AM122: =VLOOKUP(AM$115&$U122,GTYF!$C:$AQ,37,FALSE) -> 0 | AN122: =VLOOKUP(AN$115&$U122,GTYF!$C:$AQ,37,FALSE) -> 0 | AO122: =VLOOKUP(AO$115&$U122,GTYF!$C:$AQ,37,FALSE) -> 0 | AP122: =VLOOKUP(AP$115&$U122,GTYF!$C:$AQ,37,FALSE) -> 0 | AQ122: =VLOOKUP(AQ$115&$U122,GTYF!$C:$AQ,37,FALSE) -> 0 | AR122: =VLOOKUP(AR$115&$U122,GTYF!$C:$AQ,37,FALSE) -> 0 | AS122: =VLOOKUP(AS$115&$U122,GTYF!$C:$AQ,37,FALSE) -> 0 | AT122: =VLOOKUP(AT$115&$U122,GTYF!$C:$AQ,37,FALSE) -> 0 | AU122: =VLOOKUP(AU$115&$U122,GTYF!$C:$AQ,37,FALSE) -> 0 | AV122: =VLOOKUP(AV$115&$U122,GTYF!$C:$AQ,37,FALSE) -> 0 | AW122: =VLOOKUP(AW$115&$U122,GTYF!$C:$AQ,37,FALSE) -> 0 | AX122: =VLOOKUP(AX$115&$U122,GTYF!$C:$AQ,37,FALSE) -> 0 | AY122: =VLOOKUP(AY$115&$U122,GTYF!$C:$AQ,37,FALSE) -> 0 | AZ122: 0 | BA122: =VLOOKUP(BA$115&$U122,GTYF!$C:$AQ,37,FALSE) -> 0
B123: Peupleraies | E123: - | F123: - | G123: - | H123: 55.93844601 | I123: 159.5882947 | J123: 81.9667238 | M123: 55.93844601 | N123: 159.5882947 | P123: 55.93844601 | S123: Tableau 9. | T123: Peupleraies | U123: (FCTYF_PEU) | V123: =VLOOKUP(V$115&$U123,GTYF!$C:$AQ,37,FALSE) -> 1.982 | W123: =VLOOKUP(W$115&$U123,GTYF!$C:$AQ,6,FALSE) -> 294.1 | X123: =VLOOKUP(X$115&$U123,GTYF!$C:$AQ,37,FALSE) -> 38.446 | Y123: =VLOOKUP(Y$115&$U123,GTYF!$C:$AQ,37,FALSE) -> 469.044 | Z123: =VLOOKUP(Z$115&$U123,GTYF!$C:$AQ,37,FALSE) -> 316.304 | AA123: =VLOOKUP(AA$115&$U123,GTYF!$C:$AQ,37,FALSE) -> 0 | AB123: =VLOOKUP(AB$115&$U123,GTYF!$C:$AQ,37,FALSE) -> 0 | AC123: =VLOOKUP(AC$115&$U123,GTYF!$C:$AQ,37,FALSE) -> 0 | AD123: =VLOOKUP(AD$115&$U123,GTYF!$C:$AQ,37,FALSE) -> 1.982 | AE123: =VLOOKUP(AE$115&$U123,GTYF!$C:$AQ,37,FALSE) -> 0 | AF123: =VLOOKUP(AF$115&$U123,GTYF!$C:$AQ,37,FALSE) -> 22.174 | AG123: =VLOOKUP(AG$115&$U123,GTYF!$C:$AQ,37,FALSE) -> 0 | AH123: =VLOOKUP(AH$115&$U123,GTYF!$C:$AQ,37,FALSE) -> 0 | AI123: =VLOOKUP(AI$115&$U123,GTYF!$C:$AQ,37,FALSE) -> 0 | AJ123: =VLOOKUP(AJ$115&$U123,GTYF!$C:$AQ,37,FALSE) -> 1.982 | AK123: =VLOOKUP(AK$115&$U123,GTYF!$C:$AQ,37,FALSE) -> 0 | AM123: =VLOOKUP(AM$115&$U123,GTYF!$C:$AQ,37,FALSE) -> 0 | AN123: =VLOOKUP(AN$115&$U123,GTYF!$C:$AQ,37,FALSE) -> 0 | AO123: =VLOOKUP(AO$115&$U123,GTYF!$C:$AQ,37,FALSE) -> 0 | AP123: =VLOOKUP(AP$115&$U123,GTYF!$C:$AQ,37,FALSE) -> 0 | AQ123: =VLOOKUP(AQ$115&$U123,GTYF!$C:$AQ,37,FALSE) -> 0 | AR123: =VLOOKUP(AR$115&$U123,GTYF!$C:$AQ,37,FALSE) -> 0 | AS123: =VLOOKUP(AS$115&$U123,GTYF!$C:$AQ,37,FALSE) -> 0 | AT123: =VLOOKUP(AT$115&$U123,GTYF!$C:$AQ,37,FALSE) -> 0 | AU123: =VLOOKUP(AU$115&$U123,GTYF!$C:$AQ,37,FALSE) -> 0 | AV123: =VLOOKUP(AV$115&$U123,GTYF!$C:$AQ,37,FALSE) -> 0 | AW123: =VLOOKUP(AW$115&$U123,GTYF!$C:$AQ,37,FALSE) -> 0 | AX123: =VLOOKUP(AX$115&$U123,GTYF!$C:$AQ,37,FALSE) -> 0 | AY123: =VLOOKUP(AY$115&$U123,GTYF!$C:$AQ,37,FALSE) -> 0 | AZ123: 0 | BA123: =VLOOKUP(BA$115&$U123,GTYF!$C:$AQ,37,FALSE) -> 0
B124: Peupleraies à résineux | E124: - | F124: - | G124: - | H124: - | I124: - | J124: - | M124: - | N124: - | P124: - | S124: Tableau 9. | T124: Peupleraies à résineux | U124: (FCTYF_PEUR) | V124: =VLOOKUP(V$115&$U124,GTYF!$C:$AQ,37,FALSE) -> 0 | W124: =VLOOKUP(W$115&$U124,GTYF!$C:$AQ,6,FALSE) -> 323.7 | X124: =VLOOKUP(X$115&$U124,GTYF!$C:$AQ,37,FALSE) -> 0 | Y124: =VLOOKUP(Y$115&$U124,GTYF!$C:$AQ,37,FALSE) -> 0 | Z124: =VLOOKUP(Z$115&$U124,GTYF!$C:$AQ,37,FALSE) -> 0 | AA124: =VLOOKUP(AA$115&$U124,GTYF!$C:$AQ,37,FALSE) -> 0 | AB124: =VLOOKUP(AB$115&$U124,GTYF!$C:$AQ,37,FALSE) -> 0 | AC124: =VLOOKUP(AC$115&$U124,GTYF!$C:$AQ,37,FALSE) -> 0 | AD124: =VLOOKUP(AD$115&$U124,GTYF!$C:$AQ,37,FALSE) -> 0 | AE124: =VLOOKUP(AE$115&$U124,GTYF!$C:$AQ,37,FALSE) -> 0 | AF124: =VLOOKUP(AF$115&$U124,GTYF!$C:$AQ,37,FALSE) -> 0 | AG124: =VLOOKUP(AG$115&$U124,GTYF!$C:$AQ,37,FALSE) -> 0 | AH124: =VLOOKUP(AH$115&$U124,GTYF!$C:$AQ,37,FALSE) -> 0 | AI124: =VLOOKUP(AI$115&$U124,GTYF!$C:$AQ,37,FALSE) -> 0 | AJ124: =VLOOKUP(AJ$115&$U124,GTYF!$C:$AQ,37,FALSE) -> 0 | AK124: =VLOOKUP(AK$115&$U124,GTYF!$C:$AQ,37,FALSE) -> 0 | AM124: =VLOOKUP(AM$115&$U124,GTYF!$C:$AQ,37,FALSE) -> 0 | AN124: =VLOOKUP(AN$115&$U124,GTYF!$C:$AQ,37,FALSE) -> 0 | AO124: =VLOOKUP(AO$115&$U124,GTYF!$C:$AQ,37,FALSE) -> 0 | AP124: =VLOOKUP(AP$115&$U124,GTYF!$C:$AQ,37,FALSE) -> 0 | AQ124: =VLOOKUP(AQ$115&$U124,GTYF!$C:$AQ,37,FALSE) -> 0 | AR124: =VLOOKUP(AR$115&$U124,GTYF!$C:$AQ,37,FALSE) -> 0 | AS124: =VLOOKUP(AS$115&$U124,GTYF!$C:$AQ,37,FALSE) -> 0 | AT124: =VLOOKUP(AT$115&$U124,GTYF!$C:$AQ,37,FALSE) -> 0 | AU124: =VLOOKUP(AU$115&$U124,GTYF!$C:$AQ,37,FALSE) -> 0 | AV124: =VLOOKUP(AV$115&$U124,GTYF!$C:$AQ,37,FALSE) -> 0 | AW124: =VLOOKUP(AW$115&$U124,GTYF!$C:$AQ,37,FALSE) -> 0 | AX124: =VLOOKUP(AX$115&$U124,GTYF!$C:$AQ,37,FALSE) -> 0 | AY124: =VLOOKUP(AY$115&$U124,GTYF!$C:$AQ,37,FALSE) -> 0 | AZ124: 0 | BA124: =VLOOKUP(BA$115&$U124,GTYF!$C:$AQ,37,FALSE) -> 0
B125: Pinèdes blanches | E125: - | F125: - | G125: - | H125: - | I125: - | J125: - | M125: - | N125: - | P125: - | S125: Tableau 9. | T125: Pinèdes blanches | U125: (FCTYF_PIN) | V125: =VLOOKUP(V$115&$U125,GTYF!$C:$AQ,37,FALSE) -> 0 | W125: =VLOOKUP(W$115&$U125,GTYF!$C:$AQ,6,FALSE) -> 0 | X125: =VLOOKUP(X$115&$U125,GTYF!$C:$AQ,37,FALSE) -> 0 | Y125: =VLOOKUP(Y$115&$U125,GTYF!$C:$AQ,37,FALSE) -> 0 | Z125: =VLOOKUP(Z$115&$U125,GTYF!$C:$AQ,37,FALSE) -> 0 | AA125: =VLOOKUP(AA$115&$U125,GTYF!$C:$AQ,37,FALSE) -> 0 | AB125: =VLOOKUP(AB$115&$U125,GTYF!$C:$AQ,37,FALSE) -> 0 | AC125: =VLOOKUP(AC$115&$U125,GTYF!$C:$AQ,37,FALSE) -> 0 | AD125: =VLOOKUP(AD$115&$U125,GTYF!$C:$AQ,37,FALSE) -> 0 | AE125: =VLOOKUP(AE$115&$U125,GTYF!$C:$AQ,37,FALSE) -> 0 | AF125: =VLOOKUP(AF$115&$U125,GTYF!$C:$AQ,37,FALSE) -> 0 | AG125: =VLOOKUP(AG$115&$U125,GTYF!$C:$AQ,37,FALSE) -> 0 | AH125: =VLOOKUP(AH$115&$U125,GTYF!$C:$AQ,37,FALSE) -> 0 | AI125: =VLOOKUP(AI$115&$U125,GTYF!$C:$AQ,37,FALSE) -> 0 | AJ125: =VLOOKUP(AJ$115&$U125,GTYF!$C:$AQ,37,FALSE) -> 0 | AK125: =VLOOKUP(AK$115&$U125,GTYF!$C:$AQ,37,FALSE) -> 0 | AM125: =VLOOKUP(AM$115&$U125,GTYF!$C:$AQ,37,FALSE) -> 0 | AN125: =VLOOKUP(AN$115&$U125,GTYF!$C:$AQ,37,FALSE) -> 0 | AO125: =VLOOKUP(AO$115&$U125,GTYF!$C:$AQ,37,FALSE) -> 0 | AP125: =VLOOKUP(AP$115&$U125,GTYF!$C:$AQ,37,FALSE) -> 0 | AQ125: =VLOOKUP(AQ$115&$U125,GTYF!$C:$AQ,37,FALSE) -> 0 | AR125: =VLOOKUP(AR$115&$U125,GTYF!$C:$AQ,37,FALSE) -> 0 | AS125: =VLOOKUP(AS$115&$U125,GTYF!$C:$AQ,37,FALSE) -> 0 | AT125: =VLOOKUP(AT$115&$U125,GTYF!$C:$AQ,37,FALSE) -> 0 | AU125: =VLOOKUP(AU$115&$U125,GTYF!$C:$AQ,37,FALSE) -> 0 | AV125: =VLOOKUP(AV$115&$U125,GTYF!$C:$AQ,37,FALSE) -> 0 | AW125: =VLOOKUP(AW$115&$U125,GTYF!$C:$AQ,37,FALSE) -> 0 | AX125: =VLOOKUP(AX$115&$U125,GTYF!$C:$AQ,37,FALSE) -> 0 | AY125: =VLOOKUP(AY$115&$U125,GTYF!$C:$AQ,37,FALSE) -> 0 | AZ125: 0 | BA125: =VLOOKUP(BA$115&$U125,GTYF!$C:$AQ,37,FALSE) -> 0
B126: Pinèdes grises | E126: - | F126: - | G126: - | H126: 104.3899465 | I126: 96.37373057 | J126: 105.8286057 | M126: 104.3899465 | N126: 96.37373057 | P126: 104.3899465 | S126: Tableau 9. | T126: Pinèdes grises | U126: (FCTYF_PIG) | V126: =VLOOKUP(V$115&$U126,GTYF!$C:$AQ,37,FALSE) -> 109.892 | W126: =VLOOKUP(W$115&$U126,GTYF!$C:$AQ,6,FALSE) -> 1677.3 | X126: =VLOOKUP(X$115&$U126,GTYF!$C:$AQ,37,FALSE) -> 10547.568 | Y126: =VLOOKUP(Y$115&$U126,GTYF!$C:$AQ,37,FALSE) -> 99666.512 | Z126: =VLOOKUP(Z$115&$U126,GTYF!$C:$AQ,37,FALSE) -> 10590.702 | AA126: =VLOOKUP(AA$115&$U126,GTYF!$C:$AQ,37,FALSE) -> 0 | AB126: =VLOOKUP(AB$115&$U126,GTYF!$C:$AQ,37,FALSE) -> 0 | AC126: =VLOOKUP(AC$115&$U126,GTYF!$C:$AQ,37,FALSE) -> 0 | AD126: =VLOOKUP(AD$115&$U126,GTYF!$C:$AQ,37,FALSE) -> 109.892 | AE126: =VLOOKUP(AE$115&$U126,GTYF!$C:$AQ,37,FALSE) -> 0 | AF126: =VLOOKUP(AF$115&$U126,GTYF!$C:$AQ,37,FALSE) -> 2294.324 | AG126: =VLOOKUP(AG$115&$U126,GTYF!$C:$AQ,37,FALSE) -> 0 | AH126: =VLOOKUP(AH$115&$U126,GTYF!$C:$AQ,37,FALSE) -> 0 | AI126: =VLOOKUP(AI$115&$U126,GTYF!$C:$AQ,37,FALSE) -> 0 | AJ126: =VLOOKUP(AJ$115&$U126,GTYF!$C:$AQ,37,FALSE) -> 109.892 | AK126: =VLOOKUP(AK$115&$U126,GTYF!$C:$AQ,37,FALSE) -> 0 | AM126: =VLOOKUP(AM$115&$U126,GTYF!$C:$AQ,37,FALSE) -> 0 | AN126: =VLOOKUP(AN$115&$U126,GTYF!$C:$AQ,37,FALSE) -> 0 | AO126: =VLOOKUP(AO$115&$U126,GTYF!$C:$AQ,37,FALSE) -> 0 | AP126: =VLOOKUP(AP$115&$U126,GTYF!$C:$AQ,37,FALSE) -> 0 | AQ126: =VLOOKUP(AQ$115&$U126,GTYF!$C:$AQ,37,FALSE) -> 0 | AR126: =VLOOKUP(AR$115&$U126,GTYF!$C:$AQ,37,FALSE) -> 0 | AS126: =VLOOKUP(AS$115&$U126,GTYF!$C:$AQ,37,FALSE) -> 0 | AT126: =VLOOKUP(AT$115&$U126,GTYF!$C:$AQ,37,FALSE) -> 0 | AU126: =VLOOKUP(AU$115&$U126,GTYF!$C:$AQ,37,FALSE) -> 0 | AV126: =VLOOKUP(AV$115&$U126,GTYF!$C:$AQ,37,FALSE) -> 0 | AW126: =VLOOKUP(AW$115&$U126,GTYF!$C:$AQ,37,FALSE) -> 0 | AX126: =VLOOKUP(AX$115&$U126,GTYF!$C:$AQ,37,FALSE) -> 0 | AY126: =VLOOKUP(AY$115&$U126,GTYF!$C:$AQ,37,FALSE) -> 0 | AZ126: 0 | BA126: =VLOOKUP(BA$115&$U126,GTYF!$C:$AQ,37,FALSE) -> 0
B127: Prucheraies | E127: - | F127: - | G127: - | H127: - | I127: - | J127: - | M127: - | N127: - | P127: - | S127: Tableau 9. | T127: Prucheraies | U127: (FCTYF_PRU) | V127: =VLOOKUP(V$115&$U127,GTYF!$C:$AQ,37,FALSE) -> 0 | W127: =VLOOKUP(W$115&$U127,GTYF!$C:$AQ,6,FALSE) -> 0 | X127: =VLOOKUP(X$115&$U127,GTYF!$C:$AQ,37,FALSE) -> 0 | Y127: =VLOOKUP(Y$115&$U127,GTYF!$C:$AQ,37,FALSE) -> 0 | Z127: =VLOOKUP(Z$115&$U127,GTYF!$C:$AQ,37,FALSE) -> 0 | AA127: =VLOOKUP(AA$115&$U127,GTYF!$C:$AQ,37,FALSE) -> 0 | AB127: =VLOOKUP(AB$115&$U127,GTYF!$C:$AQ,37,FALSE) -> 0 | AC127: =VLOOKUP(AC$115&$U127,GTYF!$C:$AQ,37,FALSE) -> 0 | AD127: =VLOOKUP(AD$115&$U127,GTYF!$C:$AQ,37,FALSE) -> 0 | AE127: =VLOOKUP(AE$115&$U127,GTYF!$C:$AQ,37,FALSE) -> 0 | AF127: =VLOOKUP(AF$115&$U127,GTYF!$C:$AQ,37,FALSE) -> 0 | AG127: =VLOOKUP(AG$115&$U127,GTYF!$C:$AQ,37,FALSE) -> 0 | AH127: =VLOOKUP(AH$115&$U127,GTYF!$C:$AQ,37,FALSE) -> 0 | AI127: =VLOOKUP(AI$115&$U127,GTYF!$C:$AQ,37,FALSE) -> 0 | AJ127: =VLOOKUP(AJ$115&$U127,GTYF!$C:$AQ,37,FALSE) -> 0 | AK127: =VLOOKUP(AK$115&$U127,GTYF!$C:$AQ,37,FALSE) -> 0 | AM127: =VLOOKUP(AM$115&$U127,GTYF!$C:$AQ,37,FALSE) -> 0 | AN127: =VLOOKUP(AN$115&$U127,GTYF!$C:$AQ,37,FALSE) -> 0 | AO127: =VLOOKUP(AO$115&$U127,GTYF!$C:$AQ,37,FALSE) -> 0 | AP127: =VLOOKUP(AP$115&$U127,GTYF!$C:$AQ,37,FALSE) -> 0 | AQ127: =VLOOKUP(AQ$115&$U127,GTYF!$C:$AQ,37,FALSE) -> 0 | AR127: =VLOOKUP(AR$115&$U127,GTYF!$C:$AQ,37,FALSE) -> 0 | AS127: =VLOOKUP(AS$115&$U127,GTYF!$C:$AQ,37,FALSE) -> 0 | AT127: =VLOOKUP(AT$115&$U127,GTYF!$C:$AQ,37,FALSE) -> 0 | AU127: =VLOOKUP(AU$115&$U127,GTYF!$C:$AQ,37,FALSE) -> 0 | AV127: =VLOOKUP(AV$115&$U127,GTYF!$C:$AQ,37,FALSE) -> 0 | AW127: =VLOOKUP(AW$115&$U127,GTYF!$C:$AQ,37,FALSE) -> 0 | AX127: =VLOOKUP(AX$115&$U127,GTYF!$C:$AQ,37,FALSE) -> 0 | AY127: =VLOOKUP(AY$115&$U127,GTYF!$C:$AQ,37,FALSE) -> 0 | AZ127: 0 | BA127: =VLOOKUP(BA$115&$U127,GTYF!$C:$AQ,37,FALSE) -> 0
B128: Résineux à feuillus | E128: - | F128: - | G128: - | H128: - | I128: - | J128: - | M128: - | N128: - | P128: - | S128: Tableau 9. | T128: Résineux à feuillus | U128: (FCTYF_RF) | V128: =VLOOKUP(V$115&$U128,GTYF!$C:$AQ,37,FALSE) -> 0 | W128: =VLOOKUP(W$115&$U128,GTYF!$C:$AQ,6,FALSE) -> 2275 | X128: =VLOOKUP(X$115&$U128,GTYF!$C:$AQ,37,FALSE) -> 0 | Y128: =VLOOKUP(Y$115&$U128,GTYF!$C:$AQ,37,FALSE) -> 0 | Z128: =VLOOKUP(Z$115&$U128,GTYF!$C:$AQ,37,FALSE) -> 0 | AA128: =VLOOKUP(AA$115&$U128,GTYF!$C:$AQ,37,FALSE) -> 0 | AB128: =VLOOKUP(AB$115&$U128,GTYF!$C:$AQ,37,FALSE) -> 0 | AC128: =VLOOKUP(AC$115&$U128,GTYF!$C:$AQ,37,FALSE) -> 0 | AD128: =VLOOKUP(AD$115&$U128,GTYF!$C:$AQ,37,FALSE) -> 0 | AE128: =VLOOKUP(AE$115&$U128,GTYF!$C:$AQ,37,FALSE) -> 0 | AF128: =VLOOKUP(AF$115&$U128,GTYF!$C:$AQ,37,FALSE) -> 0 | AG128: =VLOOKUP(AG$115&$U128,GTYF!$C:$AQ,37,FALSE) -> 0 | AH128: =VLOOKUP(AH$115&$U128,GTYF!$C:$AQ,37,FALSE) -> 0 | AI128: =VLOOKUP(AI$115&$U128,GTYF!$C:$AQ,37,FALSE) -> 0 | AJ128: =VLOOKUP(AJ$115&$U128,GTYF!$C:$AQ,37,FALSE) -> 0 | AK128: =VLOOKUP(AK$115&$U128,GTYF!$C:$AQ,37,FALSE) -> 0 | AM128: =VLOOKUP(AM$115&$U128,GTYF!$C:$AQ,37,FALSE) -> 0 | AN128: =VLOOKUP(AN$115&$U128,GTYF!$C:$AQ,37,FALSE) -> 0 | AO128: =VLOOKUP(AO$115&$U128,GTYF!$C:$AQ,37,FALSE) -> 0 | AP128: =VLOOKUP(AP$115&$U128,GTYF!$C:$AQ,37,FALSE) -> 0 | AQ128: =VLOOKUP(AQ$115&$U128,GTYF!$C:$AQ,37,FALSE) -> 0 | AR128: =VLOOKUP(AR$115&$U128,GTYF!$C:$AQ,37,FALSE) -> 0 | AS128: =VLOOKUP(AS$115&$U128,GTYF!$C:$AQ,37,FALSE) -> 0 | AT128: =VLOOKUP(AT$115&$U128,GTYF!$C:$AQ,37,FALSE) -> 0 | AU128: =VLOOKUP(AU$115&$U128,GTYF!$C:$AQ,37,FALSE) -> 0 | AV128: =VLOOKUP(AV$115&$U128,GTYF!$C:$AQ,37,FALSE) -> 0 | AW128: =VLOOKUP(AW$115&$U128,GTYF!$C:$AQ,37,FALSE) -> 0 | AX128: =VLOOKUP(AX$115&$U128,GTYF!$C:$AQ,37,FALSE) -> 0 | AY128: =VLOOKUP(AY$115&$U128,GTYF!$C:$AQ,37,FALSE) -> 0 | AZ128: 0 | BA128: =VLOOKUP(BA$115&$U128,GTYF!$C:$AQ,37,FALSE) -> 0
B129: Sapinières | E129: - | F129: - | G129: - | H129: - | I129: - | J129: - | M129: =IFERROR(($AF129+$AG129+$AH129+$AI129)/$AJ129*5,"-") -> - | N129: - | P129: - | S129: Tableau 9. | T129: Sapinières | U129: (FCTYF_SAB) | V129: =VLOOKUP(V$115&$U129,GTYF!$C:$AQ,37,FALSE) -> 0 | W129: =VLOOKUP(W$115&$U129,GTYF!$C:$AQ,6,FALSE) -> 0 | X129: =VLOOKUP(X$115&$U129,GTYF!$C:$AQ,37,FALSE) -> 0 | Y129: =VLOOKUP(Y$115&$U129,GTYF!$C:$AQ,37,FALSE) -> 0 | Z129: =VLOOKUP(Z$115&$U129,GTYF!$C:$AQ,37,FALSE) -> 0 | AA129: =VLOOKUP(AA$115&$U129,GTYF!$C:$AQ,37,FALSE) -> 0 | AB129: =VLOOKUP(AB$115&$U129,GTYF!$C:$AQ,37,FALSE) -> 0 | AC129: =VLOOKUP(AC$115&$U129,GTYF!$C:$AQ,37,FALSE) -> 0 | AD129: =VLOOKUP(AD$115&$U129,GTYF!$C:$AQ,37,FALSE) -> 0 | AE129: =VLOOKUP(AE$115&$U129,GTYF!$C:$AQ,37,FALSE) -> 0 | AF129: =VLOOKUP(AF$115&$U129,GTYF!$C:$AQ,37,FALSE) -> 0 | AG129: =VLOOKUP(AG$115&$U129,GTYF!$C:$AQ,37,FALSE) -> 0 | AH129: =VLOOKUP(AH$115&$U129,GTYF!$C:$AQ,37,FALSE) -> 0 | AI129: =VLOOKUP(AI$115&$U129,GTYF!$C:$AQ,37,FALSE) -> 0 | AJ129: =VLOOKUP(AJ$115&$U129,GTYF!$C:$AQ,37,FALSE) -> 0 | AK129: =VLOOKUP(AK$115&$U129,GTYF!$C:$AQ,37,FALSE) -> 0 | AM129: =VLOOKUP(AM$115&$U129,GTYF!$C:$AQ,37,FALSE) -> 0 | AN129: =VLOOKUP(AN$115&$U129,GTYF!$C:$AQ,37,FALSE) -> 0 | AO129: =VLOOKUP(AO$115&$U129,GTYF!$C:$AQ,37,FALSE) -> 0 | AP129: =VLOOKUP(AP$115&$U129,GTYF!$C:$AQ,37,FALSE) -> 0 | AQ129: =VLOOKUP(AQ$115&$U129,GTYF!$C:$AQ,37,FALSE) -> 0 | AR129: =VLOOKUP(AR$115&$U129,GTYF!$C:$AQ,37,FALSE) -> 0 | AS129: =VLOOKUP(AS$115&$U129,GTYF!$C:$AQ,37,FALSE) -> 0 | AT129: =VLOOKUP(AT$115&$U129,GTYF!$C:$AQ,37,FALSE) -> 0 | AU129: =VLOOKUP(AU$115&$U129,GTYF!$C:$AQ,37,FALSE) -> 0 | AV129: =VLOOKUP(AV$115&$U129,GTYF!$C:$AQ,37,FALSE) -> 0 | AW129: =VLOOKUP(AW$115&$U129,GTYF!$C:$AQ,37,FALSE) -> 0 | AX129: =VLOOKUP(AX$115&$U129,GTYF!$C:$AQ,37,FALSE) -> 0 | AY129: =VLOOKUP(AY$115&$U129,GTYF!$C:$AQ,37,FALSE) -> 0 | AZ129: 0 | BA129: =VLOOKUP(BA$115&$U129,GTYF!$C:$AQ,37,FALSE) -> 0
S130: Tableau 9. | T130: Tous les GTYF | V130: =SUM(V116:V129) -> 875.826 | W130: =SUM(W116:W129) -> 40399 | X130: 66799.996 | Y130: 772641.56 | Z130: 67800 | AA130: 0 | AB130: 0 | AC130: 0 | AD130: 875.826 | AE130: 0 | AF130: 31521.83 | AG130: 0 | AH130: 0 | AI130: 0 | AJ130: 875.826 | AK130: 0
L131: Les statistiques portants sur les coupes partielles proviennent d'un Script R et sont disponibles ici:
L132: T:\Donnees\02_Courant\01_CPF\01_UA\0XXXX\70_Determination\72_Rapport\01_Cahier_DET\Tableau_9
B134: Tableau 10. Traitements non commerciaux supportant les possibilités forestières
B135: Traitements non commerciaux | F135: Superficie annuelle moyenne (ha/an) | G135: Superficie antérieure (ha/an) | H135: Écart (ha/an) | X135: Exemple U03772
K138: Le texte en rouge demande à l'analyste de valider la nature exacte du traitement et les superficies - variable selon la vague et l'UA - veuillez ensuite mettre en noir et supprimer la remarque si elle ne s'applique pas (si DEG_1 ne contient pas de regarni)
B139: Ligniculture (essences à croissance rapide) | F139: =ROUND(V139,-1) -> 0 | G139: =IFERROR(ROUND(VLOOKUP(O33,DataLocal!$A:$BH,47,FALSE),-1),0) -> 0 | H139: =F139-G139 -> 0 | S139: =LEFT(B$134,11) -> Tableau 10. | T139: Plantation ligniculture (pins, feuillus) | U139: OSUPPL_PPF | V139: =IFERROR(VLOOKUP(U139,Output!C:AQ,37,FALSE),0)/5 -> 0
B140: Plantation intensive (2 000 plants/ha) | F140: =ROUND(V140,-1) -> 0 | G140: =IFERROR(ROUND(VLOOKUP(O33,DataLocal!$A:$BH,48,FALSE),-1),0) -> 0 | H140: =F140-G140 -> 0 | S140: =LEFT(B$134,11) -> Tableau 10. | T140: Plantation intensive | U140: OSUPPL_SEPM_I | V140: =IFERROR(VLOOKUP(U140,Output!C:AQ,37,FALSE),0)/5 -> 0
B141: Plantation de base (1 600 plants/ha) | F141: =ROUND(V141,-1) -> 30 | G141: =IFERROR(ROUND(VLOOKUP(O33,DataLocal!$A:$BH,49,FALSE),-1),0) -> 20 | H141: 10 | S141: Tableau 10. | T141: Plantation de base | U141: OSUPPL_SEPM_E | V141: =IFERROR(VLOOKUP(U141,Output!C:AQ,37,FALSE),0)/5 -> 30.6388
B142: Regarni | F142: =ROUND(V142,-1) -> 0 | G142: =IFERROR(ROUND(VLOOKUP(O33,DataLocal!$A:$BH,50,FALSE),-1),0) -> 0 | H142: 0 | S142: Tableau 10. | T142: Regarni | U142: OSUPREG | V142: =IFERROR(VLOOKUP(U142,Output!C:AQ,37,FALSE),0)/5 -> 0
B143: % des plantations dans les coupes totales | F143: =IFERROR(SUM(F139:F141)/G92,0) -> 0.1666666667 | G143: =IFERROR(SUM(G139:G141)/H92,0) -> 0.1052631579 | H143: =ROUND(F143-G143,2) -> 0.06 | S143: Tableau 10.
B144: Total des travaux de reboisement | F144: =ROUND(SUM(F139:F142),-1) -> 30 | G144: =ROUND(SUM(G139:G142),-1) -> 20 | H144: 10 | S144: Tableau 10.
B145: Nettoiement (régénération naturelle et plantation) | F145: =ROUND(V145,-1) -> 0 | G145: =IFERROR(ROUND(VLOOKUP(O33,DataLocal!$A:$BH,51,FALSE),-1),0) -> 0 | H145: 0 | S145: Tableau 10. | T145: Nettoiement | U145: OSUPREALNET | V145: =IFERROR(VLOOKUP(U145,Output!C:AQ,37,FALSE),0)/5 -> 0
B146: Éclaircie précommerciale | F146: =ROUND(V146,-1) -> 0 | G146: =IFERROR(ROUND(VLOOKUP(O33,DataLocal!$A:$BH,52,FALSE),-1),0) -> 0 | H146: 0 | S146: Tableau 10. | T146: Éclaircie précommerciale de la régénération naturelle | U146: OSUPREALEPC | V146: =IFERROR(VLOOKUP(U146,Output!C:AQ,37,FALSE),0)/5 -> 0 | X146: Exemple U09751
B147: Dégagement de la régénération naturelle (et regarni) | F147: =ROUND(V147,-1) -> 0 | G147: =IFERROR(ROUND(VLOOKUP(O33,DataLocal!$A:$BH,53,FALSE),-1),0) -> 0 | H147: 0 | S147: Tableau 10. | T147: Dégagement de la régénération naturelle | U147: OSUPDEG_2 | V147: =IFERROR(VLOOKUP(U147,Output!C:AQ,37,FALSE),0)/5 -> 0
B148: Dégagement des plantations | F148: =ROUND(V148,-1) -> 0 | G148: =IFERROR(ROUND(VLOOKUP(O33,DataLocal!$A:$BH,54,FALSE),-1),0) -> 10 | H148: -10 | S148: Tableau 10. | T148: Dégagement de plantation | U148: OSUPDEG_1 | V148: =IFERROR(VLOOKUP(U148,Output!C:AQ,37,FALSE),0)/5 -> 0
B149: Élagage | F149: =ROUND(V149,-1) -> 0 | G149: =IFERROR(ROUND(VLOOKUP(O33,DataLocal!$A:$BN,66,FALSE),-1),0) -> 0 | H149: 0 | S149: Tableau 10. | T149: Élagage (plantation) | U149: OSUPELAG | V149: =IFERROR(VLOOKUP(U149,Output!C:AQ,37,FALSE),0)/5 -> 0
B150: Total des travaux d'éducation | F150: =SUM(F145:F149) -> 0 | G150: =SUM(G145:G149) -> 10 | H150: -10 | S150: Tableau 10. | U150: OSUPSCA_LIGN | V150: =IFERROR(VLOOKUP(U150,Output!C:AQ,37,FALSE),0)/5 -> 0
B151: Scarifiage partiel | F151: =ROUND(V152,-1) -> 0 | G151: =IFERROR(ROUND(VLOOKUP(O33,DataLocal!$A:$BH,58,FALSE),-1),0) -> 10 | H151: -10 | S151: Tableau 10. | U151: OSUPSCA_LRD | V151: =IFERROR(VLOOKUP(U151,Output!C:AQ,37,FALSE),0)/5 -> 0
B152: Scarifiage en plein | F152: =ROUND(V153+V150+V151,-1) -> 30 | G152: =IFERROR(ROUND(VLOOKUP(O33,DataLocal!$A:$BH,59,FALSE),-1),0) -> 10 | H152: 20 | S152: Tableau 10. | U152: OSUPSCA_PART | V152: =IFERROR(VLOOKUP(U152,Output!C:AQ,37,FALSE),0)/5 -> 0
B153: Total de la préparation de terrain | F153: =IFERROR(SUM(F151:F152),0) -> 30 | G153: =IFERROR(SUM(G151:G152),0) -> 20 | H153: 10 | S153: Tableau 10. | U153: OSUPSCA_REG | V153: =IFERROR(VLOOKUP(U153,Output!C:AQ,37,FALSE),0)/5 -> 30.6388
B154: Total des travaux sans récolte | F154: =F153+F150+F144 -> 60 | G154: =G153+G150+G144 -> 50 | H154: 10
B160: Tableau 13 : Variation du volume sur pied à court, moyen et long terme | L160: % du volume total | U160: colonne | V160: 37 | W160: 38 | X160: 39 | Y160: 40 | AF160: 37 | AG160: 38 | AH160: 39 | AI160: 40
B161: Essences | C161: Volume moyen sur pied (m3) | G161: Volume moyen sur pied (%) | V161: Volume moyen sur pied (m3) | Z161: Volume moyen sur pied (%) | AF161: Volume dans courbe SNAT
C162: 2023 à 2048 | D162: 2048 à 2073 | E162: 2073 à 2118 | F162: 2118 à 2168 | G162: =C162 -> 2023 à 2048 | H162: =D162 -> 2048 à 2073 | I162: 2073 à 2118 | J162: 2118 à 2168 | L162: 2023 à 2048 | T162: Légende | U162: Name | V162: p 2 à 6 | W162: p 7 à 11 | X162: p 12 à 20 | Y162: p 21 à 30 | Z162: p 2 à 6 | AA162: p 7 à 11 | AB162: p 12 à 20 | AC162: p 21 à 30 | AE162: Name | AF162: p 2 à 6 | AG162: p 7 à 11 | AH162: p 12 à 20 | AI162: p 21 à 30
B163: =T163 -> Sapin baumier | C163: =ROUND(V163-AF163,-2) -> 45700 | D163: =ROUND(W163-AG163,-2) -> 58300 | E163: 57900 | F163: 54100 | G163: =C163/C$177 -> 0.02840803133 | H163: =D163/D$177 -> 0.03137782562 | I163: =E163/E$177 -> 0.02975486921 | J163: =F163/F$177 -> 0.02867896522 | L163: =C163/C$177 -> 0.02840803133 | S163: =LEFT(B$160,11) -> Tableau 13 | T163: Sapin baumier | U163: OVOLSABPIEDINC | V163: =VLOOKUP($U163,Output!$C:$AQ,V$160,FALSE) -> 57162.28 | W163: =VLOOKUP($U163,Output!$C:$AQ,W$160,FALSE) -> 69843.838 | X163: =VLOOKUP($U163,Output!$C:$AQ,X$160,FALSE) -> 63224.53889 | Y163: =VLOOKUP($U163,Output!$C:$AQ,Y$160,FALSE) -> 64771.552 | Z163: =V163/V$178 -> 0.02797151173 | AA163: =W163/W$178 -> 0.03013360329 | AB163: =X163/X$178 -> 0.02591082294 | AC163: =Y163/Y$178 -> 0.02654482334 | AE163: OVOLSABPIEDSNAT | AF163: =VLOOKUP($AE163,Output!$C:$AQ,AF$160,FALSE) -> 11430.106 | AG163: =VLOOKUP($AE163,Output!$C:$AQ,AG$160,FALSE) -> 11514.244 | AH163: =VLOOKUP($AE163,Output!$C:$AQ,AH$160,FALSE) -> 5342.262222 | AI163: =VLOOKUP($AE163,Output!$C:$AQ,AI$160,FALSE) -> 10713.177
B164: =T164 -> Épinettes | C164: =ROUND(V164-AF164,-2) -> 1244900 | D164: 1376900 | E164: 1451600 | F164: 1350500 | G164: 0.7738546653 | H164: 0.741065662 | I164: 0.7459787245 | J164: 0.7159139101 | L164: 0.7738546653 | S164: Tableau 13 | T164: Épinettes | U164: OVOLgEpxPIEDINC | V164: =VLOOKUP($U164,Output!$C:$AQ,V$160,FALSE) -> 1635669.038 | W164: =VLOOKUP($U164,Output!$C:$AQ,W$160,FALSE) -> 1790646.514 | X164: =VLOOKUP($U164,Output!$C:$AQ,X$160,FALSE) -> 1899563.94 | Y164: =VLOOKUP($U164,Output!$C:$AQ,Y$160,FALSE) -> 1851396.987 | Z164: 0.8003903217 | AA164: 0.7725610909 | AB164: 0.7784835728 | AC164: 0.7587436836 | AE164: OVOLgEpxPIEDSNAT | AF164: =VLOOKUP($AE164,Output!$C:$AQ,AF$160,FALSE) -> 390782.198 | AG164: =VLOOKUP($AE164,Output!$C:$AQ,AG$160,FALSE) -> 413719.872 | AH164: =VLOOKUP($AE164,Output!$C:$AQ,AH$160,FALSE) -> 448005.3589 | AI164: =VLOOKUP($AE164,Output!$C:$AQ,AI$160,FALSE) -> 500917.323
B165: =T165 -> Pin gris | C165: 177000 | D165: 253100 | E165: 285300 | F165: 335300 | G165: 0.1100267297 | H165: 0.1362217438 | I165: 0.1466159618 | J165: 0.1777459712 | L165: 0.1100267297 | S165: Tableau 13 | T165: Pin gris | U165: OVOLgPgPIEDINC | V165: =VLOOKUP($U165,Output!$C:$AQ,V$160,FALSE) -> 202123.604 | W165: =VLOOKUP($U165,Output!$C:$AQ,W$160,FALSE) -> 279707.118 | X165: =VLOOKUP($U165,Output!$C:$AQ,X$160,FALSE) -> 317017.6933 | Y165: =VLOOKUP($U165,Output!$C:$AQ,Y$160,FALSE) -> 367691.443 | Z165: 0.09890618008 | AA165: 0.1206775511 | AB165: 0.1299209052 | AC165: 0.1506881354 | AE165: OVOLgPgPIEDSNAT | AF165: =VLOOKUP($AE165,Output!$C:$AQ,AF$160,FALSE) -> 25124.642 | AG165: =VLOOKUP($AE165,Output!$C:$AQ,AG$160,FALSE) -> 26558.08 | AH165: =VLOOKUP($AE165,Output!$C:$AQ,AH$160,FALSE) -> 31688.70889 | AI165: =VLOOKUP($AE165,Output!$C:$AQ,AI$160,FALSE) -> 32390.477
B166: =T166 -> Mélèzes | C166: 6800 | D166: 12800 | E166: 25000 | F166: 18900 | G166: 0.004227015603 | H166: 0.006889128095 | I166: 0.01284752557 | J166: 0.01001908397 | L166: 0.004227015603 | S166: Tableau 13 | T166: Mélèzes | U166: OVOLgMlPIEDINC | V166: =VLOOKUP($U166,Output!$C:$AQ,V$160,FALSE) -> 13625.69 | W166: =VLOOKUP($U166,Output!$C:$AQ,W$160,FALSE) -> 20026.834 | X166: =VLOOKUP($U166,Output!$C:$AQ,X$160,FALSE) -> 33665.03222 | Y166: =VLOOKUP($U166,Output!$C:$AQ,Y$160,FALSE) -> 27711.876 | Z166: 0.00666752879 | AA166: 0.008640428248 | AB166: 0.01379667934 | AC166: 0.01135694344 | AE166: OVOLGMlPIEDSNAT | AF166: =VLOOKUP($AE166,Output!$C:$AQ,AF$160,FALSE) -> 6868.182 | AG166: =VLOOKUP($AE166,Output!$C:$AQ,AG$160,FALSE) -> 7262.336 | AH166: =VLOOKUP($AE166,Output!$C:$AQ,AH$160,FALSE) -> 8637.323333 | AI166: =VLOOKUP($AE166,Output!$C:$AQ,AI$160,FALSE) -> 8797.384
B167: Thuya | C167: =ROUND(V167-AF167,-2) -> 0 | D167: 0 | E167: 0 | F167: 0 | G167: 0 | H167: 0 | I167: 0 | J167: 0 | L167: 0 | S167: Tableau 13 | T167: Thuya | U167: OVOLTHOPIEDINC | V167: =VLOOKUP($U167,Output!$C:$AQ,V$160,FALSE) -> 0 | W167: =VLOOKUP($U167,Output!$C:$AQ,W$160,FALSE) -> 0 | X167: =VLOOKUP($U167,Output!$C:$AQ,X$160,FALSE) -> 0 | Y167: =VLOOKUP($U167,Output!$C:$AQ,Y$160,FALSE) -> 0 | Z167: 0 | AA167: 0 | AB167: 0 | AC167: 0 | AE167: OVOLTHOPIEDSNAT | AF167: =VLOOKUP($AE167,Output!$C:$AQ,AF$160,FALSE) -> 0 | AG167: =VLOOKUP($AE167,Output!$C:$AQ,AG$160,FALSE) -> 0 | AH167: =VLOOKUP($AE167,Output!$C:$AQ,AH$160,FALSE) -> 0 | AI167: =VLOOKUP($AE167,Output!$C:$AQ,AI$160,FALSE) -> 0
B168: Pruche | C168: 0 | D168: 0 | E168: 0 | F168: 0 | G168: 0 | H168: 0 | I168: 0 | J168: 0 | L168: 0 | S168: Tableau 13 | T168: Pruche | U168: OVOLPRUPIEDINC | V168: =VLOOKUP($U168,Output!$C:$AQ,V$160,FALSE) -> 0 | W168: =VLOOKUP($U168,Output!$C:$AQ,W$160,FALSE) -> 0 | X168: =VLOOKUP($U168,Output!$C:$AQ,X$160,FALSE) -> 0 | Y168: =VLOOKUP($U168,Output!$C:$AQ,Y$160,FALSE) -> 0 | Z168: 0 | AA168: 0 | AB168: 0 | AC168: 0 | AE168: OVOLPRUPIEDSNAT | AF168: =VLOOKUP($AE168,Output!$C:$AQ,AF$160,FALSE) -> 0 | AG168: =VLOOKUP($AE168,Output!$C:$AQ,AG$160,FALSE) -> 0 | AH168: =VLOOKUP($AE168,Output!$C:$AQ,AH$160,FALSE) -> 0 | AI168: =VLOOKUP($AE168,Output!$C:$AQ,AI$160,FALSE) -> 0
B169: Pins blanc et rouge | C169: 0 | D169: 0 | E169: 0 | F169: 0 | G169: 0 | H169: 0 | I169: 0 | J169: 0 | L169: 0 | S169: Tableau 13 | T169: Pins blanc et rouge | U169: OVOLGPINSPIEDINC | V169: =VLOOKUP($U169,Output!$C:$AQ,V$160,FALSE) -> 0 | W169: =VLOOKUP($U169,Output!$C:$AQ,W$160,FALSE) -> 0 | X169: =VLOOKUP($U169,Output!$C:$AQ,X$160,FALSE) -> 0 | Y169: =VLOOKUP($U169,Output!$C:$AQ,Y$160,FALSE) -> 0 | Z169: 0 | AA169: 0 | AB169: 0 | AC169: 0 | AE169: OVOLGPINSCPIEDSNAT | AF169: =VLOOKUP($AE169,Output!$C:$AQ,AF$160,FALSE) -> 0 | AG169: =VLOOKUP($AE169,Output!$C:$AQ,AG$160,FALSE) -> 0 | AH169: =VLOOKUP($AE169,Output!$C:$AQ,AH$160,FALSE) -> 0 | AI169: =VLOOKUP($AE169,Output!$C:$AQ,AI$160,FALSE) -> 0
B170: Peupliers | C170: 69300 | D170: 80900 | E170: 61500 | F170: 61100 | G170: 0.04307826195 | H170: 0.04354144241 | I170: 0.03160491289 | J170: 0.03238973707 | L170: 0.04307826195 | S170: Tableau 13 | T170: Peupliers | U170: OVOLGPEUPIEDINC | V170: =VLOOKUP($U170,Output!$C:$AQ,V$160,FALSE) -> 69480.094 | W170: =VLOOKUP($U170,Output!$C:$AQ,W$160,FALSE) -> 81116.33 | X170: =VLOOKUP($U170,Output!$C:$AQ,X$160,FALSE) -> 61699.25111 | Y170: =VLOOKUP($U170,Output!$C:$AQ,Y$160,FALSE) -> 61384.372 | Z170: 0.03399905084 | AA170: 0.03499703593 | AB170: 0.02528572607 | AC170: 0.0251566816 | AE170: OVOLPEUPIEDSNAT | AF170: =VLOOKUP($AE170,Output!$C:$AQ,AF$160,FALSE) -> 229.98 | AG170: =VLOOKUP($AE170,Output!$C:$AQ,AG$160,FALSE) -> 231.242 | AH170: =VLOOKUP($AE170,Output!$C:$AQ,AH$160,FALSE) -> 184.8855556 | AI170: =VLOOKUP($AE170,Output!$C:$AQ,AI$160,FALSE) -> 295.056
B171: Bouleau à papier | C171: 65100 | D171: 76000 | E171: 64600 | F171: 66600 | G171: 0.0404674582 | H171: 0.04090419806 | I171: 0.03319800606 | J171: 0.03530534351 | L171: 0.0404674582 | S171: Tableau 13 | T171: Bouleau à papier | U171: OVOLgBpPIEDINC | V171: =VLOOKUP($U171,Output!$C:$AQ,V$160,FALSE) -> 65528.52 | W171: =VLOOKUP($U171,Output!$C:$AQ,W$160,FALSE) -> 76465.086 | X171: =VLOOKUP($U171,Output!$C:$AQ,X$160,FALSE) -> 64911.78667 | Y171: =VLOOKUP($U171,Output!$C:$AQ,Y$160,FALSE) -> 67126.012 | Z171: 0.03206540687 | AA171: 0.03299029138 | AB171: 0.02660229463 | AC171: 0.02750973344 | AE171: OVOLgBpPIEDSNAT | AF171: =VLOOKUP($AE171,Output!$C:$AQ,AF$160,FALSE) -> 459.96 | AG171: =VLOOKUP($AE171,Output!$C:$AQ,AG$160,FALSE) -> 470.828 | AH171: =VLOOKUP($AE171,Output!$C:$AQ,AH$160,FALSE) -> 351.39 | AI171: =VLOOKUP($AE171,Output!$C:$AQ,AI$160,FALSE) -> 536.1
B172: Bouleau jaune | C172: 0 | D172: 0 | E172: 0 | F172: 0 | G172: 0 | H172: 0 | I172: 0 | J172: 0 | L172: 0 | S172: Tableau 13 | T172: Bouleau jaune | U172: OVOLBOJPIEDINC | V172: =VLOOKUP($U172,Output!$C:$AQ,V$160,FALSE) -> 0 | W172: =VLOOKUP($U172,Output!$C:$AQ,W$160,FALSE) -> 0 | X172: =VLOOKUP($U172,Output!$C:$AQ,X$160,FALSE) -> 0 | Y172: =VLOOKUP($U172,Output!$C:$AQ,Y$160,FALSE) -> 0 | Z172: 0 | AA172: 0 | AB172: 0 | AC172: 0 | AE172: OVOLBOJPIEDSNAT | AF172: =VLOOKUP($AE172,Output!$C:$AQ,AF$160,FALSE) -> 0 | AG172: =VLOOKUP($AE172,Output!$C:$AQ,AG$160,FALSE) -> 0 | AH172: =VLOOKUP($AE172,Output!$C:$AQ,AH$160,FALSE) -> 0 | AI172: =VLOOKUP($AE172,Output!$C:$AQ,AI$160,FALSE) -> 0
B173: Érable rouge | C173: 0 | D173: 0 | E173: 0 | F173: 0 | G173: 0 | H173: 0 | I173: 0 | J173: 0 | L173: 0 | S173: Tableau 13 | T173: Érable rouge | U173: OVOLgEroPIEDINC | V173: =VLOOKUP($U173,Output!$C:$AQ,V$160,FALSE) -> 0 | W173: =VLOOKUP($U173,Output!$C:$AQ,W$160,FALSE) -> 0 | X173: =VLOOKUP($U173,Output!$C:$AQ,X$160,FALSE) -> 0 | Y173: =VLOOKUP($U173,Output!$C:$AQ,Y$160,FALSE) -> 0 | Z173: 0 | AA173: 0 | AB173: 0 | AC173: 0 | AE173: OVOLgEroPIEDSNAT | AF173: =VLOOKUP($AE173,Output!$C:$AQ,AF$160,FALSE) -> 0 | AG173: =VLOOKUP($AE173,Output!$C:$AQ,AG$160,FALSE) -> 0 | AH173: =VLOOKUP($AE173,Output!$C:$AQ,AH$160,FALSE) -> 0 | AI173: =VLOOKUP($AE173,Output!$C:$AQ,AI$160,FALSE) -> 0
B174: Érable à sucre | C174: 0 | D174: 0 | E174: 0 | F174: 0 | G174: 0 | H174: 0 | I174: 0 | J174: 0 | L174: 0 | S174: Tableau 13 | T174: Érable à sucre | U174: OVOLERSPIEDINC | V174: =VLOOKUP($U174,Output!$C:$AQ,V$160,FALSE) -> 0 | W174: =VLOOKUP($U174,Output!$C:$AQ,W$160,FALSE) -> 0 | X174: =VLOOKUP($U174,Output!$C:$AQ,X$160,FALSE) -> 0 | Y174: =VLOOKUP($U174,Output!$C:$AQ,Y$160,FALSE) -> 0 | Z174: 0 | AA174: 0 | AB174: 0 | AC174: 0 | AE174: OVOLERSPIEDSNAT | AF174: =VLOOKUP($AE174,Output!$C:$AQ,AF$160,FALSE) -> 0 | AG174: =VLOOKUP($AE174,Output!$C:$AQ,AG$160,FALSE) -> 0 | AH174: =VLOOKUP($AE174,Output!$C:$AQ,AH$160,FALSE) -> 0 | AI174: =VLOOKUP($AE174,Output!$C:$AQ,AI$160,FALSE) -> 0
B175: Autres feuillus durs | C175: =ROUND(V175-AF175,-2) -> 0 | D175: 0 | E175: 0 | F175: 0 | G175: 0 | H175: 0 | I175: 0 | J175: 0 | L175: 0 | S175: Tableau 13 | T175: Autres feuillus durs | V175: =V178-V176-V174-V173-V172-V171-V170-V169-V168-V167 -> -0.002000000255 | W175: =W178-W176-W174-W173-W172-W171-W170-W169-W168-W167 -> 0.002000000066 | X175: =X178-X176-X174-X173-X172-X171-X170-X169-X168-X167 -> -0.004444444086 | Y175: =Y178-Y176-Y174-Y173-Y172-Y171-Y170-Y169-Y168-Y167 -> -0.0009999991526 | Z175: -9.786703852e-10 | AA175: 8.628851203e-10 | AB175: -1.821432087e-09 | AC175: -4.098219052e-10 | AE175: Autres feuillus durs | AF175: =AF178-AF176-AF174-AF173-AF172-AF171-AF170-AF169-AF168-AF167 -> 0.005999999996 | AG175: =AG178-AG176-AG174-AG173-AG172-AG171-AG170-AG169-AG168-AG167 -> 6.99174052e-12 | AH175: =AH178-AH176-AH174-AH173-AH172-AH171-AH170-AH169-AH168-AH167 -> -0.001111111276 | AI175: =AI178-AI176-AI174-AI173-AI172-AI171-AI170-AI169-AI168-AI167 -> -4.0984105e-11
B176: Autres essences | C176: =IF($L$163<0.0095,C163,0)+IF($L$164<0.0095,C164,0)+IF($L$165<0.0095,C165,0)+IF($L$166<0.0095,C166,0)+IF($L$167<0.0095,C167,0)+IF($L$168<0.0095,C168,0)+IF($L$169<0.0095,C169,0)+IF($L$170<0.0095,C170,0)+IF($L$171<0.0095,C171,0)+IF($L$172<0.0095,C172,0)+IF($L$173<0.0095,C173,0)+IF($L$174<0.0095,C174+0)+IF($L$175<0.0095,C175,0) -> 6800 | D176: =IF($L$163<0.0095,D163,0)+IF($L$164<0.0095,D164,0)+IF($L$165<0.0095,D165,0)+IF($L$166<0.0095,D166,0)+IF($L$167<0.0095,D167,0)+IF($L$168<0.0095,D168,0)+IF($L$169<0.0095,D169,0)+IF($L$170<0.0095,D170,0)+IF($L$171<0.0095,D171,0)+IF($L$172<0.0095,D172,0)+IF($L$173<0.0095,D173,0)+IF($L$174<0.0095,D174+0)+IF($L$175<0.0095,D175,0) -> 12800 | E176: =IF($L$163<0.0095,E163,0)+IF($L$164<0.0095,E164,0)+IF($L$165<0.0095,E165,0)+IF($L$166<0.0095,E166,0)+IF($L$167<0.0095,E167,0)+IF($L$168<0.0095,E168,0)+IF($L$169<0.0095,E169,0)+IF($L$170<0.0095,E170,0)+IF($L$171<0.0095,E171,0)+IF($L$172<0.0095,E172,0)+IF($L$173<0.0095,E173,0)+IF($L$174<0.0095,E174+0)+IF($L$175<0.0095,E175,0) -> 25000 | F176: =IF($L$163<0.0095,F163,0)+IF($L$164<0.0095,F164,0)+IF($L$165<0.0095,F165,0)+IF($L$166<0.0095,F166,0)+IF($L$167<0.0095,F167,0)+IF($L$168<0.0095,F168,0)+IF($L$169<0.0095,F169,0)+IF($L$170<0.0095,F170,0)+IF($L$171<0.0095,F171,0)+IF($L$172<0.0095,F172,0)+IF($L$173<0.0095,F173,0)+IF($L$174<0.0095,F174+0)+IF($L$175<0.0095,F175,0) -> 18900 | G176: 0.004227015603 | H176: 0.006889128095 | I176: 0.01284752557 | J176: 0.01001908397 | L176: 0.004227015603 | S176: Tableau 13 | T176: SEPM | U176: OVOLGSEPMPIEDINC | V176: =VLOOKUP($U176,Output!$C:$AQ,V$160,FALSE) -> 1908580.614 | W176: =VLOOKUP($U176,Output!$C:$AQ,W$160,FALSE) -> 2160224.3 | X176: =VLOOKUP($U176,Output!$C:$AQ,X$160,FALSE) -> 2313471.207 | Y176: =VLOOKUP($U176,Output!$C:$AQ,Y$160,FALSE) -> 2311571.857 | Z176: 0.9339355433 | AA176: 0.9320126718 | AB176: 0.9481119811 | AC176: 0.9473335854 | AE176: OVOLgSEPMPIEDSNAT | AF176: =VLOOKUP($AE176,Output!$C:$AQ,AF$160,FALSE) -> 434205.124 | AG176: =VLOOKUP($AE176,Output!$C:$AQ,AG$160,FALSE) -> 459054.536 | AH176: =VLOOKUP($AE176,Output!$C:$AQ,AH$160,FALSE) -> 493673.6533 | AI176: =VLOOKUP($AE176,Output!$C:$AQ,AI$160,FALSE) -> 552818.359
B177: Total | C177: =ROUND(V178-AF178,-2) -> 1608700 | D177: =ROUND(W178-AG178,-2) -> 1858000 | E177: =ROUND(X178-AH178,-2) -> 1945900 | F177: =ROUND(Y178-AI178,-2) -> 1886400 | G177: 1 | H177: 1 | I177: 1 | J177: 1 | S177: Tableau 13 | T177: FN - ERS BOJ | U177: OVOLGFNPIEDINC | V177: =VLOOKUP($U177,Output!$C:$AQ,V$160,FALSE) -> 0 | W177: =VLOOKUP($U177,Output!$C:$AQ,W$160,FALSE) -> 0 | X177: =VLOOKUP($U177,Output!$C:$AQ,X$160,FALSE) -> 0 | Y177: =VLOOKUP($U177,Output!$C:$AQ,Y$160,FALSE) -> 0 | Z177: 0 | AA177: 0 | AB177: 0 | AC177: 0 | AE177: OVOLgFnPIEDSNAT | AF177: =VLOOKUP($AE177,Output!$C:$AQ,AF$160,FALSE) -> 0 | AG177: =VLOOKUP($AE177,Output!$C:$AQ,AG$160,FALSE) -> 0 | AH177: =VLOOKUP($AE177,Output!$C:$AQ,AH$160,FALSE) -> 0 | AI177: =VLOOKUP($AE177,Output!$C:$AQ,AI$160,FALSE) -> 0
L178: Masquer les essences du tableau qui sont en surbrillance (< 1%) | S178: Tableau 13 | T178: TOT sur pied | U178: OVOLTOTPIEDINC | V178: =VLOOKUP($U178,Output!$C:$AQ,V$160,FALSE) -> 2043589.226 | W178: =VLOOKUP($U178,Output!$C:$AQ,W$160,FALSE) -> 2317805.718 | X178: =VLOOKUP($U178,Output!$C:$AQ,X$160,FALSE) -> 2440082.24 | Y178: =VLOOKUP($U178,Output!$C:$AQ,Y$160,FALSE) -> 2440082.24 | Z178: 1 | AA178: 1 | AB178: 1 | AC178: 1 | AE178: OVOLTOTPIEDSNAT | AF178: =VLOOKUP($AE178,Output!$C:$AQ,AF$160,FALSE) -> 434895.07 | AG178: =VLOOKUP($AE178,Output!$C:$AQ,AG$160,FALSE) -> 459756.606 | AH178: =VLOOKUP($AE178,Output!$C:$AQ,AH$160,FALSE) -> 494209.9278 | AI178: =VLOOKUP($AE178,Output!$C:$AQ,AI$160,FALSE) -> 553649.515
L179: Ces volumes sont comptabilisés dans "Autres essences" | S179: Tableau 13 | T179: Érables à sucre et rouge
D182: P2 | E182: P3 | F182: P4 | G182: P5 | H182: P6
B183: Tableau 15 Statistiques sur les compartiments d’organisation spatiale admissibles à la récolte par période
B184: Compartiments d'organisation spatiale | D184: 2023-2028 | E184: 2028-2033 | F184: 2033-2038 | G184: 2038-2043 | H184: 2043-2048
B185: Nombre total | D185: =Cedule_COS!G6 -> 0
B186: En pessière | D186: =COUNTIF(Cedule_COS!$A$10:$A$1009,"<S*") -> 0 | J186: Fait la sommation automatique des COS débutant par la lettre "P" ou par "C", valider et corriger si nécessaire
B187: En sapinière | D187: =COUNTIF(Cedule_COS!$A$10:$A$1009,"S*") -> 0 | J187: Fait la sommation automatique des COS débutant par la lettre "S", valider et corriger si nécessaire
B188: Admissibles à la récolte | D188: =Cedule_COS!C7 -> 0 | E188: =Cedule_COS!D7 -> 0 | F188: =Cedule_COS!E7 -> 0 | G188: =Cedule_COS!F7 -> 0 | H188: =Cedule_COS!G7 -> 0
B189: % de compartiments admissibles | D189: =Cedule_COS!C8 ->  | E189: =Cedule_COS!D8 ->  | F189: =Cedule_COS!E8 ->  | G189: =Cedule_COS!F8 ->  | H189: =Cedule_COS!G8 -> 
B193: Tableau 17 Superficies considérées pour l'analyse de la mortalité d'ici la période 2023-2028 | S193: =LEFT(B$193,11) -> Tableau 17 | T193: Légende | V193: Output | W193: Valeur | X193: Période | Y193: Année
F194: ha | G194: % | S194: =LEFT(B$193,11) -> Tableau 17 | T194: Incluses aux activités de récolte | V194: OSUPINC | W194: =VLOOKUP($V194,Output!$C:$AQ,6,FALSE) -> 56296.7 | X194: P0 | Y194: 2018
B195: Épidémie sévère confirmée à la photo-interprétation | G195: =F195/W$194 -> 0 | J195: Faire une sélection sur le thème 8 = "INC" et seulement les années correspondant à l'épidémie actuelle | S195: =LEFT(B$193,11) -> Tableau 17 | T195: Épidémie sévère confirmée à la photo-interprétation | V195: Requete dans la table d'attribut
B196: Défoliation cumulative (cote ≥ 15) | F196: =ROUND(W196,-1) ->  | G196: =F196/W$194 ->  | J196: Des champs avaient été ajoutés par l'analyste à la fin de table d'attribut de la carte woodstock | S196: =LEFT(B$193,11) -> Tableau 17 | T196: Défoliation cumulative projetée 2023 ≥ 15 | V196: OSUPINC15+ | W196: =VLOOKUP($V196,Output!$C:$AQ,7,FALSE) ->  | X196: P1 | Y196: 2023
B197: Mortalité projetée | F197: =ROUND(SUM(W197:W198),-1) ->  | G197: =F197/W$194 ->  | J197: et c'est sur ces derniers que doivent se réaliser les requêtes | S197: =LEFT(B$193,11) -> Tableau 17 | T197: Mortalité projetée (sommation des 2 actions) | V197: osupaTBEmort | W197: =VLOOKUP($V197,Output!$C:$AQ,8,FALSE) -> 0 | X197: P2 | Y197: 2028
B198: Récupération prévue 2018-2023 | F198: =-ROUND(W199,-1) ->  | G198: =F198/W$194 ->  | V198: Osupactiontberetard | W198: =VLOOKUP($V198,Output!$C:$AQ,8,FALSE) ->  | X198: P2 | Y198: 2028
S199: =LEFT(B$193,11) -> Tableau 17 | T199: Récolte prévue à court terme (récupération) | V199: osuprealregapre_15+ | W199: =VLOOKUP($V199,Output!$C:$AQ,7,FALSE) ->  | X199: P1 | Y199: 2023

Sheet Figures
B2: Figure 2. Répartition du volume de bois marchand sur pied en début de calcul (m3). | N2: Volume sur pied en P0 | S2: Source: CahierDetermination_2018-2023 | V2: Volume sur pied en P0 - volume en SNAT | Z2: Volume dans courbe SNAT
L3: Conserver les GTYF même s'ils sont absents de l'UA | S3: Intrants | T3: Légende | U3: Name | V3: PERIOD0 | W3: % | X3: PERIOD0 | Z3: Name | AB3: PERIOD0
N4: Total | O4: =V19 -> 1584400 | S4: =LEFT(B$2,10) -> Figure 2. | T4: Autres feuillus durs | V4: =ROUND(V19-V17-V11-V12-V10-V8-V9-V6-V5-V7,-2) -> 100 | W4: =IFERROR(V4/$V$19,0) -> 6.311537491e-05 | X4: =X19-X17-X11-X12-X10-X8-X9-X6-X5-X7 -> 1.818989404e-10 | Z4: Autres feuillus durs | AB4: =ROUND(AB19-AB17-AB11-AB12-AB10-AB8-AB9-AB6-AB5-AB7,-2) -> 0
N5: % R | O5: =(V17+V12+V11+V10)/V19 -> 0.948813431 | S5: Figure 2. | T5: Érable à sucre | U5: OVOLERSPIEDINC | V5: =ROUND(X5-AB5,-2) -> 0 | W5: 0 | X5: =VLOOKUP(U5,Output!$C:$AQ,6,FALSE) -> 0 | Z5: OVOLERSPIEDSNAT | AB5: =VLOOKUP(Z5,Output!$C:$AQ,6,FALSE) -> 0
N6: %SEPM | O6: =V17/V19 -> 0.948813431 | S6: Figure 2. | T6: Érable rouge | U6: OVOLgEroPIEDINC | V6: 0 | W6: 0 | X6: =VLOOKUP(U6,Output!$C:$AQ,6,FALSE) -> 0 | Z6: OVOLgEroPIEDSNAT | AB6: =VLOOKUP(Z6,Output!$C:$AQ,6,FALSE) -> 0
N7: % Fi | O7: =W21 -> 0.05118656905 | P7: =O7*O4 -> 81100 | S7: Figure 2. | T7: Bouleau jaune | U7: OVOLBOJPIEDINC | V7: 0 | W7: 0 | X7: =VLOOKUP(U7,Output!$C:$AQ,6,FALSE) -> 0 | Z7: OVOLBOJPIEDSNAT | AB7: =VLOOKUP(Z7,Output!$C:$AQ,6,FALSE) -> 0
N8: % FT | O8: =W22 -> 0 | S8: Figure 2. | T8: Bouleau à papier | U8: OVOLgBpPIEDINC | V8: 45600 | W8: 0.02878061096 | X8: =VLOOKUP(U8,Output!$C:$AQ,6,FALSE) -> 46088.8 | Z8: OVOLgBpPIEDSNAT | AB8: =VLOOKUP(Z8,Output!$C:$AQ,6,FALSE) -> 459.96
N9: %Sapin | O9: =V16/V17 -> 0.02707377104 | S9: Figure 2. | T9: Peupliers | U9: OVOLGPEUPIEDINC | V9: 35400 | W9: 0.02234284272 | X9: =VLOOKUP(U9,Output!$C:$AQ,6,FALSE) -> 35671.4 | Z9: OVOLPEUPIEDSNAT | AB9: =VLOOKUP(Z9,Output!$C:$AQ,6,FALSE) -> 229.98
N10: %ERR | O10: =IFERROR(V6/(V5+V6),0) -> 0 | S10: Figure 2. | T10: Pins blanc et rouge | U10: OVOLGPINSPIEDINC | V10: 0 | W10: 0 | X10: =VLOOKUP(U10,Output!$C:$AQ,6,FALSE) -> 0 | Z10: OVOLGPINSCPIEDSNAT | AB10: =VLOOKUP(Z10,Output!$C:$AQ,6,FALSE) -> 0
S11: Figure 2. | T11: Pruche | U11: OVOLPRUPIEDINC | V11: 0 | W11: 0 | X11: =VLOOKUP(U11,Output!$C:$AQ,6,FALSE) -> 0 | Z11: OVOLPRUPIEDSNAT | AB11: =VLOOKUP(Z11,Output!$C:$AQ,6,FALSE) -> 0
N12: Volume sur pied au calcul 2015-2018 | P12: UA | S12: Figure 2. | T12: Thuya | U12: OVOLTHOPIEDINC | V12: 0 | W12: 0 | X12: =VLOOKUP(U12,Output!$C:$AQ,6,FALSE) -> 0 | Z12: OVOLTHOPIEDSNAT | AB12: =VLOOKUP(Z12,Output!$C:$AQ,6,FALSE) -> 0
P13: =Tableaux!O33 -> 08663 | S13: Figure 2. | T13: Mélèzes | U13: OVOLgMlPIEDINC | V13: 6100 | W13: 0.003850037869 | X13: =VLOOKUP(U13,Output!$C:$AQ,6,FALSE) -> 12540.15 | Z13: OVOLGMlPIEDSNAT | AB13: =VLOOKUP(Z13,Output!$C:$AQ,6,FALSE) -> 6419.16
N14: Total | O14: =VLOOKUP(P13,DataLocal!$A:$BM,61,FALSE) -> 7518200 | S14: Figure 2. | T14: Pin gris | U14: OVOLgPgPIEDINC | V14: 160800 | W14: 0.1014895228 | X14: =VLOOKUP(U14,Output!$C:$AQ,6,FALSE) -> 184351.79 | Z14: OVOLgPgPIEDSNAT | AB14: =VLOOKUP(Z14,Output!$C:$AQ,6,FALSE) -> 23581.54
N15: % R | O15: =VLOOKUP(P13,DataLocal!$A:$BM,62,FALSE) -> 0.99 | S15: Figure 2. | T15: Épinettes | U15: OVOLgEpxPIEDINC | V15: 1295800 | W15: 0.817849028 | X15: =VLOOKUP(U15,Output!$C:$AQ,6,FALSE) -> 1672344.05 | Z15: OVOLgEpxPIEDSNAT | AB15: =VLOOKUP(Z15,Output!$C:$AQ,6,FALSE) -> 376586.54
N16: % SEPM | O16: =VLOOKUP(P13,DataLocal!$A:$BM,63,FALSE) -> 0.99 | S16: Figure 2. | T16: Sapin baumier | U16: OVOLSABPIEDINC | V16: =ROUND(X16-AB16,-2) -> 40700 | W16: 0.02568795759 | X16: =VLOOKUP(U16,Output!$C:$AQ,6,FALSE) -> 51162.63 | Z16: OVOLSABPIEDSNAT | AB16: =VLOOKUP(Z16,Output!$C:$AQ,6,FALSE) -> 10464.18
N17: % Fi | O17: =VLOOKUP(P13,DataLocal!$A:$BM,64,FALSE) -> 0.01 | S17: Figure 2. | T17: SEPM | U17: OVOLGSEPMPIEDINC | V17: =ROUND(X17-AB17,-2) -> 1503300 | W17: =IFERROR(V17/$V$19,0) -> 0.948813431 | X17: =VLOOKUP(U17,Output!$C:$AQ,6,FALSE) -> 1920398.63 | Z17: OVOLgSEPMPIEDSNAT | AB17: =VLOOKUP(Z17,Output!$C:$AQ,6,FALSE) -> 417051.42
N18: % Ft | O18: =VLOOKUP(P13,DataLocal!$A:$BM,65,FALSE) -> 0 | S18: Figure 2. | T18: FN - ERS BOJ | U18: OVOLGFNPIEDINC | V18: 0 | W18: 0 | X18: =VLOOKUP(U18,Output!$C:$AQ,6,FALSE) -> 0 | Z18: OVOLgFnPIEDSNAT | AB18: =VLOOKUP(Z18,Output!$C:$AQ,6,FALSE) -> 0
S19: Figure 2. | T19: TOT sur pied | U19: OVOLTOTPIEDINC | V19: =ROUND(X19-AB19,-2) -> 1584400 | W19: 1 | X19: =VLOOKUP(U19,Output!$C:$AQ,6,FALSE) -> 2002158.83 | Z19: OVOLTOTPIEDSNAT | AB19: =VLOOKUP(Z19,Output!$C:$AQ,6,FALSE) -> 417741.36
N20: Vol R | O20: =ROUND(O15*$O$14,-2) -> 7443000 | T20: Érables à sucre et rouge | U20: Érables à sucre et rouge | V20: =V5+V6 -> 0 | W20: 0 | X20: =X5+X6 -> 0 | Z20: Érables à sucre et rouge | AB20: =AB5+AB6 -> 0
N21: Vol SEPM | O21: =ROUND(O16*$O$14,-2) -> 7443000 | P21: Traduits en m3 | T21: gFi | U21: OVOLgFiPIEDINC | V21: =ROUND(X21-AB21,-2) -> 81100 | W21: 0.05118656905 | X21: =VLOOKUP(U21,Output!$C:$AQ,6,FALSE) -> 81760.21 | Z21: OVOLgFiPIEDSNAT | AB21: =VLOOKUP(Z21,Output!$C:$AQ,6,FALSE) -> 689.95
N22: Vol Fi | O22: =ROUND(O17*$O$14,-2) -> 75200 | P22: approximativement | T22: gFt | U22: OVOLgFtPIEDINC | V22: 0 | W22: 0 | X22: =VLOOKUP(U22,Output!$C:$AQ,6,FALSE) -> 0 | Z22: OVOLgFtPIEDSNAT | AB22: =VLOOKUP(Z22,Output!$C:$AQ,6,FALSE) -> 0
N23: Vol Ft | O23: =ROUND(O18*$O$14,-2) -> 0
B27: Type de couvert : | C27: =#REF! -> 
B28: Figure 3. Répartition de la superficie par grand type de forêt en début de calcul (ha). | S28: Intrants | T28: Légende | V28: PERIOD0 | W28: % | X28: PERIOD0
S29: =LEFT(B$28,10) -> Figure 3. | T29: Sapinières | U29: (FCTYF_SAB) | V29: =ROUND(X29,-1) -> 0 | W29: =V29/V$44 -> 0 | X29: =VLOOKUP("OSUPINC"&$U29,GTYF!$C:$AP,6,FALSE) -> 0
S30: Figure 3. | T30: Résineux à feuillus | U30: (FCTYF_RF) | V30: =ROUND(X30,-1) -> 2280 | W30: 0.04052705794 | X30: =VLOOKUP("OSUPINC"&$U30,GTYF!$C:$AP,6,FALSE) -> 2275
S31: Figure 3. | T31: Prucheraies | U31: (FCTYF_PRU) | V31: 0 | W31: 0 | X31: =VLOOKUP("OSUPINC"&$U31,GTYF!$C:$AP,6,FALSE) -> 0
S32: Figure 3. | T32: Pinèdes grises | U32: (FCTYF_PIG) | V32: 1680 | W32: 0.0298620427 | X32: =VLOOKUP("OSUPINC"&$U32,GTYF!$C:$AP,6,FALSE) -> 1677.3
L33: Conserver les GTYF même s'ils sont absents de l'UA | S33: Figure 3. | T33: Pinèdes blanches | U33: (FCTYF_PIN) | V33: 0 | W33: 0 | X33: =VLOOKUP("OSUPINC"&$U33,GTYF!$C:$AP,6,FALSE) -> 0
S34: Figure 3. | T34: Peupleraies à résineux | U34: (FCTYF_PEUR) | V34: 320 | W34: 0.005688008132 | X34: =VLOOKUP("OSUPINC"&$U34,GTYF!$C:$AP,6,FALSE) -> 323.7
S35: Figure 3. | T35: Peupleraies | U35: (FCTYF_PEU) | V35: 290 | W35: 0.00515475737 | X35: =VLOOKUP("OSUPINC"&$U35,GTYF!$C:$AP,6,FALSE) -> 294.1
S36: Figure 3. | T36: Pessières | U36: (FCTYF_EPX) | V36: 35830 | W36: 0.6368791606 | X36: =VLOOKUP("OSUPINC"&$U36,GTYF!$C:$AP,6,FALSE) -> 35828.9
S37: Figure 3. | T37: Feuillus tolérants à résineux | U37: (FCTYF_FTR) | V37: 0 | W37: 0 | X37: =VLOOKUP("OSUPINC"&$U37,GTYF!$C:$AP,6,FALSE) -> 0
S38: Figure 3. | T38: Feuillus tolérants | U38: (FCTYF_FT) | V38: 0 | W38: 0 | X38: =VLOOKUP("OSUPINC"&$U38,GTYF!$C:$AP,6,FALSE) -> 0
S39: Figure 3. | T39: Érablières rouges | U39: (FCTYF_ERO) | V39: 0 | W39: 0 | X39: =VLOOKUP("OSUPINC"&$U39,GTYF!$C:$AP,6,FALSE) -> 0
S40: Figure 3. | T40: Cédrières | U40: (FCTYF_THO) | V40: 0 | W40: 0 | X40: =VLOOKUP("OSUPINC"&$U40,GTYF!$C:$AP,6,FALSE) -> 0
S41: Figure 3. | T41: Bétulaies blanches à résineux | U41: (FCTYF_BOPR) | V41: 0 | W41: 0 | X41: =VLOOKUP("OSUPINC"&$U41,GTYF!$C:$AP,6,FALSE) -> 0
S42: Figure 3. | T42: Bétulaies blanches | U42: (FCTYF_BOP) | V42: 0 | W42: 0 | X42: =VLOOKUP("OSUPINC"&$U42,GTYF!$C:$AP,6,FALSE) -> 0
U43: Somme: | V43: =SUM(V29:V42) -> 40400 | X43: =SUM(X29:X42) -> 40399
T44: OSUPINC | U44: Tous | V44: =VLOOKUP("OSUPINC",Output!$C:$AP,7,FALSE) -> 56258.71
V45: =V43-V44 -> -15858.71 | W45: Écart
V49: 2018
B50: Figure 4. Superficie destinée à l'aménagement forestier par classe d'âge en début de calcul (ha). | S50: Intrants | U50: Name | V50: PERIOD0 | X50: Classe d'âge | Y50: OUTPUT | Z50: Superficie (ha) | AA50: Pourcentage (%)
S51: =LEFT(B$50,10) -> Figure 4. | T51: 10 ans | U51: OSUP_INC_CLASSEAGEFCAGEAGE1 | V51: =VLOOKUP(U51,Output!$C:$AQ,6,FALSE) -> 286.2 | X51: 10 | Z51: =ROUND(SUM(V51:V54),-1) -> 16920 | AA51: =IFERROR(Z51/$V$89,0) -> 0.3005504763
S52: Figure 4. | T52: 10 ans | U52: OSUP_INC_CLASSEAGEFCAGEAGE2 | V52: =VLOOKUP(U52,Output!$C:$AQ,6,FALSE) -> 2567.8 | X52: 30 | Z52: =ROUND(SUM(V55:V58),-1) -> 7820 | AA52: 0.1389068986
S53: Figure 4. | T53: 10 ans | U53: OSUP_INC_CLASSEAGEFCAGEAGE3 | V53: =VLOOKUP(U53,Output!$C:$AQ,6,FALSE) -> 3140.7 | X53: 50 | Z53: =ROUND(SUM(V59:V62),-1) -> 1080 | AA53: 0.01918407296
S54: Figure 4. | T54: 10 ans | U54: OSUP_INC_CLASSEAGEFCAGEAGE4 | V54: =VLOOKUP(U54,Output!$C:$AQ,6,FALSE) -> 10924.9 | X54: 70 | Z54: =ROUND(SUM(V63:V66),-1) -> 810 | AA54: 0.01438805472
S55: Figure 4. | T55: 30 ans | U55: OSUP_INC_CLASSEAGEFCAGEAGE5 | V55: =VLOOKUP(U55,Output!$C:$AQ,6,FALSE) -> 2409.3 | X55: 90 | Z55: =ROUND(SUM(V67:V70),-1) -> 4360 | AA55: 0.07744681305
S56: Figure 4. | T56: 30 ans | U56: OSUP_INC_CLASSEAGEFCAGEAGE6 | V56: =VLOOKUP(U56,Output!$C:$AQ,6,FALSE) -> 872.5 | X56: 120 et plus | Z56: =ROUND(SUM(V71:V80),-1) -> 25300 | AA56: 0.449404672
S57: Figure 4. | T57: 30 ans | U57: OSUP_INC_CLASSEAGEFCAGEAGE7 | V57: =VLOOKUP(U57,Output!$C:$AQ,6,FALSE) -> 247.2
S58: Figure 4. | T58: 30 ans | U58: OSUP_INC_CLASSEAGEFCAGEAGE8 | V58: =VLOOKUP(U58,Output!$C:$AQ,6,FALSE) -> 4287.2
S59: Figure 4. | T59: 50 ans | U59: OSUP_INC_CLASSEAGEFCAGEAGE9 | V59: =VLOOKUP(U59,Output!$C:$AQ,6,FALSE) -> 50.9
S60: Figure 4. | T60: 50 ans | U60: OSUP_INC_CLASSEAGEFCAGEAGE10 | V60: =VLOOKUP(U60,Output!$C:$AQ,6,FALSE) -> 524.4
S61: Figure 4. | T61: 50 ans | U61: OSUP_INC_CLASSEAGEFCAGEAGE11 | V61: =VLOOKUP(U61,Output!$C:$AQ,6,FALSE) -> 211.6
N62: Proportion de la superficie dont l'évolution est suivi en âge: | S62: Figure 4. | T62: 50 ans | U62: OSUP_INC_CLASSEAGEFCAGEAGE12 | V62: =VLOOKUP(U62,Output!$C:$AQ,6,FALSE) -> 295.4
N63: =IF(AND($W$81>=99.5%,$W$81<100%),"> 99%",IF(AND($W$81>=0.1%,$W$81<0.5%),"< 1%",$W$81)) -> 1 | S63: Figure 4. | T63: 70 ans | U63: OSUP_INC_CLASSEAGEFCAGEAGE13 | V63: =VLOOKUP(U63,Output!$C:$AQ,6,FALSE) -> 23.8
S64: Figure 4. | T64: 70 ans | U64: OSUP_INC_CLASSEAGEFCAGEAGE14 | V64: =VLOOKUP(U64,Output!$C:$AQ,6,FALSE) -> 422
S65: Figure 4. | T65: 70 ans | U65: OSUP_INC_CLASSEAGEFCAGEAGE15 | V65: =VLOOKUP(U65,Output!$C:$AQ,6,FALSE) -> 219.7
S66: Figure 4. | T66: 70 ans | U66: OSUP_INC_CLASSEAGEFCAGEAGE16 | V66: =VLOOKUP(U66,Output!$C:$AQ,6,FALSE) -> 149.4
S67: Figure 4. | T67: 90 ans | U67: OSUP_INC_CLASSEAGEFCAGEAGE17 | V67: =VLOOKUP(U67,Output!$C:$AQ,6,FALSE) -> 1291.5
S68: Figure 4. | T68: 90 ans | U68: OSUP_INC_CLASSEAGEFCAGEAGE18 | V68: =VLOOKUP(U68,Output!$C:$AQ,6,FALSE) -> 1193.1
B69: Figure 5. Superficie destinée à l'aménagement forestier par classe de surface terrière en début de calcul (ha) | S69: Figure 4. | T69: 90 ans | U69: OSUP_INC_CLASSEAGEFCAGEAGE19 | V69: =VLOOKUP(U69,Output!$C:$AQ,6,FALSE) -> 1129.1
S70: Figure 4. | T70: 90 ans | U70: OSUP_INC_CLASSEAGEFCAGEAGE20 | V70: =VLOOKUP(U70,Output!$C:$AQ,6,FALSE) -> 746.4
S71: Figure 4. | T71: 120 et plus | U71: OSUP_INC_CLASSEAGEFCAGEAGE21 | V71: =VLOOKUP(U71,Output!$C:$AQ,6,FALSE) -> 2948.9
S72: Figure 4. | T72: 120 et plus | U72: OSUP_INC_CLASSEAGEFCAGEAGE22 | V72: =VLOOKUP(U72,Output!$C:$AQ,6,FALSE) -> 1180.6
S73: Figure 4. | T73: 120 et plus | U73: OSUP_INC_CLASSEAGEFCAGEAGE23 | V73: =VLOOKUP(U73,Output!$C:$AQ,6,FALSE) -> 652.6
S74: Figure 4. | T74: 120 et plus | U74: OSUP_INC_CLASSEAGEFCAGEAGE24 | V74: =VLOOKUP(U74,Output!$C:$AQ,6,FALSE) -> 25.8
S75: Figure 4. | T75: 120 et plus | U75: OSUP_INC_CLASSEAGEFCAGEAGE25 | V75: =VLOOKUP(U75,Output!$C:$AQ,6,FALSE) -> 906.2
N76: Proportion de la superficie dont l'évolution est suivi en surface terrière: | S76: Figure 4. | T76: 120 et plus | U76: OSUP_INC_CLASSEAGEFCAGEAGE26 | V76: =VLOOKUP(U76,Output!$C:$AQ,6,FALSE) -> 1005.2
N77: =IF(AND($W$88>=99.5%,$W$88<100%),"> 99%",IF(AND($W$88>=0.1%,$W$88<0.5%),"< 1%",$W$88)) -> 0 | S77: Figure 4. | T77: 120 et plus | U77: OSUP_INC_CLASSEAGEFCAGEAGE27 | V77: =VLOOKUP(U77,Output!$C:$AQ,6,FALSE) -> 149.2
S78: Figure 4. | T78: 120 et plus | U78: OSUP_INC_CLASSEAGEFCAGEAGE28 | V78: =VLOOKUP(U78,Output!$C:$AQ,6,FALSE) -> 856
S79: Figure 4. | T79: 120 et plus | U79: OSUP_INC_CLASSEAGEFCAGEAGE29 | V79: =VLOOKUP(U79,Output!$C:$AQ,6,FALSE) -> 168.4
S80: Figure 4. | T80: 120 et plus | U80: OSUP_INC_CLASSEAGEFCAGEAGE30+ | V80: =VLOOKUP(U80,Output!$C:$AQ,6,FALSE) -> 17410.7
U81: Sous-total | V81: =SUM(V51:V80) -> 56296.7 | W81: =V81/V89 -> 1
S82: =LEFT(B$69,10) -> Figure 5. | T82: <16 | U82: OSUPINC_ST016(FCST) | V82: =VLOOKUP(U82,GTYF!$C:$AQ,6,FALSE) -> 0 | W82: =IFERROR(V82/$V$88,0) -> 0
S83: Figure 5. | T83: 16 à 18 | U83: OSUPINC_ST1619(FCST) | V83: =VLOOKUP(U83,GTYF!$C:$AQ,6,FALSE) -> 0 | W83: 0
S84: Figure 5. | T84: 19 à 21 | U84: OSUPINC_ST1922(FCST) | V84: =VLOOKUP(U84,GTYF!$C:$AQ,6,FALSE) -> 0 | W84: 0
S85: Figure 5. | T85: 22 à 24 | U85: OSUPINC_ST2225(FCST) | V85: =VLOOKUP(U85,GTYF!$C:$AQ,6,FALSE) -> 0 | W85: 0
S86: Figure 5. | T86: 25 à 28 | U86: OSUPINC_ST2528(FCST) | V86: =VLOOKUP(U86,GTYF!$C:$AQ,6,FALSE) -> 0 | W86: 0
S87: Figure 5. | T87: 29+ | U87: OSUPINC_ST29+(FCST) | V87: =VLOOKUP(U87,GTYF!$C:$AQ,6,FALSE) -> 0 | W87: 0
S88: Figure 5. | T88: Total 0-29+ | U88: Sous-total | V88: =SUM(V82:V87) -> 0 | W88: =V88/V89 -> 0
U89: OSUPINC | V89: =VLOOKUP(U89,Output!$C:$AQ,6,FALSE) -> 56296.7
A91: 80 | B91: Figure 6. Évolution des volumes et des possibilités forestières à rendement non-décroissant
U93: Période | V93: P0 | W93: P1 | X93: P2 | Y93: P3 | Z93: P4 | AA93: P5 | AB93: P6 | AC93: P7 | AD93: P8 | AE93: P9 | AF93: P10 | AG93: P11 | AH93: P12 | AI93: P13 | AJ93: P14 | AK93: P15 | AL93: P16 | AM93: P17 | AN93: P18 | AO93: P19 | AP93: P20 | AQ93: P21 | AR93: P22 | AS93: P23 | AT93: P24 | AU93: P25 | AV93: P26 | AW93: P27 | AX93: P28 | AY93: P29 | AZ93: P30
U94: Colonne | V94: 6 | W94: 7 | X94: 8 | Y94: 9 | Z94: 10 | AA94: 11 | AB94: 12 | AC94: 13 | AD94: 14 | AE94: 15 | AF94: 16 | AG94: 17 | AH94: 18 | AI94: 19 | AJ94: 20 | AK94: 21 | AL94: 22 | AM94: 23 | AN94: 24 | AO94: 25 | AP94: 26 | AQ94: 27 | AR94: 28 | AS94: 29 | AT94: 30 | AU94: 31 | AV94: 32 | AW94: 33 | AX94: 34 | AY94: 35 | AZ94: 36
S95: =LEFT(B$91,10) -> Figure 6. | T95: Légende | U95: Axe des "X" Début de période | W95: 2018 | X95: 2023 | Y95: 2028 | Z95: 2033 | AA95: 2038 | AB95: 2043 | AC95: 2048 | AD95: 2053 | AE95: 2058 | AF95: 2063 | AG95: 2068 | AH95: 2073 | AI95: 2078 | AJ95: 2083 | AK95: 2088 | AL95: 2093 | AM95: 2098 | AN95: 2103 | AO95: 2108 | AP95: 2113 | AQ95: 2118 | AR95: 2123 | AS95: 2128 | AT95: 2133 | AU95: 2138 | AV95: 2143 | AW95: 2148 | AX95: 2153 | AY95: 2158 | AZ95: 2163
S96: =LEFT(B$91,10) -> Figure 6. | T96: Possibilités forestières quinquennales | U96: OVOLTOTREC | V96: =VLOOKUP($U96,Output!$C:$AM,V$94,FALSE) -> 0 | W96: =VLOOKUP($U96,Output!$C:$AM,W$94,FALSE) -> 84704 | X96: =VLOOKUP($U96,Output!$C:$AM,X$94,FALSE) -> 67800 | Y96: =VLOOKUP($U96,Output!$C:$AM,Y$94,FALSE) -> 67800 | Z96: =VLOOKUP($U96,Output!$C:$AM,Z$94,FALSE) -> 67800 | AA96: =VLOOKUP($U96,Output!$C:$AM,AA$94,FALSE) -> 67800 | AB96: =VLOOKUP($U96,Output!$C:$AM,AB$94,FALSE) -> 67800 | AC96: =VLOOKUP($U96,Output!$C:$AM,AC$94,FALSE) -> 85594.52 | AD96: =VLOOKUP($U96,Output!$C:$AM,AD$94,FALSE) -> 91263.39 | AE96: =VLOOKUP($U96,Output!$C:$AM,AE$94,FALSE) -> 91263.39 | AF96: =VLOOKUP($U96,Output!$C:$AM,AF$94,FALSE) -> 154410.51 | AG96: =VLOOKUP($U96,Output!$C:$AM,AG$94,FALSE) -> 157760.34 | AH96: =VLOOKUP($U96,Output!$C:$AM,AH$94,FALSE) -> 157760.34 | AI96: =VLOOKUP($U96,Output!$C:$AM,AI$94,FALSE) -> 157760.34 | AJ96: =VLOOKUP($U96,Output!$C:$AM,AJ$94,FALSE) -> 174569.82 | AK96: =VLOOKUP($U96,Output!$C:$AM,AK$94,FALSE) -> 174569.82 | AL96: =VLOOKUP($U96,Output!$C:$AM,AL$94,FALSE) -> 174569.82 | AM96: =VLOOKUP($U96,Output!$C:$AM,AM$94,FALSE) -> 174569.82 | AN96: =VLOOKUP($U96,Output!$C:$AM,AN$94,FALSE) -> 174569.82 | AO96: =VLOOKUP($U96,Output!$C:$AM,AO$94,FALSE) -> 174569.82 | AP96: =VLOOKUP($U96,Output!$C:$AM,AP$94,FALSE) -> 174569.82 | AQ96: =VLOOKUP($U96,Output!$C:$AM,AQ$94,FALSE) -> 174569.82 | AR96: =VLOOKUP($U96,Output!$C:$AM,AR$94,FALSE) -> 174569.82 | AS96: =VLOOKUP($U96,Output!$C:$AM,AS$94,FALSE) -> 174569.82 | AT96: =VLOOKUP($U96,Output!$C:$AM,AT$94,FALSE) -> 174569.82 | AU96: =VLOOKUP($U96,Output!$C:$AM,AU$94,FALSE) -> 174569.82 | AV96: =VLOOKUP($U96,Output!$C:$AM,AV$94,FALSE) -> 174569.82 | AW96: =VLOOKUP($U96,Output!$C:$AM,AW$94,FALSE) -> 174569.82 | AX96: =VLOOKUP($U96,Output!$C:$AM,AX$94,FALSE) -> 174569.82 | AY96: =VLOOKUP($U96,Output!$C:$AM,AY$94,FALSE) -> 174569.82 | AZ96: =VLOOKUP($U96,Output!$C:$AM,AZ$94,FALSE) -> 174569.82
S97: =LEFT(B$91,10) -> Figure 6. | T97: Volume à maturité | U97: OVOLMATUREADM | V97: =VLOOKUP($U97,Output!$C:$AM,V$94,FALSE) -> 1478051.94 | W97: =VLOOKUP($U97,Output!$C:$AM,W$94,FALSE) -> 1434856.38 | X97: =VLOOKUP($U97,Output!$C:$AM,X$94,FALSE) -> 1622157.33 | Y97: =VLOOKUP($U97,Output!$C:$AM,Y$94,FALSE) -> 1562934.18 | Z97: =VLOOKUP($U97,Output!$C:$AM,Z$94,FALSE) -> 1560726.78 | AA97: =VLOOKUP($U97,Output!$C:$AM,AA$94,FALSE) -> 1571937.07 | AB97: =VLOOKUP($U97,Output!$C:$AM,AB$94,FALSE) -> 1591189.98 | AC97: =VLOOKUP($U97,Output!$C:$AM,AC$94,FALSE) -> 1567654.85 | AD97: =VLOOKUP($U97,Output!$C:$AM,AD$94,FALSE) -> 1551202.47 | AE97: =VLOOKUP($U97,Output!$C:$AM,AE$94,FALSE) -> 1559749.55 | AF97: =VLOOKUP($U97,Output!$C:$AM,AF$94,FALSE) -> 1478770.74 | AG97: =VLOOKUP($U97,Output!$C:$AM,AG$94,FALSE) -> 1523990.12 | AH97: =VLOOKUP($U97,Output!$C:$AM,AH$94,FALSE) -> 1386341.01 | AI97: =VLOOKUP($U97,Output!$C:$AM,AI$94,FALSE) -> 1445330.91 | AJ97: =VLOOKUP($U97,Output!$C:$AM,AJ$94,FALSE) -> 1514714.75 | AK97: =VLOOKUP($U97,Output!$C:$AM,AK$94,FALSE) -> 1546221.49 | AL97: =VLOOKUP($U97,Output!$C:$AM,AL$94,FALSE) -> 1541363.31 | AM97: =VLOOKUP($U97,Output!$C:$AM,AM$94,FALSE) -> 1449765.3 | AN97: =VLOOKUP($U97,Output!$C:$AM,AN$94,FALSE) -> 1338893.64 | AO97: =VLOOKUP($U97,Output!$C:$AM,AO$94,FALSE) -> 1365987.11 | AP97: =VLOOKUP($U97,Output!$C:$AM,AP$94,FALSE) -> 1760664.31 | AQ97: =VLOOKUP($U97,Output!$C:$AM,AQ$94,FALSE) -> 1730609.85 | AR97: =VLOOKUP($U97,Output!$C:$AM,AR$94,FALSE) -> 1771597.18 | AS97: =VLOOKUP($U97,Output!$C:$AM,AS$94,FALSE) -> 1745652.89 | AT97: =VLOOKUP($U97,Output!$C:$AM,AT$94,FALSE) -> 1683060.34 | AU97: =VLOOKUP($U97,Output!$C:$AM,AU$94,FALSE) -> 1656987.82 | AV97: =VLOOKUP($U97,Output!$C:$AM,AV$94,FALSE) -> 1698341.2 | AW97: =VLOOKUP($U97,Output!$C:$AM,AW$94,FALSE) -> 1761247.9 | AX97: =VLOOKUP($U97,Output!$C:$AM,AX$94,FALSE) -> 1818358.84 | AY97: =VLOOKUP($U97,Output!$C:$AM,AY$94,FALSE) -> 1788888.65 | AZ97: =VLOOKUP($U97,Output!$C:$AM,AZ$94,FALSE) -> 1752483.71
S98: =LEFT(B$91,10) -> Figure 6. | T98: Volume sur pied | U98: OVOLTOTPIEDINC | V98: =VLOOKUP($U98,Output!$C:$AM,V$94,FALSE) -> 2002158.83 | W98: =VLOOKUP($U98,Output!$C:$AM,W$94,FALSE) -> 1994910.48 | X98: =VLOOKUP($U98,Output!$C:$AM,X$94,FALSE) -> 2002485.83 | Y98: =VLOOKUP($U98,Output!$C:$AM,Y$94,FALSE) -> 2010163.59 | Z98: =VLOOKUP($U98,Output!$C:$AM,Z$94,FALSE) -> 2029659.73 | AA98: =VLOOKUP($U98,Output!$C:$AM,AA$94,FALSE) -> 2062731.52 | AB98: =VLOOKUP($U98,Output!$C:$AM,AB$94,FALSE) -> 2112905.46 | AC98: =VLOOKUP($U98,Output!$C:$AM,AC$94,FALSE) -> 2169874.34 | AD98: =VLOOKUP($U98,Output!$C:$AM,AD$94,FALSE) -> 2239718.26 | AE98: =VLOOKUP($U98,Output!$C:$AM,AE$94,FALSE) -> 2346299.41 | AF98: =VLOOKUP($U98,Output!$C:$AM,AF$94,FALSE) -> 2393054.34 | AG98: =VLOOKUP($U98,Output!$C:$AM,AG$94,FALSE) -> 2440082.24 | AH98: =VLOOKUP($U98,Output!$C:$AM,AH$94,FALSE) -> 2440082.24 | AI98: =VLOOKUP($U98,Output!$C:$AM,AI$94,FALSE) -> 2440082.24 | AJ98: =VLOOKUP($U98,Output!$C:$AM,AJ$94,FALSE) -> 2440082.24 | AK98: =VLOOKUP($U98,Output!$C:$AM,AK$94,FALSE) -> 2440082.24 | AL98: =VLOOKUP($U98,Output!$C:$AM,AL$94,FALSE) -> 2440082.24 | AM98: =VLOOKUP($U98,Output!$C:$AM,AM$94,FALSE) -> 2440082.24 | AN98: =VLOOKUP($U98,Output!$C:$AM,AN$94,FALSE) -> 2440082.24 | AO98: =VLOOKUP($U98,Output!$C:$AM,AO$94,FALSE) -> 2440082.24 | AP98: =VLOOKUP($U98,Output!$C:$AM,AP$94,FALSE) -> 2440082.24 | AQ98: =VLOOKUP($U98,Output!$C:$AM,AQ$94,FALSE) -> 2440082.24 | AR98: =VLOOKUP($U98,Output!$C:$AM,AR$94,FALSE) -> 2440082.24 | AS98: =VLOOKUP($U98,Output!$C:$AM,AS$94,FALSE) -> 2440082.24 | AT98: =VLOOKUP($U98,Output!$C:$AM,AT$94,FALSE) -> 2440082.24 | AU98: =VLOOKUP($U98,Output!$C:$AM,AU$94,FALSE) -> 2440082.24 | AV98: =VLOOKUP($U98,Output!$C:$AM,AV$94,FALSE) -> 2440082.24 | AW98: =VLOOKUP($U98,Output!$C:$AM,AW$94,FALSE) -> 2440082.24 | AX98: =VLOOKUP($U98,Output!$C:$AM,AX$94,FALSE) -> 2440082.24 | AY98: =VLOOKUP($U98,Output!$C:$AM,AY$94,FALSE) -> 2440082.24 | AZ98: =VLOOKUP($U98,Output!$C:$AM,AZ$94,FALSE) -> 2440082.24
S99: =LEFT(B$91,10) -> Figure 6. | T99: Volume récoltable | U99: OVOLTOTADMREGAPRE | V99: =VLOOKUP($U99,Output!$C:$AM,V$94,FALSE) -> 0 | W99: =VLOOKUP($U99,Output!$C:$AM,W$94,FALSE) -> 754732.24 | X99: =VLOOKUP($U99,Output!$C:$AM,X$94,FALSE) -> 726332.16 | Y99: =VLOOKUP($U99,Output!$C:$AM,Y$94,FALSE) -> 926888.48 | Z99: =VLOOKUP($U99,Output!$C:$AM,Z$94,FALSE) -> 903352.97 | AA99: =VLOOKUP($U99,Output!$C:$AM,AA$94,FALSE) -> 1036181.28 | AB99: =VLOOKUP($U99,Output!$C:$AM,AB$94,FALSE) -> 1104135.14 | AC99: =VLOOKUP($U99,Output!$C:$AM,AC$94,FALSE) -> 1161210.58 | AD99: =VLOOKUP($U99,Output!$C:$AM,AD$94,FALSE) -> 1161215.12 | AE99: =VLOOKUP($U99,Output!$C:$AM,AE$94,FALSE) -> 1193646.66 | AF99: =VLOOKUP($U99,Output!$C:$AM,AF$94,FALSE) -> 1155151.29 | AG99: =VLOOKUP($U99,Output!$C:$AM,AG$94,FALSE) -> 1065064.18 | AH99: =VLOOKUP($U99,Output!$C:$AM,AH$94,FALSE) -> 1090213.49 | AI99: =VLOOKUP($U99,Output!$C:$AM,AI$94,FALSE) -> 977209.53 | AJ99: =VLOOKUP($U99,Output!$C:$AM,AJ$94,FALSE) -> 1022394.26 | AK99: =VLOOKUP($U99,Output!$C:$AM,AK$94,FALSE) -> 1086482.57 | AL99: =VLOOKUP($U99,Output!$C:$AM,AL$94,FALSE) -> 1114087.77 | AM99: =VLOOKUP($U99,Output!$C:$AM,AM$94,FALSE) -> 1108135.75 | AN99: =VLOOKUP($U99,Output!$C:$AM,AN$94,FALSE) -> 1009678.05 | AO99: =VLOOKUP($U99,Output!$C:$AM,AO$94,FALSE) -> 886177.32 | AP99: =VLOOKUP($U99,Output!$C:$AM,AP$94,FALSE) -> 908398.6 | AQ99: =VLOOKUP($U99,Output!$C:$AM,AQ$94,FALSE) -> 1298710.01 | AR99: =VLOOKUP($U99,Output!$C:$AM,AR$94,FALSE) -> 1265008.56 | AS99: =VLOOKUP($U99,Output!$C:$AM,AS$94,FALSE) -> 1217225.6 | AT99: =VLOOKUP($U99,Output!$C:$AM,AT$94,FALSE) -> 1163140.31 | AU99: =VLOOKUP($U99,Output!$C:$AM,AU$94,FALSE) -> 1085293.58 | AV99: =VLOOKUP($U99,Output!$C:$AM,AV$94,FALSE) -> 1051334.59 | AW99: =VLOOKUP($U99,Output!$C:$AM,AW$94,FALSE) -> 1088279.2 | AX99: =VLOOKUP($U99,Output!$C:$AM,AX$94,FALSE) -> 1147717.22 | AY99: =VLOOKUP($U99,Output!$C:$AM,AY$94,FALSE) -> 1180248.7 | AZ99: =VLOOKUP($U99,Output!$C:$AM,AZ$94,FALSE) -> 1076887.02
T116: * Source: Cahier_analyse, Tableau 13, onglet Budget | X116: Moyenne P2 à P6
B117: Figure 7. Répartition du budget annuel par familles de traitements prévus à la stratégie d’aménagement et coût moyen à l’hectare par famille de traitements
S118: =LEFT(B$117,10) -> Figure 7. | T118: Légende | U118: Output taux | V118: Output superficie | W118: $/ha | X118: ha | Y118: $
S119: =LEFT(B$117,10) -> Figure 7. | T119: Coupes avec protection de la régénération et des sols (CPRS) | U119: OTAUXCT_100 | V119: OSUPCT | W119: =IFERROR(VLOOKUP(U119,Output!$C:$AQ,37,FALSE),0) -> 0 | X119: =IFERROR(VLOOKUP(V119,Output!$C:$AQ,37,FALSE),"0000")/5 -> 175.1644 | Y119: =W119*X119 -> 0
S120: =LEFT(B$117,10) -> Figure 7. | T120: Coupe avec protection des petites tiges marchandes (CPPTM) | V120: OSUPREALaCPPTM | W120: =IFERROR(VLOOKUP(U120,Output!$C:$AQ,8,FALSE),0) -> 0 | X120: =IFERROR(VLOOKUP(V120,Output!$C:$AQ,37,FALSE),"0000")/5 -> 0 | Y120: =W120*X120 -> 0
S121: =LEFT(B$117,10) -> Figure 7. | T121: Coupe avec réserve de semenciers (CRS) | V121: OSUPREALaCRS | W121: =IFERROR(VLOOKUP(U121,Output!$C:$AQ,8,FALSE),0) -> 0 | X121: =IFERROR(VLOOKUP(V121,Output!$C:$AQ,37,FALSE),"0000")/5 -> 0 | Y121: 0
T122: Coupe à rétention variable (CRV, CPPTM, CPPTM, CPHR, CDL)
S123: =LEFT(B$117,10) -> Figure 7. | T123: Coupes finales | W123: =(ROUND(Y123/X123,0))&"$/ha" -> 0$/ha | X123: =SUM(X119:X121) -> 175.1644 | Y123: =SUM(Y119:Y121) -> 0
S124: Figure 7. | T124: Éclaircie commerciale (EC) | U124: OTAUXEC_SEPM_100 | V124: OSUPEC_SEPM | W124: =IFERROR(VLOOKUP(U124,Output!$C:$AQ,37,FALSE),0) -> 1370 | X124: =IFERROR(VLOOKUP(V124,Output!$C:$AQ,37,FALSE),"0000")/5 -> 0 | Y124: 0
S125: Figure 7. | T125: Coupe progressive régulière initiale (CPROG) | U125: OTAUXCPROG_INI_100 | V125: OSUPCPROG_INI | W125: =IFERROR(VLOOKUP(U125,Output!$C:$AQ,37,FALSE),0) -> 400 | X125: =IFERROR(VLOOKUP(V125,Output!$C:$AQ,37,FALSE),"0000")/5 -> 0 | Y125: 0
S126: Figure 7. | T126: Coupe progressive régulière finale (CPROG) | U126: OTAUXCPROG_FIN_100 | V126: OSUPCPROG_FIN | W126: =IFERROR(VLOOKUP(U126,Output!$C:$AQ,37,FALSE),0) -> 0 | X126: =IFERROR(VLOOKUP(V126,Output!$C:$AQ,37,FALSE),"0000")/5 -> 0 | Y126: 0
S127: Figure 7. | T127: Coupe progessive irrégulière initiale (CPIRL) | U127: OTAUXCPIRL_INI_100 | V127: OSUPCPIRL_INI | W127: =IFERROR(VLOOKUP(U127,Output!$C:$AQ,37,FALSE),0) -> 530 | X127: =IFERROR(VLOOKUP(V127,Output!$C:$AQ,37,FALSE),"0000")/5 -> 0 | Y127: 0
S128: Figure 7. | T128: Coupe progessive irrégulière finale (CPIRL) | U128: OTAUXCPIRL_FIN_100 | V128: OSUPCPIRL_FIN | W128: =IFERROR(VLOOKUP(U128,Output!$C:$AQ,37,FALSE),0) -> 0 | X128: =IFERROR(VLOOKUP(V128,Output!$C:$AQ,37,FALSE),"0000")/5 -> 0 | Y128: 0
S129: Figure 7. | T129: Coupe à couvert permanent (CPICP) | U129: OTAUXCPICP_100 | V129: OSUPCPICP | W129: =IFERROR(VLOOKUP(U129,Output!$C:$AQ,37,FALSE),0) -> 210 | X129: =IFERROR(VLOOKUP(V129,Output!$C:$AQ,37,FALSE),"0000")/5 -> 0 | Y129: 0
S130: Figure 7. | T130: Coupe de jardinage (CJ) | U130: OTAUXCJ_100 | V130: OSUPCJ | W130: =IFERROR(VLOOKUP(U130,Output!$C:$AQ,37,FALSE),0) -> 673.45 | X130: =IFERROR(VLOOKUP(V130,Output!$C:$AQ,37,FALSE),"0000")/5 -> 0 | Y130: 0
S131: Figure 7. | T131: Coupes partielles | W131: =IFERROR((ROUND(Y131/X131,0))&"$/ha","0$/ha") -> 0$/ha | X131: =SUM(X124:X130) -> 0 | Y131: =SUM(Y124:Y130) -> 0
S132: Figure 7. | T132: Plantation ligniculture (pins, feuillus) | U132: OTAUXPL_PPF_100 | V132: OSUPPL_PPF | W132: =IFERROR(VLOOKUP(U132,Output!$C:$AQ,37,FALSE),0) -> 1640 | X132: =IFERROR(VLOOKUP(V132,Output!$C:$AQ,37,FALSE),"0000")/5 -> 0 | Y132: 0
S133: Figure 7. | T133: Plantation intensive | U133: OTAUXPL_SEPM_I_100 | V133: OSUPPL_SEPM_I | W133: =IFERROR(VLOOKUP(U133,Output!$C:$AQ,37,FALSE),0) -> 1300 | X133: =IFERROR(VLOOKUP(V133,Output!$C:$AQ,37,FALSE),"0000")/5 -> 0 | Y133: 0
S134: Figure 7. | T134: Plantation de base | U134: OTAUXPL_SEPM_E_100 | V134: OSUPPL_SEPM_E | W134: =IFERROR(VLOOKUP(U134,Output!$C:$AQ,37,FALSE),0) -> 1040 | X134: =IFERROR(VLOOKUP(V134,Output!$C:$AQ,37,FALSE),"0000")/5 -> 30.6388 | Y134: 31864.352
S135: Figure 7. | T135: Regarni | U135: OTAUXREG_100 | V135: OSUPREG | W135: =IFERROR(VLOOKUP(U135,Output!$C:$AQ,37,FALSE),0) -> 470 | X135: =IFERROR(VLOOKUP(V135,Output!$C:$AQ,37,FALSE),"0000")/5 -> 0 | Y135: 0
S136: Figure 7. | T136: Ensemencement (ENS) | U136: OTAUXENS_100 | V136: OSUPENS | W136: =IFERROR(VLOOKUP(U136,Output!$C:$AQ,37,FALSE),0) -> 130 | X136: =IFERROR(VLOOKUP(V136,Output!$C:$AQ,37,FALSE),"0000")/5 -> 0 | Y136: =W136*X136 -> 0
S137: Figure 7. | T137: Reboisement | W137: =(ROUND(Y137/X137,0))&"$/ha" -> 1040$/ha | X137: =SUM(X132:X136) -> 30.6388 | Y137: =SUM(Y132:Y136) -> 31864.352
S138: Figure 7. | T138: Dégagement de la régénération naturelle | U138: OTAUXDEG_2_100 | V138: OSUPDEG_2 | W138: =IFERROR(VLOOKUP(U138,Output!$C:$AQ,37,FALSE),0) -> 1290 | X138: =IFERROR(VLOOKUP(V138,Output!$C:$AQ,37,FALSE),"0000")/5 -> 0 | Y138: 0
S139: Figure 7. | T139: Dégagement de plantation | U139: OTAUXDEG_1_100 | V139: OSUPDEG_1 | W139: =IFERROR(VLOOKUP(U139,Output!$C:$AQ,37,FALSE),0) -> 1290 | X139: =IFERROR(VLOOKUP(V139,Output!$C:$AQ,37,FALSE),"0000")/5 -> 0 | Y139: 0
S140: Figure 7. | T140: Nettoiement de la régénération naturelle | U140: OTAUXNETT_100 | V140: OSUPREALNET | W140: =IFERROR(VLOOKUP(U140,Output!$C:$AQ,37,FALSE),0) -> 1140 | X140: =IFERROR(VLOOKUP(V140,Output!$C:$AQ,37,FALSE),"0000")/5-X141 -> 0 | Y140: 0
C141: $ /m3 | E141: $ /ha | S141: Figure 7. | T141: Nettoiement de plantation | U141: OTAUXNETT_100 | V141: OSUPTCADNETT_T100% | W141: =IFERROR(VLOOKUP(U141,Output!$C:$AQ,37,FALSE),0) -> 1140 | X141: =IFERROR(VLOOKUP(V141,Output!$C:$AQ,37,FALSE),"0000")/5 -> 0 | Y141: 0
C142: =Y151/(Instructions!I5/5) -> 3.27629646 | E142: =Y151/Tableaux!F33 -> 1.099667822 | S142: Figure 7. | T142: Éclaircie précommerciale (EPC_1) | U142: OTAUXEPC_1_100 | V142: OSUPEPC_1 | W142: =IFERROR(VLOOKUP(U142,Output!$C:$AQ,37,FALSE),0) -> 1380 | X142: =IFERROR(VLOOKUP(V142,Output!$C:$AQ,37,FALSE),"0000")/5 -> 0 | Y142: 0
S143: Figure 7. | T143: Éclaircie précommerciale (EPC_2) | U143: OTAUXEPC_2_100 | V143: OSUPEPC_2 | W143: =IFERROR(VLOOKUP(U143,Output!$C:$AQ,37,FALSE),0) -> 1380 | X143: =IFERROR(VLOOKUP(V143,Output!$C:$AQ,37,FALSE),"0000")/5 -> 0 | Y143: 0
S144: Figure 7. | T144: Éclaircie précommerciale de la régénération naturelle | V144: OSUPREALEPC | W144: =IFERROR(VLOOKUP(U144,Output!$C:$AQ,37,FALSE),0) -> 0 | X144: =IFERROR(VLOOKUP(V144,Output!$C:$AQ,37,FALSE),"0000")/5 -> 0 | Y144: 0
S145: Figure 7. | T145: Élagage (plantation) | U145: OTAUXELAG_100 | V145: OSUPELAG | W145: =IFERROR(VLOOKUP(U145,Output!$C:$AQ,37,FALSE),0) -> 1630 | X145: =IFERROR(VLOOKUP(V145,Output!$C:$AQ,37,FALSE),"0000")/5 -> 0 | Y145: 0
S146: Figure 7. | T146: Travaux d'éducation | W146: =IFERROR((ROUND(Y146/X146,0))&"$/ha","0$/ha") -> 0$/ha | X146: =SUM(X138:X143)+X145 -> 0 | Y146: =SUM(Y138:Y143)+Y145 -> 0
S147: Figure 7. | T147: Préparation terrain lignicult. + ferti + élagage (SCA_LIGN) | U147: OTAUXSCA_LIGN_100 | V147: OSUPSCA_LIGN | W147: =IFERROR(VLOOKUP(U147,Output!$C:$AQ,37,FALSE),0) -> 1510 | X147: =IFERROR(VLOOKUP(V147,Output!$C:$AQ,37,FALSE),"0000")/5 -> 0 | Y147: 0
S148: Figure 7. | T148: Préparation de terrain partielle (SCA_PART) | U148: OTAUXSCA_PART_100 | V148: OSUPSCA_PART | W148: =IFERROR(VLOOKUP(U148,Output!$C:$AQ,37,FALSE),0) -> 540 | X148: =IFERROR(VLOOKUP(V148,Output!$C:$AQ,37,FALSE),"0000")/5 -> 0 | Y148: 0
S149: Figure 7. | T149: Préparation de terrain régulière, 1 passage (SCA_REG) | U149: OTAUXSCA_REG_100 | V149: OSUPSCA_REG | W149: =IFERROR(VLOOKUP(U149,Output!$C:$AQ,37,FALSE),0) -> 410 | X149: =IFERROR(VLOOKUP(V149,Output!$C:$AQ,37,FALSE),"0000")/5 -> 30.6388 | Y149: 12561.908 | AA149: Valideur
B150: Figure 9b Évolution de la superficie des vieilles forêts selon leur degré d'altération | S150: Figure 7. | T150: Préparation de terrain | W150: =(ROUND(Y150/X150,0))&"$/ha" -> 410$/ha | X150: =SUM(X147:X149) -> 30.6388 | Y150: =SUM(Y147:Y149) -> 12561.908 | Z150: =Y123+Y131+Y137+Y146+Y150 -> 44426.26 | AA150: =Y151-Z150 -> 0.32
S151: Figure 7. | T151: Investissement sylvicole annuel (O$INVESTISTS)* | V151: O$INVESTISTS | Y151: =IFERROR(VLOOKUP(V151,Output!$C:$AQ,37,FALSE),"0000")/5 -> 44426.58
S155: =LEFT(B$117,10) -> Figure 7. | T155: =T123 -> Coupes finales | U155: =Y123 -> 0 | V155: =W123 -> 0$/ha
S156: =LEFT(B$117,10) -> Figure 7. | T156: =T131 -> Coupes partielles | U156: =Y131 -> 0 | V156: =W131 -> 0$/ha
S157: =LEFT(B$117,10) -> Figure 7. | T157: =T137 -> Reboisement | U157: =Y137 -> 31864.352 | V157: =W137 -> 1040$/ha
S158: =LEFT(B$117,10) -> Figure 7. | T158: =T146 -> Travaux d'éducation | U158: =Y146 -> 0 | V158: =W146 -> 0$/ha
S159: =LEFT(B$117,10) -> Figure 7. | T159: =T150 -> Préparation de terrain | U159: =Y150 -> 12561.908 | V159: =W150 -> 410$/ha
U161: Période | V161: P0 | W161: P1 | X161: P2 | Y161: P3 | Z161: P4 | AA161: P5 | AB161: P6 | AC161: P7 | AD161: P8 | AE161: P9 | AF161: P10 | AG161: P11 | AH161: P12 | AI161: P13 | AJ161: P14 | AK161: P15 | AL161: P16 | AM161: P17 | AN161: P18 | AO161: P19 | AP161: P20 | AQ161: P21 | AR161: P22 | AS161: P23 | AT161: P24 | AU161: P25 | AV161: P26 | AW161: P27 | AX161: P28 | AY161: P29 | AZ161: P30
S162: =LEFT(B$150,10) -> Figure 9b | U162: Axe des "X" Fin de période | V162: 2018 | W162: 2023 | X162: 2028 | Y162: 2033 | Z162: 2038 | AA162: 2043 | AB162: 2048 | AC162: 2053 | AD162: 2058 | AE162: 2063 | AF162: 2068 | AG162: 2073 | AH162: 2078 | AI162: 2083 | AJ162: 2088 | AK162: 2093 | AL162: 2098 | AM162: 2103 | AN162: 2108 | AO162: 2113 | AP162: 2118 | AQ162: 2123 | AR162: 2128 | AS162: 2133 | AT162: 2138 | AU162: 2143 | AV162: 2148 | AW162: 2153 | AX162: 2158 | AY162: 2163 | AZ162: 2168
S163: Figure 9b | U163: Colonne | V163: 6 | W163: 7 | X163: 8 | Y163: 9 | Z163: 10 | AA163: 11 | AB163: 12 | AC163: 13 | AD163: 14 | AE163: 15 | AF163: 16 | AG163: 17 | AH163: 18 | AI163: 19 | AJ163: 20 | AK163: 21 | AL163: 22 | AM163: 23 | AN163: 24 | AO163: 25 | AP163: 26 | AQ163: 27 | AR163: 28 | AS163: 29 | AT163: 30 | AU163: 31 | AV163: 32 | AW163: 33 | AX163: 34 | AY163: 35 | AZ163: 36
S164: Figure 9b | U164: OSUPREGECO | V164: =VLOOKUP($U164,Output!$C:$AL,V$163,FALSE) -> 198064 | W164: =VLOOKUP($U164,Output!$C:$AL,W$163,FALSE) -> 198026.01 | X164: =VLOOKUP($U164,Output!$C:$AL,X$163,FALSE) -> 197987.16 | Y164: =VLOOKUP($U164,Output!$C:$AL,Y$163,FALSE) -> 197949.11 | Z164: =VLOOKUP($U164,Output!$C:$AL,Z$163,FALSE) -> 197908.14 | AA164: =VLOOKUP($U164,Output!$C:$AL,AA$163,FALSE) -> 197866.88 | AB164: =VLOOKUP($U164,Output!$C:$AL,AB$163,FALSE) -> 197829.18 | AC164: =VLOOKUP($U164,Output!$C:$AL,AC$163,FALSE) -> 197786.45 | AD164: =VLOOKUP($U164,Output!$C:$AL,AD$163,FALSE) -> 197741.08 | AE164: =VLOOKUP($U164,Output!$C:$AL,AE$163,FALSE) -> 197704.11 | AF164: =VLOOKUP($U164,Output!$C:$AL,AF$163,FALSE) -> 197665.4 | AG164: =VLOOKUP($U164,Output!$C:$AL,AG$163,FALSE) -> 197626.59 | AH164: =VLOOKUP($U164,Output!$C:$AL,AH$163,FALSE) -> 197624.24 | AI164: =VLOOKUP($U164,Output!$C:$AL,AI$163,FALSE) -> 197616.32 | AJ164: =VLOOKUP($U164,Output!$C:$AL,AJ$163,FALSE) -> 197486.24 | AK164: =VLOOKUP($U164,Output!$C:$AL,AK$163,FALSE) -> 197370.57 | AL164: =VLOOKUP($U164,Output!$C:$AL,AL$163,FALSE) -> 197277.57 | AM164: =VLOOKUP($U164,Output!$C:$AL,AM$163,FALSE) -> 197222.58 | AN164: =VLOOKUP($U164,Output!$C:$AL,AN$163,FALSE) -> 197213.93 | AO164: =VLOOKUP($U164,Output!$C:$AL,AO$163,FALSE) -> 197211.87 | AP164: =VLOOKUP($U164,Output!$C:$AL,AP$163,FALSE) -> 197210.43 | AQ164: =VLOOKUP($U164,Output!$C:$AL,AQ$163,FALSE) -> 197209.28 | AR164: =VLOOKUP($U164,Output!$C:$AL,AR$163,FALSE) -> 197209.28 | AS164: =VLOOKUP($U164,Output!$C:$AL,AS$163,FALSE) -> 197174.15 | AT164: =VLOOKUP($U164,Output!$C:$AL,AT$163,FALSE) -> 197174.15 | AU164: =VLOOKUP($U164,Output!$C:$AL,AU$163,FALSE) -> 197173.71 | AV164: =VLOOKUP($U164,Output!$C:$AL,AV$163,FALSE) -> 197173.71 | AW164: =VLOOKUP($U164,Output!$C:$AL,AW$163,FALSE) -> 197170.07 | AX164: =VLOOKUP($U164,Output!$C:$AL,AX$163,FALSE) -> 197124.7 | AY164: =VLOOKUP($U164,Output!$C:$AL,AY$163,FALSE) -> 197080.85 | AZ164: =VLOOKUP($U164,Output!$C:$AL,AZ$163,FALSE) -> 197038.38
S165: Figure 9b | T165: Élevé | U165: OSUPVIEUXALERTEREGECO | V165: =VLOOKUP($U165,Output!$C:$AL,V$163,FALSE) -> 29116.12 | W165: =VLOOKUP($U165,Output!$C:$AL,W$163,FALSE) -> 29110.54 | X165: =VLOOKUP($U165,Output!$C:$AL,X$163,FALSE) -> 29104.83 | Y165: =VLOOKUP($U165,Output!$C:$AL,Y$163,FALSE) -> 29099.23 | Z165: =VLOOKUP($U165,Output!$C:$AL,Z$163,FALSE) -> 29093.21 | AA165: =VLOOKUP($U165,Output!$C:$AL,AA$163,FALSE) -> 29087.15 | AB165: =VLOOKUP($U165,Output!$C:$AL,AB$163,FALSE) -> 29081.6 | AC165: =VLOOKUP($U165,Output!$C:$AL,AC$163,FALSE) -> 29075.32 | AD165: =VLOOKUP($U165,Output!$C:$AL,AD$163,FALSE) -> 29068.65 | AE165: =VLOOKUP($U165,Output!$C:$AL,AE$163,FALSE) -> 29063.22 | AF165: =VLOOKUP($U165,Output!$C:$AL,AF$163,FALSE) -> 29057.53 | AG165: =VLOOKUP($U165,Output!$C:$AL,AG$163,FALSE) -> 29051.82 | AH165: =VLOOKUP($U165,Output!$C:$AL,AH$163,FALSE) -> 29051.48 | AI165: =VLOOKUP($U165,Output!$C:$AL,AI$163,FALSE) -> 29050.31 | AJ165: =VLOOKUP($U165,Output!$C:$AL,AJ$163,FALSE) -> 29031.19 | AK165: =VLOOKUP($U165,Output!$C:$AL,AK$163,FALSE) -> 29014.19 | AL165: =VLOOKUP($U165,Output!$C:$AL,AL$163,FALSE) -> 29000.52 | AM165: =VLOOKUP($U165,Output!$C:$AL,AM$163,FALSE) -> 28992.43 | AN165: =VLOOKUP($U165,Output!$C:$AL,AN$163,FALSE) -> 28991.16 | AO165: =VLOOKUP($U165,Output!$C:$AL,AO$163,FALSE) -> 28990.86 | AP165: =VLOOKUP($U165,Output!$C:$AL,AP$163,FALSE) -> 28990.65 | AQ165: =VLOOKUP($U165,Output!$C:$AL,AQ$163,FALSE) -> 28990.48 | AR165: =VLOOKUP($U165,Output!$C:$AL,AR$163,FALSE) -> 28990.48 | AS165: =VLOOKUP($U165,Output!$C:$AL,AS$163,FALSE) -> 28985.31 | AT165: =VLOOKUP($U165,Output!$C:$AL,AT$163,FALSE) -> 28985.31 | AU165: =VLOOKUP($U165,Output!$C:$AL,AU$163,FALSE) -> 28985.25 | AV165: =VLOOKUP($U165,Output!$C:$AL,AV$163,FALSE) -> 28985.25 | AW165: =VLOOKUP($U165,Output!$C:$AL,AW$163,FALSE) -> 28984.71 | AX165: =VLOOKUP($U165,Output!$C:$AL,AX$163,FALSE) -> 28978.05 | AY165: =VLOOKUP($U165,Output!$C:$AL,AY$163,FALSE) -> 28971.6 | AZ165: =VLOOKUP($U165,Output!$C:$AL,AZ$163,FALSE) -> 28965.36
S166: Figure 9b | U166: OSUPVIEUXACCEPTREGECO | V166: =VLOOKUP($U166,Output!$C:$AL,V$163,FALSE) -> 48526.87 | W166: =VLOOKUP($U166,Output!$C:$AL,W$163,FALSE) -> 48517.56 | X166: =VLOOKUP($U166,Output!$C:$AL,X$163,FALSE) -> 48508.04 | Y166: =VLOOKUP($U166,Output!$C:$AL,Y$163,FALSE) -> 48498.72 | Z166: =VLOOKUP($U166,Output!$C:$AL,Z$163,FALSE) -> 48488.69 | AA166: =VLOOKUP($U166,Output!$C:$AL,AA$163,FALSE) -> 48478.58 | AB166: =VLOOKUP($U166,Output!$C:$AL,AB$163,FALSE) -> 48469.34 | AC166: =VLOOKUP($U166,Output!$C:$AL,AC$163,FALSE) -> 48458.87 | AD166: =VLOOKUP($U166,Output!$C:$AL,AD$163,FALSE) -> 48447.75 | AE166: =VLOOKUP($U166,Output!$C:$AL,AE$163,FALSE) -> 48438.7 | AF166: =VLOOKUP($U166,Output!$C:$AL,AF$163,FALSE) -> 48429.21 | AG166: =VLOOKUP($U166,Output!$C:$AL,AG$163,FALSE) -> 48419.71 | AH166: =VLOOKUP($U166,Output!$C:$AL,AH$163,FALSE) -> 48419.13 | AI166: =VLOOKUP($U166,Output!$C:$AL,AI$163,FALSE) -> 48417.19 | AJ166: =VLOOKUP($U166,Output!$C:$AL,AJ$163,FALSE) -> 48385.32 | AK166: =VLOOKUP($U166,Output!$C:$AL,AK$163,FALSE) -> 48356.98 | AL166: =VLOOKUP($U166,Output!$C:$AL,AL$163,FALSE) -> 48334.2 | AM166: =VLOOKUP($U166,Output!$C:$AL,AM$163,FALSE) -> 48320.72 | AN166: =VLOOKUP($U166,Output!$C:$AL,AN$163,FALSE) -> 48318.6 | AO166: =VLOOKUP($U166,Output!$C:$AL,AO$163,FALSE) -> 48318.1 | AP166: =VLOOKUP($U166,Output!$C:$AL,AP$163,FALSE) -> 48317.74 | AQ166: =VLOOKUP($U166,Output!$C:$AL,AQ$163,FALSE) -> 48317.46 | AR166: =VLOOKUP($U166,Output!$C:$AL,AR$163,FALSE) -> 48317.46 | AS166: =VLOOKUP($U166,Output!$C:$AL,AS$163,FALSE) -> 48308.86 | AT166: =VLOOKUP($U166,Output!$C:$AL,AT$163,FALSE) -> 48308.86 | AU166: =VLOOKUP($U166,Output!$C:$AL,AU$163,FALSE) -> 48308.75 | AV166: =VLOOKUP($U166,Output!$C:$AL,AV$163,FALSE) -> 48308.75 | AW166: =VLOOKUP($U166,Output!$C:$AL,AW$163,FALSE) -> 48307.86 | AX166: =VLOOKUP($U166,Output!$C:$AL,AX$163,FALSE) -> 48296.74 | AY166: =VLOOKUP($U166,Output!$C:$AL,AY$163,FALSE) -> 48286 | AZ166: =VLOOKUP($U166,Output!$C:$AL,AZ$163,FALSE) -> 48275.59
S167: Figure 9b | T167: Moyen | V167: =V166-V165 -> 19410.75 | W167: =W166-W165 -> 19407.02 | X167: 19403.21 | Y167: 19399.49 | Z167: 19395.48 | AA167: 19391.43 | AB167: 19387.74 | AC167: 19383.55 | AD167: 19379.1 | AE167: 19375.48 | AF167: 19371.68 | AG167: 19367.89 | AH167: 19367.65 | AI167: 19366.88 | AJ167: 19354.13 | AK167: 19342.79 | AL167: 19333.68 | AM167: 19328.29 | AN167: 19327.44 | AO167: 19327.24 | AP167: 19327.09 | AQ167: 19326.98 | AR167: 19326.98 | AS167: 19323.55 | AT167: 19323.55 | AU167: 19323.5 | AV167: 19323.5 | AW167: 19323.15 | AX167: 19318.69 | AY167: 19314.4 | AZ167: 19310.23
S168: Figure 9b | T168: Faible | V168: =$V$164-V165-V167 -> 149537.13 | W168: 149546.44 | X168: 149555.96 | Y168: 149565.28 | Z168: 149575.31 | AA168: 149585.42 | AB168: 149594.66 | AC168: 149605.13 | AD168: 149616.25 | AE168: 149625.3 | AF168: 149634.79 | AG168: 149644.29 | AH168: 149644.87 | AI168: 149646.81 | AJ168: 149678.68 | AK168: 149707.02 | AL168: 149729.8 | AM168: 149743.28 | AN168: 149745.4 | AO168: 149745.9 | AP168: 149746.26 | AQ168: 149746.54 | AR168: 149746.54 | AS168: 149755.14 | AT168: 149755.14 | AU168: 149755.25 | AV168: 149755.25 | AW168: 149756.14 | AX168: 149767.26 | AY168: 149778 | AZ168: 149788.41
S169: Figure 9b | T169: Niveau prédit | U169: OSUPVIEUXTOTREGECO | V169: =VLOOKUP($U169,Output!$C:$AL,V$163,FALSE) -> 130239.5 | W169: =VLOOKUP($U169,Output!$C:$AL,W$163,FALSE) -> 134543.91 | X169: =VLOOKUP($U169,Output!$C:$AL,X$163,FALSE) -> 137254.04 | Y169: =VLOOKUP($U169,Output!$C:$AL,Y$163,FALSE) -> 143553.69 | Z169: =VLOOKUP($U169,Output!$C:$AL,Z$163,FALSE) -> 143441.95 | AA169: =VLOOKUP($U169,Output!$C:$AL,AA$163,FALSE) -> 143798.5 | AB169: =VLOOKUP($U169,Output!$C:$AL,AB$163,FALSE) -> 145146.99 | AC169: =VLOOKUP($U169,Output!$C:$AL,AC$163,FALSE) -> 144477.11 | AD169: =VLOOKUP($U169,Output!$C:$AL,AD$163,FALSE) -> 144012.77 | AE169: =VLOOKUP($U169,Output!$C:$AL,AE$163,FALSE) -> 143678.47 | AF169: =VLOOKUP($U169,Output!$C:$AL,AF$163,FALSE) -> 143496.6 | AG169: =VLOOKUP($U169,Output!$C:$AL,AG$163,FALSE) -> 142752.86 | AH169: =VLOOKUP($U169,Output!$C:$AL,AH$163,FALSE) -> 153467.45 | AI169: =VLOOKUP($U169,Output!$C:$AL,AI$163,FALSE) -> 153603.5 | AJ169: =VLOOKUP($U169,Output!$C:$AL,AJ$163,FALSE) -> 150940.68 | AK169: =VLOOKUP($U169,Output!$C:$AL,AK$163,FALSE) -> 152467.99 | AL169: =VLOOKUP($U169,Output!$C:$AL,AL$163,FALSE) -> 166820.48 | AM169: =VLOOKUP($U169,Output!$C:$AL,AM$163,FALSE) -> 172615.08 | AN169: =VLOOKUP($U169,Output!$C:$AL,AN$163,FALSE) -> 174696.8 | AO169: =VLOOKUP($U169,Output!$C:$AL,AO$163,FALSE) -> 173878.94 | AP169: =VLOOKUP($U169,Output!$C:$AL,AP$163,FALSE) -> 173585.59 | AQ169: =VLOOKUP($U169,Output!$C:$AL,AQ$163,FALSE) -> 173352.08 | AR169: =VLOOKUP($U169,Output!$C:$AL,AR$163,FALSE) -> 172965.07 | AS169: =VLOOKUP($U169,Output!$C:$AL,AS$163,FALSE) -> 172403.55 | AT169: =VLOOKUP($U169,Output!$C:$AL,AT$163,FALSE) -> 171735.44 | AU169: =VLOOKUP($U169,Output!$C:$AL,AU$163,FALSE) -> 171057.18 | AV169: =VLOOKUP($U169,Output!$C:$AL,AV$163,FALSE) -> 170296.22 | AW169: =VLOOKUP($U169,Output!$C:$AL,AW$163,FALSE) -> 169661.31 | AX169: =VLOOKUP($U169,Output!$C:$AL,AX$163,FALSE) -> 168932.01 | AY169: =VLOOKUP($U169,Output!$C:$AL,AY$163,FALSE) -> 168440.7 | AZ169: =VLOOKUP($U169,Output!$C:$AL,AZ$163,FALSE) -> 167753.02
S170: Figure 9b | T170: Portrait préindustriel
B176: Figure 9c Évolution de la superficie des peuplements en régénération selon leur degré d'altération
U177: Période | V177: P0 | W177: P1 | X177: P2 | Y177: P3 | Z177: P4 | AA177: P5 | AB177: P6 | AC177: P7 | AD177: P8 | AE177: P9 | AF177: P10 | AG177: P11 | AH177: P12 | AI177: P13 | AJ177: P14 | AK177: P15 | AL177: P16 | AM177: P17 | AN177: P18 | AO177: P19 | AP177: P20 | AQ177: P21 | AR177: P22 | AS177: P23 | AT177: P24 | AU177: P25 | AV177: P26 | AW177: P27 | AX177: P28 | AY177: P29 | AZ177: P30
U178: Axe des "X" Fin de période | V178: 2018 | W178: 2023 | X178: 2028 | Y178: 2033 | Z178: 2038 | AA178: 2043 | AB178: 2048 | AC178: 2053 | AD178: 2058 | AE178: 2063 | AF178: 2068 | AG178: 2073 | AH178: 2078 | AI178: 2083 | AJ178: 2088 | AK178: 2093 | AL178: 2098 | AM178: 2103 | AN178: 2108 | AO178: 2113 | AP178: 2118 | AQ178: 2123 | AR178: 2128 | AS178: 2133 | AT178: 2138 | AU178: 2143 | AV178: 2148 | AW178: 2153 | AX178: 2158 | AY178: 2163 | AZ178: 2168
S179: =LEFT(B$176,10) -> Figure 9c | U179: Colonne | V179: 6 | W179: 7 | X179: 8 | Y179: 9 | Z179: 10 | AA179: 11 | AB179: 12 | AC179: 13 | AD179: 14 | AE179: 15 | AF179: 16 | AG179: 17 | AH179: 18 | AI179: 19 | AJ179: 20 | AK179: 21 | AL179: 22 | AM179: 23 | AN179: 24 | AO179: 25 | AP179: 26 | AQ179: 27 | AR179: 28 | AS179: 29 | AT179: 30 | AU179: 31 | AV179: 32 | AW179: 33 | AX179: 34 | AY179: 35 | AZ179: 36
S180: Figure 9c | T180: Niveau prédit | U180: OSUPJEUNEREGECO | V180: =VLOOKUP($U180,Output!$C:$AL,V$179,FALSE) -> 29554.7 | W180: =VLOOKUP($U180,Output!$C:$AL,W$179,FALSE) -> 12564.71 | X180: =VLOOKUP($U180,Output!$C:$AL,X$179,FALSE) -> 5997.62 | Y180: =VLOOKUP($U180,Output!$C:$AL,Y$179,FALSE) -> 2727.32 | Z180: =VLOOKUP($U180,Output!$C:$AL,Z$179,FALSE) -> 3307.62 | AA180: =VLOOKUP($U180,Output!$C:$AL,AA$179,FALSE) -> 3377.12 | AB180: =VLOOKUP($U180,Output!$C:$AL,AB$179,FALSE) -> 3357.76 | AC180: =VLOOKUP($U180,Output!$C:$AL,AC$179,FALSE) -> 3493.26 | AD180: =VLOOKUP($U180,Output!$C:$AL,AD$179,FALSE) -> 3668.21 | AE180: =VLOOKUP($U180,Output!$C:$AL,AE$179,FALSE) -> 3734.98 | AF180: =VLOOKUP($U180,Output!$C:$AL,AF$179,FALSE) -> 4286.21 | AG180: =VLOOKUP($U180,Output!$C:$AL,AG$179,FALSE) -> 4777.49 | AH180: =VLOOKUP($U180,Output!$C:$AL,AH$179,FALSE) -> 4869.51 | AI180: =VLOOKUP($U180,Output!$C:$AL,AI$179,FALSE) -> 5197.15 | AJ180: =VLOOKUP($U180,Output!$C:$AL,AJ$179,FALSE) -> 6601.2 | AK180: =VLOOKUP($U180,Output!$C:$AL,AK$179,FALSE) -> 7621.85 | AL180: =VLOOKUP($U180,Output!$C:$AL,AL$179,FALSE) -> 8459 | AM180: =VLOOKUP($U180,Output!$C:$AL,AM$179,FALSE) -> 8740.46 | AN180: =VLOOKUP($U180,Output!$C:$AL,AN$179,FALSE) -> 7302.59 | AO180: =VLOOKUP($U180,Output!$C:$AL,AO$179,FALSE) -> 5959.61 | AP180: =VLOOKUP($U180,Output!$C:$AL,AP$179,FALSE) -> 5080.34 | AQ180: =VLOOKUP($U180,Output!$C:$AL,AQ$179,FALSE) -> 4621.91 | AR180: =VLOOKUP($U180,Output!$C:$AL,AR$179,FALSE) -> 4560.35 | AS180: =VLOOKUP($U180,Output!$C:$AL,AS$179,FALSE) -> 5061.86 | AT180: =VLOOKUP($U180,Output!$C:$AL,AT$179,FALSE) -> 5911.95 | AU180: =VLOOKUP($U180,Output!$C:$AL,AU$179,FALSE) -> 6481.88 | AV180: =VLOOKUP($U180,Output!$C:$AL,AV$179,FALSE) -> 7203.21 | AW180: =VLOOKUP($U180,Output!$C:$AL,AW$179,FALSE) -> 7600.61 | AX180: =VLOOKUP($U180,Output!$C:$AL,AX$179,FALSE) -> 7321.54 | AY180: =VLOOKUP($U180,Output!$C:$AL,AY$179,FALSE) -> 7373.87 | AZ180: =VLOOKUP($U180,Output!$C:$AL,AZ$179,FALSE) -> 7091.37
S181: Figure 9c | U181: OSUPREGECO | V181: =VLOOKUP($U181,Output!$C:$AL,V$179,FALSE) -> 198064 | W181: =VLOOKUP($U181,Output!$C:$AL,W$179,FALSE) -> 198026.01 | X181: =VLOOKUP($U181,Output!$C:$AL,X$179,FALSE) -> 197987.16 | Y181: =VLOOKUP($U181,Output!$C:$AL,Y$179,FALSE) -> 197949.11 | Z181: =VLOOKUP($U181,Output!$C:$AL,Z$179,FALSE) -> 197908.14 | AA181: =VLOOKUP($U181,Output!$C:$AL,AA$179,FALSE) -> 197866.88 | AB181: =VLOOKUP($U181,Output!$C:$AL,AB$179,FALSE) -> 197829.18 | AC181: =VLOOKUP($U181,Output!$C:$AL,AC$179,FALSE) -> 197786.45 | AD181: =VLOOKUP($U181,Output!$C:$AL,AD$179,FALSE) -> 197741.08 | AE181: =VLOOKUP($U181,Output!$C:$AL,AE$179,FALSE) -> 197704.11 | AF181: =VLOOKUP($U181,Output!$C:$AL,AF$179,FALSE) -> 197665.4 | AG181: =VLOOKUP($U181,Output!$C:$AL,AG$179,FALSE) -> 197626.59 | AH181: =VLOOKUP($U181,Output!$C:$AL,AH$179,FALSE) -> 197624.24 | AI181: =VLOOKUP($U181,Output!$C:$AL,AI$179,FALSE) -> 197616.32 | AJ181: =VLOOKUP($U181,Output!$C:$AL,AJ$179,FALSE) -> 197486.24 | AK181: =VLOOKUP($U181,Output!$C:$AL,AK$179,FALSE) -> 197370.57 | AL181: =VLOOKUP($U181,Output!$C:$AL,AL$179,FALSE) -> 197277.57 | AM181: =VLOOKUP($U181,Output!$C:$AL,AM$179,FALSE) -> 197222.58 | AN181: =VLOOKUP($U181,Output!$C:$AL,AN$179,FALSE) -> 197213.93 | AO181: =VLOOKUP($U181,Output!$C:$AL,AO$179,FALSE) -> 197211.87 | AP181: =VLOOKUP($U181,Output!$C:$AL,AP$179,FALSE) -> 197210.43 | AQ181: =VLOOKUP($U181,Output!$C:$AL,AQ$179,FALSE) -> 197209.28 | AR181: =VLOOKUP($U181,Output!$C:$AL,AR$179,FALSE) -> 197209.28 | AS181: =VLOOKUP($U181,Output!$C:$AL,AS$179,FALSE) -> 197174.15 | AT181: =VLOOKUP($U181,Output!$C:$AL,AT$179,FALSE) -> 197174.15 | AU181: =VLOOKUP($U181,Output!$C:$AL,AU$179,FALSE) -> 197173.71 | AV181: =VLOOKUP($U181,Output!$C:$AL,AV$179,FALSE) -> 197173.71 | AW181: =VLOOKUP($U181,Output!$C:$AL,AW$179,FALSE) -> 197170.07 | AX181: =VLOOKUP($U181,Output!$C:$AL,AX$179,FALSE) -> 197124.7 | AY181: =VLOOKUP($U181,Output!$C:$AL,AY$179,FALSE) -> 197080.85 | AZ181: =VLOOKUP($U181,Output!$C:$AL,AZ$179,FALSE) -> 197038.38
S182: Figure 9c | V182: =IFERROR(V180/V181,"0000") -> 0.1492179296 | W182: 0.06344979632 | X182: 0.03029297455 | Y182: 0.01377788463 | Z182: 0.01671290529 | AA182: 0.01706763658 | AB182: 0.01697302693 | AC182: 0.01766177612 | AD182: 0.01855057128 | AE182: 0.0188917671 | AF182: 0.02168416931 | AG182: 0.02417432796 | AH182: 0.02464024656 | AI182: 0.02629919432 | AJ182: 0.0334261263 | AK182: 0.03861695287 | AL182: 0.0428786709 | AM182: 0.04431774496 | AN182: 0.03702877378 | AO182: 0.03021932706 | AP182: 0.02576101071 | AQ182: 0.02343657459 | AR182: 0.02312441889 | AS182: 0.02567202648 | AT182: 0.02998339285 | AU182: 0.03287395668 | AV182: 0.03653230443 | AW182: 0.03854849775 | AX182: 0.03714166718 | AY182: 0.03741545665 | AZ182: 0.03598979042
S183: Figure 9c
S184: Figure 9c | U184: OSUPJEUNEALERTEREGECO | V184: =VLOOKUP($U184,Output!$C:$AL,V$179,FALSE) -> 69322.4 | W184: =VLOOKUP($U184,Output!$C:$AL,W$179,FALSE) -> 69309.1 | X184: =VLOOKUP($U184,Output!$C:$AL,X$179,FALSE) -> 69295.51 | Y184: =VLOOKUP($U184,Output!$C:$AL,Y$179,FALSE) -> 69282.19 | Z184: =VLOOKUP($U184,Output!$C:$AL,Z$179,FALSE) -> 69267.85 | AA184: =VLOOKUP($U184,Output!$C:$AL,AA$179,FALSE) -> 69253.41 | AB184: =VLOOKUP($U184,Output!$C:$AL,AB$179,FALSE) -> 69240.21 | AC184: =VLOOKUP($U184,Output!$C:$AL,AC$179,FALSE) -> 69225.26 | AD184: =VLOOKUP($U184,Output!$C:$AL,AD$179,FALSE) -> 69209.38 | AE184: =VLOOKUP($U184,Output!$C:$AL,AE$179,FALSE) -> 69196.44 | AF184: =VLOOKUP($U184,Output!$C:$AL,AF$179,FALSE) -> 69182.89 | AG184: =VLOOKUP($U184,Output!$C:$AL,AG$179,FALSE) -> 69169.31 | AH184: =VLOOKUP($U184,Output!$C:$AL,AH$179,FALSE) -> 69168.49 | AI184: =VLOOKUP($U184,Output!$C:$AL,AI$179,FALSE) -> 69165.71 | AJ184: =VLOOKUP($U184,Output!$C:$AL,AJ$179,FALSE) -> 69120.19 | AK184: =VLOOKUP($U184,Output!$C:$AL,AK$179,FALSE) -> 69079.7 | AL184: =VLOOKUP($U184,Output!$C:$AL,AL$179,FALSE) -> 69047.15 | AM184: =VLOOKUP($U184,Output!$C:$AL,AM$179,FALSE) -> 69027.9 | AN184: =VLOOKUP($U184,Output!$C:$AL,AN$179,FALSE) -> 69024.88 | AO184: =VLOOKUP($U184,Output!$C:$AL,AO$179,FALSE) -> 69024.15 | AP184: =VLOOKUP($U184,Output!$C:$AL,AP$179,FALSE) -> 69023.65 | AQ184: =VLOOKUP($U184,Output!$C:$AL,AQ$179,FALSE) -> 69023.25 | AR184: =VLOOKUP($U184,Output!$C:$AL,AR$179,FALSE) -> 69023.25 | AS184: =VLOOKUP($U184,Output!$C:$AL,AS$179,FALSE) -> 69010.95 | AT184: =VLOOKUP($U184,Output!$C:$AL,AT$179,FALSE) -> 69010.95 | AU184: =VLOOKUP($U184,Output!$C:$AL,AU$179,FALSE) -> 69010.8 | AV184: =VLOOKUP($U184,Output!$C:$AL,AV$179,FALSE) -> 69010.8 | AW184: =VLOOKUP($U184,Output!$C:$AL,AW$179,FALSE) -> 69009.53 | AX184: =VLOOKUP($U184,Output!$C:$AL,AX$179,FALSE) -> 68993.65 | AY184: =VLOOKUP($U184,Output!$C:$AL,AY$179,FALSE) -> 68978.3 | AZ184: =VLOOKUP($U184,Output!$C:$AL,AZ$179,FALSE) -> 68963.43
S185: Figure 9c | T185: Faible | U185: OSUPJEUNEACCEPTREGECO | V185: =VLOOKUP($U185,Output!$C:$AL,V$179,FALSE) -> 49516 | W185: =VLOOKUP($U185,Output!$C:$AL,W$179,FALSE) -> 49506.5 | X185: =VLOOKUP($U185,Output!$C:$AL,X$179,FALSE) -> 49496.79 | Y185: =VLOOKUP($U185,Output!$C:$AL,Y$179,FALSE) -> 49487.28 | Z185: =VLOOKUP($U185,Output!$C:$AL,Z$179,FALSE) -> 49477.04 | AA185: =VLOOKUP($U185,Output!$C:$AL,AA$179,FALSE) -> 49466.72 | AB185: =VLOOKUP($U185,Output!$C:$AL,AB$179,FALSE) -> 49457.29 | AC185: =VLOOKUP($U185,Output!$C:$AL,AC$179,FALSE) -> 49446.61 | AD185: =VLOOKUP($U185,Output!$C:$AL,AD$179,FALSE) -> 49435.27 | AE185: =VLOOKUP($U185,Output!$C:$AL,AE$179,FALSE) -> 49426.03 | AF185: =VLOOKUP($U185,Output!$C:$AL,AF$179,FALSE) -> 49416.35 | AG185: =VLOOKUP($U185,Output!$C:$AL,AG$179,FALSE) -> 49406.65 | AH185: =VLOOKUP($U185,Output!$C:$AL,AH$179,FALSE) -> 49406.06 | AI185: =VLOOKUP($U185,Output!$C:$AL,AI$179,FALSE) -> 49404.08 | AJ185: =VLOOKUP($U185,Output!$C:$AL,AJ$179,FALSE) -> 49371.56 | AK185: =VLOOKUP($U185,Output!$C:$AL,AK$179,FALSE) -> 49342.64 | AL185: =VLOOKUP($U185,Output!$C:$AL,AL$179,FALSE) -> 49319.39 | AM185: =VLOOKUP($U185,Output!$C:$AL,AM$179,FALSE) -> 49305.65 | AN185: =VLOOKUP($U185,Output!$C:$AL,AN$179,FALSE) -> 49303.48 | AO185: =VLOOKUP($U185,Output!$C:$AL,AO$179,FALSE) -> 49302.97 | AP185: =VLOOKUP($U185,Output!$C:$AL,AP$179,FALSE) -> 49302.61 | AQ185: =VLOOKUP($U185,Output!$C:$AL,AQ$179,FALSE) -> 49302.32 | AR185: =VLOOKUP($U185,Output!$C:$AL,AR$179,FALSE) -> 49302.32 | AS185: =VLOOKUP($U185,Output!$C:$AL,AS$179,FALSE) -> 49293.54 | AT185: =VLOOKUP($U185,Output!$C:$AL,AT$179,FALSE) -> 49293.54 | AU185: =VLOOKUP($U185,Output!$C:$AL,AU$179,FALSE) -> 49293.43 | AV185: =VLOOKUP($U185,Output!$C:$AL,AV$179,FALSE) -> 49293.43 | AW185: =VLOOKUP($U185,Output!$C:$AL,AW$179,FALSE) -> 49292.52 | AX185: =VLOOKUP($U185,Output!$C:$AL,AX$179,FALSE) -> 49281.18 | AY185: =VLOOKUP($U185,Output!$C:$AL,AY$179,FALSE) -> 49270.21 | AZ185: =VLOOKUP($U185,Output!$C:$AL,AZ$179,FALSE) -> 49259.59
S186: Figure 9c | T186: Moyen | V186: =V184-V185 -> 19806.4 | W186: 19802.6 | X186: 19798.72 | Y186: 19794.91 | Z186: 19790.81 | AA186: 19786.69 | AB186: 19782.92 | AC186: 19778.65 | AD186: 19774.11 | AE186: 19770.41 | AF186: 19766.54 | AG186: 19762.66 | AH186: 19762.43 | AI186: 19761.63 | AJ186: 19748.63 | AK186: 19737.06 | AL186: 19727.76 | AM186: 19722.25 | AN186: 19721.4 | AO186: 19721.18 | AP186: 19721.04 | AQ186: 19720.93 | AR186: 19720.93 | AS186: 19717.41 | AT186: 19717.41 | AU186: 19717.37 | AV186: 19717.37 | AW186: 19717.01 | AX186: 19712.47 | AY186: 19708.09 | AZ186: 19703.84
S187: Figure 9c | T187: Élevé | V187: =$V$181-V184 -> 128741.6 | W187: 128754.9 | X187: 128768.49 | Y187: 128781.81 | Z187: 128796.15 | AA187: 128810.59 | AB187: 128823.79 | AC187: 128838.74 | AD187: 128854.62 | AE187: 128867.56 | AF187: 128881.11 | AG187: 128894.69 | AH187: 128895.51 | AI187: 128898.29 | AJ187: 128943.81 | AK187: 128984.3 | AL187: 129016.85 | AM187: 129036.1 | AN187: 129039.12 | AO187: 129039.85 | AP187: 129040.35 | AQ187: 129040.75 | AR187: 129040.75 | AS187: 129053.05 | AT187: 129053.05 | AU187: 129053.2 | AV187: 129053.2 | AW187: 129054.47 | AX187: 129070.35 | AY187: 129085.7 | AZ187: 129100.57
U199: Période | V199: P0 | W199: P1 | X199: P2 | Y199: P3 | Z199: P4 | AA199: P5 | AB199: P6 | AC199: P7 | AD199: P8 | AE199: P9 | AF199: P10 | AG199: P11 | AH199: P12 | AI199: P13 | AJ199: P14 | AK199: P15 | AL199: P16 | AM199: P17 | AN199: P18 | AO199: P19 | AP199: P20 | AQ199: P21 | AR199: P22 | AS199: P23 | AT199: P24 | AU199: P25 | AV199: P26 | AW199: P27 | AX199: P28 | AY199: P29 | AZ199: P30
U200: Axe des "X" Fin de période | V200: 2018 | W200: 2023 | X200: 2028 | Y200: 2033 | Z200: 2038 | AA200: 2043 | AB200: 2048 | AC200: 2053 | AD200: 2058 | AE200: 2063 | AF200: 2068 | AG200: 2073 | AH200: 2078 | AI200: 2083 | AJ200: 2088 | AK200: 2093 | AL200: 2098 | AM200: 2103 | AN200: 2108 | AO200: 2113 | AP200: 2118 | AQ200: 2123 | AR200: 2128 | AS200: 2133 | AT200: 2138 | AU200: 2143 | AV200: 2148 | AW200: 2153 | AX200: 2158 | AY200: 2163 | AZ200: 2168
U201: Colonne | V201: 6 | W201: 7 | X201: 8 | Y201: 9 | Z201: 10 | AA201: 11 | AB201: 12 | AC201: 13 | AD201: 14 | AE201: 15 | AF201: 16 | AG201: 17 | AH201: 18 | AI201: 19 | AJ201: 20 | AK201: 21 | AL201: 22 | AM201: 23 | AN201: 24 | AO201: 25 | AP201: 26 | AQ201: 27 | AR201: 28 | AS201: 29 | AT201: 30 | AU201: 31 | AV201: 32 | AW201: 33 | AX201: 34 | AY201: 35 | AZ201: 36
B202: Figure 10a Évolution de la superficie selon le type de couvert | S202: =LEFT(B$202,10) -> Figure 10a | U202: OSUPINC
S203: Figure 10a | U203: Résineux | V203: =SUM(V214,V220,V221,V222,V224,V225) -> 37506.2 | W203: =SUM(W214,W220,W221,W222,W224,W225) -> 37468.21 | X203: 37429.36 | Y203: 37391.31 | Z203: 37350.48 | AA203: 37309.3 | AB203: 37271.6 | AC203: 37228.86 | AD203: 37188.16 | AE203: 37153.91 | AF203: 37121.95 | AG203: 36959.53 | AH203: 36931.82 | AI203: 36903.12 | AJ203: 36775.7 | AK203: 36666.09 | AL203: 36575.95 | AM203: 36525.91 | AN203: 36517.26 | AO203: 36516.02 | AP203: 36516.02 | AQ203: 36516.02 | AR203: 36516.02 | AS203: 36480.89 | AT203: 36480.89 | AU203: 36480.89 | AV203: 36480.89 | AW203: 36477.26 | AX203: 36431.89 | AY203: 36388.04 | AZ203: 36345.56
S204: Figure 10a | U204: Mixtes résineux | V204: =V223 -> 2275 | W204: =W223 -> 2275 | X204: 2275 | Y204: 2275 | Z204: 2275 | AA204: 2275 | AB204: 2275 | AC204: 2275 | AD204: 2270.34 | AE204: 2269.52 | AF204: 2263.66 | AG204: 2387.28 | AH204: 2413.19 | AI204: 2433.97 | AJ204: 2433.97 | AK204: 2429.9 | AL204: 2429.49 | AM204: 2425.26 | AN204: 2425.26 | AO204: 2425.26 | AP204: 2424.95 | AQ204: 2424.95 | AR204: 2424.95 | AS204: 2424.95 | AT204: 2424.95 | AU204: 2424.95 | AV204: 2424.95 | AW204: 2424.95 | AX204: 2424.95 | AY204: 2424.95 | AZ204: 2424.95
S205: Figure 10a | U205: Mixtes feuillus intolérants | V205: =V213+V219 -> 323.7 | W205: =W213+W219 -> 323.7 | X205: =X213+X219 -> 323.7 | Y205: =Y213+Y219 -> 323.7 | Z205: 323.7 | AA205: 323.7 | AB205: 323.7 | AC205: 323.7 | AD205: 323.7 | AE205: 322.96 | AF205: 322.96 | AG205: 322.96 | AH205: 322.4 | AI205: 322.4 | AJ205: 322.4 | AK205: 322.4 | AL205: 322.4 | AM205: 322.4 | AN205: 322.4 | AO205: 321.58 | AP205: 320.44 | AQ205: 319.3 | AR205: 319.3 | AS205: 319.3 | AT205: 319.3 | AU205: 318.85 | AV205: 318.85 | AW205: 318.85 | AX205: 318.85 | AY205: 318.85 | AZ205: 318.85
S206: Figure 10a | U206: Mixtes feuillus tolérants | V206: =V217 -> 0 | W206: =W217 -> 0 | X206: 0 | Y206: 0 | Z206: 0 | AA206: 0 | AB206: 0 | AC206: 0 | AD206: 0 | AE206: 0 | AF206: 0 | AG206: 0 | AH206: 0 | AI206: 0 | AJ206: 0 | AK206: 0 | AL206: 0 | AM206: 0 | AN206: 0 | AO206: 0 | AP206: 0 | AQ206: 0 | AR206: 0 | AS206: 0 | AT206: 0 | AU206: 0 | AV206: 0 | AW206: 0 | AX206: 0 | AY206: 0 | AZ206: 0
S207: Figure 10a | U207: Feuillus intolérants | V207: =V212+V215+V218 -> 294.1 | W207: =W212+W215+W218 -> 294.1 | X207: =X212+X215+X218 -> 294.1 | Y207: 294.1 | Z207: 293.96 | AA207: 293.88 | AB207: 293.88 | AC207: 293.88 | AD207: 293.88 | AE207: 292.72 | AF207: 291.82 | AG207: 291.82 | AH207: 291.82 | AI207: 291.82 | AJ207: 289.18 | AK207: 287.17 | AL207: 284.74 | AM207: 284.01 | AN207: 284.01 | AO207: 284.01 | AP207: 284.01 | AQ207: 284.01 | AR207: 284.01 | AS207: 284.01 | AT207: 284.01 | AU207: 284.01 | AV207: 284.01 | AW207: 284.01 | AX207: 284.01 | AY207: 284.01 | AZ207: 284.01
S208: Figure 10a | U208: Feuillus tolérants | V208: =V216 -> 0 | W208: =W216 -> 0 | X208: 0 | Y208: 0 | Z208: 0 | AA208: 0 | AB208: 0 | AC208: 0 | AD208: 0 | AE208: 0 | AF208: 0 | AG208: 0 | AH208: 0 | AI208: 0 | AJ208: 0 | AK208: 0 | AL208: 0 | AM208: 0 | AN208: 0 | AO208: 0 | AP208: 0 | AQ208: 0 | AR208: 0 | AS208: 0 | AT208: 0 | AU208: 0 | AV208: 0 | AW208: 0 | AX208: 0 | AY208: 0 | AZ208: 0
S209: Figure 10a | U209: Total | V209: =SUM(V203:V208) -> 40399 | W209: =SUM(W203:W208) -> 40361.01 | X209: =SUM(X203:X208) -> 40322.16 | Y209: 40284.11 | Z209: 40243.14 | AA209: 40201.88 | AB209: 40164.18 | AC209: 40121.44 | AD209: 40076.08 | AE209: 40039.11 | AF209: 40000.39 | AG209: 39961.59 | AH209: 39959.23 | AI209: 39951.31 | AJ209: 39821.25 | AK209: 39705.56 | AL209: 39612.58 | AM209: 39557.58 | AN209: 39548.93 | AO209: 39546.87 | AP209: 39545.42 | AQ209: 39544.28 | AR209: 39544.28 | AS209: 39509.15 | AT209: 39509.15 | AU209: 39508.7 | AV209: 39508.7 | AW209: 39505.07 | AX209: 39459.7 | AY209: 39415.85 | AZ209: 39373.37
S210: Figure 10a
S211: Figure 10a
S212: Figure 10a | T212: Bétulaies blanches | U212: (FCTYF_BOP) | V212: =VLOOKUP($U$202&$U212,GTYF!$C:$AP,V$201,FALSE) -> 0 | W212: =VLOOKUP($U$202&$U212,GTYF!$C:$AP,W$201,FALSE) -> 0 | X212: =VLOOKUP($U$202&$U212,GTYF!$C:$AP,X$201,FALSE) -> 0 | Y212: =VLOOKUP($U$202&$U212,GTYF!$C:$AP,Y$201,FALSE) -> 0 | Z212: =VLOOKUP($U$202&$U212,GTYF!$C:$AP,Z$201,FALSE) -> 0 | AA212: =VLOOKUP($U$202&$U212,GTYF!$C:$AP,AA$201,FALSE) -> 0 | AB212: =VLOOKUP($U$202&$U212,GTYF!$C:$AP,AB$201,FALSE) -> 0 | AC212: =VLOOKUP($U$202&$U212,GTYF!$C:$AP,AC$201,FALSE) -> 0 | AD212: =VLOOKUP($U$202&$U212,GTYF!$C:$AP,AD$201,FALSE) -> 0 | AE212: =VLOOKUP($U$202&$U212,GTYF!$C:$AP,AE$201,FALSE) -> 0 | AF212: =VLOOKUP($U$202&$U212,GTYF!$C:$AP,AF$201,FALSE) -> 0 | AG212: =VLOOKUP($U$202&$U212,GTYF!$C:$AP,AG$201,FALSE) -> 0 | AH212: =VLOOKUP($U$202&$U212,GTYF!$C:$AP,AH$201,FALSE) -> 0 | AI212: =VLOOKUP($U$202&$U212,GTYF!$C:$AP,AI$201,FALSE) -> 0 | AJ212: =VLOOKUP($U$202&$U212,GTYF!$C:$AP,AJ$201,FALSE) -> 0 | AK212: =VLOOKUP($U$202&$U212,GTYF!$C:$AP,AK$201,FALSE) -> 0 | AL212: =VLOOKUP($U$202&$U212,GTYF!$C:$AP,AL$201,FALSE) -> 0 | AM212: =VLOOKUP($U$202&$U212,GTYF!$C:$AP,AM$201,FALSE) -> 0 | AN212: =VLOOKUP($U$202&$U212,GTYF!$C:$AP,AN$201,FALSE) -> 0 | AO212: =VLOOKUP($U$202&$U212,GTYF!$C:$AP,AO$201,FALSE) -> 0 | AP212: =VLOOKUP($U$202&$U212,GTYF!$C:$AP,AP$201,FALSE) -> 0 | AQ212: =VLOOKUP($U$202&$U212,GTYF!$C:$AP,AQ$201,FALSE) -> 0 | AR212: =VLOOKUP($U$202&$U212,GTYF!$C:$AP,AR$201,FALSE) -> 0 | AS212: =VLOOKUP($U$202&$U212,GTYF!$C:$AP,AS$201,FALSE) -> 0 | AT212: =VLOOKUP($U$202&$U212,GTYF!$C:$AP,AT$201,FALSE) -> 0 | AU212: =VLOOKUP($U$202&$U212,GTYF!$C:$AP,AU$201,FALSE) -> 0 | AV212: =VLOOKUP($U$202&$U212,GTYF!$C:$AP,AV$201,FALSE) -> 0 | AW212: =VLOOKUP($U$202&$U212,GTYF!$C:$AP,AW$201,FALSE) -> 0 | AX212: =VLOOKUP($U$202&$U212,GTYF!$C:$AP,AX$201,FALSE) -> 0 | AY212: =VLOOKUP($U$202&$U212,GTYF!$C:$AP,AY$201,FALSE) -> 0 | AZ212: =VLOOKUP($U$202&$U212,GTYF!$C:$AP,AZ$201,FALSE) -> 0
S213: Figure 10a | T213: Bétulaies blanches à résineux | U213: (FCTYF_BOPR) | V213: =VLOOKUP($U$202&$U213,GTYF!$C:$AP,V$201,FALSE) -> 0 | W213: =VLOOKUP($U$202&$U213,GTYF!$C:$AP,W$201,FALSE) -> 0 | X213: =VLOOKUP($U$202&$U213,GTYF!$C:$AP,X$201,FALSE) -> 0 | Y213: =VLOOKUP($U$202&$U213,GTYF!$C:$AP,Y$201,FALSE) -> 0 | Z213: =VLOOKUP($U$202&$U213,GTYF!$C:$AP,Z$201,FALSE) -> 0 | AA213: =VLOOKUP($U$202&$U213,GTYF!$C:$AP,AA$201,FALSE) -> 0 | AB213: =VLOOKUP($U$202&$U213,GTYF!$C:$AP,AB$201,FALSE) -> 0 | AC213: =VLOOKUP($U$202&$U213,GTYF!$C:$AP,AC$201,FALSE) -> 0 | AD213: =VLOOKUP($U$202&$U213,GTYF!$C:$AP,AD$201,FALSE) -> 0 | AE213: =VLOOKUP($U$202&$U213,GTYF!$C:$AP,AE$201,FALSE) -> 0 | AF213: =VLOOKUP($U$202&$U213,GTYF!$C:$AP,AF$201,FALSE) -> 0 | AG213: =VLOOKUP($U$202&$U213,GTYF!$C:$AP,AG$201,FALSE) -> 0 | AH213: =VLOOKUP($U$202&$U213,GTYF!$C:$AP,AH$201,FALSE) -> 0 | AI213: =VLOOKUP($U$202&$U213,GTYF!$C:$AP,AI$201,FALSE) -> 0 | AJ213: =VLOOKUP($U$202&$U213,GTYF!$C:$AP,AJ$201,FALSE) -> 0 | AK213: =VLOOKUP($U$202&$U213,GTYF!$C:$AP,AK$201,FALSE) -> 0 | AL213: =VLOOKUP($U$202&$U213,GTYF!$C:$AP,AL$201,FALSE) -> 0 | AM213: =VLOOKUP($U$202&$U213,GTYF!$C:$AP,AM$201,FALSE) -> 0 | AN213: =VLOOKUP($U$202&$U213,GTYF!$C:$AP,AN$201,FALSE) -> 0 | AO213: =VLOOKUP($U$202&$U213,GTYF!$C:$AP,AO$201,FALSE) -> 0 | AP213: =VLOOKUP($U$202&$U213,GTYF!$C:$AP,AP$201,FALSE) -> 0 | AQ213: =VLOOKUP($U$202&$U213,GTYF!$C:$AP,AQ$201,FALSE) -> 0 | AR213: =VLOOKUP($U$202&$U213,GTYF!$C:$AP,AR$201,FALSE) -> 0 | AS213: =VLOOKUP($U$202&$U213,GTYF!$C:$AP,AS$201,FALSE) -> 0 | AT213: =VLOOKUP($U$202&$U213,GTYF!$C:$AP,AT$201,FALSE) -> 0 | AU213: =VLOOKUP($U$202&$U213,GTYF!$C:$AP,AU$201,FALSE) -> 0 | AV213: =VLOOKUP($U$202&$U213,GTYF!$C:$AP,AV$201,FALSE) -> 0 | AW213: =VLOOKUP($U$202&$U213,GTYF!$C:$AP,AW$201,FALSE) -> 0 | AX213: =VLOOKUP($U$202&$U213,GTYF!$C:$AP,AX$201,FALSE) -> 0 | AY213: =VLOOKUP($U$202&$U213,GTYF!$C:$AP,AY$201,FALSE) -> 0 | AZ213: =VLOOKUP($U$202&$U213,GTYF!$C:$AP,AZ$201,FALSE) -> 0
S214: Figure 10a | T214: Pessières | U214: (FCTYF_EPX) | V214: =VLOOKUP($U$202&$U214,GTYF!$C:$AP,V$201,FALSE) -> 35828.9 | W214: =VLOOKUP($U$202&$U214,GTYF!$C:$AP,W$201,FALSE) -> 35797.55 | X214: =VLOOKUP($U$202&$U214,GTYF!$C:$AP,X$201,FALSE) -> 35765.33 | Y214: =VLOOKUP($U$202&$U214,GTYF!$C:$AP,Y$201,FALSE) -> 35727.28 | Z214: =VLOOKUP($U$202&$U214,GTYF!$C:$AP,Z$201,FALSE) -> 35691.27 | AA214: =VLOOKUP($U$202&$U214,GTYF!$C:$AP,AA$201,FALSE) -> 35656.73 | AB214: =VLOOKUP($U$202&$U214,GTYF!$C:$AP,AB$201,FALSE) -> 35625.66 | AC214: =VLOOKUP($U$202&$U214,GTYF!$C:$AP,AC$201,FALSE) -> 35589.56 | AD214: =VLOOKUP($U$202&$U214,GTYF!$C:$AP,AD$201,FALSE) -> 35555.49 | AE214: =VLOOKUP($U$202&$U214,GTYF!$C:$AP,AE$201,FALSE) -> 35526.26 | AF214: =VLOOKUP($U$202&$U214,GTYF!$C:$AP,AF$201,FALSE) -> 35499.53 | AG214: =VLOOKUP($U$202&$U214,GTYF!$C:$AP,AG$201,FALSE) -> 35343.75 | AH214: =VLOOKUP($U$202&$U214,GTYF!$C:$AP,AH$201,FALSE) -> 35316.04 | AI214: =VLOOKUP($U$202&$U214,GTYF!$C:$AP,AI$201,FALSE) -> 35287.34 | AJ214: =VLOOKUP($U$202&$U214,GTYF!$C:$AP,AJ$201,FALSE) -> 35163.92 | AK214: =VLOOKUP($U$202&$U214,GTYF!$C:$AP,AK$201,FALSE) -> 35055.82 | AL214: =VLOOKUP($U$202&$U214,GTYF!$C:$AP,AL$201,FALSE) -> 34972.31 | AM214: =VLOOKUP($U$202&$U214,GTYF!$C:$AP,AM$201,FALSE) -> 34924.09 | AN214: =VLOOKUP($U$202&$U214,GTYF!$C:$AP,AN$201,FALSE) -> 34915.44 | AO214: =VLOOKUP($U$202&$U214,GTYF!$C:$AP,AO$201,FALSE) -> 34914.2 | AP214: =VLOOKUP($U$202&$U214,GTYF!$C:$AP,AP$201,FALSE) -> 34914.2 | AQ214: =VLOOKUP($U$202&$U214,GTYF!$C:$AP,AQ$201,FALSE) -> 34914.2 | AR214: =VLOOKUP($U$202&$U214,GTYF!$C:$AP,AR$201,FALSE) -> 34914.2 | AS214: =VLOOKUP($U$202&$U214,GTYF!$C:$AP,AS$201,FALSE) -> 34879.07 | AT214: =VLOOKUP($U$202&$U214,GTYF!$C:$AP,AT$201,FALSE) -> 34879.07 | AU214: =VLOOKUP($U$202&$U214,GTYF!$C:$AP,AU$201,FALSE) -> 34879.07 | AV214: =VLOOKUP($U$202&$U214,GTYF!$C:$AP,AV$201,FALSE) -> 34879.07 | AW214: =VLOOKUP($U$202&$U214,GTYF!$C:$AP,AW$201,FALSE) -> 34875.44 | AX214: =VLOOKUP($U$202&$U214,GTYF!$C:$AP,AX$201,FALSE) -> 34830.07 | AY214: =VLOOKUP($U$202&$U214,GTYF!$C:$AP,AY$201,FALSE) -> 34786.22 | AZ214: =VLOOKUP($U$202&$U214,GTYF!$C:$AP,AZ$201,FALSE) -> 34743.74
S215: Figure 10a | T215: Érablières rouges | U215: (FCTYF_ERO) | V215: =VLOOKUP($U$202&$U215,GTYF!$C:$AP,V$201,FALSE) -> 0 | W215: =VLOOKUP($U$202&$U215,GTYF!$C:$AP,W$201,FALSE) -> 0 | X215: =VLOOKUP($U$202&$U215,GTYF!$C:$AP,X$201,FALSE) -> 0 | Y215: =VLOOKUP($U$202&$U215,GTYF!$C:$AP,Y$201,FALSE) -> 0 | Z215: =VLOOKUP($U$202&$U215,GTYF!$C:$AP,Z$201,FALSE) -> 0 | AA215: =VLOOKUP($U$202&$U215,GTYF!$C:$AP,AA$201,FALSE) -> 0 | AB215: =VLOOKUP($U$202&$U215,GTYF!$C:$AP,AB$201,FALSE) -> 0 | AC215: =VLOOKUP($U$202&$U215,GTYF!$C:$AP,AC$201,FALSE) -> 0 | AD215: =VLOOKUP($U$202&$U215,GTYF!$C:$AP,AD$201,FALSE) -> 0 | AE215: =VLOOKUP($U$202&$U215,GTYF!$C:$AP,AE$201,FALSE) -> 0 | AF215: =VLOOKUP($U$202&$U215,GTYF!$C:$AP,AF$201,FALSE) -> 0 | AG215: =VLOOKUP($U$202&$U215,GTYF!$C:$AP,AG$201,FALSE) -> 0 | AH215: =VLOOKUP($U$202&$U215,GTYF!$C:$AP,AH$201,FALSE) -> 0 | AI215: =VLOOKUP($U$202&$U215,GTYF!$C:$AP,AI$201,FALSE) -> 0 | AJ215: =VLOOKUP($U$202&$U215,GTYF!$C:$AP,AJ$201,FALSE) -> 0 | AK215: =VLOOKUP($U$202&$U215,GTYF!$C:$AP,AK$201,FALSE) -> 0 | AL215: =VLOOKUP($U$202&$U215,GTYF!$C:$AP,AL$201,FALSE) -> 0 | AM215: =VLOOKUP($U$202&$U215,GTYF!$C:$AP,AM$201,FALSE) -> 0 | AN215: =VLOOKUP($U$202&$U215,GTYF!$C:$AP,AN$201,FALSE) -> 0 | AO215: =VLOOKUP($U$202&$U215,GTYF!$C:$AP,AO$201,FALSE) -> 0 | AP215: =VLOOKUP($U$202&$U215,GTYF!$C:$AP,AP$201,FALSE) -> 0 | AQ215: =VLOOKUP($U$202&$U215,GTYF!$C:$AP,AQ$201,FALSE) -> 0 | AR215: =VLOOKUP($U$202&$U215,GTYF!$C:$AP,AR$201,FALSE) -> 0 | AS215: =VLOOKUP($U$202&$U215,GTYF!$C:$AP,AS$201,FALSE) -> 0 | AT215: =VLOOKUP($U$202&$U215,GTYF!$C:$AP,AT$201,FALSE) -> 0 | AU215: =VLOOKUP($U$202&$U215,GTYF!$C:$AP,AU$201,FALSE) -> 0 | AV215: =VLOOKUP($U$202&$U215,GTYF!$C:$AP,AV$201,FALSE) -> 0 | AW215: =VLOOKUP($U$202&$U215,GTYF!$C:$AP,AW$201,FALSE) -> 0 | AX215: =VLOOKUP($U$202&$U215,GTYF!$C:$AP,AX$201,FALSE) -> 0 | AY215: =VLOOKUP($U$202&$U215,GTYF!$C:$AP,AY$201,FALSE) -> 0 | AZ215: =VLOOKUP($U$202&$U215,GTYF!$C:$AP,AZ$201,FALSE) -> 0
S216: Figure 10a | T216: Feuillus tolérants | U216: (FCTYF_FT) | V216: =VLOOKUP($U$202&$U216,GTYF!$C:$AP,V$201,FALSE) -> 0 | W216: =VLOOKUP($U$202&$U216,GTYF!$C:$AP,W$201,FALSE) -> 0 | X216: =VLOOKUP($U$202&$U216,GTYF!$C:$AP,X$201,FALSE) -> 0 | Y216: =VLOOKUP($U$202&$U216,GTYF!$C:$AP,Y$201,FALSE) -> 0 | Z216: =VLOOKUP($U$202&$U216,GTYF!$C:$AP,Z$201,FALSE) -> 0 | AA216: =VLOOKUP($U$202&$U216,GTYF!$C:$AP,AA$201,FALSE) -> 0 | AB216: =VLOOKUP($U$202&$U216,GTYF!$C:$AP,AB$201,FALSE) -> 0 | AC216: =VLOOKUP($U$202&$U216,GTYF!$C:$AP,AC$201,FALSE) -> 0 | AD216: =VLOOKUP($U$202&$U216,GTYF!$C:$AP,AD$201,FALSE) -> 0 | AE216: =VLOOKUP($U$202&$U216,GTYF!$C:$AP,AE$201,FALSE) -> 0 | AF216: =VLOOKUP($U$202&$U216,GTYF!$C:$AP,AF$201,FALSE) -> 0 | AG216: =VLOOKUP($U$202&$U216,GTYF!$C:$AP,AG$201,FALSE) -> 0 | AH216: =VLOOKUP($U$202&$U216,GTYF!$C:$AP,AH$201,FALSE) -> 0 | AI216: =VLOOKUP($U$202&$U216,GTYF!$C:$AP,AI$201,FALSE) -> 0 | AJ216: =VLOOKUP($U$202&$U216,GTYF!$C:$AP,AJ$201,FALSE) -> 0 | AK216: =VLOOKUP($U$202&$U216,GTYF!$C:$AP,AK$201,FALSE) -> 0 | AL216: =VLOOKUP($U$202&$U216,GTYF!$C:$AP,AL$201,FALSE) -> 0 | AM216: =VLOOKUP($U$202&$U216,GTYF!$C:$AP,AM$201,FALSE) -> 0 | AN216: =VLOOKUP($U$202&$U216,GTYF!$C:$AP,AN$201,FALSE) -> 0 | AO216: =VLOOKUP($U$202&$U216,GTYF!$C:$AP,AO$201,FALSE) -> 0 | AP216: =VLOOKUP($U$202&$U216,GTYF!$C:$AP,AP$201,FALSE) -> 0 | AQ216: =VLOOKUP($U$202&$U216,GTYF!$C:$AP,AQ$201,FALSE) -> 0 | AR216: =VLOOKUP($U$202&$U216,GTYF!$C:$AP,AR$201,FALSE) -> 0 | AS216: =VLOOKUP($U$202&$U216,GTYF!$C:$AP,AS$201,FALSE) -> 0 | AT216: =VLOOKUP($U$202&$U216,GTYF!$C:$AP,AT$201,FALSE) -> 0 | AU216: =VLOOKUP($U$202&$U216,GTYF!$C:$AP,AU$201,FALSE) -> 0 | AV216: =VLOOKUP($U$202&$U216,GTYF!$C:$AP,AV$201,FALSE) -> 0 | AW216: =VLOOKUP($U$202&$U216,GTYF!$C:$AP,AW$201,FALSE) -> 0 | AX216: =VLOOKUP($U$202&$U216,GTYF!$C:$AP,AX$201,FALSE) -> 0 | AY216: =VLOOKUP($U$202&$U216,GTYF!$C:$AP,AY$201,FALSE) -> 0 | AZ216: =VLOOKUP($U$202&$U216,GTYF!$C:$AP,AZ$201,FALSE) -> 0
S217: Figure 10a | T217: Feuillus tolérants à résineux | U217: (FCTYF_FTR) | V217: =VLOOKUP($U$202&$U217,GTYF!$C:$AP,V$201,FALSE) -> 0 | W217: =VLOOKUP($U$202&$U217,GTYF!$C:$AP,W$201,FALSE) -> 0 | X217: =VLOOKUP($U$202&$U217,GTYF!$C:$AP,X$201,FALSE) -> 0 | Y217: =VLOOKUP($U$202&$U217,GTYF!$C:$AP,Y$201,FALSE) -> 0 | Z217: =VLOOKUP($U$202&$U217,GTYF!$C:$AP,Z$201,FALSE) -> 0 | AA217: =VLOOKUP($U$202&$U217,GTYF!$C:$AP,AA$201,FALSE) -> 0 | AB217: =VLOOKUP($U$202&$U217,GTYF!$C:$AP,AB$201,FALSE) -> 0 | AC217: =VLOOKUP($U$202&$U217,GTYF!$C:$AP,AC$201,FALSE) -> 0 | AD217: =VLOOKUP($U$202&$U217,GTYF!$C:$AP,AD$201,FALSE) -> 0 | AE217: =VLOOKUP($U$202&$U217,GTYF!$C:$AP,AE$201,FALSE) -> 0 | AF217: =VLOOKUP($U$202&$U217,GTYF!$C:$AP,AF$201,FALSE) -> 0 | AG217: =VLOOKUP($U$202&$U217,GTYF!$C:$AP,AG$201,FALSE) -> 0 | AH217: =VLOOKUP($U$202&$U217,GTYF!$C:$AP,AH$201,FALSE) -> 0 | AI217: =VLOOKUP($U$202&$U217,GTYF!$C:$AP,AI$201,FALSE) -> 0 | AJ217: =VLOOKUP($U$202&$U217,GTYF!$C:$AP,AJ$201,FALSE) -> 0 | AK217: =VLOOKUP($U$202&$U217,GTYF!$C:$AP,AK$201,FALSE) -> 0 | AL217: =VLOOKUP($U$202&$U217,GTYF!$C:$AP,AL$201,FALSE) -> 0 | AM217: =VLOOKUP($U$202&$U217,GTYF!$C:$AP,AM$201,FALSE) -> 0 | AN217: =VLOOKUP($U$202&$U217,GTYF!$C:$AP,AN$201,FALSE) -> 0 | AO217: =VLOOKUP($U$202&$U217,GTYF!$C:$AP,AO$201,FALSE) -> 0 | AP217: =VLOOKUP($U$202&$U217,GTYF!$C:$AP,AP$201,FALSE) -> 0 | AQ217: =VLOOKUP($U$202&$U217,GTYF!$C:$AP,AQ$201,FALSE) -> 0 | AR217: =VLOOKUP($U$202&$U217,GTYF!$C:$AP,AR$201,FALSE) -> 0 | AS217: =VLOOKUP($U$202&$U217,GTYF!$C:$AP,AS$201,FALSE) -> 0 | AT217: =VLOOKUP($U$202&$U217,GTYF!$C:$AP,AT$201,FALSE) -> 0 | AU217: =VLOOKUP($U$202&$U217,GTYF!$C:$AP,AU$201,FALSE) -> 0 | AV217: =VLOOKUP($U$202&$U217,GTYF!$C:$AP,AV$201,FALSE) -> 0 | AW217: =VLOOKUP($U$202&$U217,GTYF!$C:$AP,AW$201,FALSE) -> 0 | AX217: =VLOOKUP($U$202&$U217,GTYF!$C:$AP,AX$201,FALSE) -> 0 | AY217: =VLOOKUP($U$202&$U217,GTYF!$C:$AP,AY$201,FALSE) -> 0 | AZ217: =VLOOKUP($U$202&$U217,GTYF!$C:$AP,AZ$201,FALSE) -> 0
S218: Figure 10a | T218: Peupleraies | U218: (FCTYF_PEU) | V218: =VLOOKUP($U$202&$U218,GTYF!$C:$AP,V$201,FALSE) -> 294.1 | W218: =VLOOKUP($U$202&$U218,GTYF!$C:$AP,W$201,FALSE) -> 294.1 | X218: =VLOOKUP($U$202&$U218,GTYF!$C:$AP,X$201,FALSE) -> 294.1 | Y218: =VLOOKUP($U$202&$U218,GTYF!$C:$AP,Y$201,FALSE) -> 294.1 | Z218: =VLOOKUP($U$202&$U218,GTYF!$C:$AP,Z$201,FALSE) -> 293.96 | AA218: =VLOOKUP($U$202&$U218,GTYF!$C:$AP,AA$201,FALSE) -> 293.88 | AB218: =VLOOKUP($U$202&$U218,GTYF!$C:$AP,AB$201,FALSE) -> 293.88 | AC218: =VLOOKUP($U$202&$U218,GTYF!$C:$AP,AC$201,FALSE) -> 293.88 | AD218: =VLOOKUP($U$202&$U218,GTYF!$C:$AP,AD$201,FALSE) -> 293.88 | AE218: =VLOOKUP($U$202&$U218,GTYF!$C:$AP,AE$201,FALSE) -> 292.72 | AF218: =VLOOKUP($U$202&$U218,GTYF!$C:$AP,AF$201,FALSE) -> 291.82 | AG218: =VLOOKUP($U$202&$U218,GTYF!$C:$AP,AG$201,FALSE) -> 291.82 | AH218: =VLOOKUP($U$202&$U218,GTYF!$C:$AP,AH$201,FALSE) -> 291.82 | AI218: =VLOOKUP($U$202&$U218,GTYF!$C:$AP,AI$201,FALSE) -> 291.82 | AJ218: =VLOOKUP($U$202&$U218,GTYF!$C:$AP,AJ$201,FALSE) -> 289.18 | AK218: =VLOOKUP($U$202&$U218,GTYF!$C:$AP,AK$201,FALSE) -> 287.17 | AL218: =VLOOKUP($U$202&$U218,GTYF!$C:$AP,AL$201,FALSE) -> 284.74 | AM218: =VLOOKUP($U$202&$U218,GTYF!$C:$AP,AM$201,FALSE) -> 284.01 | AN218: =VLOOKUP($U$202&$U218,GTYF!$C:$AP,AN$201,FALSE) -> 284.01 | AO218: =VLOOKUP($U$202&$U218,GTYF!$C:$AP,AO$201,FALSE) -> 284.01 | AP218: =VLOOKUP($U$202&$U218,GTYF!$C:$AP,AP$201,FALSE) -> 284.01 | AQ218: =VLOOKUP($U$202&$U218,GTYF!$C:$AP,AQ$201,FALSE) -> 284.01 | AR218: =VLOOKUP($U$202&$U218,GTYF!$C:$AP,AR$201,FALSE) -> 284.01 | AS218: =VLOOKUP($U$202&$U218,GTYF!$C:$AP,AS$201,FALSE) -> 284.01 | AT218: =VLOOKUP($U$202&$U218,GTYF!$C:$AP,AT$201,FALSE) -> 284.01 | AU218: =VLOOKUP($U$202&$U218,GTYF!$C:$AP,AU$201,FALSE) -> 284.01 | AV218: =VLOOKUP($U$202&$U218,GTYF!$C:$AP,AV$201,FALSE) -> 284.01 | AW218: =VLOOKUP($U$202&$U218,GTYF!$C:$AP,AW$201,FALSE) -> 284.01 | AX218: =VLOOKUP($U$202&$U218,GTYF!$C:$AP,AX$201,FALSE) -> 284.01 | AY218: =VLOOKUP($U$202&$U218,GTYF!$C:$AP,AY$201,FALSE) -> 284.01 | AZ218: =VLOOKUP($U$202&$U218,GTYF!$C:$AP,AZ$201,FALSE) -> 284.01
S219: Figure 10a | T219: Peupleraies à résineux | U219: (FCTYF_PEUR) | V219: =VLOOKUP($U$202&$U219,GTYF!$C:$AP,V$201,FALSE) -> 323.7 | W219: =VLOOKUP($U$202&$U219,GTYF!$C:$AP,W$201,FALSE) -> 323.7 | X219: =VLOOKUP($U$202&$U219,GTYF!$C:$AP,X$201,FALSE) -> 323.7 | Y219: =VLOOKUP($U$202&$U219,GTYF!$C:$AP,Y$201,FALSE) -> 323.7 | Z219: =VLOOKUP($U$202&$U219,GTYF!$C:$AP,Z$201,FALSE) -> 323.7 | AA219: =VLOOKUP($U$202&$U219,GTYF!$C:$AP,AA$201,FALSE) -> 323.7 | AB219: =VLOOKUP($U$202&$U219,GTYF!$C:$AP,AB$201,FALSE) -> 323.7 | AC219: =VLOOKUP($U$202&$U219,GTYF!$C:$AP,AC$201,FALSE) -> 323.7 | AD219: =VLOOKUP($U$202&$U219,GTYF!$C:$AP,AD$201,FALSE) -> 323.7 | AE219: =VLOOKUP($U$202&$U219,GTYF!$C:$AP,AE$201,FALSE) -> 322.96 | AF219: =VLOOKUP($U$202&$U219,GTYF!$C:$AP,AF$201,FALSE) -> 322.96 | AG219: =VLOOKUP($U$202&$U219,GTYF!$C:$AP,AG$201,FALSE) -> 322.96 | AH219: =VLOOKUP($U$202&$U219,GTYF!$C:$AP,AH$201,FALSE) -> 322.4 | AI219: =VLOOKUP($U$202&$U219,GTYF!$C:$AP,AI$201,FALSE) -> 322.4 | AJ219: =VLOOKUP($U$202&$U219,GTYF!$C:$AP,AJ$201,FALSE) -> 322.4 | AK219: =VLOOKUP($U$202&$U219,GTYF!$C:$AP,AK$201,FALSE) -> 322.4 | AL219: =VLOOKUP($U$202&$U219,GTYF!$C:$AP,AL$201,FALSE) -> 322.4 | AM219: =VLOOKUP($U$202&$U219,GTYF!$C:$AP,AM$201,FALSE) -> 322.4 | AN219: =VLOOKUP($U$202&$U219,GTYF!$C:$AP,AN$201,FALSE) -> 322.4 | AO219: =VLOOKUP($U$202&$U219,GTYF!$C:$AP,AO$201,FALSE) -> 321.58 | AP219: =VLOOKUP($U$202&$U219,GTYF!$C:$AP,AP$201,FALSE) -> 320.44 | AQ219: =VLOOKUP($U$202&$U219,GTYF!$C:$AP,AQ$201,FALSE) -> 319.3 | AR219: =VLOOKUP($U$202&$U219,GTYF!$C:$AP,AR$201,FALSE) -> 319.3 | AS219: =VLOOKUP($U$202&$U219,GTYF!$C:$AP,AS$201,FALSE) -> 319.3 | AT219: =VLOOKUP($U$202&$U219,GTYF!$C:$AP,AT$201,FALSE) -> 319.3 | AU219: =VLOOKUP($U$202&$U219,GTYF!$C:$AP,AU$201,FALSE) -> 318.85 | AV219: =VLOOKUP($U$202&$U219,GTYF!$C:$AP,AV$201,FALSE) -> 318.85 | AW219: =VLOOKUP($U$202&$U219,GTYF!$C:$AP,AW$201,FALSE) -> 318.85 | AX219: =VLOOKUP($U$202&$U219,GTYF!$C:$AP,AX$201,FALSE) -> 318.85 | AY219: =VLOOKUP($U$202&$U219,GTYF!$C:$AP,AY$201,FALSE) -> 318.85 | AZ219: =VLOOKUP($U$202&$U219,GTYF!$C:$AP,AZ$201,FALSE) -> 318.85
S220: Figure 10a | T220: Pinèdes grises | U220: (FCTYF_PIG) | V220: =VLOOKUP($U$202&$U220,GTYF!$C:$AP,V$201,FALSE) -> 1677.3 | W220: =VLOOKUP($U$202&$U220,GTYF!$C:$AP,W$201,FALSE) -> 1670.66 | X220: =VLOOKUP($U$202&$U220,GTYF!$C:$AP,X$201,FALSE) -> 1664.03 | Y220: =VLOOKUP($U$202&$U220,GTYF!$C:$AP,Y$201,FALSE) -> 1664.03 | Z220: =VLOOKUP($U$202&$U220,GTYF!$C:$AP,Z$201,FALSE) -> 1659.21 | AA220: =VLOOKUP($U$202&$U220,GTYF!$C:$AP,AA$201,FALSE) -> 1652.57 | AB220: =VLOOKUP($U$202&$U220,GTYF!$C:$AP,AB$201,FALSE) -> 1645.94 | AC220: =VLOOKUP($U$202&$U220,GTYF!$C:$AP,AC$201,FALSE) -> 1639.3 | AD220: =VLOOKUP($U$202&$U220,GTYF!$C:$AP,AD$201,FALSE) -> 1632.67 | AE220: =VLOOKUP($U$202&$U220,GTYF!$C:$AP,AE$201,FALSE) -> 1627.65 | AF220: =VLOOKUP($U$202&$U220,GTYF!$C:$AP,AF$201,FALSE) -> 1622.42 | AG220: =VLOOKUP($U$202&$U220,GTYF!$C:$AP,AG$201,FALSE) -> 1615.78 | AH220: =VLOOKUP($U$202&$U220,GTYF!$C:$AP,AH$201,FALSE) -> 1615.78 | AI220: =VLOOKUP($U$202&$U220,GTYF!$C:$AP,AI$201,FALSE) -> 1615.78 | AJ220: =VLOOKUP($U$202&$U220,GTYF!$C:$AP,AJ$201,FALSE) -> 1611.78 | AK220: =VLOOKUP($U$202&$U220,GTYF!$C:$AP,AK$201,FALSE) -> 1610.27 | AL220: =VLOOKUP($U$202&$U220,GTYF!$C:$AP,AL$201,FALSE) -> 1603.64 | AM220: =VLOOKUP($U$202&$U220,GTYF!$C:$AP,AM$201,FALSE) -> 1601.82 | AN220: =VLOOKUP($U$202&$U220,GTYF!$C:$AP,AN$201,FALSE) -> 1601.82 | AO220: =VLOOKUP($U$202&$U220,GTYF!$C:$AP,AO$201,FALSE) -> 1601.82 | AP220: =VLOOKUP($U$202&$U220,GTYF!$C:$AP,AP$201,FALSE) -> 1601.82 | AQ220: =VLOOKUP($U$202&$U220,GTYF!$C:$AP,AQ$201,FALSE) -> 1601.82 | AR220: =VLOOKUP($U$202&$U220,GTYF!$C:$AP,AR$201,FALSE) -> 1601.82 | AS220: =VLOOKUP($U$202&$U220,GTYF!$C:$AP,AS$201,FALSE) -> 1601.82 | AT220: =VLOOKUP($U$202&$U220,GTYF!$C:$AP,AT$201,FALSE) -> 1601.82 | AU220: =VLOOKUP($U$202&$U220,GTYF!$C:$AP,AU$201,FALSE) -> 1601.82 | AV220: =VLOOKUP($U$202&$U220,GTYF!$C:$AP,AV$201,FALSE) -> 1601.82 | AW220: =VLOOKUP($U$202&$U220,GTYF!$C:$AP,AW$201,FALSE) -> 1601.82 | AX220: =VLOOKUP($U$202&$U220,GTYF!$C:$AP,AX$201,FALSE) -> 1601.82 | AY220: =VLOOKUP($U$202&$U220,GTYF!$C:$AP,AY$201,FALSE) -> 1601.82 | AZ220: =VLOOKUP($U$202&$U220,GTYF!$C:$AP,AZ$201,FALSE) -> 1601.82
S221: Figure 10a | T221: Pinèdes blanches | U221: (FCTYF_PIN) | V221: =VLOOKUP($U$202&$U221,GTYF!$C:$AP,V$201,FALSE) -> 0 | W221: =VLOOKUP($U$202&$U221,GTYF!$C:$AP,W$201,FALSE) -> 0 | X221: =VLOOKUP($U$202&$U221,GTYF!$C:$AP,X$201,FALSE) -> 0 | Y221: =VLOOKUP($U$202&$U221,GTYF!$C:$AP,Y$201,FALSE) -> 0 | Z221: =VLOOKUP($U$202&$U221,GTYF!$C:$AP,Z$201,FALSE) -> 0 | AA221: =VLOOKUP($U$202&$U221,GTYF!$C:$AP,AA$201,FALSE) -> 0 | AB221: =VLOOKUP($U$202&$U221,GTYF!$C:$AP,AB$201,FALSE) -> 0 | AC221: =VLOOKUP($U$202&$U221,GTYF!$C:$AP,AC$201,FALSE) -> 0 | AD221: =VLOOKUP($U$202&$U221,GTYF!$C:$AP,AD$201,FALSE) -> 0 | AE221: =VLOOKUP($U$202&$U221,GTYF!$C:$AP,AE$201,FALSE) -> 0 | AF221: =VLOOKUP($U$202&$U221,GTYF!$C:$AP,AF$201,FALSE) -> 0 | AG221: =VLOOKUP($U$202&$U221,GTYF!$C:$AP,AG$201,FALSE) -> 0 | AH221: =VLOOKUP($U$202&$U221,GTYF!$C:$AP,AH$201,FALSE) -> 0 | AI221: =VLOOKUP($U$202&$U221,GTYF!$C:$AP,AI$201,FALSE) -> 0 | AJ221: =VLOOKUP($U$202&$U221,GTYF!$C:$AP,AJ$201,FALSE) -> 0 | AK221: =VLOOKUP($U$202&$U221,GTYF!$C:$AP,AK$201,FALSE) -> 0 | AL221: =VLOOKUP($U$202&$U221,GTYF!$C:$AP,AL$201,FALSE) -> 0 | AM221: =VLOOKUP($U$202&$U221,GTYF!$C:$AP,AM$201,FALSE) -> 0 | AN221: =VLOOKUP($U$202&$U221,GTYF!$C:$AP,AN$201,FALSE) -> 0 | AO221: =VLOOKUP($U$202&$U221,GTYF!$C:$AP,AO$201,FALSE) -> 0 | AP221: =VLOOKUP($U$202&$U221,GTYF!$C:$AP,AP$201,FALSE) -> 0 | AQ221: =VLOOKUP($U$202&$U221,GTYF!$C:$AP,AQ$201,FALSE) -> 0 | AR221: =VLOOKUP($U$202&$U221,GTYF!$C:$AP,AR$201,FALSE) -> 0 | AS221: =VLOOKUP($U$202&$U221,GTYF!$C:$AP,AS$201,FALSE) -> 0 | AT221: =VLOOKUP($U$202&$U221,GTYF!$C:$AP,AT$201,FALSE) -> 0 | AU221: =VLOOKUP($U$202&$U221,GTYF!$C:$AP,AU$201,FALSE) -> 0 | AV221: =VLOOKUP($U$202&$U221,GTYF!$C:$AP,AV$201,FALSE) -> 0 | AW221: =VLOOKUP($U$202&$U221,GTYF!$C:$AP,AW$201,FALSE) -> 0 | AX221: =VLOOKUP($U$202&$U221,GTYF!$C:$AP,AX$201,FALSE) -> 0 | AY221: =VLOOKUP($U$202&$U221,GTYF!$C:$AP,AY$201,FALSE) -> 0 | AZ221: =VLOOKUP($U$202&$U221,GTYF!$C:$AP,AZ$201,FALSE) -> 0
S222: Figure 10a | T222: Prucheraies | U222: (FCTYF_PRU) | V222: =VLOOKUP($U$202&$U222,GTYF!$C:$AP,V$201,FALSE) -> 0 | W222: =VLOOKUP($U$202&$U222,GTYF!$C:$AP,W$201,FALSE) -> 0 | X222: =VLOOKUP($U$202&$U222,GTYF!$C:$AP,X$201,FALSE) -> 0 | Y222: =VLOOKUP($U$202&$U222,GTYF!$C:$AP,Y$201,FALSE) -> 0 | Z222: =VLOOKUP($U$202&$U222,GTYF!$C:$AP,Z$201,FALSE) -> 0 | AA222: =VLOOKUP($U$202&$U222,GTYF!$C:$AP,AA$201,FALSE) -> 0 | AB222: =VLOOKUP($U$202&$U222,GTYF!$C:$AP,AB$201,FALSE) -> 0 | AC222: =VLOOKUP($U$202&$U222,GTYF!$C:$AP,AC$201,FALSE) -> 0 | AD222: =VLOOKUP($U$202&$U222,GTYF!$C:$AP,AD$201,FALSE) -> 0 | AE222: =VLOOKUP($U$202&$U222,GTYF!$C:$AP,AE$201,FALSE) -> 0 | AF222: =VLOOKUP($U$202&$U222,GTYF!$C:$AP,AF$201,FALSE) -> 0 | AG222: =VLOOKUP($U$202&$U222,GTYF!$C:$AP,AG$201,FALSE) -> 0 | AH222: =VLOOKUP($U$202&$U222,GTYF!$C:$AP,AH$201,FALSE) -> 0 | AI222: =VLOOKUP($U$202&$U222,GTYF!$C:$AP,AI$201,FALSE) -> 0 | AJ222: =VLOOKUP($U$202&$U222,GTYF!$C:$AP,AJ$201,FALSE) -> 0 | AK222: =VLOOKUP($U$202&$U222,GTYF!$C:$AP,AK$201,FALSE) -> 0 | AL222: =VLOOKUP($U$202&$U222,GTYF!$C:$AP,AL$201,FALSE) -> 0 | AM222: =VLOOKUP($U$202&$U222,GTYF!$C:$AP,AM$201,FALSE) -> 0 | AN222: =VLOOKUP($U$202&$U222,GTYF!$C:$AP,AN$201,FALSE) -> 0 | AO222: =VLOOKUP($U$202&$U222,GTYF!$C:$AP,AO$201,FALSE) -> 0 | AP222: =VLOOKUP($U$202&$U222,GTYF!$C:$AP,AP$201,FALSE) -> 0 | AQ222: =VLOOKUP($U$202&$U222,GTYF!$C:$AP,AQ$201,FALSE) -> 0 | AR222: =VLOOKUP($U$202&$U222,GTYF!$C:$AP,AR$201,FALSE) -> 0 | AS222: =VLOOKUP($U$202&$U222,GTYF!$C:$AP,AS$201,FALSE) -> 0 | AT222: =VLOOKUP($U$202&$U222,GTYF!$C:$AP,AT$201,FALSE) -> 0 | AU222: =VLOOKUP($U$202&$U222,GTYF!$C:$AP,AU$201,FALSE) -> 0 | AV222: =VLOOKUP($U$202&$U222,GTYF!$C:$AP,AV$201,FALSE) -> 0 | AW222: =VLOOKUP($U$202&$U222,GTYF!$C:$AP,AW$201,FALSE) -> 0 | AX222: =VLOOKUP($U$202&$U222,GTYF!$C:$AP,AX$201,FALSE) -> 0 | AY222: =VLOOKUP($U$202&$U222,GTYF!$C:$AP,AY$201,FALSE) -> 0 | AZ222: =VLOOKUP($U$202&$U222,GTYF!$C:$AP,AZ$201,FALSE) -> 0
S223: Figure 10a | T223: Résineux à feuillus | U223: (FCTYF_RF) | V223: =VLOOKUP($U$202&$U223,GTYF!$C:$AP,V$201,FALSE) -> 2275 | W223: =VLOOKUP($U$202&$U223,GTYF!$C:$AP,W$201,FALSE) -> 2275 | X223: =VLOOKUP($U$202&$U223,GTYF!$C:$AP,X$201,FALSE) -> 2275 | Y223: =VLOOKUP($U$202&$U223,GTYF!$C:$AP,Y$201,FALSE) -> 2275 | Z223: =VLOOKUP($U$202&$U223,GTYF!$C:$AP,Z$201,FALSE) -> 2275 | AA223: =VLOOKUP($U$202&$U223,GTYF!$C:$AP,AA$201,FALSE) -> 2275 | AB223: =VLOOKUP($U$202&$U223,GTYF!$C:$AP,AB$201,FALSE) -> 2275 | AC223: =VLOOKUP($U$202&$U223,GTYF!$C:$AP,AC$201,FALSE) -> 2275 | AD223: =VLOOKUP($U$202&$U223,GTYF!$C:$AP,AD$201,FALSE) -> 2270.34 | AE223: =VLOOKUP($U$202&$U223,GTYF!$C:$AP,AE$201,FALSE) -> 2269.52 | AF223: =VLOOKUP($U$202&$U223,GTYF!$C:$AP,AF$201,FALSE) -> 2263.66 | AG223: =VLOOKUP($U$202&$U223,GTYF!$C:$AP,AG$201,FALSE) -> 2387.28 | AH223: =VLOOKUP($U$202&$U223,GTYF!$C:$AP,AH$201,FALSE) -> 2413.19 | AI223: =VLOOKUP($U$202&$U223,GTYF!$C:$AP,AI$201,FALSE) -> 2433.97 | AJ223: =VLOOKUP($U$202&$U223,GTYF!$C:$AP,AJ$201,FALSE) -> 2433.97 | AK223: =VLOOKUP($U$202&$U223,GTYF!$C:$AP,AK$201,FALSE) -> 2429.9 | AL223: =VLOOKUP($U$202&$U223,GTYF!$C:$AP,AL$201,FALSE) -> 2429.49 | AM223: =VLOOKUP($U$202&$U223,GTYF!$C:$AP,AM$201,FALSE) -> 2425.26 | AN223: =VLOOKUP($U$202&$U223,GTYF!$C:$AP,AN$201,FALSE) -> 2425.26 | AO223: =VLOOKUP($U$202&$U223,GTYF!$C:$AP,AO$201,FALSE) -> 2425.26 | AP223: =VLOOKUP($U$202&$U223,GTYF!$C:$AP,AP$201,FALSE) -> 2424.95 | AQ223: =VLOOKUP($U$202&$U223,GTYF!$C:$AP,AQ$201,FALSE) -> 2424.95 | AR223: =VLOOKUP($U$202&$U223,GTYF!$C:$AP,AR$201,FALSE) -> 2424.95 | AS223: =VLOOKUP($U$202&$U223,GTYF!$C:$AP,AS$201,FALSE) -> 2424.95 | AT223: =VLOOKUP($U$202&$U223,GTYF!$C:$AP,AT$201,FALSE) -> 2424.95 | AU223: =VLOOKUP($U$202&$U223,GTYF!$C:$AP,AU$201,FALSE) -> 2424.95 | AV223: =VLOOKUP($U$202&$U223,GTYF!$C:$AP,AV$201,FALSE) -> 2424.95 | AW223: =VLOOKUP($U$202&$U223,GTYF!$C:$AP,AW$201,FALSE) -> 2424.95 | AX223: =VLOOKUP($U$202&$U223,GTYF!$C:$AP,AX$201,FALSE) -> 2424.95 | AY223: =VLOOKUP($U$202&$U223,GTYF!$C:$AP,AY$201,FALSE) -> 2424.95 | AZ223: =VLOOKUP($U$202&$U223,GTYF!$C:$AP,AZ$201,FALSE) -> 2424.95
S224: Figure 10a | T224: Sapinières | U224: (FCTYF_SAB) | V224: =VLOOKUP($U$202&$U224,GTYF!$C:$AP,V$201,FALSE) -> 0 | W224: =VLOOKUP($U$202&$U224,GTYF!$C:$AP,W$201,FALSE) -> 0 | X224: =VLOOKUP($U$202&$U224,GTYF!$C:$AP,X$201,FALSE) -> 0 | Y224: =VLOOKUP($U$202&$U224,GTYF!$C:$AP,Y$201,FALSE) -> 0 | Z224: =VLOOKUP($U$202&$U224,GTYF!$C:$AP,Z$201,FALSE) -> 0 | AA224: =VLOOKUP($U$202&$U224,GTYF!$C:$AP,AA$201,FALSE) -> 0 | AB224: =VLOOKUP($U$202&$U224,GTYF!$C:$AP,AB$201,FALSE) -> 0 | AC224: =VLOOKUP($U$202&$U224,GTYF!$C:$AP,AC$201,FALSE) -> 0 | AD224: =VLOOKUP($U$202&$U224,GTYF!$C:$AP,AD$201,FALSE) -> 0 | AE224: =VLOOKUP($U$202&$U224,GTYF!$C:$AP,AE$201,FALSE) -> 0 | AF224: =VLOOKUP($U$202&$U224,GTYF!$C:$AP,AF$201,FALSE) -> 0 | AG224: =VLOOKUP($U$202&$U224,GTYF!$C:$AP,AG$201,FALSE) -> 0 | AH224: =VLOOKUP($U$202&$U224,GTYF!$C:$AP,AH$201,FALSE) -> 0 | AI224: =VLOOKUP($U$202&$U224,GTYF!$C:$AP,AI$201,FALSE) -> 0 | AJ224: =VLOOKUP($U$202&$U224,GTYF!$C:$AP,AJ$201,FALSE) -> 0 | AK224: =VLOOKUP($U$202&$U224,GTYF!$C:$AP,AK$201,FALSE) -> 0 | AL224: =VLOOKUP($U$202&$U224,GTYF!$C:$AP,AL$201,FALSE) -> 0 | AM224: =VLOOKUP($U$202&$U224,GTYF!$C:$AP,AM$201,FALSE) -> 0 | AN224: =VLOOKUP($U$202&$U224,GTYF!$C:$AP,AN$201,FALSE) -> 0 | AO224: =VLOOKUP($U$202&$U224,GTYF!$C:$AP,AO$201,FALSE) -> 0 | AP224: =VLOOKUP($U$202&$U224,GTYF!$C:$AP,AP$201,FALSE) -> 0 | AQ224: =VLOOKUP($U$202&$U224,GTYF!$C:$AP,AQ$201,FALSE) -> 0 | AR224: =VLOOKUP($U$202&$U224,GTYF!$C:$AP,AR$201,FALSE) -> 0 | AS224: =VLOOKUP($U$202&$U224,GTYF!$C:$AP,AS$201,FALSE) -> 0 | AT224: =VLOOKUP($U$202&$U224,GTYF!$C:$AP,AT$201,FALSE) -> 0 | AU224: =VLOOKUP($U$202&$U224,GTYF!$C:$AP,AU$201,FALSE) -> 0 | AV224: =VLOOKUP($U$202&$U224,GTYF!$C:$AP,AV$201,FALSE) -> 0 | AW224: =VLOOKUP($U$202&$U224,GTYF!$C:$AP,AW$201,FALSE) -> 0 | AX224: =VLOOKUP($U$202&$U224,GTYF!$C:$AP,AX$201,FALSE) -> 0 | AY224: =VLOOKUP($U$202&$U224,GTYF!$C:$AP,AY$201,FALSE) -> 0 | AZ224: =VLOOKUP($U$202&$U224,GTYF!$C:$AP,AZ$201,FALSE) -> 0
B225: * Attention, étant donné que le graphique fait appel aux GTYF, certains TYF ne paraissent pas dans les bons types de couvert (ex: EoRx, PbFx, PuFx, ToFx) | S225: Figure 10a | T225: Cédrières | U225: (FCTYF_THO) | V225: =VLOOKUP($U$202&$U225,GTYF!$C:$AP,V$201,FALSE) -> 0 | W225: =VLOOKUP($U$202&$U225,GTYF!$C:$AP,W$201,FALSE) -> 0 | X225: =VLOOKUP($U$202&$U225,GTYF!$C:$AP,X$201,FALSE) -> 0 | Y225: =VLOOKUP($U$202&$U225,GTYF!$C:$AP,Y$201,FALSE) -> 0 | Z225: =VLOOKUP($U$202&$U225,GTYF!$C:$AP,Z$201,FALSE) -> 0 | AA225: =VLOOKUP($U$202&$U225,GTYF!$C:$AP,AA$201,FALSE) -> 0 | AB225: =VLOOKUP($U$202&$U225,GTYF!$C:$AP,AB$201,FALSE) -> 0 | AC225: =VLOOKUP($U$202&$U225,GTYF!$C:$AP,AC$201,FALSE) -> 0 | AD225: =VLOOKUP($U$202&$U225,GTYF!$C:$AP,AD$201,FALSE) -> 0 | AE225: =VLOOKUP($U$202&$U225,GTYF!$C:$AP,AE$201,FALSE) -> 0 | AF225: =VLOOKUP($U$202&$U225,GTYF!$C:$AP,AF$201,FALSE) -> 0 | AG225: =VLOOKUP($U$202&$U225,GTYF!$C:$AP,AG$201,FALSE) -> 0 | AH225: =VLOOKUP($U$202&$U225,GTYF!$C:$AP,AH$201,FALSE) -> 0 | AI225: =VLOOKUP($U$202&$U225,GTYF!$C:$AP,AI$201,FALSE) -> 0 | AJ225: =VLOOKUP($U$202&$U225,GTYF!$C:$AP,AJ$201,FALSE) -> 0 | AK225: =VLOOKUP($U$202&$U225,GTYF!$C:$AP,AK$201,FALSE) -> 0 | AL225: =VLOOKUP($U$202&$U225,GTYF!$C:$AP,AL$201,FALSE) -> 0 | AM225: =VLOOKUP($U$202&$U225,GTYF!$C:$AP,AM$201,FALSE) -> 0 | AN225: =VLOOKUP($U$202&$U225,GTYF!$C:$AP,AN$201,FALSE) -> 0 | AO225: =VLOOKUP($U$202&$U225,GTYF!$C:$AP,AO$201,FALSE) -> 0 | AP225: =VLOOKUP($U$202&$U225,GTYF!$C:$AP,AP$201,FALSE) -> 0 | AQ225: =VLOOKUP($U$202&$U225,GTYF!$C:$AP,AQ$201,FALSE) -> 0 | AR225: =VLOOKUP($U$202&$U225,GTYF!$C:$AP,AR$201,FALSE) -> 0 | AS225: =VLOOKUP($U$202&$U225,GTYF!$C:$AP,AS$201,FALSE) -> 0 | AT225: =VLOOKUP($U$202&$U225,GTYF!$C:$AP,AT$201,FALSE) -> 0 | AU225: =VLOOKUP($U$202&$U225,GTYF!$C:$AP,AU$201,FALSE) -> 0 | AV225: =VLOOKUP($U$202&$U225,GTYF!$C:$AP,AV$201,FALSE) -> 0 | AW225: =VLOOKUP($U$202&$U225,GTYF!$C:$AP,AW$201,FALSE) -> 0 | AX225: =VLOOKUP($U$202&$U225,GTYF!$C:$AP,AX$201,FALSE) -> 0 | AY225: =VLOOKUP($U$202&$U225,GTYF!$C:$AP,AY$201,FALSE) -> 0 | AZ225: =VLOOKUP($U$202&$U225,GTYF!$C:$AP,AZ$201,FALSE) -> 0
U228: Colonne | V228: 6 | W228: 7 | X228: 8 | Y228: 9 | Z228: 10 | AA228: 11 | AB228: 12 | AC228: 13 | AD228: 14 | AE228: 15 | AF228: 16 | AG228: 17 | AH228: 18 | AI228: 19 | AJ228: 20 | AK228: 21 | AL228: 22 | AM228: 23 | AN228: 24 | AO228: 25 | AP228: 26 | AQ228: 27 | AR228: 28 | AS228: 29 | AT228: 30 | AU228: 31 | AV228: 32 | AW228: 33 | AX228: 34 | AY228: 35 | AZ228: 36
B229: Figure 10c Évolution des superficies de hêtraie et d'érablière à hêtre | U229: Période | V229: P0 | W229: P1 | X229: P2 | Y229: P3 | Z229: P4 | AA229: P5 | AB229: P6 | AC229: P7 | AD229: P8 | AE229: P9 | AF229: P10 | AG229: P11 | AH229: P12 | AI229: P13 | AJ229: P14 | AK229: P15 | AL229: P16 | AM229: P17 | AN229: P18 | AO229: P19 | AP229: P20 | AQ229: P21 | AR229: P22 | AS229: P23 | AT229: P24 | AU229: P25 | AV229: P26 | AW229: P27 | AX229: P28 | AY229: P29 | AZ229: P30
U230: Axe des "X" Fin de période | V230: 2018 | W230: 2023 | X230: 2028 | Y230: 2033 | Z230: 2038 | AA230: 2043 | AB230: 2048 | AC230: 2053 | AD230: 2058 | AE230: 2063 | AF230: 2068 | AG230: 2073 | AH230: 2078 | AI230: 2083 | AJ230: 2088 | AK230: 2093 | AL230: 2098 | AM230: 2103 | AN230: 2108 | AO230: 2113 | AP230: 2118 | AQ230: 2123 | AR230: 2128 | AS230: 2133 | AT230: 2138 | AU230: 2143 | AV230: 2148 | AW230: 2153 | AX230: 2158 | AY230: 2163 | AZ230: 2168
S231: =LEFT(B$229,10) -> Figure 10c | T231: Hêtraie | U231: OSUPESHG_FX | V231: =VLOOKUP($U231,Output!$C:$AQ,V$228,FALSE) ->  | W231: =VLOOKUP($U231,Output!$C:$AQ,W$228,FALSE) ->  | X231: =VLOOKUP($U231,Output!$C:$AQ,X$228,FALSE) ->  | Y231: =VLOOKUP($U231,Output!$C:$AQ,Y$228,FALSE) ->  | Z231: =VLOOKUP($U231,Output!$C:$AQ,Z$228,FALSE) ->  | AA231: =VLOOKUP($U231,Output!$C:$AQ,AA$228,FALSE) ->  | AB231: =VLOOKUP($U231,Output!$C:$AQ,AB$228,FALSE) ->  | AC231: =VLOOKUP($U231,Output!$C:$AQ,AC$228,FALSE) ->  | AD231: =VLOOKUP($U231,Output!$C:$AQ,AD$228,FALSE) ->  | AE231: =VLOOKUP($U231,Output!$C:$AQ,AE$228,FALSE) ->  | AF231: =VLOOKUP($U231,Output!$C:$AQ,AF$228,FALSE) ->  | AG231: =VLOOKUP($U231,Output!$C:$AQ,AG$228,FALSE) ->  | AH231: =VLOOKUP($U231,Output!$C:$AQ,AH$228,FALSE) ->  | AI231: =VLOOKUP($U231,Output!$C:$AQ,AI$228,FALSE) ->  | AJ231: =VLOOKUP($U231,Output!$C:$AQ,AJ$228,FALSE) ->  | AK231: =VLOOKUP($U231,Output!$C:$AQ,AK$228,FALSE) ->  | AL231: =VLOOKUP($U231,Output!$C:$AQ,AL$228,FALSE) ->  | AM231: =VLOOKUP($U231,Output!$C:$AQ,AM$228,FALSE) ->  | AN231: =VLOOKUP($U231,Output!$C:$AQ,AN$228,FALSE) ->  | AO231: =VLOOKUP($U231,Output!$C:$AQ,AO$228,FALSE) ->  | AP231: =VLOOKUP($U231,Output!$C:$AQ,AP$228,FALSE) ->  | AQ231: =VLOOKUP($U231,Output!$C:$AQ,AQ$228,FALSE) ->  | AR231: =VLOOKUP($U231,Output!$C:$AQ,AR$228,FALSE) ->  | AS231: =VLOOKUP($U231,Output!$C:$AQ,AS$228,FALSE) ->  | AT231: =VLOOKUP($U231,Output!$C:$AQ,AT$228,FALSE) ->  | AU231: =VLOOKUP($U231,Output!$C:$AQ,AU$228,FALSE) ->  | AV231: =VLOOKUP($U231,Output!$C:$AQ,AV$228,FALSE) ->  | AW231: =VLOOKUP($U231,Output!$C:$AQ,AW$228,FALSE) ->  | AX231: =VLOOKUP($U231,Output!$C:$AQ,AX$228,FALSE) ->  | AY231: =VLOOKUP($U231,Output!$C:$AQ,AY$228,FALSE) ->  | AZ231: =VLOOKUP($U231,Output!$C:$AQ,AZ$228,FALSE) -> 
S232: =LEFT(B$229,10) -> Figure 10c | T232: Érablière à hêtre | U232: OSUPESHG | V232: =VLOOKUP($U232,Output!$C:$AQ,V$228,FALSE) ->  | W232: =VLOOKUP($U232,Output!$C:$AQ,W$228,FALSE) ->  | X232: =VLOOKUP($U232,Output!$C:$AQ,X$228,FALSE) ->  | Y232: =VLOOKUP($U232,Output!$C:$AQ,Y$228,FALSE) ->  | Z232: =VLOOKUP($U232,Output!$C:$AQ,Z$228,FALSE) ->  | AA232: =VLOOKUP($U232,Output!$C:$AQ,AA$228,FALSE) ->  | AB232: =VLOOKUP($U232,Output!$C:$AQ,AB$228,FALSE) ->  | AC232: =VLOOKUP($U232,Output!$C:$AQ,AC$228,FALSE) ->  | AD232: =VLOOKUP($U232,Output!$C:$AQ,AD$228,FALSE) ->  | AE232: =VLOOKUP($U232,Output!$C:$AQ,AE$228,FALSE) ->  | AF232: =VLOOKUP($U232,Output!$C:$AQ,AF$228,FALSE) ->  | AG232: =VLOOKUP($U232,Output!$C:$AQ,AG$228,FALSE) ->  | AH232: =VLOOKUP($U232,Output!$C:$AQ,AH$228,FALSE) ->  | AI232: =VLOOKUP($U232,Output!$C:$AQ,AI$228,FALSE) ->  | AJ232: =VLOOKUP($U232,Output!$C:$AQ,AJ$228,FALSE) ->  | AK232: =VLOOKUP($U232,Output!$C:$AQ,AK$228,FALSE) ->  | AL232: =VLOOKUP($U232,Output!$C:$AQ,AL$228,FALSE) ->  | AM232: =VLOOKUP($U232,Output!$C:$AQ,AM$228,FALSE) ->  | AN232: =VLOOKUP($U232,Output!$C:$AQ,AN$228,FALSE) ->  | AO232: =VLOOKUP($U232,Output!$C:$AQ,AO$228,FALSE) ->  | AP232: =VLOOKUP($U232,Output!$C:$AQ,AP$228,FALSE) ->  | AQ232: =VLOOKUP($U232,Output!$C:$AQ,AQ$228,FALSE) ->  | AR232: =VLOOKUP($U232,Output!$C:$AQ,AR$228,FALSE) ->  | AS232: =VLOOKUP($U232,Output!$C:$AQ,AS$228,FALSE) ->  | AT232: =VLOOKUP($U232,Output!$C:$AQ,AT$228,FALSE) ->  | AU232: =VLOOKUP($U232,Output!$C:$AQ,AU$228,FALSE) ->  | AV232: =VLOOKUP($U232,Output!$C:$AQ,AV$228,FALSE) ->  | AW232: =VLOOKUP($U232,Output!$C:$AQ,AW$228,FALSE) ->  | AX232: =VLOOKUP($U232,Output!$C:$AQ,AX$228,FALSE) ->  | AY232: =VLOOKUP($U232,Output!$C:$AQ,AY$228,FALSE) ->  | AZ232: =VLOOKUP($U232,Output!$C:$AQ,AZ$228,FALSE) -> 
S233: =LEFT(B$229,10) -> Figure 10c | T233: Total | U233: Total | V233: =SUM(V231:V232) ->  | W233: =SUM(W231:W232) -> 
B255: Figure 11b Évolution du volume de sapin et d'épinettes sur pied dans la composante SEPM
U262: Colonne | V262: 6 | W262: 7 | X262: 8 | Y262: 9 | Z262: 10 | AA262: 11 | AB262: 12 | AC262: 13 | AD262: 14 | AE262: 15 | AF262: 16 | AG262: 17 | AH262: 18 | AI262: 19 | AJ262: 20 | AK262: 21 | AL262: 22 | AM262: 23 | AN262: 24 | AO262: 25 | AP262: 26 | AQ262: 27 | AR262: 28 | AS262: 29 | AT262: 30 | AU262: 31 | AV262: 32 | AW262: 33 | AX262: 34 | AY262: 35 | AZ262: 36
U263: Axe des "X" Fin de période | V263: 2018 | W263: 2023 | X263: 2028 | Y263: 2033 | Z263: 2038 | AA263: 2043 | AB263: 2048 | AC263: 2053 | AD263: 2058 | AE263: 2063 | AF263: 2068 | AG263: 2073 | AH263: 2078 | AI263: 2083 | AJ263: 2088 | AK263: 2093 | AL263: 2098 | AM263: 2103 | AN263: 2108 | AO263: 2113 | AP263: 2118 | AQ263: 2123 | AR263: 2128 | AS263: 2133 | AT263: 2138 | AU263: 2143 | AV263: 2148 | AW263: 2153 | AX263: 2158 | AY263: 2163 | AZ263: 2168
S264: =LEFT(B$255,10) -> Figure 11b | U264: Période | V264: P0 | W264: P1 | X264: P2 | Y264: P3 | Z264: P4 | AA264: P5 | AB264: P6 | AC264: P7 | AD264: P8 | AE264: P9 | AF264: P10 | AG264: P11 | AH264: P12 | AI264: P13 | AJ264: P14 | AK264: P15 | AL264: P16 | AM264: P17 | AN264: P18 | AO264: P19 | AP264: P20 | AQ264: P21 | AR264: P22 | AS264: P23 | AT264: P24 | AU264: P25 | AV264: P26 | AW264: P27 | AX264: P28 | AY264: P29 | AZ264: P30
S265: Figure 11b | T265: Légende | Y265: PERIOD3 | Z265: PERIOD4 | AA265: PERIOD5 | AB265: PERIOD6 | AC265: PERIOD7 | AD265: PERIOD8 | AE265: PERIOD9 | AF265: PERIOD10 | AG265: PERIOD11 | AH265: PERIOD12 | AI265: PERIOD13 | AJ265: PERIOD14 | AK265: PERIOD15 | AL265: PERIOD16 | AM265: PERIOD17 | AN265: PERIOD18 | AO265: PERIOD19 | AP265: PERIOD20 | AQ265: PERIOD21 | AR265: PERIOD22 | AS265: PERIOD23 | AT265: PERIOD24 | AU265: PERIOD25 | AV265: PERIOD26 | AW265: PERIOD27 | AX265: PERIOD28 | AY265: PERIOD29 | AZ265: PERIOD30
S266: Figure 11b | T266: Volume Sapin | U266: OVOLSABPIEDINC(FCTYF_SEPM) | V266: =VLOOKUP($U266,GTYF!$C:$AL,Figures!V$262,FALSE) -> 33015.89 | W266: =VLOOKUP($U266,GTYF!$C:$AL,Figures!W$262,FALSE) -> 33327.96 | X266: =VLOOKUP($U266,GTYF!$C:$AL,Figures!X$262,FALSE) -> 32148.44 | Y266: =VLOOKUP($U266,GTYF!$C:$AL,Figures!Y$262,FALSE) -> 31484.61 | Z266: =VLOOKUP($U266,GTYF!$C:$AL,Figures!Z$262,FALSE) -> 31452.81 | AA266: =VLOOKUP($U266,GTYF!$C:$AL,Figures!AA$262,FALSE) -> 32137.95 | AB266: =VLOOKUP($U266,GTYF!$C:$AL,Figures!AB$262,FALSE) -> 34849.27 | AC266: =VLOOKUP($U266,GTYF!$C:$AL,Figures!AC$262,FALSE) -> 37189.35 | AD266: =VLOOKUP($U266,GTYF!$C:$AL,Figures!AD$262,FALSE) -> 39782.5 | AE266: =VLOOKUP($U266,GTYF!$C:$AL,Figures!AE$262,FALSE) -> 43028.44 | AF266: =VLOOKUP($U266,GTYF!$C:$AL,Figures!AF$262,FALSE) -> 43853.69 | AG266: =VLOOKUP($U266,GTYF!$C:$AL,Figures!AG$262,FALSE) -> 43221.12 | AH266: =VLOOKUP($U266,GTYF!$C:$AL,Figures!AH$262,FALSE) -> 46272.38 | AI266: =VLOOKUP($U266,GTYF!$C:$AL,Figures!AI$262,FALSE) -> 47212.21 | AJ266: =VLOOKUP($U266,GTYF!$C:$AL,Figures!AJ$262,FALSE) -> 46303.59 | AK266: =VLOOKUP($U266,GTYF!$C:$AL,Figures!AK$262,FALSE) -> 41422.87 | AL266: =VLOOKUP($U266,GTYF!$C:$AL,Figures!AL$262,FALSE) -> 35833.88 | AM266: =VLOOKUP($U266,GTYF!$C:$AL,Figures!AM$262,FALSE) -> 37415.09 | AN266: =VLOOKUP($U266,GTYF!$C:$AL,Figures!AN$262,FALSE) -> 37890.33 | AO266: =VLOOKUP($U266,GTYF!$C:$AL,Figures!AO$262,FALSE) -> 38915.91 | AP266: =VLOOKUP($U266,GTYF!$C:$AL,Figures!AP$262,FALSE) -> 38552.71 | AQ266: =VLOOKUP($U266,GTYF!$C:$AL,Figures!AQ$262,FALSE) -> 38603.59 | AR266: =VLOOKUP($U266,GTYF!$C:$AL,Figures!AR$262,FALSE) -> 38222.87 | AS266: =VLOOKUP($U266,GTYF!$C:$AL,Figures!AS$262,FALSE) -> 37627.25 | AT266: =VLOOKUP($U266,GTYF!$C:$AL,Figures!AT$262,FALSE) -> 37370.96 | AU266: =VLOOKUP($U266,GTYF!$C:$AL,Figures!AU$262,FALSE) -> 39712.42 | AV266: =VLOOKUP($U266,GTYF!$C:$AL,Figures!AV$262,FALSE) -> 38185.58 | AW266: =VLOOKUP($U266,GTYF!$C:$AL,Figures!AW$262,FALSE) -> 35859.49 | AX266: =VLOOKUP($U266,GTYF!$C:$AL,Figures!AX$262,FALSE) -> 34494.31 | AY266: =VLOOKUP($U266,GTYF!$C:$AL,Figures!AY$262,FALSE) -> 34186.59 | AZ266: =VLOOKUP($U266,GTYF!$C:$AL,Figures!AZ$262,FALSE) -> 33663.46
S267: Figure 11b | T267: Volume Épinettes | U267: OVOLGEPXPIEDINC(FCTYF_SEPM) | V267: =VLOOKUP($U267,GTYF!$C:$AL,Figures!V$262,FALSE) -> 1217779.03 | W267: =VLOOKUP($U267,GTYF!$C:$AL,Figures!W$262,FALSE) -> 1181324 | X267: =VLOOKUP($U267,GTYF!$C:$AL,Figures!X$262,FALSE) -> 1161613.48 | Y267: =VLOOKUP($U267,GTYF!$C:$AL,Figures!Y$262,FALSE) -> 1135640.42 | Z267: =VLOOKUP($U267,GTYF!$C:$AL,Figures!Z$262,FALSE) -> 1122857.05 | AA267: =VLOOKUP($U267,GTYF!$C:$AL,Figures!AA$262,FALSE) -> 1123327.01 | AB267: =VLOOKUP($U267,GTYF!$C:$AL,Figures!AB$262,FALSE) -> 1127471.29 | AC267: =VLOOKUP($U267,GTYF!$C:$AL,Figures!AC$262,FALSE) -> 1146258.28 | AD267: =VLOOKUP($U267,GTYF!$C:$AL,Figures!AD$262,FALSE) -> 1201002.66 | AE267: =VLOOKUP($U267,GTYF!$C:$AL,Figures!AE$262,FALSE) -> 1274402.56 | AF267: =VLOOKUP($U267,GTYF!$C:$AL,Figures!AF$262,FALSE) -> 1308394.18 | AG267: =VLOOKUP($U267,GTYF!$C:$AL,Figures!AG$262,FALSE) -> 1353540.15 | AH267: =VLOOKUP($U267,GTYF!$C:$AL,Figures!AH$262,FALSE) -> 1408135.74 | AI267: =VLOOKUP($U267,GTYF!$C:$AL,Figures!AI$262,FALSE) -> 1448289.74 | AJ267: =VLOOKUP($U267,GTYF!$C:$AL,Figures!AJ$262,FALSE) -> 1413792.18 | AK267: =VLOOKUP($U267,GTYF!$C:$AL,Figures!AK$262,FALSE) -> 1378112.35 | AL267: =VLOOKUP($U267,GTYF!$C:$AL,Figures!AL$262,FALSE) -> 1346194.32 | AM267: =VLOOKUP($U267,GTYF!$C:$AL,Figures!AM$262,FALSE) -> 1333399.36 | AN267: =VLOOKUP($U267,GTYF!$C:$AL,Figures!AN$262,FALSE) -> 1322800.1 | AO267: =VLOOKUP($U267,GTYF!$C:$AL,Figures!AO$262,FALSE) -> 1314446.57 | AP267: =VLOOKUP($U267,GTYF!$C:$AL,Figures!AP$262,FALSE) -> 1306824.43 | AQ267: =VLOOKUP($U267,GTYF!$C:$AL,Figures!AQ$262,FALSE) -> 1296749.38 | AR267: =VLOOKUP($U267,GTYF!$C:$AL,Figures!AR$262,FALSE) -> 1290518.94 | AS267: =VLOOKUP($U267,GTYF!$C:$AL,Figures!AS$262,FALSE) -> 1284492.57 | AT267: =VLOOKUP($U267,GTYF!$C:$AL,Figures!AT$262,FALSE) -> 1286737.96 | AU267: =VLOOKUP($U267,GTYF!$C:$AL,Figures!AU$262,FALSE) -> 1280079.77 | AV267: =VLOOKUP($U267,GTYF!$C:$AL,Figures!AV$262,FALSE) -> 1285069.08 | AW267: =VLOOKUP($U267,GTYF!$C:$AL,Figures!AW$262,FALSE) -> 1283501.62 | AX267: =VLOOKUP($U267,GTYF!$C:$AL,Figures!AX$262,FALSE) -> 1242792.79 | AY267: =VLOOKUP($U267,GTYF!$C:$AL,Figures!AY$262,FALSE) -> 1205050.81 | AZ267: =VLOOKUP($U267,GTYF!$C:$AL,Figures!AZ$262,FALSE) -> 1170807.02
S268: Figure 11b
S269: Figure 11b | T269: SEPM sur pied | U269: OVOLGSEPMPIEDINC(FCTYF_SEPM) | V269: =VLOOKUP($U269,GTYF!$C:$AL,Figures!V$262,FALSE) -> 1412301.34 | W269: =VLOOKUP($U269,GTYF!$C:$AL,Figures!W$262,FALSE) -> 1375458.48 | X269: =VLOOKUP($U269,GTYF!$C:$AL,Figures!X$262,FALSE) -> 1353867.78 | Y269: =VLOOKUP($U269,GTYF!$C:$AL,Figures!Y$262,FALSE) -> 1334106.6 | Z269: =VLOOKUP($U269,GTYF!$C:$AL,Figures!Z$262,FALSE) -> 1326944.27 | AA269: =VLOOKUP($U269,GTYF!$C:$AL,Figures!AA$262,FALSE) -> 1335460.27 | AB269: =VLOOKUP($U269,GTYF!$C:$AL,Figures!AB$262,FALSE) -> 1359885.71 | AC269: =VLOOKUP($U269,GTYF!$C:$AL,Figures!AC$262,FALSE) -> 1400402.63 | AD269: =VLOOKUP($U269,GTYF!$C:$AL,Figures!AD$262,FALSE) -> 1477722.3 | AE269: =VLOOKUP($U269,GTYF!$C:$AL,Figures!AE$262,FALSE) -> 1585370.64 | AF269: =VLOOKUP($U269,GTYF!$C:$AL,Figures!AF$262,FALSE) -> 1633805.52 | AG269: =VLOOKUP($U269,GTYF!$C:$AL,Figures!AG$262,FALSE) -> 1685986.6 | AH269: =VLOOKUP($U269,GTYF!$C:$AL,Figures!AH$262,FALSE) -> 1718327.9 | AI269: =VLOOKUP($U269,GTYF!$C:$AL,Figures!AI$262,FALSE) -> 1737192.86 | AJ269: =VLOOKUP($U269,GTYF!$C:$AL,Figures!AJ$262,FALSE) -> 1727119.39 | AK269: =VLOOKUP($U269,GTYF!$C:$AL,Figures!AK$262,FALSE) -> 1721267.69 | AL269: =VLOOKUP($U269,GTYF!$C:$AL,Figures!AL$262,FALSE) -> 1714878.06 | AM269: =VLOOKUP($U269,GTYF!$C:$AL,Figures!AM$262,FALSE) -> 1704502.35 | AN269: =VLOOKUP($U269,GTYF!$C:$AL,Figures!AN$262,FALSE) -> 1692700.71 | AO269: =VLOOKUP($U269,GTYF!$C:$AL,Figures!AO$262,FALSE) -> 1684281.28 | AP269: =VLOOKUP($U269,GTYF!$C:$AL,Figures!AP$262,FALSE) -> 1675989.25 | AQ269: =VLOOKUP($U269,GTYF!$C:$AL,Figures!AQ$262,FALSE) -> 1665833.76 | AR269: =VLOOKUP($U269,GTYF!$C:$AL,Figures!AR$262,FALSE) -> 1665098.85 | AS269: =VLOOKUP($U269,GTYF!$C:$AL,Figures!AS$262,FALSE) -> 1663016.25 | AT269: =VLOOKUP($U269,GTYF!$C:$AL,Figures!AT$262,FALSE) -> 1658761.03 | AU269: =VLOOKUP($U269,GTYF!$C:$AL,Figures!AU$262,FALSE) -> 1651865.09 | AV269: =VLOOKUP($U269,GTYF!$C:$AL,Figures!AV$262,FALSE) -> 1645164.22 | AW269: =VLOOKUP($U269,GTYF!$C:$AL,Figures!AW$262,FALSE) -> 1634457.19 | AX269: =VLOOKUP($U269,GTYF!$C:$AL,Figures!AX$262,FALSE) -> 1627488.59 | AY269: =VLOOKUP($U269,GTYF!$C:$AL,Figures!AY$262,FALSE) -> 1625849.3 | AZ269: =VLOOKUP($U269,GTYF!$C:$AL,Figures!AZ$262,FALSE) -> 1629526.77
S270: Figure 11b
S271: Figure 11b | T271: % Sapin | V271: =IF(ISERROR(V266),0,V266/V269) -> 0.02337736931 | W271: 0.02423043697 | X271: 0.02374562751 | Y271: 0.02359977081 | Z271: 0.02370318838 | AA271: 0.02406507383 | AB271: 0.02562661681 | AC271: 0.02655618406 | AD271: 0.02692149939 | AE271: 0.02714093406 | AF271: 0.02684143826 | AG271: 0.02563550624 | AH271: 0.0269287253 | AI271: 0.02717729913 | AJ271: 0.02680972159 | AK271: 0.02406532711 | AL271: 0.02089587641 | AM271: 0.02195074122 | AN271: 0.02238454192 | AO271: 0.02310535091 | AP271: 0.02300295781 | AQ271: 0.02317373493 | AR271: 0.02295531584 | AS271: 0.02262590639 | AT271: 0.02252944175 | AU271: 0.02404095845 | AV271: 0.02321080141 | AW271: 0.02193969363 | AX271: 0.02119480911 | AY271: 0.0210269119 | AZ271: 0.02065842711
S272: Figure 11b | T272: % Épinettes | V272: =IF(ISERROR(V267),0,V267/V269) -> 0.8622657187 | W272: =IF(ISERROR(W267),0,W267/W269) -> 0.8588583495 | X272: 0.8579962513 | Y272: 0.8512366403 | Z272: 0.846197595 | AA272: 0.8411534474 | AB272: 0.8290926816 | AC272: 0.8185205136 | AD272: 0.8127390782 | AE272: 0.8038514956 | AF272: 0.8008261473 | AG272: 0.8028178575 | AH272: 0.8194802284 | AI272: 0.8336954252 | AJ272: 0.8185839312 | AK272: 0.800638017 | AL272: 0.785008772 | AM272: 0.7822807402 | AN272: 0.781473117 | AO272: 0.7804198655 | AP272: 0.7797331815 | AQ272: 0.778438648 | AR272: 0.7750404368 | AS272: 0.7723872632 | AT272: 0.7757223233 | AU272: 0.7749299732 | AV272: 0.7811190302 | AW272: 0.7852769885 | AX272: 0.7636261155 | AY272: 0.7411823531 | AZ272: 0.7184951125
S273: Figure 11b | T273: % Volume autre | V273: =1-(V272+V271) -> 0.114356912 | W273: 0.1169112135 | X273: 0.1182581212 | Y273: 0.1251635889 | Z273: 0.1300992166 | AA273: 0.1347814787 | AB273: 0.1452807016 | AC273: 0.1549233023 | AD273: 0.1603394224 | AE273: 0.1690075704 | AF273: 0.1723324144 | AG273: 0.1715466363 | AH273: 0.1535910463 | AI273: 0.1391272757 | AJ273: 0.1546063472 | AK273: 0.1752966559 | AL273: 0.1940953516 | AM273: 0.1957685186 | AN273: 0.1961423411 | AO273: 0.1964747836 | AP273: 0.1972638607 | AQ273: 0.198387617 | AR273: 0.2020042474 | AS273: 0.2049868304 | AT273: 0.2017482349 | AU273: 0.2010290683 | AV273: 0.1956701684 | AW273: 0.1927833179 | AX273: 0.2151790754 | AY273: 0.237790735 | AZ273: 0.2608464603
B278: Figure 14 Indicateur de productivité
... 127 more rows

Sheet UTA
M1: Jeune forêt | R1: Niveau d'altération des vieilles forêts | W1: Niveau d'altération combiné | AA1: Info à récupérer par le SSP Niveau d'altération des vieilles forêts
A2: Inscrire la liste des numéros d'UTA de l'UA: | B2: VieuxAlerte (%) | C2: VieuxAccept (%) | D2: RegeAlerte (%) | E2: RegeAccept (%) | G2: VieuxAlerte (ha) | H2: VieuxAccept (ha) | I2: RegeAlerte (ha) | J2: RegeAccept (ha) | K2: SupUTA | M2: OSUPJEUNEREGECO PERIOD1 (%) | N2: État Jeune 2023 | O2: OSUPJEUNEREGECO PERIOD6 (%) | P2: État Jeune 2048 | R2: OSUPVIEUXTOTREGECO PERIOD1 (%) | S2: État Vielle 2023 | T2: OSUPVIEUXTOTREGECO PERIOD6 (%) | U2: État Vielle 2048 | W2: UTA | X2: 2023 | Y2: 2048 | AA2: UA | AB2: UTA | AC2: 2023 | AD2: 2048 | AE2: Mode de répartition spatiale | AP2: Mode de répartition spatiale
A3: UTA1 | B3: =ROUND(G3/$K3,3) -> 0.147 | C3: =ROUND(H3/$K3,3) -> 0.245 | D3: =ROUND(I3/$K3,3) -> 0.35 | E3: =ROUND(J3/$K3,3) -> 0.25 | G3: =VLOOKUP(CONCATENATE("OSUPVIEUXALERTEREGECO_"&A3),Output!$C:$AQ,6,FALSE) -> 12311.82 | H3: =VLOOKUP(CONCATENATE("OSUPVIEUXACCEPTREGECO_"&A3),Output!$C:$AQ,6,FALSE) -> 20519.71 | I3: =VLOOKUP(CONCATENATE("OSUPJEUNEALERTEREGECO_"&A3),Output!$C:$AQ,6,FALSE) -> 29313.86 | J3: =VLOOKUP(CONCATENATE("OSUPJEUNEACCEPTREGECO_"&A3),Output!$C:$AQ,6,FALSE) -> 20938.48 | K3: =VLOOKUP(CONCATENATE("OSUPREGECO_"&A3),Output!$C:$AQ,6,FALSE) -> 83753.9 | M3: =ROUND(VLOOKUP("OSUPJEUNEREGECO_"&A3,Output!$C:$AQ,7,FALSE)/VLOOKUP("OSUPREGECO_"&A3,Output!$C:$AQ,6,FALSE),3) -> 0.097 | N3: =IF(M3<=$E3,"Faible",IF(M3<$D3,"Modéré","Supérieur")) -> Faible | O3: =ROUND(VLOOKUP("OSUPJEUNEREGECO_"&$A3,Output!$C:$AQ,12,FALSE)/VLOOKUP("OSUPREGECO_"&A3,Output!$C:$AQ,6,FALSE),3) -> 0.015 | P3: =IF(O3<=$E3,"Faible",IF(O3<$D3,"Modéré","Supérieur")) -> Faible | R3: =ROUND(VLOOKUP("OSUPVIEUXTOTREGECO_"&$A3,Output!$C:$AQ,7,FALSE)/VLOOKUP("OSUPREGECO_"&A3,Output!$C:$AQ,6,FALSE),3) -> 0.731 | S3: =IF(R3<$B3,"Supérieur",IF(R3<$C3,"Modéré","Faible")) -> Faible | T3: =ROUND(VLOOKUP("OSUPVIEUXTOTREGECO_"&$A3,Output!$C:$AQ,12,FALSE)/VLOOKUP("OSUPREGECO_"&A3,Output!$C:$AQ,6,FALSE),3) -> 0.786 | U3: =IF(T3<$B3,"Supérieur",IF(T3<$C3,"Modéré","Faible")) -> Faible | W3: =A3 -> UTA1 | X3: =IF(S3>N3,S3,N3) -> Faible | Y3: =IF(U3>P3,U3,P3) -> Faible | AA3: =Tableaux!$O$33 -> 08663 | AB3: =W3 -> UTA1 | AC3: =S3 -> Faible | AD3: =U3 -> Faible | AE3: CMO entente Cris | AG3: Note: "Élevé" a été renommé "Supérieur" pour le bon fonctionnement des formules. | AP3: COS sapinière
A4: UTA2 | B4: =ROUND(G4/$K4,3) -> 0.147 | C4: 0.245 | D4: 0.35 | E4: 0.25 | G4: =VLOOKUP(CONCATENATE("OSUPVIEUXALERTEREGECO_"&A4),Output!$C:$AQ,6,FALSE) -> 16802.59 | H4: =VLOOKUP(CONCATENATE("OSUPVIEUXACCEPTREGECO_"&A4),Output!$C:$AQ,6,FALSE) -> 28004.31 | I4: =VLOOKUP(CONCATENATE("OSUPJEUNEALERTEREGECO_"&A4),Output!$C:$AQ,6,FALSE) -> 40006.15 | J4: =VLOOKUP(CONCATENATE("OSUPJEUNEACCEPTREGECO_"&A4),Output!$C:$AQ,6,FALSE) -> 28575.83 | K4: =VLOOKUP(CONCATENATE("OSUPREGECO_"&A4),Output!$C:$AQ,6,FALSE) -> 114303.3 | M4: =ROUND(VLOOKUP("OSUPJEUNEREGECO_"&A4,Output!$C:$AQ,7,FALSE)/VLOOKUP("OSUPREGECO_"&A4,Output!$C:$AQ,6,FALSE),3) -> 0.039 | N4: =IF(M4<=$E4,"Faible",IF(M4<$D4,"Modéré","Supérieur")) -> Faible | O4: =ROUND(VLOOKUP("OSUPJEUNEREGECO_"&$A4,Output!$C:$AQ,12,FALSE)/VLOOKUP("OSUPREGECO_"&A4,Output!$C:$AQ,6,FALSE),3) -> 0.018 | P4: =IF(O4<=$E4,"Faible",IF(O4<$D4,"Modéré","Supérieur")) -> Faible | R4: =ROUND(VLOOKUP("OSUPVIEUXTOTREGECO_"&$A4,Output!$C:$AQ,7,FALSE)/VLOOKUP("OSUPREGECO_"&A4,Output!$C:$AQ,6,FALSE),3) -> 0.641 | S4: =IF(R4<$B4,"Supérieur",IF(R4<$C4,"Modéré","Faible")) -> Faible | T4: =ROUND(VLOOKUP("OSUPVIEUXTOTREGECO_"&$A4,Output!$C:$AQ,12,FALSE)/VLOOKUP("OSUPREGECO_"&A4,Output!$C:$AQ,6,FALSE),3) -> 0.694 | U4: =IF(T4<$B4,"Supérieur",IF(T4<$C4,"Modéré","Faible")) -> Faible | W4: =A4 -> UTA2 | X4: =IF(S4>N4,S4,N4) -> Faible | Y4: =IF(U4>P4,U4,P4) -> Faible | AA4: =Tableaux!$O$33 -> 08663 | AB4: =W4 -> UTA2 | AC4: =S4 -> Faible | AD4: =U4 -> Faible | AE4: CMO entente Cris | AP4: COS pessière
G5: =VLOOKUP(CONCATENATE("OSUPVIEUXALERTEREGECO_"&A5),Output!$C:$AQ,6,FALSE) ->  | H5: =VLOOKUP(CONCATENATE("OSUPVIEUXACCEPTREGECO_"&A5),Output!$C:$AQ,6,FALSE) ->  | I5: =VLOOKUP(CONCATENATE("OSUPJEUNEALERTEREGECO_"&A5),Output!$C:$AQ,6,FALSE) ->  | J5: =VLOOKUP(CONCATENATE("OSUPJEUNEACCEPTREGECO_"&A5),Output!$C:$AQ,6,FALSE) ->  | K5: =VLOOKUP(CONCATENATE("OSUPREGECO_"&A5),Output!$C:$AQ,6,FALSE) ->  | M5: =ROUND(VLOOKUP("OSUPJEUNEREGECO_"&A5,Output!$C:$AQ,7,FALSE)/VLOOKUP("OSUPREGECO_"&A5,Output!$C:$AQ,6,FALSE),3) ->  | O5: =ROUND(VLOOKUP("OSUPJEUNEREGECO_"&$A5,Output!$C:$AQ,12,FALSE)/VLOOKUP("OSUPREGECO_"&A5,Output!$C:$AQ,6,FALSE),3) ->  | R5: =ROUND(VLOOKUP("OSUPVIEUXTOTREGECO_"&$A5,Output!$C:$AQ,7,FALSE)/VLOOKUP("OSUPREGECO_"&A5,Output!$C:$AQ,6,FALSE),3) ->  | T5: =ROUND(VLOOKUP("OSUPVIEUXTOTREGECO_"&$A5,Output!$C:$AQ,12,FALSE)/VLOOKUP("OSUPREGECO_"&A5,Output!$C:$AQ,6,FALSE),3) ->  | W5: 0 | AA5: =Tableaux!$O$33 -> 08663 | AB5: =W5 -> 0 | AC5: =S5 ->  | AD5: =U5 ->  | AP5: CMO
G6: =VLOOKUP(CONCATENATE("OSUPVIEUXALERTEREGECO_"&A6),Output!$C:$AQ,6,FALSE) ->  | H6: =VLOOKUP(CONCATENATE("OSUPVIEUXACCEPTREGECO_"&A6),Output!$C:$AQ,6,FALSE) ->  | I6: =VLOOKUP(CONCATENATE("OSUPJEUNEALERTEREGECO_"&A6),Output!$C:$AQ,6,FALSE) ->  | J6: =VLOOKUP(CONCATENATE("OSUPJEUNEACCEPTREGECO_"&A6),Output!$C:$AQ,6,FALSE) ->  | K6: =VLOOKUP(CONCATENATE("OSUPREGECO_"&A6),Output!$C:$AQ,6,FALSE) ->  | M6: =ROUND(VLOOKUP("OSUPJEUNEREGECO_"&A6,Output!$C:$AQ,7,FALSE)/VLOOKUP("OSUPREGECO_"&A6,Output!$C:$AQ,6,FALSE),3) ->  | O6: =ROUND(VLOOKUP("OSUPJEUNEREGECO_"&$A6,Output!$C:$AQ,12,FALSE)/VLOOKUP("OSUPREGECO_"&A6,Output!$C:$AQ,6,FALSE),3) ->  | R6: =ROUND(VLOOKUP("OSUPVIEUXTOTREGECO_"&$A6,Output!$C:$AQ,7,FALSE)/VLOOKUP("OSUPREGECO_"&A6,Output!$C:$AQ,6,FALSE),3) ->  | T6: =ROUND(VLOOKUP("OSUPVIEUXTOTREGECO_"&$A6,Output!$C:$AQ,12,FALSE)/VLOOKUP("OSUPREGECO_"&A6,Output!$C:$AQ,6,FALSE),3) ->  | W6: 0 | AA6: =Tableaux!$O$33 -> 08663 | AB6: 0 | AD6: =U6 ->  | AP6: CMO entente Cris
G7: =VLOOKUP(CONCATENATE("OSUPVIEUXALERTEREGECO_"&A7),Output!$C:$AQ,6,FALSE) ->  | H7: =VLOOKUP(CONCATENATE("OSUPVIEUXACCEPTREGECO_"&A7),Output!$C:$AQ,6,FALSE) ->  | I7: =VLOOKUP(CONCATENATE("OSUPJEUNEALERTEREGECO_"&A7),Output!$C:$AQ,6,FALSE) ->  | J7: =VLOOKUP(CONCATENATE("OSUPJEUNEACCEPTREGECO_"&A7),Output!$C:$AQ,6,FALSE) ->  | K7: =VLOOKUP(CONCATENATE("OSUPREGECO_"&A7),Output!$C:$AQ,6,FALSE) ->  | M7: =ROUND(VLOOKUP("OSUPJEUNEREGECO_"&A7,Output!$C:$AQ,7,FALSE)/VLOOKUP("OSUPREGECO_"&A7,Output!$C:$AQ,6,FALSE),3) ->  | O7: =ROUND(VLOOKUP("OSUPJEUNEREGECO_"&$A7,Output!$C:$AQ,12,FALSE)/VLOOKUP("OSUPREGECO_"&A7,Output!$C:$AQ,6,FALSE),3) ->  | R7: =ROUND(VLOOKUP("OSUPVIEUXTOTREGECO_"&$A7,Output!$C:$AQ,7,FALSE)/VLOOKUP("OSUPREGECO_"&A7,Output!$C:$AQ,6,FALSE),3) ->  | T7: =ROUND(VLOOKUP("OSUPVIEUXTOTREGECO_"&$A7,Output!$C:$AQ,12,FALSE)/VLOOKUP("OSUPREGECO_"&A7,Output!$C:$AQ,6,FALSE),3) ->  | W7: 0 | AA7: =Tableaux!$O$33 -> 08663 | AB7: 0 | AC7: =S7 ->  | AD7: =U7 ->  | AG7: Voir à renommer "Élevé" dans la légende des figures | AP7: CMO entente BM
G8: =VLOOKUP(CONCATENATE("OSUPVIEUXALERTEREGECO_"&A8),Output!$C:$AQ,6,FALSE) ->  | H8: =VLOOKUP(CONCATENATE("OSUPVIEUXACCEPTREGECO_"&A8),Output!$C:$AQ,6,FALSE) ->  | I8: =VLOOKUP(CONCATENATE("OSUPJEUNEALERTEREGECO_"&A8),Output!$C:$AQ,6,FALSE) ->  | J8: =VLOOKUP(CONCATENATE("OSUPJEUNEACCEPTREGECO_"&A8),Output!$C:$AQ,6,FALSE) ->  | K8: =VLOOKUP(CONCATENATE("OSUPREGECO_"&A8),Output!$C:$AQ,6,FALSE) ->  | M8: =ROUND(VLOOKUP("OSUPJEUNEREGECO_"&A8,Output!$C:$AQ,7,FALSE)/VLOOKUP("OSUPREGECO_"&A8,Output!$C:$AQ,6,FALSE),3) ->  | O8: =ROUND(VLOOKUP("OSUPJEUNEREGECO_"&$A8,Output!$C:$AQ,12,FALSE)/VLOOKUP("OSUPREGECO_"&A8,Output!$C:$AQ,6,FALSE),3) ->  | R8: =ROUND(VLOOKUP("OSUPVIEUXTOTREGECO_"&$A8,Output!$C:$AQ,7,FALSE)/VLOOKUP("OSUPREGECO_"&A8,Output!$C:$AQ,6,FALSE),3) ->  | T8: =ROUND(VLOOKUP("OSUPVIEUXTOTREGECO_"&$A8,Output!$C:$AQ,12,FALSE)/VLOOKUP("OSUPREGECO_"&A8,Output!$C:$AQ,6,FALSE),3) ->  | W8: 0 | AA8: =Tableaux!$O$33 -> 08663 | AB8: 0
G9: =VLOOKUP(CONCATENATE("OSUPVIEUXALERTEREGECO_"&A9),Output!$C:$AQ,6,FALSE) ->  | H9: =VLOOKUP(CONCATENATE("OSUPVIEUXACCEPTREGECO_"&A9),Output!$C:$AQ,6,FALSE) ->  | I9: =VLOOKUP(CONCATENATE("OSUPJEUNEALERTEREGECO_"&A9),Output!$C:$AQ,6,FALSE) ->  | J9: =VLOOKUP(CONCATENATE("OSUPJEUNEACCEPTREGECO_"&A9),Output!$C:$AQ,6,FALSE) ->  | K9: =VLOOKUP(CONCATENATE("OSUPREGECO_"&A9),Output!$C:$AQ,6,FALSE) ->  | M9: =ROUND(VLOOKUP("OSUPJEUNEREGECO_"&A9,Output!$C:$AQ,7,FALSE)/VLOOKUP("OSUPREGECO_"&A9,Output!$C:$AQ,6,FALSE),3) ->  | O9: =ROUND(VLOOKUP("OSUPJEUNEREGECO_"&$A9,Output!$C:$AQ,12,FALSE)/VLOOKUP("OSUPREGECO_"&A9,Output!$C:$AQ,6,FALSE),3) ->  | R9: =ROUND(VLOOKUP("OSUPVIEUXTOTREGECO_"&$A9,Output!$C:$AQ,7,FALSE)/VLOOKUP("OSUPREGECO_"&A9,Output!$C:$AQ,6,FALSE),3) ->  | T9: =ROUND(VLOOKUP("OSUPVIEUXTOTREGECO_"&$A9,Output!$C:$AQ,12,FALSE)/VLOOKUP("OSUPREGECO_"&A9,Output!$C:$AQ,6,FALSE),3) ->  | W9: 0 | AA9: =Tableaux!$O$33 -> 08663 | AB9: 0
G10: =VLOOKUP(CONCATENATE("OSUPVIEUXALERTEREGECO_"&A10),Output!$C:$AQ,6,FALSE) ->  | H10: =VLOOKUP(CONCATENATE("OSUPVIEUXACCEPTREGECO_"&A10),Output!$C:$AQ,6,FALSE) ->  | I10: =VLOOKUP(CONCATENATE("OSUPJEUNEALERTEREGECO_"&A10),Output!$C:$AQ,6,FALSE) ->  | J10: =VLOOKUP(CONCATENATE("OSUPJEUNEACCEPTREGECO_"&A10),Output!$C:$AQ,6,FALSE) ->  | K10: =VLOOKUP(CONCATENATE("OSUPREGECO_"&A10),Output!$C:$AQ,6,FALSE) ->  | M10: =ROUND(VLOOKUP("OSUPJEUNEREGECO_"&A10,Output!$C:$AQ,7,FALSE)/VLOOKUP("OSUPREGECO_"&A10,Output!$C:$AQ,6,FALSE),3) ->  | O10: =ROUND(VLOOKUP("OSUPJEUNEREGECO_"&$A10,Output!$C:$AQ,12,FALSE)/VLOOKUP("OSUPREGECO_"&A10,Output!$C:$AQ,6,FALSE),3) ->  | R10: =ROUND(VLOOKUP("OSUPVIEUXTOTREGECO_"&$A10,Output!$C:$AQ,7,FALSE)/VLOOKUP("OSUPREGECO_"&A10,Output!$C:$AQ,6,FALSE),3) ->  | T10: =ROUND(VLOOKUP("OSUPVIEUXTOTREGECO_"&$A10,Output!$C:$AQ,12,FALSE)/VLOOKUP("OSUPREGECO_"&A10,Output!$C:$AQ,6,FALSE),3) ->  | W10: 0 | AA10: =Tableaux!$O$33 -> 08663 | AB10: 0
E11: =ROUND(J11/$K11,3) ->  | G11: =VLOOKUP(CONCATENATE("OSUPVIEUXALERTEREGECO_"&A11),Output!$C:$AQ,6,FALSE) ->  | H11: =VLOOKUP(CONCATENATE("OSUPVIEUXACCEPTREGECO_"&A11),Output!$C:$AQ,6,FALSE) ->  | I11: =VLOOKUP(CONCATENATE("OSUPJEUNEALERTEREGECO_"&A11),Output!$C:$AQ,6,FALSE) ->  | J11: =VLOOKUP(CONCATENATE("OSUPJEUNEACCEPTREGECO_"&A11),Output!$C:$AQ,6,FALSE) ->  | K11: =VLOOKUP(CONCATENATE("OSUPREGECO_"&A11),Output!$C:$AQ,6,FALSE) ->  | M11: =ROUND(VLOOKUP("OSUPJEUNEREGECO_"&A11,Output!$C:$AQ,7,FALSE)/VLOOKUP("OSUPREGECO_"&A11,Output!$C:$AQ,6,FALSE),3) ->  | O11: =ROUND(VLOOKUP("OSUPJEUNEREGECO_"&$A11,Output!$C:$AQ,12,FALSE)/VLOOKUP("OSUPREGECO_"&A11,Output!$C:$AQ,6,FALSE),3) ->  | R11: =ROUND(VLOOKUP("OSUPVIEUXTOTREGECO_"&$A11,Output!$C:$AQ,7,FALSE)/VLOOKUP("OSUPREGECO_"&A11,Output!$C:$AQ,6,FALSE),3) ->  | T11: =ROUND(VLOOKUP("OSUPVIEUXTOTREGECO_"&$A11,Output!$C:$AQ,12,FALSE)/VLOOKUP("OSUPREGECO_"&A11,Output!$C:$AQ,6,FALSE),3) ->  | W11: 0 | AA11: =Tableaux!$O$33 -> 08663 | AB11: 0
G12: =VLOOKUP(CONCATENATE("OSUPVIEUXALERTEREGECO_"&A12),Output!$C:$AQ,6,FALSE) ->  | H12: =VLOOKUP(CONCATENATE("OSUPVIEUXACCEPTREGECO_"&A12),Output!$C:$AQ,6,FALSE) ->  | I12: =VLOOKUP(CONCATENATE("OSUPJEUNEALERTEREGECO_"&A12),Output!$C:$AQ,6,FALSE) ->  | J12: =VLOOKUP(CONCATENATE("OSUPJEUNEACCEPTREGECO_"&A12),Output!$C:$AQ,6,FALSE) ->  | K12: =VLOOKUP(CONCATENATE("OSUPREGECO_"&A12),Output!$C:$AQ,6,FALSE) ->  | M12: =ROUND(VLOOKUP("OSUPJEUNEREGECO_"&A12,Output!$C:$AQ,7,FALSE)/VLOOKUP("OSUPREGECO_"&A12,Output!$C:$AQ,6,FALSE),3) ->  | O12: =ROUND(VLOOKUP("OSUPJEUNEREGECO_"&$A12,Output!$C:$AQ,12,FALSE)/VLOOKUP("OSUPREGECO_"&A12,Output!$C:$AQ,6,FALSE),3) ->  | R12: =ROUND(VLOOKUP("OSUPVIEUXTOTREGECO_"&$A12,Output!$C:$AQ,7,FALSE)/VLOOKUP("OSUPREGECO_"&A12,Output!$C:$AQ,6,FALSE),3) ->  | T12: =ROUND(VLOOKUP("OSUPVIEUXTOTREGECO_"&$A12,Output!$C:$AQ,12,FALSE)/VLOOKUP("OSUPREGECO_"&A12,Output!$C:$AQ,6,FALSE),3) ->  | W12: 0 | AA12: =Tableaux!$O$33 -> 08663 | AB12: 0 | AG12: Compléter cellules en jaune
G13: =VLOOKUP(CONCATENATE("OSUPVIEUXALERTEREGECO_"&A13),Output!$C:$AQ,6,FALSE) ->  | H13: =VLOOKUP(CONCATENATE("OSUPVIEUXACCEPTREGECO_"&A13),Output!$C:$AQ,6,FALSE) ->  | I13: =VLOOKUP(CONCATENATE("OSUPJEUNEALERTEREGECO_"&A13),Output!$C:$AQ,6,FALSE) ->  | J13: =VLOOKUP(CONCATENATE("OSUPJEUNEACCEPTREGECO_"&A13),Output!$C:$AQ,6,FALSE) ->  | K13: =VLOOKUP(CONCATENATE("OSUPREGECO_"&A13),Output!$C:$AQ,6,FALSE) ->  | M13: =ROUND(VLOOKUP("OSUPJEUNEREGECO_"&A13,Output!$C:$AQ,7,FALSE)/VLOOKUP("OSUPREGECO_"&A13,Output!$C:$AQ,6,FALSE),3) ->  | O13: =ROUND(VLOOKUP("OSUPJEUNEREGECO_"&$A13,Output!$C:$AQ,12,FALSE)/VLOOKUP("OSUPREGECO_"&A13,Output!$C:$AQ,6,FALSE),3) ->  | R13: =ROUND(VLOOKUP("OSUPVIEUXTOTREGECO_"&$A13,Output!$C:$AQ,7,FALSE)/VLOOKUP("OSUPREGECO_"&A13,Output!$C:$AQ,6,FALSE),3) ->  | T13: =ROUND(VLOOKUP("OSUPVIEUXTOTREGECO_"&$A13,Output!$C:$AQ,12,FALSE)/VLOOKUP("OSUPREGECO_"&A13,Output!$C:$AQ,6,FALSE),3) ->  | W13: 0 | AA13: =Tableaux!$O$33 -> 08663 | AB13: 0
G14: =VLOOKUP(CONCATENATE("OSUPVIEUXALERTEREGECO_"&A14),Output!$C:$AQ,6,FALSE) ->  | H14: =VLOOKUP(CONCATENATE("OSUPVIEUXACCEPTREGECO_"&A14),Output!$C:$AQ,6,FALSE) ->  | I14: =VLOOKUP(CONCATENATE("OSUPJEUNEALERTEREGECO_"&A14),Output!$C:$AQ,6,FALSE) ->  | J14: =VLOOKUP(CONCATENATE("OSUPJEUNEACCEPTREGECO_"&A14),Output!$C:$AQ,6,FALSE) ->  | K14: =VLOOKUP(CONCATENATE("OSUPREGECO_"&A14),Output!$C:$AQ,6,FALSE) ->  | M14: =ROUND(VLOOKUP("OSUPJEUNEREGECO_"&A14,Output!$C:$AQ,7,FALSE)/VLOOKUP("OSUPREGECO_"&A14,Output!$C:$AQ,6,FALSE),3) ->  | O14: =ROUND(VLOOKUP("OSUPJEUNEREGECO_"&$A14,Output!$C:$AQ,12,FALSE)/VLOOKUP("OSUPREGECO_"&A14,Output!$C:$AQ,6,FALSE),3) ->  | R14: =ROUND(VLOOKUP("OSUPVIEUXTOTREGECO_"&$A14,Output!$C:$AQ,7,FALSE)/VLOOKUP("OSUPREGECO_"&A14,Output!$C:$AQ,6,FALSE),3) ->  | T14: =ROUND(VLOOKUP("OSUPVIEUXTOTREGECO_"&$A14,Output!$C:$AQ,12,FALSE)/VLOOKUP("OSUPREGECO_"&A14,Output!$C:$AQ,6,FALSE),3) ->  | W14: 0 | AA14: =Tableaux!$O$33 -> 08663 | AB14: 0
G15: =VLOOKUP(CONCATENATE("OSUPVIEUXALERTEREGECO_"&A15),Output!$C:$AQ,6,FALSE) ->  | H15: =VLOOKUP(CONCATENATE("OSUPVIEUXACCEPTREGECO_"&A15),Output!$C:$AQ,6,FALSE) ->  | I15: =VLOOKUP(CONCATENATE("OSUPJEUNEALERTEREGECO_"&A15),Output!$C:$AQ,6,FALSE) ->  | J15: =VLOOKUP(CONCATENATE("OSUPJEUNEACCEPTREGECO_"&A15),Output!$C:$AQ,6,FALSE) ->  | K15: =VLOOKUP(CONCATENATE("OSUPREGECO_"&A15),Output!$C:$AQ,6,FALSE) ->  | M15: =ROUND(VLOOKUP("OSUPJEUNEREGECO_"&A15,Output!$C:$AQ,7,FALSE)/VLOOKUP("OSUPREGECO_"&A15,Output!$C:$AQ,6,FALSE),3) ->  | O15: =ROUND(VLOOKUP("OSUPJEUNEREGECO_"&$A15,Output!$C:$AQ,12,FALSE)/VLOOKUP("OSUPREGECO_"&A15,Output!$C:$AQ,6,FALSE),3) ->  | R15: =ROUND(VLOOKUP("OSUPVIEUXTOTREGECO_"&$A15,Output!$C:$AQ,7,FALSE)/VLOOKUP("OSUPREGECO_"&A15,Output!$C:$AQ,6,FALSE),3) ->  | T15: =ROUND(VLOOKUP("OSUPVIEUXTOTREGECO_"&$A15,Output!$C:$AQ,12,FALSE)/VLOOKUP("OSUPREGECO_"&A15,Output!$C:$AQ,6,FALSE),3) ->  | W15: 0 | AA15: =Tableaux!$O$33 -> 08663 | AB15: 0
G16: =VLOOKUP(CONCATENATE("OSUPVIEUXALERTEREGECO_"&A16),Output!$C:$AQ,6,FALSE) ->  | H16: =VLOOKUP(CONCATENATE("OSUPVIEUXACCEPTREGECO_"&A16),Output!$C:$AQ,6,FALSE) ->  | I16: =VLOOKUP(CONCATENATE("OSUPJEUNEALERTEREGECO_"&A16),Output!$C:$AQ,6,FALSE) ->  | J16: =VLOOKUP(CONCATENATE("OSUPJEUNEACCEPTREGECO_"&A16),Output!$C:$AQ,6,FALSE) ->  | K16: =VLOOKUP(CONCATENATE("OSUPREGECO_"&A16),Output!$C:$AQ,6,FALSE) ->  | M16: =ROUND(VLOOKUP("OSUPJEUNEREGECO_"&A16,Output!$C:$AQ,7,FALSE)/VLOOKUP("OSUPREGECO_"&A16,Output!$C:$AQ,6,FALSE),3) ->  | O16: =ROUND(VLOOKUP("OSUPJEUNEREGECO_"&$A16,Output!$C:$AQ,12,FALSE)/VLOOKUP("OSUPREGECO_"&A16,Output!$C:$AQ,6,FALSE),3) ->  | R16: =ROUND(VLOOKUP("OSUPVIEUXTOTREGECO_"&$A16,Output!$C:$AQ,7,FALSE)/VLOOKUP("OSUPREGECO_"&A16,Output!$C:$AQ,6,FALSE),3) ->  | T16: =ROUND(VLOOKUP("OSUPVIEUXTOTREGECO_"&$A16,Output!$C:$AQ,12,FALSE)/VLOOKUP("OSUPREGECO_"&A16,Output!$C:$AQ,6,FALSE),3) ->  | W16: 0 | AA16: =Tableaux!$O$33 -> 08663 | AB16: 0
G17: =VLOOKUP(CONCATENATE("OSUPVIEUXALERTEREGECO_"&A17),Output!$C:$AQ,6,FALSE) ->  | H17: =VLOOKUP(CONCATENATE("OSUPVIEUXACCEPTREGECO_"&A17),Output!$C:$AQ,6,FALSE) ->  | I17: =VLOOKUP(CONCATENATE("OSUPJEUNEALERTEREGECO_"&A17),Output!$C:$AQ,6,FALSE) ->  | J17: =VLOOKUP(CONCATENATE("OSUPJEUNEACCEPTREGECO_"&A17),Output!$C:$AQ,6,FALSE) ->  | K17: =VLOOKUP(CONCATENATE("OSUPREGECO_"&A17),Output!$C:$AQ,6,FALSE) ->  | M17: =ROUND(VLOOKUP("OSUPJEUNEREGECO_"&A17,Output!$C:$AQ,7,FALSE)/VLOOKUP("OSUPREGECO_"&A17,Output!$C:$AQ,6,FALSE),3) ->  | O17: =ROUND(VLOOKUP("OSUPJEUNEREGECO_"&$A17,Output!$C:$AQ,12,FALSE)/VLOOKUP("OSUPREGECO_"&A17,Output!$C:$AQ,6,FALSE),3) ->  | R17: =ROUND(VLOOKUP("OSUPVIEUXTOTREGECO_"&$A17,Output!$C:$AQ,7,FALSE)/VLOOKUP("OSUPREGECO_"&A17,Output!$C:$AQ,6,FALSE),3) ->  | T17: =ROUND(VLOOKUP("OSUPVIEUXTOTREGECO_"&$A17,Output!$C:$AQ,12,FALSE)/VLOOKUP("OSUPREGECO_"&A17,Output!$C:$AQ,6,FALSE),3) ->  | W17: 0 | AA17: =Tableaux!$O$33 -> 08663 | AB17: 0
G18: =VLOOKUP(CONCATENATE("OSUPVIEUXALERTEREGECO_"&A18),Output!$C:$AQ,6,FALSE) ->  | H18: =VLOOKUP(CONCATENATE("OSUPVIEUXACCEPTREGECO_"&A18),Output!$C:$AQ,6,FALSE) ->  | I18: =VLOOKUP(CONCATENATE("OSUPJEUNEALERTEREGECO_"&A18),Output!$C:$AQ,6,FALSE) ->  | J18: =VLOOKUP(CONCATENATE("OSUPJEUNEACCEPTREGECO_"&A18),Output!$C:$AQ,6,FALSE) ->  | K18: =VLOOKUP(CONCATENATE("OSUPREGECO_"&A18),Output!$C:$AQ,6,FALSE) ->  | M18: =ROUND(VLOOKUP("OSUPJEUNEREGECO_"&A18,Output!$C:$AQ,7,FALSE)/VLOOKUP("OSUPREGECO_"&A18,Output!$C:$AQ,6,FALSE),3) ->  | O18: =ROUND(VLOOKUP("OSUPJEUNEREGECO_"&$A18,Output!$C:$AQ,12,FALSE)/VLOOKUP("OSUPREGECO_"&A18,Output!$C:$AQ,6,FALSE),3) ->  | R18: =ROUND(VLOOKUP("OSUPVIEUXTOTREGECO_"&$A18,Output!$C:$AQ,7,FALSE)/VLOOKUP("OSUPREGECO_"&A18,Output!$C:$AQ,6,FALSE),3) ->  | T18: =ROUND(VLOOKUP("OSUPVIEUXTOTREGECO_"&$A18,Output!$C:$AQ,12,FALSE)/VLOOKUP("OSUPREGECO_"&A18,Output!$C:$AQ,6,FALSE),3) ->  | W18: 0 | AA18: =Tableaux!$O$33 -> 08663 | AB18: 0
G19: =VLOOKUP(CONCATENATE("OSUPVIEUXALERTEREGECO_"&A19),Output!$C:$AQ,6,FALSE) ->  | H19: =VLOOKUP(CONCATENATE("OSUPVIEUXACCEPTREGECO_"&A19),Output!$C:$AQ,6,FALSE) ->  | I19: =VLOOKUP(CONCATENATE("OSUPJEUNEALERTEREGECO_"&A19),Output!$C:$AQ,6,FALSE) ->  | J19: =VLOOKUP(CONCATENATE("OSUPJEUNEACCEPTREGECO_"&A19),Output!$C:$AQ,6,FALSE) ->  | K19: =VLOOKUP(CONCATENATE("OSUPREGECO_"&A19),Output!$C:$AQ,6,FALSE) ->  | M19: =ROUND(VLOOKUP("OSUPJEUNEREGECO_"&A19,Output!$C:$AQ,7,FALSE)/VLOOKUP("OSUPREGECO_"&A19,Output!$C:$AQ,6,FALSE),3) ->  | O19: =ROUND(VLOOKUP("OSUPJEUNEREGECO_"&$A19,Output!$C:$AQ,12,FALSE)/VLOOKUP("OSUPREGECO_"&A19,Output!$C:$AQ,6,FALSE),3) ->  | R19: =ROUND(VLOOKUP("OSUPVIEUXTOTREGECO_"&$A19,Output!$C:$AQ,7,FALSE)/VLOOKUP("OSUPREGECO_"&A19,Output!$C:$AQ,6,FALSE),3) ->  | T19: =ROUND(VLOOKUP("OSUPVIEUXTOTREGECO_"&$A19,Output!$C:$AQ,12,FALSE)/VLOOKUP("OSUPREGECO_"&A19,Output!$C:$AQ,6,FALSE),3) ->  | W19: 0 | AA19: =Tableaux!$O$33 -> 08663 | AB19: 0
G20: =VLOOKUP(CONCATENATE("OSUPVIEUXALERTEREGECO_"&A20),Output!$C:$AQ,6,FALSE) ->  | H20: =VLOOKUP(CONCATENATE("OSUPVIEUXACCEPTREGECO_"&A20),Output!$C:$AQ,6,FALSE) ->  | I20: =VLOOKUP(CONCATENATE("OSUPJEUNEALERTEREGECO_"&A20),Output!$C:$AQ,6,FALSE) ->  | J20: =VLOOKUP(CONCATENATE("OSUPJEUNEACCEPTREGECO_"&A20),Output!$C:$AQ,6,FALSE) ->  | K20: =VLOOKUP(CONCATENATE("OSUPREGECO_"&A20),Output!$C:$AQ,6,FALSE) ->  | M20: =ROUND(VLOOKUP("OSUPJEUNEREGECO_"&A20,Output!$C:$AQ,7,FALSE)/VLOOKUP("OSUPREGECO_"&A20,Output!$C:$AQ,6,FALSE),3) ->  | O20: =ROUND(VLOOKUP("OSUPJEUNEREGECO_"&$A20,Output!$C:$AQ,12,FALSE)/VLOOKUP("OSUPREGECO_"&A20,Output!$C:$AQ,6,FALSE),3) ->  | R20: =ROUND(VLOOKUP("OSUPVIEUXTOTREGECO_"&$A20,Output!$C:$AQ,7,FALSE)/VLOOKUP("OSUPREGECO_"&A20,Output!$C:$AQ,6,FALSE),3) ->  | T20: =ROUND(VLOOKUP("OSUPVIEUXTOTREGECO_"&$A20,Output!$C:$AQ,12,FALSE)/VLOOKUP("OSUPREGECO_"&A20,Output!$C:$AQ,6,FALSE),3) ->  | W20: 0 | AA20: =Tableaux!$O$33 -> 08663 | AB20: 0
B21: =ROUND(G21/$K21,2) ->  | C21: =H21/$K21 ->  | D21: =ROUND(I21/$K21,3) ->  | G21: =VLOOKUP(CONCATENATE("OSUPVIEUXALERTEREGECO_"&A21),Output!$C:$AQ,6,FALSE) ->  | H21: =VLOOKUP(CONCATENATE("OSUPVIEUXACCEPTREGECO_"&A21),Output!$C:$AQ,6,FALSE) ->  | I21: =VLOOKUP(CONCATENATE("OSUPJEUNEALERTEREGECO_"&A21),Output!$C:$AQ,6,FALSE) ->  | J21: =VLOOKUP(CONCATENATE("OSUPJEUNEACCEPTREGECO_"&A21),Output!$C:$AQ,6,FALSE) ->  | K21: =VLOOKUP(CONCATENATE("OSUPREGECO_"&A21),Output!$C:$AQ,6,FALSE) ->  | M21: =ROUND(VLOOKUP("OSUPJEUNEREGECO_"&A21,Output!$C:$AQ,7,FALSE)/VLOOKUP("OSUPREGECO_"&A21,Output!$C:$AQ,6,FALSE),3) ->  | O21: =ROUND(VLOOKUP("OSUPJEUNEREGECO_"&$A21,Output!$C:$AQ,12,FALSE)/VLOOKUP("OSUPREGECO_"&A21,Output!$C:$AQ,6,FALSE),3) ->  | R21: =ROUND(VLOOKUP("OSUPVIEUXTOTREGECO_"&$A21,Output!$C:$AQ,7,FALSE)/VLOOKUP("OSUPREGECO_"&A21,Output!$C:$AQ,6,FALSE),3) ->  | T21: =ROUND(VLOOKUP("OSUPVIEUXTOTREGECO_"&$A21,Output!$C:$AQ,12,FALSE)/VLOOKUP("OSUPREGECO_"&A21,Output!$C:$AQ,6,FALSE),3) ->  | W21: 0 | AA21: =Tableaux!$O$33 -> 08663 | AB21: 0
G22: =VLOOKUP(CONCATENATE("OSUPVIEUXALERTEREGECO_"&A22),Output!$C:$AQ,6,FALSE) ->  | H22: =VLOOKUP(CONCATENATE("OSUPVIEUXACCEPTREGECO_"&A22),Output!$C:$AQ,6,FALSE) ->  | I22: =VLOOKUP(CONCATENATE("OSUPJEUNEALERTEREGECO_"&A22),Output!$C:$AQ,6,FALSE) ->  | J22: =VLOOKUP(CONCATENATE("OSUPJEUNEACCEPTREGECO_"&A22),Output!$C:$AQ,6,FALSE) ->  | K22: =VLOOKUP(CONCATENATE("OSUPREGECO_"&A22),Output!$C:$AQ,6,FALSE) ->  | M22: =ROUND(VLOOKUP("OSUPJEUNEREGECO_"&A22,Output!$C:$AQ,7,FALSE)/VLOOKUP("OSUPREGECO_"&A22,Output!$C:$AQ,6,FALSE),3) ->  | O22: =ROUND(VLOOKUP("OSUPJEUNEREGECO_"&$A22,Output!$C:$AQ,12,FALSE)/VLOOKUP("OSUPREGECO_"&A22,Output!$C:$AQ,6,FALSE),3) ->  | R22: =ROUND(VLOOKUP("OSUPVIEUXTOTREGECO_"&$A22,Output!$C:$AQ,7,FALSE)/VLOOKUP("OSUPREGECO_"&A22,Output!$C:$AQ,6,FALSE),3) ->  | T22: =ROUND(VLOOKUP("OSUPVIEUXTOTREGECO_"&$A22,Output!$C:$AQ,12,FALSE)/VLOOKUP("OSUPREGECO_"&A22,Output!$C:$AQ,6,FALSE),3) ->  | W22: 0 | AA22: =Tableaux!$O$33 -> 08663 | AB22: 0
G23: =VLOOKUP(CONCATENATE("OSUPVIEUXALERTEREGECO_"&A23),Output!$C:$AQ,6,FALSE) ->  | H23: =VLOOKUP(CONCATENATE("OSUPVIEUXACCEPTREGECO_"&A23),Output!$C:$AQ,6,FALSE) ->  | I23: =VLOOKUP(CONCATENATE("OSUPJEUNEALERTEREGECO_"&A23),Output!$C:$AQ,6,FALSE) ->  | J23: =VLOOKUP(CONCATENATE("OSUPJEUNEACCEPTREGECO_"&A23),Output!$C:$AQ,6,FALSE) ->  | K23: =VLOOKUP(CONCATENATE("OSUPREGECO_"&A23),Output!$C:$AQ,6,FALSE) ->  | M23: =ROUND(VLOOKUP("OSUPJEUNEREGECO_"&A23,Output!$C:$AQ,7,FALSE)/VLOOKUP("OSUPREGECO_"&A23,Output!$C:$AQ,6,FALSE),3) ->  | O23: =ROUND(VLOOKUP("OSUPJEUNEREGECO_"&$A23,Output!$C:$AQ,12,FALSE)/VLOOKUP("OSUPREGECO_"&A23,Output!$C:$AQ,6,FALSE),3) ->  | R23: =ROUND(VLOOKUP("OSUPVIEUXTOTREGECO_"&$A23,Output!$C:$AQ,7,FALSE)/VLOOKUP("OSUPREGECO_"&A23,Output!$C:$AQ,6,FALSE),3) ->  | T23: =ROUND(VLOOKUP("OSUPVIEUXTOTREGECO_"&$A23,Output!$C:$AQ,12,FALSE)/VLOOKUP("OSUPREGECO_"&A23,Output!$C:$AQ,6,FALSE),3) ->  | W23: 0 | AA23: =Tableaux!$O$33 -> 08663 | AB23: 0
G24: =VLOOKUP(CONCATENATE("OSUPVIEUXALERTEREGECO_"&A24),Output!$C:$AQ,6,FALSE) ->  | H24: =VLOOKUP(CONCATENATE("OSUPVIEUXACCEPTREGECO_"&A24),Output!$C:$AQ,6,FALSE) ->  | I24: =VLOOKUP(CONCATENATE("OSUPJEUNEALERTEREGECO_"&A24),Output!$C:$AQ,6,FALSE) ->  | J24: =VLOOKUP(CONCATENATE("OSUPJEUNEACCEPTREGECO_"&A24),Output!$C:$AQ,6,FALSE) ->  | K24: =VLOOKUP(CONCATENATE("OSUPREGECO_"&A24),Output!$C:$AQ,6,FALSE) ->  | M24: =ROUND(VLOOKUP("OSUPJEUNEREGECO_"&A24,Output!$C:$AQ,7,FALSE)/VLOOKUP("OSUPREGECO_"&A24,Output!$C:$AQ,6,FALSE),3) ->  | O24: =ROUND(VLOOKUP("OSUPJEUNEREGECO_"&$A24,Output!$C:$AQ,12,FALSE)/VLOOKUP("OSUPREGECO_"&A24,Output!$C:$AQ,6,FALSE),3) ->  | R24: =ROUND(VLOOKUP("OSUPVIEUXTOTREGECO_"&$A24,Output!$C:$AQ,7,FALSE)/VLOOKUP("OSUPREGECO_"&A24,Output!$C:$AQ,6,FALSE),3) ->  | T24: =ROUND(VLOOKUP("OSUPVIEUXTOTREGECO_"&$A24,Output!$C:$AQ,12,FALSE)/VLOOKUP("OSUPREGECO_"&A24,Output!$C:$AQ,6,FALSE),3) ->  | W24: 0 | AA24: =Tableaux!$O$33 -> 08663 | AB24: 0
G25: =VLOOKUP(CONCATENATE("OSUPVIEUXALERTEREGECO_"&A25),Output!$C:$AQ,6,FALSE) ->  | H25: =VLOOKUP(CONCATENATE("OSUPVIEUXACCEPTREGECO_"&A25),Output!$C:$AQ,6,FALSE) ->  | I25: =VLOOKUP(CONCATENATE("OSUPJEUNEALERTEREGECO_"&A25),Output!$C:$AQ,6,FALSE) ->  | J25: =VLOOKUP(CONCATENATE("OSUPJEUNEACCEPTREGECO_"&A25),Output!$C:$AQ,6,FALSE) ->  | K25: =VLOOKUP(CONCATENATE("OSUPREGECO_"&A25),Output!$C:$AQ,6,FALSE) ->  | M25: =ROUND(VLOOKUP("OSUPJEUNEREGECO_"&A25,Output!$C:$AQ,7,FALSE)/VLOOKUP("OSUPREGECO_"&A25,Output!$C:$AQ,6,FALSE),3) ->  | O25: =ROUND(VLOOKUP("OSUPJEUNEREGECO_"&$A25,Output!$C:$AQ,12,FALSE)/VLOOKUP("OSUPREGECO_"&A25,Output!$C:$AQ,6,FALSE),3) ->  | R25: =ROUND(VLOOKUP("OSUPVIEUXTOTREGECO_"&$A25,Output!$C:$AQ,7,FALSE)/VLOOKUP("OSUPREGECO_"&A25,Output!$C:$AQ,6,FALSE),3) ->  | T25: =ROUND(VLOOKUP("OSUPVIEUXTOTREGECO_"&$A25,Output!$C:$AQ,12,FALSE)/VLOOKUP("OSUPREGECO_"&A25,Output!$C:$AQ,6,FALSE),3) ->  | W25: 0 | AA25: =Tableaux!$O$33 -> 08663 | AB25: 0
G26: =VLOOKUP(CONCATENATE("OSUPVIEUXALERTEREGECO_"&A26),Output!$C:$AQ,6,FALSE) ->  | H26: =VLOOKUP(CONCATENATE("OSUPVIEUXACCEPTREGECO_"&A26),Output!$C:$AQ,6,FALSE) ->  | I26: =VLOOKUP(CONCATENATE("OSUPJEUNEALERTEREGECO_"&A26),Output!$C:$AQ,6,FALSE) ->  | J26: =VLOOKUP(CONCATENATE("OSUPJEUNEACCEPTREGECO_"&A26),Output!$C:$AQ,6,FALSE) ->  | K26: =VLOOKUP(CONCATENATE("OSUPREGECO_"&A26),Output!$C:$AQ,6,FALSE) ->  | M26: =ROUND(VLOOKUP("OSUPJEUNEREGECO_"&A26,Output!$C:$AQ,7,FALSE)/VLOOKUP("OSUPREGECO_"&A26,Output!$C:$AQ,6,FALSE),3) ->  | O26: =ROUND(VLOOKUP("OSUPJEUNEREGECO_"&$A26,Output!$C:$AQ,12,FALSE)/VLOOKUP("OSUPREGECO_"&A26,Output!$C:$AQ,6,FALSE),3) ->  | R26: =ROUND(VLOOKUP("OSUPVIEUXTOTREGECO_"&$A26,Output!$C:$AQ,7,FALSE)/VLOOKUP("OSUPREGECO_"&A26,Output!$C:$AQ,6,FALSE),3) ->  | T26: =ROUND(VLOOKUP("OSUPVIEUXTOTREGECO_"&$A26,Output!$C:$AQ,12,FALSE)/VLOOKUP("OSUPREGECO_"&A26,Output!$C:$AQ,6,FALSE),3) ->  | W26: 0 | AA26: =Tableaux!$O$33 -> 08663 | AB26: 0
C27: =ROUND(H27/$K27,3) ->  | G27: =VLOOKUP(CONCATENATE("OSUPVIEUXALERTEREGECO_"&A27),Output!$C:$AQ,6,FALSE) ->  | H27: =VLOOKUP(CONCATENATE("OSUPVIEUXACCEPTREGECO_"&A27),Output!$C:$AQ,6,FALSE) ->  | I27: =VLOOKUP(CONCATENATE("OSUPJEUNEALERTEREGECO_"&A27),Output!$C:$AQ,6,FALSE) ->  | J27: =VLOOKUP(CONCATENATE("OSUPJEUNEACCEPTREGECO_"&A27),Output!$C:$AQ,6,FALSE) ->  | K27: =VLOOKUP(CONCATENATE("OSUPREGECO_"&A27),Output!$C:$AQ,6,FALSE) ->  | M27: =ROUND(VLOOKUP("OSUPJEUNEREGECO_"&A27,Output!$C:$AQ,7,FALSE)/VLOOKUP("OSUPREGECO_"&A27,Output!$C:$AQ,6,FALSE),3) ->  | O27: =ROUND(VLOOKUP("OSUPJEUNEREGECO_"&$A27,Output!$C:$AQ,12,FALSE)/VLOOKUP("OSUPREGECO_"&A27,Output!$C:$AQ,6,FALSE),3) ->  | R27: =ROUND(VLOOKUP("OSUPVIEUXTOTREGECO_"&$A27,Output!$C:$AQ,7,FALSE)/VLOOKUP("OSUPREGECO_"&A27,Output!$C:$AQ,6,FALSE),3) ->  | T27: =ROUND(VLOOKUP("OSUPVIEUXTOTREGECO_"&$A27,Output!$C:$AQ,12,FALSE)/VLOOKUP("OSUPREGECO_"&A27,Output!$C:$AQ,6,FALSE),3) ->  | W27: 0 | AA27: =Tableaux!$O$33 -> 08663 | AB27: 0
G28: =VLOOKUP(CONCATENATE("OSUPVIEUXALERTEREGECO_"&A28),Output!$C:$AQ,6,FALSE) ->  | H28: =VLOOKUP(CONCATENATE("OSUPVIEUXACCEPTREGECO_"&A28),Output!$C:$AQ,6,FALSE) ->  | I28: =VLOOKUP(CONCATENATE("OSUPJEUNEALERTEREGECO_"&A28),Output!$C:$AQ,6,FALSE) ->  | J28: =VLOOKUP(CONCATENATE("OSUPJEUNEACCEPTREGECO_"&A28),Output!$C:$AQ,6,FALSE) ->  | K28: =VLOOKUP(CONCATENATE("OSUPREGECO_"&A28),Output!$C:$AQ,6,FALSE) ->  | M28: =ROUND(VLOOKUP("OSUPJEUNEREGECO_"&A28,Output!$C:$AQ,7,FALSE)/VLOOKUP("OSUPREGECO_"&A28,Output!$C:$AQ,6,FALSE),3) ->  | O28: =ROUND(VLOOKUP("OSUPJEUNEREGECO_"&$A28,Output!$C:$AQ,12,FALSE)/VLOOKUP("OSUPREGECO_"&A28,Output!$C:$AQ,6,FALSE),3) ->  | R28: =ROUND(VLOOKUP("OSUPVIEUXTOTREGECO_"&$A28,Output!$C:$AQ,7,FALSE)/VLOOKUP("OSUPREGECO_"&A28,Output!$C:$AQ,6,FALSE),3) ->  | T28: =ROUND(VLOOKUP("OSUPVIEUXTOTREGECO_"&$A28,Output!$C:$AQ,12,FALSE)/VLOOKUP("OSUPREGECO_"&A28,Output!$C:$AQ,6,FALSE),3) ->  | W28: 0 | AA28: =Tableaux!$O$33 -> 08663 | AB28: 0
G29: =VLOOKUP(CONCATENATE("OSUPVIEUXALERTEREGECO_"&A29),Output!$C:$AQ,6,FALSE) ->  | H29: =VLOOKUP(CONCATENATE("OSUPVIEUXACCEPTREGECO_"&A29),Output!$C:$AQ,6,FALSE) ->  | I29: =VLOOKUP(CONCATENATE("OSUPJEUNEALERTEREGECO_"&A29),Output!$C:$AQ,6,FALSE) ->  | J29: =VLOOKUP(CONCATENATE("OSUPJEUNEACCEPTREGECO_"&A29),Output!$C:$AQ,6,FALSE) ->  | K29: =VLOOKUP(CONCATENATE("OSUPREGECO_"&A29),Output!$C:$AQ,6,FALSE) ->  | M29: =ROUND(VLOOKUP("OSUPJEUNEREGECO_"&A29,Output!$C:$AQ,7,FALSE)/VLOOKUP("OSUPREGECO_"&A29,Output!$C:$AQ,6,FALSE),3) ->  | O29: =ROUND(VLOOKUP("OSUPJEUNEREGECO_"&$A29,Output!$C:$AQ,12,FALSE)/VLOOKUP("OSUPREGECO_"&A29,Output!$C:$AQ,6,FALSE),3) ->  | R29: =ROUND(VLOOKUP("OSUPVIEUXTOTREGECO_"&$A29,Output!$C:$AQ,7,FALSE)/VLOOKUP("OSUPREGECO_"&A29,Output!$C:$AQ,6,FALSE),3) ->  | T29: =ROUND(VLOOKUP("OSUPVIEUXTOTREGECO_"&$A29,Output!$C:$AQ,12,FALSE)/VLOOKUP("OSUPREGECO_"&A29,Output!$C:$AQ,6,FALSE),3) ->  | W29: 0 | AA29: =Tableaux!$O$33 -> 08663 | AB29: 0
G30: =VLOOKUP(CONCATENATE("OSUPVIEUXALERTEREGECO_"&A30),Output!$C:$AQ,6,FALSE) ->  | H30: =VLOOKUP(CONCATENATE("OSUPVIEUXACCEPTREGECO_"&A30),Output!$C:$AQ,6,FALSE) ->  | I30: =VLOOKUP(CONCATENATE("OSUPJEUNEALERTEREGECO_"&A30),Output!$C:$AQ,6,FALSE) ->  | J30: =VLOOKUP(CONCATENATE("OSUPJEUNEACCEPTREGECO_"&A30),Output!$C:$AQ,6,FALSE) ->  | K30: =VLOOKUP(CONCATENATE("OSUPREGECO_"&A30),Output!$C:$AQ,6,FALSE) ->  | M30: =ROUND(VLOOKUP("OSUPJEUNEREGECO_"&A30,Output!$C:$AQ,7,FALSE)/VLOOKUP("OSUPREGECO_"&A30,Output!$C:$AQ,6,FALSE),3) ->  | O30: =ROUND(VLOOKUP("OSUPJEUNEREGECO_"&$A30,Output!$C:$AQ,12,FALSE)/VLOOKUP("OSUPREGECO_"&A30,Output!$C:$AQ,6,FALSE),3) ->  | R30: =ROUND(VLOOKUP("OSUPVIEUXTOTREGECO_"&$A30,Output!$C:$AQ,7,FALSE)/VLOOKUP("OSUPREGECO_"&A30,Output!$C:$AQ,6,FALSE),3) ->  | T30: =ROUND(VLOOKUP("OSUPVIEUXTOTREGECO_"&$A30,Output!$C:$AQ,12,FALSE)/VLOOKUP("OSUPREGECO_"&A30,Output!$C:$AQ,6,FALSE),3) ->  | W30: 0 | AA30: =Tableaux!$O$33 -> 08663 | AB30: 0
G31: =VLOOKUP(CONCATENATE("OSUPVIEUXALERTEREGECO_"&A31),Output!$C:$AQ,6,FALSE) ->  | H31: =VLOOKUP(CONCATENATE("OSUPVIEUXACCEPTREGECO_"&A31),Output!$C:$AQ,6,FALSE) ->  | I31: =VLOOKUP(CONCATENATE("OSUPJEUNEALERTEREGECO_"&A31),Output!$C:$AQ,6,FALSE) ->  | J31: =VLOOKUP(CONCATENATE("OSUPJEUNEACCEPTREGECO_"&A31),Output!$C:$AQ,6,FALSE) ->  | K31: =VLOOKUP(CONCATENATE("OSUPREGECO_"&A31),Output!$C:$AQ,6,FALSE) ->  | M31: =ROUND(VLOOKUP("OSUPJEUNEREGECO_"&A31,Output!$C:$AQ,7,FALSE)/VLOOKUP("OSUPREGECO_"&A31,Output!$C:$AQ,6,FALSE),3) ->  | O31: =ROUND(VLOOKUP("OSUPJEUNEREGECO_"&$A31,Output!$C:$AQ,12,FALSE)/VLOOKUP("OSUPREGECO_"&A31,Output!$C:$AQ,6,FALSE),3) ->  | R31: =ROUND(VLOOKUP("OSUPVIEUXTOTREGECO_"&$A31,Output!$C:$AQ,7,FALSE)/VLOOKUP("OSUPREGECO_"&A31,Output!$C:$AQ,6,FALSE),3) ->  | T31: =ROUND(VLOOKUP("OSUPVIEUXTOTREGECO_"&$A31,Output!$C:$AQ,12,FALSE)/VLOOKUP("OSUPREGECO_"&A31,Output!$C:$AQ,6,FALSE),3) ->  | W31: 0 | AA31: =Tableaux!$O$33 -> 08663 | AB31: 0
G32: =VLOOKUP(CONCATENATE("OSUPVIEUXALERTEREGECO_"&A32),Output!$C:$AQ,6,FALSE) ->  | H32: =VLOOKUP(CONCATENATE("OSUPVIEUXACCEPTREGECO_"&A32),Output!$C:$AQ,6,FALSE) ->  | I32: =VLOOKUP(CONCATENATE("OSUPJEUNEALERTEREGECO_"&A32),Output!$C:$AQ,6,FALSE) ->  | J32: =VLOOKUP(CONCATENATE("OSUPJEUNEACCEPTREGECO_"&A32),Output!$C:$AQ,6,FALSE) ->  | K32: =VLOOKUP(CONCATENATE("OSUPREGECO_"&A32),Output!$C:$AQ,6,FALSE) ->  | M32: =ROUND(VLOOKUP("OSUPJEUNEREGECO_"&A32,Output!$C:$AQ,7,FALSE)/VLOOKUP("OSUPREGECO_"&A32,Output!$C:$AQ,6,FALSE),3) ->  | O32: =ROUND(VLOOKUP("OSUPJEUNEREGECO_"&$A32,Output!$C:$AQ,12,FALSE)/VLOOKUP("OSUPREGECO_"&A32,Output!$C:$AQ,6,FALSE),3) ->  | R32: =ROUND(VLOOKUP("OSUPVIEUXTOTREGECO_"&$A32,Output!$C:$AQ,7,FALSE)/VLOOKUP("OSUPREGECO_"&A32,Output!$C:$AQ,6,FALSE),3) ->  | T32: =ROUND(VLOOKUP("OSUPVIEUXTOTREGECO_"&$A32,Output!$C:$AQ,12,FALSE)/VLOOKUP("OSUPREGECO_"&A32,Output!$C:$AQ,6,FALSE),3) ->  | W32: 0 | AA32: =Tableaux!$O$33 -> 08663 | AB32: 0
G33: =VLOOKUP(CONCATENATE("OSUPVIEUXALERTEREGECO_"&A33),Output!$C:$AQ,6,FALSE) ->  | H33: =VLOOKUP(CONCATENATE("OSUPVIEUXACCEPTREGECO_"&A33),Output!$C:$AQ,6,FALSE) ->  | I33: =VLOOKUP(CONCATENATE("OSUPJEUNEALERTEREGECO_"&A33),Output!$C:$AQ,6,FALSE) ->  | J33: =VLOOKUP(CONCATENATE("OSUPJEUNEACCEPTREGECO_"&A33),Output!$C:$AQ,6,FALSE) ->  | K33: =VLOOKUP(CONCATENATE("OSUPREGECO_"&A33),Output!$C:$AQ,6,FALSE) ->  | M33: =ROUND(VLOOKUP("OSUPJEUNEREGECO_"&A33,Output!$C:$AQ,7,FALSE)/VLOOKUP("OSUPREGECO_"&A33,Output!$C:$AQ,6,FALSE),3) ->  | O33: =ROUND(VLOOKUP("OSUPJEUNEREGECO_"&$A33,Output!$C:$AQ,12,FALSE)/VLOOKUP("OSUPREGECO_"&A33,Output!$C:$AQ,6,FALSE),3) ->  | R33: =ROUND(VLOOKUP("OSUPVIEUXTOTREGECO_"&$A33,Output!$C:$AQ,7,FALSE)/VLOOKUP("OSUPREGECO_"&A33,Output!$C:$AQ,6,FALSE),3) ->  | T33: =ROUND(VLOOKUP("OSUPVIEUXTOTREGECO_"&$A33,Output!$C:$AQ,12,FALSE)/VLOOKUP("OSUPREGECO_"&A33,Output!$C:$AQ,6,FALSE),3) ->  | W33: 0 | AA33: =Tableaux!$O$33 -> 08663 | AB33: =W33 -> 0
G34: =VLOOKUP(CONCATENATE("OSUPVIEUXALERTEREGECO_"&A34),Output!$C:$AQ,6,FALSE) ->  | H34: =VLOOKUP(CONCATENATE("OSUPVIEUXACCEPTREGECO_"&A34),Output!$C:$AQ,6,FALSE) ->  | I34: =VLOOKUP(CONCATENATE("OSUPJEUNEALERTEREGECO_"&A34),Output!$C:$AQ,6,FALSE) ->  | J34: =VLOOKUP(CONCATENATE("OSUPJEUNEACCEPTREGECO_"&A34),Output!$C:$AQ,6,FALSE) ->  | K34: =VLOOKUP(CONCATENATE("OSUPREGECO_"&A34),Output!$C:$AQ,6,FALSE) ->  | M34: =ROUND(VLOOKUP("OSUPJEUNEREGECO_"&A34,Output!$C:$AQ,7,FALSE)/VLOOKUP("OSUPREGECO_"&A34,Output!$C:$AQ,6,FALSE),3) ->  | O34: =ROUND(VLOOKUP("OSUPJEUNEREGECO_"&$A34,Output!$C:$AQ,12,FALSE)/VLOOKUP("OSUPREGECO_"&A34,Output!$C:$AQ,6,FALSE),3) ->  | R34: =ROUND(VLOOKUP("OSUPVIEUXTOTREGECO_"&$A34,Output!$C:$AQ,7,FALSE)/VLOOKUP("OSUPREGECO_"&A34,Output!$C:$AQ,6,FALSE),3) ->  | T34: =ROUND(VLOOKUP("OSUPVIEUXTOTREGECO_"&$A34,Output!$C:$AQ,12,FALSE)/VLOOKUP("OSUPREGECO_"&A34,Output!$C:$AQ,6,FALSE),3) ->  | W34: 0 | AA34: =Tableaux!$O$33 -> 08663 | AB34: 0
G35: =VLOOKUP(CONCATENATE("OSUPVIEUXALERTEREGECO_"&A35),Output!$C:$AQ,6,FALSE) ->  | H35: =VLOOKUP(CONCATENATE("OSUPVIEUXACCEPTREGECO_"&A35),Output!$C:$AQ,6,FALSE) ->  | I35: =VLOOKUP(CONCATENATE("OSUPJEUNEALERTEREGECO_"&A35),Output!$C:$AQ,6,FALSE) ->  | J35: =VLOOKUP(CONCATENATE("OSUPJEUNEACCEPTREGECO_"&A35),Output!$C:$AQ,6,FALSE) ->  | K35: =VLOOKUP(CONCATENATE("OSUPREGECO_"&A35),Output!$C:$AQ,6,FALSE) ->  | M35: =ROUND(VLOOKUP("OSUPJEUNEREGECO_"&A35,Output!$C:$AQ,7,FALSE)/VLOOKUP("OSUPREGECO_"&A35,Output!$C:$AQ,6,FALSE),3) ->  | O35: =ROUND(VLOOKUP("OSUPJEUNEREGECO_"&$A35,Output!$C:$AQ,12,FALSE)/VLOOKUP("OSUPREGECO_"&A35,Output!$C:$AQ,6,FALSE),3) ->  | R35: =ROUND(VLOOKUP("OSUPVIEUXTOTREGECO_"&$A35,Output!$C:$AQ,7,FALSE)/VLOOKUP("OSUPREGECO_"&A35,Output!$C:$AQ,6,FALSE),3) ->  | T35: =ROUND(VLOOKUP("OSUPVIEUXTOTREGECO_"&$A35,Output!$C:$AQ,12,FALSE)/VLOOKUP("OSUPREGECO_"&A35,Output!$C:$AQ,6,FALSE),3) ->  | W35: 0 | AA35: =Tableaux!$O$33 -> 08663 | AB35: 0
G36: =VLOOKUP(CONCATENATE("OSUPVIEUXALERTEREGECO_"&A36),Output!$C:$AQ,6,FALSE) ->  | H36: =VLOOKUP(CONCATENATE("OSUPVIEUXACCEPTREGECO_"&A36),Output!$C:$AQ,6,FALSE) ->  | I36: =VLOOKUP(CONCATENATE("OSUPJEUNEALERTEREGECO_"&A36),Output!$C:$AQ,6,FALSE) ->  | J36: =VLOOKUP(CONCATENATE("OSUPJEUNEACCEPTREGECO_"&A36),Output!$C:$AQ,6,FALSE) ->  | K36: =VLOOKUP(CONCATENATE("OSUPREGECO_"&A36),Output!$C:$AQ,6,FALSE) ->  | M36: =ROUND(VLOOKUP("OSUPJEUNEREGECO_"&A36,Output!$C:$AQ,7,FALSE)/VLOOKUP("OSUPREGECO_"&A36,Output!$C:$AQ,6,FALSE),3) ->  | O36: =ROUND(VLOOKUP("OSUPJEUNEREGECO_"&$A36,Output!$C:$AQ,12,FALSE)/VLOOKUP("OSUPREGECO_"&A36,Output!$C:$AQ,6,FALSE),3) ->  | R36: =ROUND(VLOOKUP("OSUPVIEUXTOTREGECO_"&$A36,Output!$C:$AQ,7,FALSE)/VLOOKUP("OSUPREGECO_"&A36,Output!$C:$AQ,6,FALSE),3) ->  | T36: =ROUND(VLOOKUP("OSUPVIEUXTOTREGECO_"&$A36,Output!$C:$AQ,12,FALSE)/VLOOKUP("OSUPREGECO_"&A36,Output!$C:$AQ,6,FALSE),3) ->  | W36: 0 | AA36: =Tableaux!$O$33 -> 08663 | AB36: 0
G37: =VLOOKUP(CONCATENATE("OSUPVIEUXALERTEREGECO_"&A37),Output!$C:$AQ,6,FALSE) ->  | H37: =VLOOKUP(CONCATENATE("OSUPVIEUXACCEPTREGECO_"&A37),Output!$C:$AQ,6,FALSE) ->  | I37: =VLOOKUP(CONCATENATE("OSUPJEUNEALERTEREGECO_"&A37),Output!$C:$AQ,6,FALSE) ->  | J37: =VLOOKUP(CONCATENATE("OSUPJEUNEACCEPTREGECO_"&A37),Output!$C:$AQ,6,FALSE) ->  | K37: =VLOOKUP(CONCATENATE("OSUPREGECO_"&A37),Output!$C:$AQ,6,FALSE) ->  | M37: =ROUND(VLOOKUP("OSUPJEUNEREGECO_"&A37,Output!$C:$AQ,7,FALSE)/VLOOKUP("OSUPREGECO_"&A37,Output!$C:$AQ,6,FALSE),3) ->  | O37: =ROUND(VLOOKUP("OSUPJEUNEREGECO_"&$A37,Output!$C:$AQ,12,FALSE)/VLOOKUP("OSUPREGECO_"&A37,Output!$C:$AQ,6,FALSE),3) ->  | R37: =ROUND(VLOOKUP("OSUPVIEUXTOTREGECO_"&$A37,Output!$C:$AQ,7,FALSE)/VLOOKUP("OSUPREGECO_"&A37,Output!$C:$AQ,6,FALSE),3) ->  | T37: =ROUND(VLOOKUP("OSUPVIEUXTOTREGECO_"&$A37,Output!$C:$AQ,12,FALSE)/VLOOKUP("OSUPREGECO_"&A37,Output!$C:$AQ,6,FALSE),3) ->  | W37: 0 | AA37: =Tableaux!$O$33 -> 08663 | AB37: 0
G38: =VLOOKUP(CONCATENATE("OSUPVIEUXALERTEREGECO_"&A38),Output!$C:$AQ,6,FALSE) ->  | H38: =VLOOKUP(CONCATENATE("OSUPVIEUXACCEPTREGECO_"&A38),Output!$C:$AQ,6,FALSE) ->  | I38: =VLOOKUP(CONCATENATE("OSUPJEUNEALERTEREGECO_"&A38),Output!$C:$AQ,6,FALSE) ->  | J38: =VLOOKUP(CONCATENATE("OSUPJEUNEACCEPTREGECO_"&A38),Output!$C:$AQ,6,FALSE) ->  | K38: =VLOOKUP(CONCATENATE("OSUPREGECO_"&A38),Output!$C:$AQ,6,FALSE) ->  | M38: =ROUND(VLOOKUP("OSUPJEUNEREGECO_"&A38,Output!$C:$AQ,7,FALSE)/VLOOKUP("OSUPREGECO_"&A38,Output!$C:$AQ,6,FALSE),3) ->  | O38: =ROUND(VLOOKUP("OSUPJEUNEREGECO_"&$A38,Output!$C:$AQ,12,FALSE)/VLOOKUP("OSUPREGECO_"&A38,Output!$C:$AQ,6,FALSE),3) ->  | R38: =ROUND(VLOOKUP("OSUPVIEUXTOTREGECO_"&$A38,Output!$C:$AQ,7,FALSE)/VLOOKUP("OSUPREGECO_"&A38,Output!$C:$AQ,6,FALSE),3) ->  | T38: =ROUND(VLOOKUP("OSUPVIEUXTOTREGECO_"&$A38,Output!$C:$AQ,12,FALSE)/VLOOKUP("OSUPREGECO_"&A38,Output!$C:$AQ,6,FALSE),3) ->  | W38: 0 | AA38: =Tableaux!$O$33 -> 08663 | AB38: 0
G39: =VLOOKUP(CONCATENATE("OSUPVIEUXALERTEREGECO_"&A39),Output!$C:$AQ,6,FALSE) ->  | H39: =VLOOKUP(CONCATENATE("OSUPVIEUXACCEPTREGECO_"&A39),Output!$C:$AQ,6,FALSE) ->  | I39: =VLOOKUP(CONCATENATE("OSUPJEUNEALERTEREGECO_"&A39),Output!$C:$AQ,6,FALSE) ->  | J39: =VLOOKUP(CONCATENATE("OSUPJEUNEACCEPTREGECO_"&A39),Output!$C:$AQ,6,FALSE) ->  | K39: =VLOOKUP(CONCATENATE("OSUPREGECO_"&A39),Output!$C:$AQ,6,FALSE) ->  | M39: =ROUND(VLOOKUP("OSUPJEUNEREGECO_"&A39,Output!$C:$AQ,7,FALSE)/VLOOKUP("OSUPREGECO_"&A39,Output!$C:$AQ,6,FALSE),3) ->  | O39: =ROUND(VLOOKUP("OSUPJEUNEREGECO_"&$A39,Output!$C:$AQ,12,FALSE)/VLOOKUP("OSUPREGECO_"&A39,Output!$C:$AQ,6,FALSE),3) ->  | R39: =ROUND(VLOOKUP("OSUPVIEUXTOTREGECO_"&$A39,Output!$C:$AQ,7,FALSE)/VLOOKUP("OSUPREGECO_"&A39,Output!$C:$AQ,6,FALSE),3) ->  | T39: =ROUND(VLOOKUP("OSUPVIEUXTOTREGECO_"&$A39,Output!$C:$AQ,12,FALSE)/VLOOKUP("OSUPREGECO_"&A39,Output!$C:$AQ,6,FALSE),3) ->  | W39: 0 | AA39: =Tableaux!$O$33 -> 08663 | AB39: 0
G40: =VLOOKUP(CONCATENATE("OSUPVIEUXALERTEREGECO_"&A40),Output!$C:$AQ,6,FALSE) ->  | H40: =VLOOKUP(CONCATENATE("OSUPVIEUXACCEPTREGECO_"&A40),Output!$C:$AQ,6,FALSE) ->  | I40: =VLOOKUP(CONCATENATE("OSUPJEUNEALERTEREGECO_"&A40),Output!$C:$AQ,6,FALSE) ->  | J40: =VLOOKUP(CONCATENATE("OSUPJEUNEACCEPTREGECO_"&A40),Output!$C:$AQ,6,FALSE) ->  | K40: =VLOOKUP(CONCATENATE("OSUPREGECO_"&A40),Output!$C:$AQ,6,FALSE) ->  | M40: =ROUND(VLOOKUP("OSUPJEUNEREGECO_"&A40,Output!$C:$AQ,7,FALSE)/VLOOKUP("OSUPREGECO_"&A40,Output!$C:$AQ,6,FALSE),3) ->  | O40: =ROUND(VLOOKUP("OSUPJEUNEREGECO_"&$A40,Output!$C:$AQ,12,FALSE)/VLOOKUP("OSUPREGECO_"&A40,Output!$C:$AQ,6,FALSE),3) ->  | R40: =ROUND(VLOOKUP("OSUPVIEUXTOTREGECO_"&$A40,Output!$C:$AQ,7,FALSE)/VLOOKUP("OSUPREGECO_"&A40,Output!$C:$AQ,6,FALSE),3) ->  | T40: =ROUND(VLOOKUP("OSUPVIEUXTOTREGECO_"&$A40,Output!$C:$AQ,12,FALSE)/VLOOKUP("OSUPREGECO_"&A40,Output!$C:$AQ,6,FALSE),3) ->  | W40: 0 | AA40: =Tableaux!$O$33 -> 08663 | AB40: 0
G41: =VLOOKUP(CONCATENATE("OSUPVIEUXALERTEREGECO_"&A41),Output!$C:$AQ,6,FALSE) ->  | H41: =VLOOKUP(CONCATENATE("OSUPVIEUXACCEPTREGECO_"&A41),Output!$C:$AQ,6,FALSE) ->  | I41: =VLOOKUP(CONCATENATE("OSUPJEUNEALERTEREGECO_"&A41),Output!$C:$AQ,6,FALSE) ->  | J41: =VLOOKUP(CONCATENATE("OSUPJEUNEACCEPTREGECO_"&A41),Output!$C:$AQ,6,FALSE) ->  | K41: =VLOOKUP(CONCATENATE("OSUPREGECO_"&A41),Output!$C:$AQ,6,FALSE) ->  | M41: =ROUND(VLOOKUP("OSUPJEUNEREGECO_"&A41,Output!$C:$AQ,7,FALSE)/VLOOKUP("OSUPREGECO_"&A41,Output!$C:$AQ,6,FALSE),3) ->  | O41: =ROUND(VLOOKUP("OSUPJEUNEREGECO_"&$A41,Output!$C:$AQ,12,FALSE)/VLOOKUP("OSUPREGECO_"&A41,Output!$C:$AQ,6,FALSE),3) ->  | R41: =ROUND(VLOOKUP("OSUPVIEUXTOTREGECO_"&$A41,Output!$C:$AQ,7,FALSE)/VLOOKUP("OSUPREGECO_"&A41,Output!$C:$AQ,6,FALSE),3) ->  | T41: =ROUND(VLOOKUP("OSUPVIEUXTOTREGECO_"&$A41,Output!$C:$AQ,12,FALSE)/VLOOKUP("OSUPREGECO_"&A41,Output!$C:$AQ,6,FALSE),3) ->  | W41: 0 | AA41: =Tableaux!$O$33 -> 08663 | AB41: 0
G42: =VLOOKUP(CONCATENATE("OSUPVIEUXALERTEREGECO_"&A42),Output!$C:$AQ,6,FALSE) ->  | H42: =VLOOKUP(CONCATENATE("OSUPVIEUXACCEPTREGECO_"&A42),Output!$C:$AQ,6,FALSE) ->  | I42: =VLOOKUP(CONCATENATE("OSUPJEUNEALERTEREGECO_"&A42),Output!$C:$AQ,6,FALSE) ->  | J42: =VLOOKUP(CONCATENATE("OSUPJEUNEACCEPTREGECO_"&A42),Output!$C:$AQ,6,FALSE) ->  | K42: =VLOOKUP(CONCATENATE("OSUPREGECO_"&A42),Output!$C:$AQ,6,FALSE) ->  | M42: =ROUND(VLOOKUP("OSUPJEUNEREGECO_"&A42,Output!$C:$AQ,7,FALSE)/VLOOKUP("OSUPREGECO_"&A42,Output!$C:$AQ,6,FALSE),3) ->  | O42: =ROUND(VLOOKUP("OSUPJEUNEREGECO_"&$A42,Output!$C:$AQ,12,FALSE)/VLOOKUP("OSUPREGECO_"&A42,Output!$C:$AQ,6,FALSE),3) ->  | R42: =ROUND(VLOOKUP("OSUPVIEUXTOTREGECO_"&$A42,Output!$C:$AQ,7,FALSE)/VLOOKUP("OSUPREGECO_"&A42,Output!$C:$AQ,6,FALSE),3) ->  | T42: =ROUND(VLOOKUP("OSUPVIEUXTOTREGECO_"&$A42,Output!$C:$AQ,12,FALSE)/VLOOKUP("OSUPREGECO_"&A42,Output!$C:$AQ,6,FALSE),3) ->  | W42: 0 | AA42: =Tableaux!$O$33 -> 08663 | AB42: 0

Sheet Output
C1: 1 | D1: 2 | E1: 3 | F1: 4 | G1: 5 | H1: 6 | I1: 7 | J1: 8 | K1: 9 | L1: 10 | M1: 11 | N1: 12 | O1: 13 | P1: 14 | Q1: 15 | R1: 16 | S1: 17 | T1: 18 | U1: 19 | V1: 20 | W1: 21 | X1: 22 | Y1: 23 | Z1: 24 | AA1: 25 | AB1: 26 | AC1: 27 | AD1: 28 | AE1: 29 | AF1: 30 | AG1: 31 | AH1: 32 | AI1: 33 | AJ1: 34 | AK1: 35 | AL1: 36 | AM1: 37 | AN1: 38 | AO1: 39 | AP1: 40 | AQ1: 41
A2: Record | B2: GROUP | C2: NAME | D2: DESCRIPTIO | E2: ATTRIBUTE | F2: MINIMUM | G2: MAXIMUM | H2: PERIOD0 | I2: PERIOD1 | J2: PERIOD2 | K2: PERIOD3 | L2: PERIOD4 | M2: PERIOD5 | N2: PERIOD6 | O2: PERIOD7 | P2: PERIOD8 | Q2: PERIOD9 | R2: PERIOD10 | S2: PERIOD11 | T2: PERIOD12 | U2: PERIOD13 | V2: PERIOD14 | W2: PERIOD15 | X2: PERIOD16 | Y2: PERIOD17 | Z2: PERIOD18 | AA2: PERIOD19 | AB2: PERIOD20 | AC2: PERIOD21 | AD2: PERIOD22 | AE2: PERIOD23 | AF2: PERIOD24 | AG2: PERIOD25 | AH2: PERIOD26 | AI2: PERIOD27 | AJ2: PERIOD28 | AK2: PERIOD29 | AL2: PERIOD30 | AM2: Moyemme P2 à P6 | AN2: Moyenne P7 à P11 | AO2: Moyenne P12 à P20 | AP2: Moyenne P21 à P30 | AQ2: Moyenne P2 à P30
B3: <Not in Output group> | C3: OSUPTOT | D3: Superficie Totale | F3: 384391.3 | G3: 384391.3 | H3: 384391.3 | I3: 384391.3 | J3: 384391.3 | K3: 384391.3 | L3: 384391.3 | M3: 384391.3 | N3: 384391.3 | O3: 384391.3 | P3: 384391.3 | Q3: 384391.3 | R3: 384391.3 | S3: 384391.3 | T3: 384391.3 | U3: 384391.3 | V3: 384391.3 | W3: 384391.3 | X3: 384391.3 | Y3: 384391.3 | Z3: 384391.3 | AA3: 384391.3 | AB3: 384391.3 | AC3: 384391.3 | AD3: 384391.3 | AE3: 384391.3 | AF3: 384391.3 | AG3: 384391.3 | AH3: 384391.3 | AI3: 384391.3 | AJ3: 384391.3 | AK3: 384391.3 | AL3: 384391.3 | AM3: =AVERAGE(J3:N3) -> 384391.3 | AN3: =AVERAGE(O3:S3) -> 384391.3 | AO3: =AVERAGE(T3:AB3) -> 384391.3 | AP3: =AVERAGE(AC3:AL3) -> 384391.3 | AQ3: =AVERAGE(J3:AL3) -> 384391.3
B4: <Not in Output group> | C4: OSUPINC | D4: Superficie InclusActions par courbe | F4: 55271.08 | G4: 56296.7 | H4: 56296.7 | I4: 56258.71 | J4: 56219.86 | K4: 56181.81 | L4: 56140.84 | M4: 56099.58 | N4: 56061.88 | O4: 56019.15 | P4: 55973.78 | Q4: 55936.81 | R4: 55898.1 | S4: 55859.29 | T4: 55856.94 | U4: 55849.02 | V4: 55718.94 | W4: 55603.27 | X4: 55510.27 | Y4: 55455.28 | Z4: 55446.63 | AA4: 55444.57 | AB4: 55443.13 | AC4: 55441.98 | AD4: 55441.98 | AE4: 55406.85 | AF4: 55406.85 | AG4: 55406.41 | AH4: 55406.41 | AI4: 55402.77 | AJ4: 55357.4 | AK4: 55313.55 | AL4: 55271.08 | AM4: =AVERAGE(J4:N4) -> 56140.794 | AN4: =AVERAGE(O4:S4) -> 55937.426 | AO4: =AVERAGE(T4:AB4) -> 55592.00556 | AP4: =AVERAGE(AC4:AL4) -> 55385.528 | AQ4: =AVERAGE(J4:AL4) -> 55674.98034
B5: <Not in Output group> | C5: OSUPregECO | D5: Superficie Disponible aux RÚsultats ╔cologiques | F5: 197038.38 | G5: 198064 | H5: 198064 | I5: 198026.01 | J5: 197987.16 | K5: 197949.11 | L5: 197908.14 | M5: 197866.88 | N5: 197829.18 | O5: 197786.45 | P5: 197741.08 | Q5: 197704.11 | R5: 197665.4 | S5: 197626.59 | T5: 197624.24 | U5: 197616.32 | V5: 197486.24 | W5: 197370.57 | X5: 197277.57 | Y5: 197222.58 | Z5: 197213.93 | AA5: 197211.87 | AB5: 197210.43 | AC5: 197209.28 | AD5: 197209.28 | AE5: 197174.15 | AF5: 197174.15 | AG5: 197173.71 | AH5: 197173.71 | AI5: 197170.07 | AJ5: 197124.7 | AK5: 197080.85 | AL5: 197038.38 | AM5: 197908.094 | AN5: 197704.726 | AO5: 197359.3056 | AP5: 197152.828 | AQ5: 197442.2803
B6: <Not in Output group> | C6: OSUPEXIN | D6: Superficie ExcluActionsInclus | F6: 74905.8 | G6: 74905.8 | H6: 74905.8 | I6: 74905.8 | J6: 74905.8 | K6: 74905.8 | L6: 74905.8 | M6: 74905.8 | N6: 74905.8 | O6: 74905.8 | P6: 74905.8 | Q6: 74905.8 | R6: 74905.8 | S6: 74905.8 | T6: 74905.8 | U6: 74905.8 | V6: 74905.8 | W6: 74905.8 | X6: 74905.8 | Y6: 74905.8 | Z6: 74905.8 | AA6: 74905.8 | AB6: 74905.8 | AC6: 74905.8 | AD6: 74905.8 | AE6: 74905.8 | AF6: 74905.8 | AG6: 74905.8 | AH6: 74905.8 | AI6: 74905.8 | AJ6: 74905.8 | AK6: 74905.8 | AL6: 74905.8 | AM6: 74905.8 | AN6: 74905.8 | AO6: 74905.8 | AP6: 74905.8 | AQ6: 74905.8
B7: <Not in Output group> | C7: OSUPEXTI | D7: Superficie Improductive | F7: 147705.4 | G7: 147705.4 | H7: 147705.4 | I7: 147705.4 | J7: 147705.4 | K7: 147705.4 | L7: 147705.4 | M7: 147705.4 | N7: 147705.4 | O7: 147705.4 | P7: 147705.4 | Q7: 147705.4 | R7: 147705.4 | S7: 147705.4 | T7: 147705.4 | U7: 147705.4 | V7: 147705.4 | W7: 147705.4 | X7: 147705.4 | Y7: 147705.4 | Z7: 147705.4 | AA7: 147705.4 | AB7: 147705.4 | AC7: 147705.4 | AD7: 147705.4 | AE7: 147705.4 | AF7: 147705.4 | AG7: 147705.4 | AH7: 147705.4 | AI7: 147705.4 | AJ7: 147705.4 | AK7: 147705.4 | AL7: 147705.4 | AM7: 147705.4 | AN7: 147705.4 | AO7: 147705.4 | AP7: 147705.4 | AQ7: 147705.4
B8: <Not in Output group> | C8: OSUPLOCK | D8: Superficie Sous Verrous | F8: 0 | G8: 29655.6 | H8: 29655.6 | I8: 29655.6 | J8: 26846 | K8: 20604.5 | L8: 15006.8 | M8: 8761.8 | N8: 4944.7 | O8: 4402.7 | P8: 3790.2 | Q8: 114.5 | R8: 0 | S8: 0 | T8: 0 | U8: 0 | V8: 0 | W8: 0 | X8: 0 | Y8: 0 | Z8: 0 | AA8: 0 | AB8: 0 | AC8: 0 | AD8: 0 | AE8: 0 | AF8: 0 | AG8: 0 | AH8: 0 | AI8: 0 | AJ8: 0 | AK8: 0 | AL8: 0 | AM8: 15232.76 | AN8: 1661.48 | AO8: 0 | AP8: 0 | AQ8: 2912.8
B9: Economique | C9: oSupTcsdDEG_1_T100% | D9: oSupTcsdDEG_1_T100% | F9: 0 | G9: 0 | H9: 0 | I9: 0 | J9: 0 | K9: 0 | L9: 0 | M9: 0 | N9: 0 | O9: 0 | P9: 0 | Q9: 0 | R9: 0 | S9: 0 | T9: 0 | U9: 0 | V9: 0 | W9: 0 | X9: 0 | Y9: 0 | Z9: 0 | AA9: 0 | AB9: 0 | AC9: 0 | AD9: 0 | AE9: 0 | AF9: 0 | AG9: 0 | AH9: 0 | AI9: 0 | AJ9: 0 | AK9: 0 | AL9: 0 | AM9: 0 | AN9: 0 | AO9: 0 | AP9: 0 | AQ9: 0
B10: Economique | C10: oSupTcsdDEG_2_T100% | D10: oSupTcsdDEG_2_T100% | F10: 0 | G10: 0 | H10: 0 | I10: 0 | J10: 0 | K10: 0 | L10: 0 | M10: 0 | N10: 0 | O10: 0 | P10: 0 | Q10: 0 | R10: 0 | S10: 0 | T10: 0 | U10: 0 | V10: 0 | W10: 0 | X10: 0 | Y10: 0 | Z10: 0 | AA10: 0 | AB10: 0 | AC10: 0 | AD10: 0 | AE10: 0 | AF10: 0 | AG10: 0 | AH10: 0 | AI10: 0 | AJ10: 0 | AK10: 0 | AL10: 0 | AM10: 0 | AN10: 0 | AO10: 0 | AP10: 0 | AQ10: 0
B11: Economique | C11: oSupDEG_1_T100% | D11: oSupDEG_1_T100% | F11: 0 | G11: 0 | H11: 0 | I11: 0 | J11: 0 | K11: 0 | L11: 0 | M11: 0 | N11: 0 | O11: 0 | P11: 0 | Q11: 0 | R11: 0 | S11: 0 | T11: 0 | U11: 0 | V11: 0 | W11: 0 | X11: 0 | Y11: 0 | Z11: 0 | AA11: 0 | AB11: 0 | AC11: 0 | AD11: 0 | AE11: 0 | AF11: 0 | AG11: 0 | AH11: 0 | AI11: 0 | AJ11: 0 | AK11: 0 | AL11: 0 | AM11: 0 | AN11: 0 | AO11: 0 | AP11: 0 | AQ11: 0
B12: Economique | C12: oSupDEG_2_T100% | D12: oSupDEG_2_T100% | F12: 0 | G12: 0 | H12: 0 | I12: 0 | J12: 0 | K12: 0 | L12: 0 | M12: 0 | N12: 0 | O12: 0 | P12: 0 | Q12: 0 | R12: 0 | S12: 0 | T12: 0 | U12: 0 | V12: 0 | W12: 0 | X12: 0 | Y12: 0 | Z12: 0 | AA12: 0 | AB12: 0 | AC12: 0 | AD12: 0 | AE12: 0 | AF12: 0 | AG12: 0 | AH12: 0 | AI12: 0 | AJ12: 0 | AK12: 0 | AL12: 0 | AM12: 0 | AN12: 0 | AO12: 0 | AP12: 0 | AQ12: 0
B13: Economique | C13: oSupDEG_1 | D13: oSupDEG_1 | F13: 0 | G13: 0 | H13: 0 | I13: 0 | J13: 0 | K13: 0 | L13: 0 | M13: 0 | N13: 0 | O13: 0 | P13: 0 | Q13: 0 | R13: 0 | S13: 0 | T13: 0 | U13: 0 | V13: 0 | W13: 0 | X13: 0 | Y13: 0 | Z13: 0 | AA13: 0 | AB13: 0 | AC13: 0 | AD13: 0 | AE13: 0 | AF13: 0 | AG13: 0 | AH13: 0 | AI13: 0 | AJ13: 0 | AK13: 0 | AL13: 0 | AM13: 0 | AN13: 0 | AO13: 0 | AP13: 0 | AQ13: 0
B14: Economique | C14: oSupDEG_2 | D14: oSupDEG_2 | F14: 0 | G14: 0 | H14: 0 | I14: 0 | J14: 0 | K14: 0 | L14: 0 | M14: 0 | N14: 0 | O14: 0 | P14: 0 | Q14: 0 | R14: 0 | S14: 0 | T14: 0 | U14: 0 | V14: 0 | W14: 0 | X14: 0 | Y14: 0 | Z14: 0 | AA14: 0 | AB14: 0 | AC14: 0 | AD14: 0 | AE14: 0 | AF14: 0 | AG14: 0 | AH14: 0 | AI14: 0 | AJ14: 0 | AK14: 0 | AL14: 0 | AM14: 0 | AN14: 0 | AO14: 0 | AP14: 0 | AQ14: 0
B15: Economique | C15: oSupTcsdSCA_LRD_T100% | D15: oSupTcsdSCA_LRD_T100% | F15: 0 | G15: 0 | H15: 0 | I15: 0 | J15: 0 | K15: 0 | L15: 0 | M15: 0 | N15: 0 | O15: 0 | P15: 0 | Q15: 0 | R15: 0 | S15: 0 | T15: 0 | U15: 0 | V15: 0 | W15: 0 | X15: 0 | Y15: 0 | Z15: 0 | AA15: 0 | AB15: 0 | AC15: 0 | AD15: 0 | AE15: 0 | AF15: 0 | AG15: 0 | AH15: 0 | AI15: 0 | AJ15: 0 | AK15: 0 | AL15: 0 | AM15: 0 | AN15: 0 | AO15: 0 | AP15: 0 | AQ15: 0
B16: Economique | C16: oSupTcsdSCA_PART_T100% | D16: oSupTcsdSCA_PART_T100% | F16: 0 | G16: 0 | H16: 0 | I16: 0 | J16: 0 | K16: 0 | L16: 0 | M16: 0 | N16: 0 | O16: 0 | P16: 0 | Q16: 0 | R16: 0 | S16: 0 | T16: 0 | U16: 0 | V16: 0 | W16: 0 | X16: 0 | Y16: 0 | Z16: 0 | AA16: 0 | AB16: 0 | AC16: 0 | AD16: 0 | AE16: 0 | AF16: 0 | AG16: 0 | AH16: 0 | AI16: 0 | AJ16: 0 | AK16: 0 | AL16: 0 | AM16: 0 | AN16: 0 | AO16: 0 | AP16: 0 | AQ16: 0
B17: Economique | C17: oSupTcsdSCA_REG_T100% | D17: oSupTcsdSCA_REG_T100% | F17: 0 | G17: 170 | H17: 0 | I17: 170 | J17: 153.81 | K17: 152.27 | L17: 152.27 | M17: 153.81 | N17: 153.81 | O17: 153.81 | P17: 153.81 | Q17: 153.81 | R17: 153.81 | S17: 153.81 | T17: 153.81 | U17: 153.81 | V17: 153.81 | W17: 153.81 | X17: 153.81 | Y17: 153.81 | Z17: 153.81 | AA17: 153.81 | AB17: 153.81 | AC17: 153.81 | AD17: 153.81 | AE17: 153.81 | AF17: 153.81 | AG17: 153.81 | AH17: 153.81 | AI17: 152.27 | AJ17: 152.27 | AK17: 152.27 | AL17: 152.27 | AM17: 153.194 | AN17: 153.81 | AO17: 153.81 | AP17: 153.194 | AQ17: 153.4913793
B18: Economique | C18: oSupSCA_LRD_T100% | D18: oSupSCA_LRD_T100% | F18: 0 | G18: 0 | H18: 0 | I18: 0 | J18: 0 | K18: 0 | L18: 0 | M18: 0 | N18: 0 | O18: 0 | P18: 0 | Q18: 0 | R18: 0 | S18: 0 | T18: 0 | U18: 0 | V18: 0 | W18: 0 | X18: 0 | Y18: 0 | Z18: 0 | AA18: 0 | AB18: 0 | AC18: 0 | AD18: 0 | AE18: 0 | AF18: 0 | AG18: 0 | AH18: 0 | AI18: 0 | AJ18: 0 | AK18: 0 | AL18: 0 | AM18: 0 | AN18: 0 | AO18: 0 | AP18: 0 | AQ18: 0
B19: Economique | C19: oSupSCA_PART_T100% | D19: oSupSCA_PART_T100% | F19: 0 | G19: 0 | H19: 0 | I19: 0 | J19: 0 | K19: 0 | L19: 0 | M19: 0 | N19: 0 | O19: 0 | P19: 0 | Q19: 0 | R19: 0 | S19: 0 | T19: 0 | U19: 0 | V19: 0 | W19: 0 | X19: 0 | Y19: 0 | Z19: 0 | AA19: 0 | AB19: 0 | AC19: 0 | AD19: 0 | AE19: 0 | AF19: 0 | AG19: 0 | AH19: 0 | AI19: 0 | AJ19: 0 | AK19: 0 | AL19: 0 | AM19: 0 | AN19: 0 | AO19: 0 | AP19: 0 | AQ19: 0
B20: Economique | C20: oSupSCA_REG_T100% | D20: oSupSCA_REG_T100% | F20: 0 | G20: 170 | H20: 0 | I20: 170 | J20: 153.81 | K20: 152.27 | L20: 152.27 | M20: 153.81 | N20: 153.81 | O20: 153.81 | P20: 153.81 | Q20: 153.81 | R20: 153.81 | S20: 153.81 | T20: 153.81 | U20: 153.81 | V20: 153.81 | W20: 153.81 | X20: 153.81 | Y20: 153.81 | Z20: 153.81 | AA20: 153.81 | AB20: 153.81 | AC20: 153.81 | AD20: 153.81 | AE20: 153.81 | AF20: 153.81 | AG20: 153.81 | AH20: 153.81 | AI20: 152.27 | AJ20: 152.27 | AK20: 152.27 | AL20: 152.27 | AM20: 153.194 | AN20: 153.81 | AO20: 153.81 | AP20: 153.194 | AQ20: 153.4913793
B21: Economique | C21: oSupSCA_LRD | D21: oSupSCA_LRD | F21: 0 | G21: 0 | H21: 0 | I21: 0 | J21: 0 | K21: 0 | L21: 0 | M21: 0 | N21: 0 | O21: 0 | P21: 0 | Q21: 0 | R21: 0 | S21: 0 | T21: 0 | U21: 0 | V21: 0 | W21: 0 | X21: 0 | Y21: 0 | Z21: 0 | AA21: 0 | AB21: 0 | AC21: 0 | AD21: 0 | AE21: 0 | AF21: 0 | AG21: 0 | AH21: 0 | AI21: 0 | AJ21: 0 | AK21: 0 | AL21: 0 | AM21: 0 | AN21: 0 | AO21: 0 | AP21: 0 | AQ21: 0
B22: Economique | C22: oSupSCA_PART | D22: oSupSCA_PART | F22: 0 | G22: 0 | H22: 0 | I22: 0 | J22: 0 | K22: 0 | L22: 0 | M22: 0 | N22: 0 | O22: 0 | P22: 0 | Q22: 0 | R22: 0 | S22: 0 | T22: 0 | U22: 0 | V22: 0 | W22: 0 | X22: 0 | Y22: 0 | Z22: 0 | AA22: 0 | AB22: 0 | AC22: 0 | AD22: 0 | AE22: 0 | AF22: 0 | AG22: 0 | AH22: 0 | AI22: 0 | AJ22: 0 | AK22: 0 | AL22: 0 | AM22: 0 | AN22: 0 | AO22: 0 | AP22: 0 | AQ22: 0
B23: Economique | C23: oSupSCA_REG | D23: oSupSCA_REG | F23: 0 | G23: 170 | H23: 0 | I23: 170 | J23: 153.81 | K23: 152.27 | L23: 152.27 | M23: 153.81 | N23: 153.81 | O23: 153.81 | P23: 153.81 | Q23: 153.81 | R23: 153.81 | S23: 153.81 | T23: 153.81 | U23: 153.81 | V23: 153.81 | W23: 153.81 | X23: 153.81 | Y23: 153.81 | Z23: 153.81 | AA23: 153.81 | AB23: 153.81 | AC23: 153.81 | AD23: 153.81 | AE23: 153.81 | AF23: 153.81 | AG23: 153.81 | AH23: 153.81 | AI23: 152.27 | AJ23: 152.27 | AK23: 152.27 | AL23: 152.27 | AM23: 153.194 | AN23: 153.81 | AO23: 153.81 | AP23: 153.194 | AQ23: 153.4913793
B24: Economique | C24: oSupActREG_T100% | D24: oSupActREG_T100% | F24: 0 | G24: 0 | H24: 0 | I24: 0 | J24: 0 | K24: 0 | L24: 0 | M24: 0 | N24: 0 | O24: 0 | P24: 0 | Q24: 0 | R24: 0 | S24: 0 | T24: 0 | U24: 0 | V24: 0 | W24: 0 | X24: 0 | Y24: 0 | Z24: 0 | AA24: 0 | AB24: 0 | AC24: 0 | AD24: 0 | AE24: 0 | AF24: 0 | AG24: 0 | AH24: 0 | AI24: 0 | AJ24: 0 | AK24: 0 | AL24: 0 | AM24: 0 | AN24: 0 | AO24: 0 | AP24: 0 | AQ24: 0
B25: Economique | C25: oSupREG_T100% | D25: oSupREG_T100% | F25: 0 | G25: 0 | H25: 0 | I25: 0 | J25: 0 | K25: 0 | L25: 0 | M25: 0 | N25: 0 | O25: 0 | P25: 0 | Q25: 0 | R25: 0 | S25: 0 | T25: 0 | U25: 0 | V25: 0 | W25: 0 | X25: 0 | Y25: 0 | Z25: 0 | AA25: 0 | AB25: 0 | AC25: 0 | AD25: 0 | AE25: 0 | AF25: 0 | AG25: 0 | AH25: 0 | AI25: 0 | AJ25: 0 | AK25: 0 | AL25: 0 | AM25: 0 | AN25: 0 | AO25: 0 | AP25: 0 | AQ25: 0
B26: Economique | C26: oSupREG | D26: oSupREG | F26: 0 | G26: 0 | H26: 0 | I26: 0 | J26: 0 | K26: 0 | L26: 0 | M26: 0 | N26: 0 | O26: 0 | P26: 0 | Q26: 0 | R26: 0 | S26: 0 | T26: 0 | U26: 0 | V26: 0 | W26: 0 | X26: 0 | Y26: 0 | Z26: 0 | AA26: 0 | AB26: 0 | AC26: 0 | AD26: 0 | AE26: 0 | AF26: 0 | AG26: 0 | AH26: 0 | AI26: 0 | AJ26: 0 | AK26: 0 | AL26: 0 | AM26: 0 | AN26: 0 | AO26: 0 | AP26: 0 | AQ26: 0
B27: Economique | C27: oSupActCPIRL_FIN_T100% | D27: oSupActCPIRL_FIN_T100% | F27: 0 | G27: 0 | H27: 0 | I27: 0 | J27: 0 | K27: 0 | L27: 0 | M27: 0 | N27: 0 | O27: 0 | P27: 0 | Q27: 0 | R27: 0 | S27: 0 | T27: 0 | U27: 0 | V27: 0 | W27: 0 | X27: 0 | Y27: 0 | Z27: 0 | AA27: 0 | AB27: 0 | AC27: 0 | AD27: 0 | AE27: 0 | AF27: 0 | AG27: 0 | AH27: 0 | AI27: 0 | AJ27: 0 | AK27: 0 | AL27: 0 | AM27: 0 | AN27: 0 | AO27: 0 | AP27: 0 | AQ27: 0
B28: Economique | C28: oSupActCPIRL_INI_T100% | D28: oSupActCPIRL_INI_T100% | F28: 0 | G28: 0 | H28: 0 | I28: 0 | J28: 0 | K28: 0 | L28: 0 | M28: 0 | N28: 0 | O28: 0 | P28: 0 | Q28: 0 | R28: 0 | S28: 0 | T28: 0 | U28: 0 | V28: 0 | W28: 0 | X28: 0 | Y28: 0 | Z28: 0 | AA28: 0 | AB28: 0 | AC28: 0 | AD28: 0 | AE28: 0 | AF28: 0 | AG28: 0 | AH28: 0 | AI28: 0 | AJ28: 0 | AK28: 0 | AL28: 0 | AM28: 0 | AN28: 0 | AO28: 0 | AP28: 0 | AQ28: 0
B29: Economique | C29: oSupCPIRL_FIN_T100% | D29: oSupCPIRL_FIN_T100% | F29: 0 | G29: 0 | H29: 0 | I29: 0 | J29: 0 | K29: 0 | L29: 0 | M29: 0 | N29: 0 | O29: 0 | P29: 0 | Q29: 0 | R29: 0 | S29: 0 | T29: 0 | U29: 0 | V29: 0 | W29: 0 | X29: 0 | Y29: 0 | Z29: 0 | AA29: 0 | AB29: 0 | AC29: 0 | AD29: 0 | AE29: 0 | AF29: 0 | AG29: 0 | AH29: 0 | AI29: 0 | AJ29: 0 | AK29: 0 | AL29: 0 | AM29: 0 | AN29: 0 | AO29: 0 | AP29: 0 | AQ29: 0
B30: Economique | C30: oSupCPIRL_INI_T100% | D30: oSupCPIRL_INI_T100% | F30: 0 | G30: 0 | H30: 0 | I30: 0 | J30: 0 | K30: 0 | L30: 0 | M30: 0 | N30: 0 | O30: 0 | P30: 0 | Q30: 0 | R30: 0 | S30: 0 | T30: 0 | U30: 0 | V30: 0 | W30: 0 | X30: 0 | Y30: 0 | Z30: 0 | AA30: 0 | AB30: 0 | AC30: 0 | AD30: 0 | AE30: 0 | AF30: 0 | AG30: 0 | AH30: 0 | AI30: 0 | AJ30: 0 | AK30: 0 | AL30: 0 | AM30: 0 | AN30: 0 | AO30: 0 | AP30: 0 | AQ30: 0
B31: Economique | C31: oSupCPIRL_FIN | D31: oSupCPIRL_FIN | F31: 0 | G31: 0 | H31: 0 | I31: 0 | J31: 0 | K31: 0 | L31: 0 | M31: 0 | N31: 0 | O31: 0 | P31: 0 | Q31: 0 | R31: 0 | S31: 0 | T31: 0 | U31: 0 | V31: 0 | W31: 0 | X31: 0 | Y31: 0 | Z31: 0 | AA31: 0 | AB31: 0 | AC31: 0 | AD31: 0 | AE31: 0 | AF31: 0 | AG31: 0 | AH31: 0 | AI31: 0 | AJ31: 0 | AK31: 0 | AL31: 0 | AM31: 0 | AN31: 0 | AO31: 0 | AP31: 0 | AQ31: 0
B32: Economique | C32: oSupCPIRL_INI | D32: oSupCPIRL_INI | F32: 0 | G32: 0 | H32: 0 | I32: 0 | J32: 0 | K32: 0 | L32: 0 | M32: 0 | N32: 0 | O32: 0 | P32: 0 | Q32: 0 | R32: 0 | S32: 0 | T32: 0 | U32: 0 | V32: 0 | W32: 0 | X32: 0 | Y32: 0 | Z32: 0 | AA32: 0 | AB32: 0 | AC32: 0 | AD32: 0 | AE32: 0 | AF32: 0 | AG32: 0 | AH32: 0 | AI32: 0 | AJ32: 0 | AK32: 0 | AL32: 0 | AM32: 0 | AN32: 0 | AO32: 0 | AP32: 0 | AQ32: 0
B33: Economique | C33: oSupActCT_T100% | D33: oSupActCT_T100% | F33: 0 | G33: 2890.52 | H33: 0 | I33: 844.19 | J33: 863.37 | K33: 845.45 | L33: 910.46 | M33: 916.97 | N33: 842.86 | O33: 985.63 | P33: 1089.82 | Q33: 979.44 | R33: 1395.11 | S33: 1472.98 | T33: 1138.82 | U33: 1278.04 | V33: 2890.52 | W33: 2570.5 | X33: 2066.62 | Y33: 1606.56 | Z33: 1331.23 | AA33: 1113.91 | AB33: 1095.79 | AC33: 1094.28 | AD33: 1261.02 | AE33: 1648.49 | AF33: 1944.43 | AG33: 1663.52 | AH33: 1982.36 | AI33: 2014.38 | AJ33: 1710.74 | AK33: 1759.25 | AL33: 1742.33 | AM33: 875.822 | AN33: 1184.596 | AO33: 1676.887778 | AP33: 1682.08 | AQ33: 1455.685517
B34: Economique | C34: oSupCT_T100% | D34: oSupCT_T100% | F34: 0 | G34: 2890.52 | H34: 0 | I34: 844.19 | J34: 863.37 | K34: 845.45 | L34: 910.46 | M34: 916.97 | N34: 842.86 | O34: 985.63 | P34: 1089.82 | Q34: 979.44 | R34: 1395.11 | S34: 1472.98 | T34: 1138.82 | U34: 1278.04 | V34: 2890.52 | W34: 2570.5 | X34: 2066.62 | Y34: 1606.56 | Z34: 1331.23 | AA34: 1113.91 | AB34: 1095.79 | AC34: 1094.28 | AD34: 1261.02 | AE34: 1648.49 | AF34: 1944.43 | AG34: 1663.52 | AH34: 1982.36 | AI34: 2014.38 | AJ34: 1710.74 | AK34: 1759.25 | AL34: 1742.33 | AM34: 875.822 | AN34: 1184.596 | AO34: 1676.887778 | AP34: 1682.08 | AQ34: 1455.685517
B35: Economique | C35: oSupCT | D35: oSupCT | F35: 0 | G35: 2890.52 | H35: 0 | I35: 844.19 | J35: 863.37 | K35: 845.45 | L35: 910.46 | M35: 916.97 | N35: 842.86 | O35: 985.63 | P35: 1089.82 | Q35: 979.44 | R35: 1395.11 | S35: 1472.98 | T35: 1138.82 | U35: 1278.04 | V35: 2890.52 | W35: 2570.5 | X35: 2066.62 | Y35: 1606.56 | Z35: 1331.23 | AA35: 1113.91 | AB35: 1095.79 | AC35: 1094.28 | AD35: 1261.02 | AE35: 1648.49 | AF35: 1944.43 | AG35: 1663.52 | AH35: 1982.36 | AI35: 2014.38 | AJ35: 1710.74 | AK35: 1759.25 | AL35: 1742.33 | AM35: 875.822 | AN35: 1184.596 | AO35: 1676.887778 | AP35: 1682.08 | AQ35: 1455.685517
B36: Economique | C36: oSupActPL_SEPM_E_T100% | D36: oSupActPL_SEPM_E_T100% | F36: 0 | G36: 170 | H36: 0 | I36: 170 | J36: 153.81 | K36: 152.27 | L36: 152.27 | M36: 153.81 | N36: 153.81 | O36: 153.81 | P36: 153.81 | Q36: 153.81 | R36: 153.81 | S36: 153.81 | T36: 153.81 | U36: 153.81 | V36: 153.81 | W36: 153.81 | X36: 153.81 | Y36: 153.81 | Z36: 153.81 | AA36: 153.81 | AB36: 153.81 | AC36: 153.81 | AD36: 153.81 | AE36: 153.81 | AF36: 153.81 | AG36: 153.81 | AH36: 153.81 | AI36: 152.27 | AJ36: 152.27 | AK36: 152.27 | AL36: 152.27 | AM36: 153.194 | AN36: 153.81 | AO36: 153.81 | AP36: 153.194 | AQ36: 153.4913793
B37: Economique | C37: oSupActPL_SEPM_I_T100% | D37: oSupActPL_SEPM_I_T100% | F37: 0 | G37: 0 | H37: 0 | I37: 0 | J37: 0 | K37: 0 | L37: 0 | M37: 0 | N37: 0 | O37: 0 | P37: 0 | Q37: 0 | R37: 0 | S37: 0 | T37: 0 | U37: 0 | V37: 0 | W37: 0 | X37: 0 | Y37: 0 | Z37: 0 | AA37: 0 | AB37: 0 | AC37: 0 | AD37: 0 | AE37: 0 | AF37: 0 | AG37: 0 | AH37: 0 | AI37: 0 | AJ37: 0 | AK37: 0 | AL37: 0 | AM37: 0 | AN37: 0 | AO37: 0 | AP37: 0 | AQ37: 0
B38: Economique | C38: oSupPL_SEPM_E_T100% | D38: oSupPL_SEPM_E_T100% | F38: 0 | G38: 170 | H38: 0 | I38: 170 | J38: 153.81 | K38: 152.27 | L38: 152.27 | M38: 153.81 | N38: 153.81 | O38: 153.81 | P38: 153.81 | Q38: 153.81 | R38: 153.81 | S38: 153.81 | T38: 153.81 | U38: 153.81 | V38: 153.81 | W38: 153.81 | X38: 153.81 | Y38: 153.81 | Z38: 153.81 | AA38: 153.81 | AB38: 153.81 | AC38: 153.81 | AD38: 153.81 | AE38: 153.81 | AF38: 153.81 | AG38: 153.81 | AH38: 153.81 | AI38: 152.27 | AJ38: 152.27 | AK38: 152.27 | AL38: 152.27 | AM38: 153.194 | AN38: 153.81 | AO38: 153.81 | AP38: 153.194 | AQ38: 153.4913793
B39: Economique | C39: oSupPL_SEPM_I_T100% | D39: oSupPL_SEPM_I_T100% | F39: 0 | G39: 0 | H39: 0 | I39: 0 | J39: 0 | K39: 0 | L39: 0 | M39: 0 | N39: 0 | O39: 0 | P39: 0 | Q39: 0 | R39: 0 | S39: 0 | T39: 0 | U39: 0 | V39: 0 | W39: 0 | X39: 0 | Y39: 0 | Z39: 0 | AA39: 0 | AB39: 0 | AC39: 0 | AD39: 0 | AE39: 0 | AF39: 0 | AG39: 0 | AH39: 0 | AI39: 0 | AJ39: 0 | AK39: 0 | AL39: 0 | AM39: 0 | AN39: 0 | AO39: 0 | AP39: 0 | AQ39: 0
B40: Economique | C40: oSupPL_SEPM_E | D40: oSupPL_SEPM_E | F40: 0 | G40: 170 | H40: 0 | I40: 170 | J40: 153.81 | K40: 152.27 | L40: 152.27 | M40: 153.81 | N40: 153.81 | O40: 153.81 | P40: 153.81 | Q40: 153.81 | R40: 153.81 | S40: 153.81 | T40: 153.81 | U40: 153.81 | V40: 153.81 | W40: 153.81 | X40: 153.81 | Y40: 153.81 | Z40: 153.81 | AA40: 153.81 | AB40: 153.81 | AC40: 153.81 | AD40: 153.81 | AE40: 153.81 | AF40: 153.81 | AG40: 153.81 | AH40: 153.81 | AI40: 152.27 | AJ40: 152.27 | AK40: 152.27 | AL40: 152.27 | AM40: 153.194 | AN40: 153.81 | AO40: 153.81 | AP40: 153.194 | AQ40: 153.4913793
B41: Economique | C41: oSupPL_SEPM_I | D41: oSupPL_SEPM_I | F41: 0 | G41: 0 | H41: 0 | I41: 0 | J41: 0 | K41: 0 | L41: 0 | M41: 0 | N41: 0 | O41: 0 | P41: 0 | Q41: 0 | R41: 0 | S41: 0 | T41: 0 | U41: 0 | V41: 0 | W41: 0 | X41: 0 | Y41: 0 | Z41: 0 | AA41: 0 | AB41: 0 | AC41: 0 | AD41: 0 | AE41: 0 | AF41: 0 | AG41: 0 | AH41: 0 | AI41: 0 | AJ41: 0 | AK41: 0 | AL41: 0 | AM41: 0 | AN41: 0 | AO41: 0 | AP41: 0 | AQ41: 0
B42: Economique | C42: oSupActEPC_1_T100% | D42: oSupActEPC_1_T100% | F42: 0 | G42: 0 | H42: 0 | I42: 0 | J42: 0 | K42: 0 | L42: 0 | M42: 0 | N42: 0 | O42: 0 | P42: 0 | Q42: 0 | R42: 0 | S42: 0 | T42: 0 | U42: 0 | V42: 0 | W42: 0 | X42: 0 | Y42: 0 | Z42: 0 | AA42: 0 | AB42: 0 | AC42: 0 | AD42: 0 | AE42: 0 | AF42: 0 | AG42: 0 | AH42: 0 | AI42: 0 | AJ42: 0 | AK42: 0 | AL42: 0 | AM42: 0 | AN42: 0 | AO42: 0 | AP42: 0 | AQ42: 0
B43: Economique | C43: oSupEPC_1_T100% | D43: oSupEPC_1_T100% | F43: 0 | G43: 0 | H43: 0 | I43: 0 | J43: 0 | K43: 0 | L43: 0 | M43: 0 | N43: 0 | O43: 0 | P43: 0 | Q43: 0 | R43: 0 | S43: 0 | T43: 0 | U43: 0 | V43: 0 | W43: 0 | X43: 0 | Y43: 0 | Z43: 0 | AA43: 0 | AB43: 0 | AC43: 0 | AD43: 0 | AE43: 0 | AF43: 0 | AG43: 0 | AH43: 0 | AI43: 0 | AJ43: 0 | AK43: 0 | AL43: 0 | AM43: 0 | AN43: 0 | AO43: 0 | AP43: 0 | AQ43: 0
B44: Economique | C44: oSupEPC_1 | D44: oSupEPC_1 | F44: 0 | G44: 0 | H44: 0 | I44: 0 | J44: 0 | K44: 0 | L44: 0 | M44: 0 | N44: 0 | O44: 0 | P44: 0 | Q44: 0 | R44: 0 | S44: 0 | T44: 0 | U44: 0 | V44: 0 | W44: 0 | X44: 0 | Y44: 0 | Z44: 0 | AA44: 0 | AB44: 0 | AC44: 0 | AD44: 0 | AE44: 0 | AF44: 0 | AG44: 0 | AH44: 0 | AI44: 0 | AJ44: 0 | AK44: 0 | AL44: 0 | AM44: 0 | AN44: 0 | AO44: 0 | AP44: 0 | AQ44: 0
B45: Economique | C45: oSupActEC_SEPM_T100% | D45: oSupActEC_SEPM_T100% | F45: 0 | G45: 0 | H45: 0 | I45: 0 | J45: 0 | K45: 0 | L45: 0 | M45: 0 | N45: 0 | O45: 0 | P45: 0 | Q45: 0 | R45: 0 | S45: 0 | T45: 0 | U45: 0 | V45: 0 | W45: 0 | X45: 0 | Y45: 0 | Z45: 0 | AA45: 0 | AB45: 0 | AC45: 0 | AD45: 0 | AE45: 0 | AF45: 0 | AG45: 0 | AH45: 0 | AI45: 0 | AJ45: 0 | AK45: 0 | AL45: 0 | AM45: 0 | AN45: 0 | AO45: 0 | AP45: 0 | AQ45: 0
B46: Economique | C46: oSupEC_SEPM_T100% | D46: oSupEC_SEPM_T100% | F46: 0 | G46: 0 | H46: 0 | I46: 0 | J46: 0 | K46: 0 | L46: 0 | M46: 0 | N46: 0 | O46: 0 | P46: 0 | Q46: 0 | R46: 0 | S46: 0 | T46: 0 | U46: 0 | V46: 0 | W46: 0 | X46: 0 | Y46: 0 | Z46: 0 | AA46: 0 | AB46: 0 | AC46: 0 | AD46: 0 | AE46: 0 | AF46: 0 | AG46: 0 | AH46: 0 | AI46: 0 | AJ46: 0 | AK46: 0 | AL46: 0 | AM46: 0 | AN46: 0 | AO46: 0 | AP46: 0 | AQ46: 0
B47: Economique | C47: oSupEC_SEPM | D47: oSupEC_SEPM | F47: 0 | G47: 0 | H47: 0 | I47: 0 | J47: 0 | K47: 0 | L47: 0 | M47: 0 | N47: 0 | O47: 0 | P47: 0 | Q47: 0 | R47: 0 | S47: 0 | T47: 0 | U47: 0 | V47: 0 | W47: 0 | X47: 0 | Y47: 0 | Z47: 0 | AA47: 0 | AB47: 0 | AC47: 0 | AD47: 0 | AE47: 0 | AF47: 0 | AG47: 0 | AH47: 0 | AI47: 0 | AJ47: 0 | AK47: 0 | AL47: 0 | AM47: 0 | AN47: 0 | AO47: 0 | AP47: 0 | AQ47: 0
B48: Economique | C48: oSupActNETT_T100% | D48: oSupActNETT_T100% | F48: 0 | G48: 0 | H48: 0 | I48: 0 | J48: 0 | K48: 0 | L48: 0 | M48: 0 | N48: 0 | O48: 0 | P48: 0 | Q48: 0 | R48: 0 | S48: 0 | T48: 0 | U48: 0 | V48: 0 | W48: 0 | X48: 0 | Y48: 0 | Z48: 0 | AA48: 0 | AB48: 0 | AC48: 0 | AD48: 0 | AE48: 0 | AF48: 0 | AG48: 0 | AH48: 0 | AI48: 0 | AJ48: 0 | AK48: 0 | AL48: 0 | AM48: 0 | AN48: 0 | AO48: 0 | AP48: 0 | AQ48: 0
B49: Economique | C49: oSupTcadNETT_T100% | D49: oSupTcadNETT_T100% | F49: 0 | G49: 0 | H49: 0 | I49: 0 | J49: 0 | K49: 0 | L49: 0 | M49: 0 | N49: 0 | O49: 0 | P49: 0 | Q49: 0 | R49: 0 | S49: 0 | T49: 0 | U49: 0 | V49: 0 | W49: 0 | X49: 0 | Y49: 0 | Z49: 0 | AA49: 0 | AB49: 0 | AC49: 0 | AD49: 0 | AE49: 0 | AF49: 0 | AG49: 0 | AH49: 0 | AI49: 0 | AJ49: 0 | AK49: 0 | AL49: 0 | AM49: 0 | AN49: 0 | AO49: 0 | AP49: 0 | AQ49: 0
B50: Economique | C50: oSupNETT_T100% | D50: oSupNETT_T100% | F50: 0 | G50: 0 | H50: 0 | I50: 0 | J50: 0 | K50: 0 | L50: 0 | M50: 0 | N50: 0 | O50: 0 | P50: 0 | Q50: 0 | R50: 0 | S50: 0 | T50: 0 | U50: 0 | V50: 0 | W50: 0 | X50: 0 | Y50: 0 | Z50: 0 | AA50: 0 | AB50: 0 | AC50: 0 | AD50: 0 | AE50: 0 | AF50: 0 | AG50: 0 | AH50: 0 | AI50: 0 | AJ50: 0 | AK50: 0 | AL50: 0 | AM50: 0 | AN50: 0 | AO50: 0 | AP50: 0 | AQ50: 0
B51: Economique | C51: oSupNETT | D51: oSupNETT | F51: 0 | G51: 0 | H51: 0 | I51: 0 | J51: 0 | K51: 0 | L51: 0 | M51: 0 | N51: 0 | O51: 0 | P51: 0 | Q51: 0 | R51: 0 | S51: 0 | T51: 0 | U51: 0 | V51: 0 | W51: 0 | X51: 0 | Y51: 0 | Z51: 0 | AA51: 0 | AB51: 0 | AC51: 0 | AD51: 0 | AE51: 0 | AF51: 0 | AG51: 0 | AH51: 0 | AI51: 0 | AJ51: 0 | AK51: 0 | AL51: 0 | AM51: 0 | AN51: 0 | AO51: 0 | AP51: 0 | AQ51: 0
B52: Economique | C52: oTauxDEG | D52: oTauxDEG | F52: 0 | G52: 0 | H52: 0 | I52: 0 | J52: 0 | K52: 0 | L52: 0 | M52: 0 | N52: 0 | O52: 0 | P52: 0 | Q52: 0 | R52: 0 | S52: 0 | T52: 0 | U52: 0 | V52: 0 | W52: 0 | X52: 0 | Y52: 0 | Z52: 0 | AA52: 0 | AB52: 0 | AC52: 0 | AD52: 0 | AE52: 0 | AF52: 0 | AG52: 0 | AH52: 0 | AI52: 0 | AJ52: 0 | AK52: 0 | AL52: 0 | AM52: 0 | AN52: 0 | AO52: 0 | AP52: 0 | AQ52: 0
B53: Economique | C53: oTauxSCA | D53: oTauxSCA | F53: 0 | G53: 69700 | H53: 0 | I53: 69700 | J53: 63062.24 | K53: 62431.62 | L53: 62431.62 | M53: 63062.24 | N53: 63062.24 | O53: 63062.24 | P53: 63062.24 | Q53: 63062.24 | R53: 63062.24 | S53: 63062.24 | T53: 63062.24 | U53: 63062.24 | V53: 63062.24 | W53: 63062.24 | X53: 63062.24 | Y53: 63062.24 | Z53: 63062.24 | AA53: 63062.24 | AB53: 63062.24 | AC53: 63062.24 | AD53: 63062.24 | AE53: 63062.24 | AF53: 63062.24 | AG53: 63062.24 | AH53: 63062.24 | AI53: 62431.62 | AJ53: 62431.62 | AK53: 62431.62 | AL53: 62431.62 | AM53: 62809.992 | AN53: 63062.24 | AO53: 63062.24 | AP53: 62809.992 | AQ53: 62931.7669
B54: Economique | C54: oTauxREG | D54: oTauxREG | F54: 0 | G54: 0 | H54: 0 | I54: 0 | J54: 0 | K54: 0 | L54: 0 | M54: 0 | N54: 0 | O54: 0 | P54: 0 | Q54: 0 | R54: 0 | S54: 0 | T54: 0 | U54: 0 | V54: 0 | W54: 0 | X54: 0 | Y54: 0 | Z54: 0 | AA54: 0 | AB54: 0 | AC54: 0 | AD54: 0 | AE54: 0 | AF54: 0 | AG54: 0 | AH54: 0 | AI54: 0 | AJ54: 0 | AK54: 0 | AL54: 0 | AM54: 0 | AN54: 0 | AO54: 0 | AP54: 0 | AQ54: 0
B55: Economique | C55: oTauxCPI | D55: oTauxCPI | F55: 0 | G55: 0 | H55: 0 | I55: 0 | J55: 0 | K55: 0 | L55: 0 | M55: 0 | N55: 0 | O55: 0 | P55: 0 | Q55: 0 | R55: 0 | S55: 0 | T55: 0 | U55: 0 | V55: 0 | W55: 0 | X55: 0 | Y55: 0 | Z55: 0 | AA55: 0 | AB55: 0 | AC55: 0 | AD55: 0 | AE55: 0 | AF55: 0 | AG55: 0 | AH55: 0 | AI55: 0 | AJ55: 0 | AK55: 0 | AL55: 0 | AM55: 0 | AN55: 0 | AO55: 0 | AP55: 0 | AQ55: 0
B56: Economique | C56: oTauxCT | D56: oTauxCT | F56: 0 | G56: 0 | H56: 0 | I56: 0 | J56: 0 | K56: 0 | L56: 0 | M56: 0 | N56: 0 | O56: 0 | P56: 0 | Q56: 0 | R56: 0 | S56: 0 | T56: 0 | U56: 0 | V56: 0 | W56: 0 | X56: 0 | Y56: 0 | Z56: 0 | AA56: 0 | AB56: 0 | AC56: 0 | AD56: 0 | AE56: 0 | AF56: 0 | AG56: 0 | AH56: 0 | AI56: 0 | AJ56: 0 | AK56: 0 | AL56: 0 | AM56: 0 | AN56: 0 | AO56: 0 | AP56: 0 | AQ56: 0
B57: Economique | C57: oTauxPL | D57: oTauxPL | F57: 0 | G57: 176800 | H57: 0 | I57: 176800 | J57: 159962.76 | K57: 158363.13 | L57: 158363.13 | M57: 159962.76 | N57: 159962.76 | O57: 159962.76 | P57: 159962.76 | Q57: 159962.76 | R57: 159962.76 | S57: 159962.76 | T57: 159962.76 | U57: 159962.76 | V57: 159962.76 | W57: 159962.76 | X57: 159962.76 | Y57: 159962.76 | Z57: 159962.76 | AA57: 159962.76 | AB57: 159962.76 | AC57: 159962.76 | AD57: 159962.76 | AE57: 159962.76 | AF57: 159962.76 | AG57: 159962.76 | AH57: 159962.76 | AI57: 158363.13 | AJ57: 158363.13 | AK57: 158363.13 | AL57: 158363.13 | AM57: 159322.908 | AN57: 159962.76 | AO57: 159962.76 | AP57: 159322.908 | AQ57: 159631.8021
B58: Economique | C58: oTauxEPC | D58: oTauxEPC | F58: 0 | G58: 0 | H58: 0 | I58: 0 | J58: 0 | K58: 0 | L58: 0 | M58: 0 | N58: 0 | O58: 0 | P58: 0 | Q58: 0 | R58: 0 | S58: 0 | T58: 0 | U58: 0 | V58: 0 | W58: 0 | X58: 0 | Y58: 0 | Z58: 0 | AA58: 0 | AB58: 0 | AC58: 0 | AD58: 0 | AE58: 0 | AF58: 0 | AG58: 0 | AH58: 0 | AI58: 0 | AJ58: 0 | AK58: 0 | AL58: 0 | AM58: 0 | AN58: 0 | AO58: 0 | AP58: 0 | AQ58: 0
B59: Economique | C59: oTauxEC | D59: oTauxEC | F59: 0 | G59: 0 | H59: 0 | I59: 0 | J59: 0 | K59: 0 | L59: 0 | M59: 0 | N59: 0 | O59: 0 | P59: 0 | Q59: 0 | R59: 0 | S59: 0 | T59: 0 | U59: 0 | V59: 0 | W59: 0 | X59: 0 | Y59: 0 | Z59: 0 | AA59: 0 | AB59: 0 | AC59: 0 | AD59: 0 | AE59: 0 | AF59: 0 | AG59: 0 | AH59: 0 | AI59: 0 | AJ59: 0 | AK59: 0 | AL59: 0 | AM59: 0 | AN59: 0 | AO59: 0 | AP59: 0 | AQ59: 0
B60: Economique | C60: oTauxNET | D60: oTauxNET | F60: 0 | G60: 0 | H60: 0 | I60: 0 | J60: 0 | K60: 0 | L60: 0 | M60: 0 | N60: 0 | O60: 0 | P60: 0 | Q60: 0 | R60: 0 | S60: 0 | T60: 0 | U60: 0 | V60: 0 | W60: 0 | X60: 0 | Y60: 0 | Z60: 0 | AA60: 0 | AB60: 0 | AC60: 0 | AD60: 0 | AE60: 0 | AF60: 0 | AG60: 0 | AH60: 0 | AI60: 0 | AJ60: 0 | AK60: 0 | AL60: 0 | AM60: 0 | AN60: 0 | AO60: 0 | AP60: 0 | AQ60: 0
B61: Economique | C61: oSupRealDEG | D61: oSupRealDEG | F61: 0 | G61: 0 | H61: 0 | I61: 0 | J61: 0 | K61: 0 | L61: 0 | M61: 0 | N61: 0 | O61: 0 | P61: 0 | Q61: 0 | R61: 0 | S61: 0 | T61: 0 | U61: 0 | V61: 0 | W61: 0 | X61: 0 | Y61: 0 | Z61: 0 | AA61: 0 | AB61: 0 | AC61: 0 | AD61: 0 | AE61: 0 | AF61: 0 | AG61: 0 | AH61: 0 | AI61: 0 | AJ61: 0 | AK61: 0 | AL61: 0 | AM61: 0 | AN61: 0 | AO61: 0 | AP61: 0 | AQ61: 0
B62: Economique | C62: oSupRealSCA | D62: oSupRealSCA | F62: 0 | G62: 170 | H62: 0 | I62: 170 | J62: 153.81 | K62: 152.27 | L62: 152.27 | M62: 153.81 | N62: 153.81 | O62: 153.81 | P62: 153.81 | Q62: 153.81 | R62: 153.81 | S62: 153.81 | T62: 153.81 | U62: 153.81 | V62: 153.81 | W62: 153.81 | X62: 153.81 | Y62: 153.81 | Z62: 153.81 | AA62: 153.81 | AB62: 153.81 | AC62: 153.81 | AD62: 153.81 | AE62: 153.81 | AF62: 153.81 | AG62: 153.81 | AH62: 153.81 | AI62: 152.27 | AJ62: 152.27 | AK62: 152.27 | AL62: 152.27 | AM62: 153.194 | AN62: 153.81 | AO62: 153.81 | AP62: 153.194 | AQ62: 153.4913793
B63: Economique | C63: oSupRealREG | D63: oSupRealREG | F63: 0 | G63: 0 | H63: 0 | I63: 0 | J63: 0 | K63: 0 | L63: 0 | M63: 0 | N63: 0 | O63: 0 | P63: 0 | Q63: 0 | R63: 0 | S63: 0 | T63: 0 | U63: 0 | V63: 0 | W63: 0 | X63: 0 | Y63: 0 | Z63: 0 | AA63: 0 | AB63: 0 | AC63: 0 | AD63: 0 | AE63: 0 | AF63: 0 | AG63: 0 | AH63: 0 | AI63: 0 | AJ63: 0 | AK63: 0 | AL63: 0 | AM63: 0 | AN63: 0 | AO63: 0 | AP63: 0 | AQ63: 0
B64: Economique | C64: oSupRealCPI | D64: oSupRealCPI | F64: 0 | G64: 0 | H64: 0 | I64: 0 | J64: 0 | K64: 0 | L64: 0 | M64: 0 | N64: 0 | O64: 0 | P64: 0 | Q64: 0 | R64: 0 | S64: 0 | T64: 0 | U64: 0 | V64: 0 | W64: 0 | X64: 0 | Y64: 0 | Z64: 0 | AA64: 0 | AB64: 0 | AC64: 0 | AD64: 0 | AE64: 0 | AF64: 0 | AG64: 0 | AH64: 0 | AI64: 0 | AJ64: 0 | AK64: 0 | AL64: 0 | AM64: 0 | AN64: 0 | AO64: 0 | AP64: 0 | AQ64: 0
B65: Economique | C65: oSupRealCT | D65: oSupRealCT | F65: 0 | G65: 2890.52 | H65: 0 | I65: 844.19 | J65: 863.37 | K65: 845.45 | L65: 910.46 | M65: 916.97 | N65: 842.86 | O65: 985.63 | P65: 1089.82 | Q65: 979.44 | R65: 1395.11 | S65: 1472.98 | T65: 1138.82 | U65: 1278.04 | V65: 2890.52 | W65: 2570.5 | X65: 2066.62 | Y65: 1606.56 | Z65: 1331.23 | AA65: 1113.91 | AB65: 1095.79 | AC65: 1094.28 | AD65: 1261.02 | AE65: 1648.49 | AF65: 1944.43 | AG65: 1663.52 | AH65: 1982.36 | AI65: 2014.38 | AJ65: 1710.74 | AK65: 1759.25 | AL65: 1742.33 | AM65: 875.822 | AN65: 1184.596 | AO65: 1676.887778 | AP65: 1682.08 | AQ65: 1455.685517
B66: Economique | C66: oSupRealPL | D66: oSupRealPL | F66: 0 | G66: 170 | H66: 0 | I66: 170 | J66: 153.81 | K66: 152.27 | L66: 152.27 | M66: 153.81 | N66: 153.81 | O66: 153.81 | P66: 153.81 | Q66: 153.81 | R66: 153.81 | S66: 153.81 | T66: 153.81 | U66: 153.81 | V66: 153.81 | W66: 153.81 | X66: 153.81 | Y66: 153.81 | Z66: 153.81 | AA66: 153.81 | AB66: 153.81 | AC66: 153.81 | AD66: 153.81 | AE66: 153.81 | AF66: 153.81 | AG66: 153.81 | AH66: 153.81 | AI66: 152.27 | AJ66: 152.27 | AK66: 152.27 | AL66: 152.27 | AM66: 153.194 | AN66: 153.81 | AO66: 153.81 | AP66: 153.194 | AQ66: 153.4913793
B67: Economique | C67: oSupRealEPC | D67: oSupRealEPC | F67: 0 | G67: 0 | H67: 0 | I67: 0 | J67: 0 | K67: 0 | L67: 0 | M67: 0 | N67: 0 | O67: 0 | P67: 0 | Q67: 0 | R67: 0 | S67: 0 | T67: 0 | U67: 0 | V67: 0 | W67: 0 | X67: 0 | Y67: 0 | Z67: 0 | AA67: 0 | AB67: 0 | AC67: 0 | AD67: 0 | AE67: 0 | AF67: 0 | AG67: 0 | AH67: 0 | AI67: 0 | AJ67: 0 | AK67: 0 | AL67: 0 | AM67: 0 | AN67: 0 | AO67: 0 | AP67: 0 | AQ67: 0
B68: Economique | C68: oSupRealEC | D68: oSupRealEC | F68: 0 | G68: 0 | H68: 0 | I68: 0 | J68: 0 | K68: 0 | L68: 0 | M68: 0 | N68: 0 | O68: 0 | P68: 0 | Q68: 0 | R68: 0 | S68: 0 | T68: 0 | U68: 0 | V68: 0 | W68: 0 | X68: 0 | Y68: 0 | Z68: 0 | AA68: 0 | AB68: 0 | AC68: 0 | AD68: 0 | AE68: 0 | AF68: 0 | AG68: 0 | AH68: 0 | AI68: 0 | AJ68: 0 | AK68: 0 | AL68: 0 | AM68: =AVERAGE(J68:N68) -> 0 | AN68: =AVERAGE(O68:S68) -> 0 | AO68: =AVERAGE(T68:AB68) -> 0 | AP68: =AVERAGE(AC68:AL68) -> 0 | AQ68: =AVERAGE(J68:AL68) -> 0
B69: Economique | C69: oSupRealNET | D69: oSupRealNET | F69: 0 | G69: 0 | H69: 0 | I69: 0 | J69: 0 | K69: 0 | L69: 0 | M69: 0 | N69: 0 | O69: 0 | P69: 0 | Q69: 0 | R69: 0 | S69: 0 | T69: 0 | U69: 0 | V69: 0 | W69: 0 | X69: 0 | Y69: 0 | Z69: 0 | AA69: 0 | AB69: 0 | AC69: 0 | AD69: 0 | AE69: 0 | AF69: 0 | AG69: 0 | AH69: 0 | AI69: 0 | AJ69: 0 | AK69: 0 | AL69: 0 | AM69: 0 | AN69: 0 | AO69: 0 | AP69: 0 | AQ69: 0
B70: Economique | C70: oCoutProdPlants | D70: oCoutProdPlants | F70: 0 | G70: 0 | H70: 0 | I70: 0 | J70: 0 | K70: 0 | L70: 0 | M70: 0 | N70: 0 | O70: 0 | P70: 0 | Q70: 0 | R70: 0 | S70: 0 | T70: 0 | U70: 0 | V70: 0 | W70: 0 | X70: 0 | Y70: 0 | Z70: 0 | AA70: 0 | AB70: 0 | AC70: 0 | AD70: 0 | AE70: 0 | AF70: 0 | AG70: 0 | AH70: 0 | AI70: 0 | AJ70: 0 | AK70: 0 | AL70: 0 | AM70: 0 | AN70: 0 | AO70: 0 | AP70: 0 | AQ70: 0
B71: Economique | C71: oCoutTransPlants | D71: oCoutTransPlants | F71: 0 | G71: 0 | H71: 0 | I71: 0 | J71: 0 | K71: 0 | L71: 0 | M71: 0 | N71: 0 | O71: 0 | P71: 0 | Q71: 0 | R71: 0 | S71: 0 | T71: 0 | U71: 0 | V71: 0 | W71: 0 | X71: 0 | Y71: 0 | Z71: 0 | AA71: 0 | AB71: 0 | AC71: 0 | AD71: 0 | AE71: 0 | AF71: 0 | AG71: 0 | AH71: 0 | AI71: 0 | AJ71: 0 | AK71: 0 | AL71: 0 | AM71: 0 | AN71: 0 | AO71: 0 | AP71: 0 | AQ71: 0
B72: Economique | C72: o$InvestisTS | D72: o$InvestisTS | F72: 0 | G72: 246500 | H72: 0 | I72: 246500 | J72: 223025 | K72: 220794.75 | L72: 220794.75 | M72: 223025 | N72: 223025 | O72: 223025 | P72: 223025 | Q72: 223025 | R72: 223025 | S72: 223025 | T72: 223025 | U72: 223025 | V72: 223025 | W72: 223025 | X72: 223025 | Y72: 223025 | Z72: 223025 | AA72: 223025 | AB72: 223025 | AC72: 223025 | AD72: 223025 | AE72: 223025 | AF72: 223025 | AG72: 223025 | AH72: 223025 | AI72: 220794.75 | AJ72: 220794.75 | AK72: 220794.75 | AL72: 220794.75 | AM72: 222132.9 | AN72: 223025 | AO72: 223025 | AP72: 222132.9 | AQ72: 222563.569
B73: Economique | C73: oTauxREGAPAR | D73: oTauxREGAPAR | F73: 0 | G73: 0 | H73: 0 | I73: 0 | J73: 0 | K73: 0 | L73: 0 | M73: 0 | N73: 0 | O73: 0 | P73: 0 | Q73: 0 | R73: 0 | S73: 0 | T73: 0 | U73: 0 | V73: 0 | W73: 0 | X73: 0 | Y73: 0 | Z73: 0 | AA73: 0 | AB73: 0 | AC73: 0 | AD73: 0 | AE73: 0 | AF73: 0 | AG73: 0 | AH73: 0 | AI73: 0 | AJ73: 0 | AK73: 0 | AL73: 0 | AM73: 0 | AN73: 0 | AO73: 0 | AP73: 0 | AQ73: 0
B74: Economique | C74: oTauxREGAEDU | D74: oTauxREGAEDU | F74: 0 | G74: 0 | H74: 0 | I74: 0 | J74: 0 | K74: 0 | L74: 0 | M74: 0 | N74: 0 | O74: 0 | P74: 0 | Q74: 0 | R74: 0 | S74: 0 | T74: 0 | U74: 0 | V74: 0 | W74: 0 | X74: 0 | Y74: 0 | Z74: 0 | AA74: 0 | AB74: 0 | AC74: 0 | AD74: 0 | AE74: 0 | AF74: 0 | AG74: 0 | AH74: 0 | AI74: 0 | AJ74: 0 | AK74: 0 | AL74: 0 | AM74: 0 | AN74: 0 | AO74: 0 | AP74: 0 | AQ74: 0
B75: Economique | C75: oTauxAUTRES | D75: oTauxAUTRES | F75: 0 | G75: 69700 | H75: 0 | I75: 69700 | J75: 63062.24 | K75: 62431.62 | L75: 62431.62 | M75: 63062.24 | N75: 63062.24 | O75: 63062.24 | P75: 63062.24 | Q75: 63062.24 | R75: 63062.24 | S75: 63062.24 | T75: 63062.24 | U75: 63062.24 | V75: 63062.24 | W75: 63062.24 | X75: 63062.24 | Y75: 63062.24 | Z75: 63062.24 | AA75: 63062.24 | AB75: 63062.24 | AC75: 63062.24 | AD75: 63062.24 | AE75: 63062.24 | AF75: 63062.24 | AG75: 63062.24 | AH75: 63062.24 | AI75: 62431.62 | AJ75: 62431.62 | AK75: 62431.62 | AL75: 62431.62 | AM75: 62809.992 | AN75: 63062.24 | AO75: 63062.24 | AP75: 62809.992 | AQ75: 62931.7669
B76: Economique | C76: oTauxREGAREG | D76: oTauxREGAREG | F76: 0 | G76: 176800 | H76: 0 | I76: 176800 | J76: 159962.76 | K76: 158363.13 | L76: 158363.13 | M76: 159962.76 | N76: 159962.76 | O76: 159962.76 | P76: 159962.76 | Q76: 159962.76 | R76: 159962.76 | S76: 159962.76 | T76: 159962.76 | U76: 159962.76 | V76: 159962.76 | W76: 159962.76 | X76: 159962.76 | Y76: 159962.76 | Z76: 159962.76 | AA76: 159962.76 | AB76: 159962.76 | AC76: 159962.76 | AD76: 159962.76 | AE76: 159962.76 | AF76: 159962.76 | AG76: 159962.76 | AH76: 159962.76 | AI76: 158363.13 | AJ76: 158363.13 | AK76: 158363.13 | AL76: 158363.13 | AM76: 159322.908 | AN76: 159962.76 | AO76: 159962.76 | AP76: 159322.908 | AQ76: 159631.8021
B77: Economique | C77: oTauxREGAFIN | D77: oTauxREGAFIN | F77: 0 | G77: 0 | H77: 0 | I77: 0 | J77: 0 | K77: 0 | L77: 0 | M77: 0 | N77: 0 | O77: 0 | P77: 0 | Q77: 0 | R77: 0 | S77: 0 | T77: 0 | U77: 0 | V77: 0 | W77: 0 | X77: 0 | Y77: 0 | Z77: 0 | AA77: 0 | AB77: 0 | AC77: 0 | AD77: 0 | AE77: 0 | AF77: 0 | AG77: 0 | AH77: 0 | AI77: 0 | AJ77: 0 | AK77: 0 | AL77: 0 | AM77: 0 | AN77: 0 | AO77: 0 | AP77: 0 | AQ77: 0
B78: Economique | C78: oSupRealREGAPAR | D78: oSupRealREGAPAR | F78: 0 | G78: 0 | H78: 0 | I78: 0 | J78: 0 | K78: 0 | L78: 0 | M78: 0 | N78: 0 | O78: 0 | P78: 0 | Q78: 0 | R78: 0 | S78: 0 | T78: 0 | U78: 0 | V78: 0 | W78: 0 | X78: 0 | Y78: 0 | Z78: 0 | AA78: 0 | AB78: 0 | AC78: 0 | AD78: 0 | AE78: 0 | AF78: 0 | AG78: 0 | AH78: 0 | AI78: 0 | AJ78: 0 | AK78: 0 | AL78: 0 | AM78: 0 | AN78: 0 | AO78: 0 | AP78: 0 | AQ78: 0
B79: Economique | C79: oSupRealREGAEDU | D79: oSupRealREGAEDU | F79: 0 | G79: 0 | H79: 0 | I79: 0 | J79: 0 | K79: 0 | L79: 0 | M79: 0 | N79: 0 | O79: 0 | P79: 0 | Q79: 0 | R79: 0 | S79: 0 | T79: 0 | U79: 0 | V79: 0 | W79: 0 | X79: 0 | Y79: 0 | Z79: 0 | AA79: 0 | AB79: 0 | AC79: 0 | AD79: 0 | AE79: 0 | AF79: 0 | AG79: 0 | AH79: 0 | AI79: 0 | AJ79: 0 | AK79: 0 | AL79: 0 | AM79: 0 | AN79: 0 | AO79: 0 | AP79: 0 | AQ79: 0
B80: Economique | C80: oSupRealAUTRES | D80: oSupRealAUTRES | F80: 0 | G80: 170 | H80: 0 | I80: 170 | J80: 153.81 | K80: 152.27 | L80: 152.27 | M80: 153.81 | N80: 153.81 | O80: 153.81 | P80: 153.81 | Q80: 153.81 | R80: 153.81 | S80: 153.81 | T80: 153.81 | U80: 153.81 | V80: 153.81 | W80: 153.81 | X80: 153.81 | Y80: 153.81 | Z80: 153.81 | AA80: 153.81 | AB80: 153.81 | AC80: 153.81 | AD80: 153.81 | AE80: 153.81 | AF80: 153.81 | AG80: 153.81 | AH80: 153.81 | AI80: 152.27 | AJ80: 152.27 | AK80: 152.27 | AL80: 152.27 | AM80: 153.194 | AN80: 153.81 | AO80: 153.81 | AP80: 153.194 | AQ80: 153.4913793
B81: Economique | C81: oSupRealREGAREG | D81: oSupRealREGAREG | F81: 0 | G81: 170 | H81: 0 | I81: 170 | J81: 153.81 | K81: 152.27 | L81: 152.27 | M81: 153.81 | N81: 153.81 | O81: 153.81 | P81: 153.81 | Q81: 153.81 | R81: 153.81 | S81: 153.81 | T81: 153.81 | U81: 153.81 | V81: 153.81 | W81: 153.81 | X81: 153.81 | Y81: 153.81 | Z81: 153.81 | AA81: 153.81 | AB81: 153.81 | AC81: 153.81 | AD81: 153.81 | AE81: 153.81 | AF81: 153.81 | AG81: 153.81 | AH81: 153.81 | AI81: 152.27 | AJ81: 152.27 | AK81: 152.27 | AL81: 152.27 | AM81: 153.194 | AN81: 153.81 | AO81: 153.81 | AP81: 153.194 | AQ81: 153.4913793
B82: Economique | C82: oSupRealREGAFIN | D82: oSupRealREGAFIN | F82: 0 | G82: 2890.52 | H82: 0 | I82: 844.19 | J82: 863.37 | K82: 845.45 | L82: 910.46 | M82: 916.97 | N82: 842.86 | O82: 985.63 | P82: 1089.82 | Q82: 979.44 | R82: 1395.11 | S82: 1472.98 | T82: 1138.82 | U82: 1278.04 | V82: 2890.52 | W82: 2570.5 | X82: 2066.62 | Y82: 1606.56 | Z82: 1331.23 | AA82: 1113.91 | AB82: 1095.79 | AC82: 1094.28 | AD82: 1261.02 | AE82: 1648.49 | AF82: 1944.43 | AG82: 1663.52 | AH82: 1982.36 | AI82: 2014.38 | AJ82: 1710.74 | AK82: 1759.25 | AL82: 1742.33 | AM82: 875.822 | AN82: 1184.596 | AO82: 1676.887778 | AP82: 1682.08 | AQ82: 1455.685517
B83: VolExpl | C83: OVOLBOJADMaEC | D83: Volume BOJ Admissible InclusActions aEC | F83: 0 | G83: 0 | H83: 0 | I83: 0 | J83: 0 | K83: 0 | L83: 0 | M83: 0 | N83: 0 | O83: 0 | P83: 0 | Q83: 0 | R83: 0 | S83: 0 | T83: 0 | U83: 0 | V83: 0 | W83: 0 | X83: 0 | Y83: 0 | Z83: 0 | AA83: 0 | AB83: 0 | AC83: 0 | AD83: 0 | AE83: 0 | AF83: 0 | AG83: 0 | AH83: 0 | AI83: 0 | AJ83: 0 | AK83: 0 | AL83: 0 | AM83: 0 | AN83: 0 | AO83: 0 | AP83: 0 | AQ83: 0
B84: VolExpl | C84: OVOLBOJADMaEC2 | D84: Volume BOJ Admissible InclusActions aEC2 | F84: 0 | G84: 0 | H84: 0 | I84: 0 | J84: 0 | K84: 0 | L84: 0 | M84: 0 | N84: 0 | O84: 0 | P84: 0 | Q84: 0 | R84: 0 | S84: 0 | T84: 0 | U84: 0 | V84: 0 | W84: 0 | X84: 0 | Y84: 0 | Z84: 0 | AA84: 0 | AB84: 0 | AC84: 0 | AD84: 0 | AE84: 0 | AF84: 0 | AG84: 0 | AH84: 0 | AI84: 0 | AJ84: 0 | AK84: 0 | AL84: 0 | AM84: 0 | AN84: 0 | AO84: 0 | AP84: 0 | AQ84: 0
B85: VolExpl | C85: OVOLBOJADMaEC3 | D85: Volume BOJ Admissible InclusActions aEC3 | F85: 0 | G85: 0 | H85: 0 | I85: 0 | J85: 0 | K85: 0 | L85: 0 | M85: 0 | N85: 0 | O85: 0 | P85: 0 | Q85: 0 | R85: 0 | S85: 0 | T85: 0 | U85: 0 | V85: 0 | W85: 0 | X85: 0 | Y85: 0 | Z85: 0 | AA85: 0 | AB85: 0 | AC85: 0 | AD85: 0 | AE85: 0 | AF85: 0 | AG85: 0 | AH85: 0 | AI85: 0 | AJ85: 0 | AK85: 0 | AL85: 0 | AM85: 0 | AN85: 0 | AO85: 0 | AP85: 0 | AQ85: 0
B86: VolExpl | C86: OVOLBOJADMaCA | D86: Volume BOJ Admissible InclusActions aCA | F86: 0 | G86: 0 | H86: 0 | I86: 0 | J86: 0 | K86: 0 | L86: 0 | M86: 0 | N86: 0 | O86: 0 | P86: 0 | Q86: 0 | R86: 0 | S86: 0 | T86: 0 | U86: 0 | V86: 0 | W86: 0 | X86: 0 | Y86: 0 | Z86: 0 | AA86: 0 | AB86: 0 | AC86: 0 | AD86: 0 | AE86: 0 | AF86: 0 | AG86: 0 | AH86: 0 | AI86: 0 | AJ86: 0 | AK86: 0 | AL86: 0 | AM86: 0 | AN86: 0 | AO86: 0 | AP86: 0 | AQ86: 0
B87: VolExpl | C87: OVOLBOJADMaCA2 | D87: Volume BOJ Admissible InclusActions aCA2 | F87: 0 | G87: 0 | H87: 0 | I87: 0 | J87: 0 | K87: 0 | L87: 0 | M87: 0 | N87: 0 | O87: 0 | P87: 0 | Q87: 0 | R87: 0 | S87: 0 | T87: 0 | U87: 0 | V87: 0 | W87: 0 | X87: 0 | Y87: 0 | Z87: 0 | AA87: 0 | AB87: 0 | AC87: 0 | AD87: 0 | AE87: 0 | AF87: 0 | AG87: 0 | AH87: 0 | AI87: 0 | AJ87: 0 | AK87: 0 | AL87: 0 | AM87: 0 | AN87: 0 | AO87: 0 | AP87: 0 | AQ87: 0
B88: VolExpl | C88: OVOLBOJADMaCPROG | D88: Volume BOJ Admissible InclusActions aCPROG | F88: 0 | G88: 0 | H88: 0 | I88: 0 | J88: 0 | K88: 0 | L88: 0 | M88: 0 | N88: 0 | O88: 0 | P88: 0 | Q88: 0 | R88: 0 | S88: 0 | T88: 0 | U88: 0 | V88: 0 | W88: 0 | X88: 0 | Y88: 0 | Z88: 0 | AA88: 0 | AB88: 0 | AC88: 0 | AD88: 0 | AE88: 0 | AF88: 0 | AG88: 0 | AH88: 0 | AI88: 0 | AJ88: 0 | AK88: 0 | AL88: 0 | AM88: 0 | AN88: 0 | AO88: 0 | AP88: 0 | AQ88: 0
B89: VolExpl | C89: OVOLBOJADMaCPIL | D89: Volume BOJ Admissible InclusActions aCPIL | F89: 0 | G89: 0 | H89: 0 | I89: 0 | J89: 0 | K89: 0 | L89: 0 | M89: 0 | N89: 0 | O89: 0 | P89: 0 | Q89: 0 | R89: 0 | S89: 0 | T89: 0 | U89: 0 | V89: 0 | W89: 0 | X89: 0 | Y89: 0 | Z89: 0 | AA89: 0 | AB89: 0 | AC89: 0 | AD89: 0 | AE89: 0 | AF89: 0 | AG89: 0 | AH89: 0 | AI89: 0 | AJ89: 0 | AK89: 0 | AL89: 0 | AM89: 0 | AN89: 0 | AO89: 0 | AP89: 0 | AQ89: 0
B90: VolExpl | C90: OVOLBOJADMaCPIP | D90: Volume BOJ Admissible InclusActions aCPIP | F90: 0 | G90: 0 | H90: 0 | I90: 0 | J90: 0 | K90: 0 | L90: 0 | M90: 0 | N90: 0 | O90: 0 | P90: 0 | Q90: 0 | R90: 0 | S90: 0 | T90: 0 | U90: 0 | V90: 0 | W90: 0 | X90: 0 | Y90: 0 | Z90: 0 | AA90: 0 | AB90: 0 | AC90: 0 | AD90: 0 | AE90: 0 | AF90: 0 | AG90: 0 | AH90: 0 | AI90: 0 | AJ90: 0 | AK90: 0 | AL90: 0 | AM90: 0 | AN90: 0 | AO90: 0 | AP90: 0 | AQ90: 0
B91: VolExpl | C91: OVOLBOJADMaCPFORT | D91: Volume BOJ Admissible InclusActions aCPFORT | F91: 0 | G91: 0 | H91: 0 | I91: 0 | J91: 0 | K91: 0 | L91: 0 | M91: 0 | N91: 0 | O91: 0 | P91: 0 | Q91: 0 | R91: 0 | S91: 0 | T91: 0 | U91: 0 | V91: 0 | W91: 0 | X91: 0 | Y91: 0 | Z91: 0 | AA91: 0 | AB91: 0 | AC91: 0 | AD91: 0 | AE91: 0 | AF91: 0 | AG91: 0 | AH91: 0 | AI91: 0 | AJ91: 0 | AK91: 0 | AL91: 0 | AM91: 0 | AN91: 0 | AO91: 0 | AP91: 0 | AQ91: 0
B92: VolExpl | C92: OVOLBOJADMaCPFAIBL | D92: Volume BOJ Admissible InclusActions aCPFAIBL | F92: 0 | G92: 0 | H92: 0 | I92: 0 | J92: 0 | K92: 0 | L92: 0 | M92: 0 | N92: 0 | O92: 0 | P92: 0 | Q92: 0 | R92: 0 | S92: 0 | T92: 0 | U92: 0 | V92: 0 | W92: 0 | X92: 0 | Y92: 0 | Z92: 0 | AA92: 0 | AB92: 0 | AC92: 0 | AD92: 0 | AE92: 0 | AF92: 0 | AG92: 0 | AH92: 0 | AI92: 0 | AJ92: 0 | AK92: 0 | AL92: 0 | AM92: 0 | AN92: 0 | AO92: 0 | AP92: 0 | AQ92: 0
B93: VolExpl | C93: OVOLBOJADMaCP | D93: Volume BOJ Admissible InclusActions aCP | F93: 0 | G93: 0 | H93: 0 | I93: 0 | J93: 0 | K93: 0 | L93: 0 | M93: 0 | N93: 0 | O93: 0 | P93: 0 | Q93: 0 | R93: 0 | S93: 0 | T93: 0 | U93: 0 | V93: 0 | W93: 0 | X93: 0 | Y93: 0 | Z93: 0 | AA93: 0 | AB93: 0 | AC93: 0 | AD93: 0 | AE93: 0 | AF93: 0 | AG93: 0 | AH93: 0 | AI93: 0 | AJ93: 0 | AK93: 0 | AL93: 0 | AM93: 0 | AN93: 0 | AO93: 0 | AP93: 0 | AQ93: 0
B94: VolExpl | C94: OVOLBOJADMaCPJ | D94: Volume BOJ Admissible InclusActions aCPJ | F94: 0 | G94: 0 | H94: 0 | I94: 0 | J94: 0 | K94: 0 | L94: 0 | M94: 0 | N94: 0 | O94: 0 | P94: 0 | Q94: 0 | R94: 0 | S94: 0 | T94: 0 | U94: 0 | V94: 0 | W94: 0 | X94: 0 | Y94: 0 | Z94: 0 | AA94: 0 | AB94: 0 | AC94: 0 | AD94: 0 | AE94: 0 | AF94: 0 | AG94: 0 | AH94: 0 | AI94: 0 | AJ94: 0 | AK94: 0 | AL94: 0 | AM94: 0 | AN94: 0 | AO94: 0 | AP94: 0 | AQ94: 0
B95: VolExpl | C95: OVOLBOJADMaCJ | D95: Volume BOJ Admissible InclusActions aCJ | F95: 0 | G95: 0 | H95: 0 | I95: 0 | J95: 0 | K95: 0 | L95: 0 | M95: 0 | N95: 0 | O95: 0 | P95: 0 | Q95: 0 | R95: 0 | S95: 0 | T95: 0 | U95: 0 | V95: 0 | W95: 0 | X95: 0 | Y95: 0 | Z95: 0 | AA95: 0 | AB95: 0 | AC95: 0 | AD95: 0 | AE95: 0 | AF95: 0 | AG95: 0 | AH95: 0 | AI95: 0 | AJ95: 0 | AK95: 0 | AL95: 0 | AM95: 0 | AN95: 0 | AO95: 0 | AP95: 0 | AQ95: 0
B96: VolExpl | C96: OVOLBOJADMaCRV | D96: Volume BOJ Admissible InclusActions aCRV | F96: 0 | G96: 0 | H96: 0 | I96: 0 | J96: 0 | K96: 0 | L96: 0 | M96: 0 | N96: 0 | O96: 0 | P96: 0 | Q96: 0 | R96: 0 | S96: 0 | T96: 0 | U96: 0 | V96: 0 | W96: 0 | X96: 0 | Y96: 0 | Z96: 0 | AA96: 0 | AB96: 0 | AC96: 0 | AD96: 0 | AE96: 0 | AF96: 0 | AG96: 0 | AH96: 0 | AI96: 0 | AJ96: 0 | AK96: 0 | AL96: 0 | AM96: 0 | AN96: 0 | AO96: 0 | AP96: 0 | AQ96: 0
B97: VolExpl | C97: OVOLBOJADMaCRS | D97: Volume BOJ Admissible InclusActions aCRS | F97: 0 | G97: 0 | H97: 0 | I97: 0 | J97: 0 | K97: 0 | L97: 0 | M97: 0 | N97: 0 | O97: 0 | P97: 0 | Q97: 0 | R97: 0 | S97: 0 | T97: 0 | U97: 0 | V97: 0 | W97: 0 | X97: 0 | Y97: 0 | Z97: 0 | AA97: 0 | AB97: 0 | AC97: 0 | AD97: 0 | AE97: 0 | AF97: 0 | AG97: 0 | AH97: 0 | AI97: 0 | AJ97: 0 | AK97: 0 | AL97: 0 | AM97: 0 | AN97: 0 | AO97: 0 | AP97: 0 | AQ97: 0
B98: VolExpl | C98: OVOLBOJADMaCFP | D98: Volume BOJ Admissible InclusActions aCFP | F98: 0 | G98: 0 | H98: 0 | I98: 0 | J98: 0 | K98: 0 | L98: 0 | M98: 0 | N98: 0 | O98: 0 | P98: 0 | Q98: 0 | R98: 0 | S98: 0 | T98: 0 | U98: 0 | V98: 0 | W98: 0 | X98: 0 | Y98: 0 | Z98: 0 | AA98: 0 | AB98: 0 | AC98: 0 | AD98: 0 | AE98: 0 | AF98: 0 | AG98: 0 | AH98: 0 | AI98: 0 | AJ98: 0 | AK98: 0 | AL98: 0 | AM98: 0 | AN98: 0 | AO98: 0 | AP98: 0 | AQ98: 0
B99: VolExpl | C99: OVOLBOJADMaCPPTM | D99: Volume BOJ Admissible InclusActions aCPPTM | F99: 0 | G99: 0 | H99: 0 | I99: 0 | J99: 0 | K99: 0 | L99: 0 | M99: 0 | N99: 0 | O99: 0 | P99: 0 | Q99: 0 | R99: 0 | S99: 0 | T99: 0 | U99: 0 | V99: 0 | W99: 0 | X99: 0 | Y99: 0 | Z99: 0 | AA99: 0 | AB99: 0 | AC99: 0 | AD99: 0 | AE99: 0 | AF99: 0 | AG99: 0 | AH99: 0 | AI99: 0 | AJ99: 0 | AK99: 0 | AL99: 0 | AM99: 0 | AN99: 0 | AO99: 0 | AP99: 0 | AQ99: 0
B100: VolExpl | C100: OVOLBOJADMaCT | D100: Volume BOJ Admissible InclusActions aCT | F100: 0 | G100: 0 | H100: 0 | I100: 0 | J100: 0 | K100: 0 | L100: 0 | M100: 0 | N100: 0 | O100: 0 | P100: 0 | Q100: 0 | R100: 0 | S100: 0 | T100: 0 | U100: 0 | V100: 0 | W100: 0 | X100: 0 | Y100: 0 | Z100: 0 | AA100: 0 | AB100: 0 | AC100: 0 | AD100: 0 | AE100: 0 | AF100: 0 | AG100: 0 | AH100: 0 | AI100: 0 | AJ100: 0 | AK100: 0 | AL100: 0 | AM100: 0 | AN100: 0 | AO100: 0 | AP100: 0 | AQ100: 0
B101: VolExpl | C101: OVOLBOJADMregaPRE | D101: Volume BOJ Admissible InclusActions regaPRE | F101: 0 | G101: 0 | H101: 0 | I101: 0 | J101: 0 | K101: 0 | L101: 0 | M101: 0 | N101: 0 | O101: 0 | P101: 0 | Q101: 0 | R101: 0 | S101: 0 | T101: 0 | U101: 0 | V101: 0 | W101: 0 | X101: 0 | Y101: 0 | Z101: 0 | AA101: 0 | AB101: 0 | AC101: 0 | AD101: 0 | AE101: 0 | AF101: 0 | AG101: 0 | AH101: 0 | AI101: 0 | AJ101: 0 | AK101: 0 | AL101: 0 | AM101: 0 | AN101: 0 | AO101: 0 | AP101: 0 | AQ101: 0
B102: VolExpl | C102: OVOLERSADMaEC | D102: Volume ERS Admissible InclusActions aEC | F102: 0 | G102: 0 | H102: 0 | I102: 0 | J102: 0 | K102: 0 | L102: 0 | M102: 0 | N102: 0 | O102: 0 | P102: 0 | Q102: 0 | R102: 0 | S102: 0 | T102: 0 | U102: 0 | V102: 0 | W102: 0 | X102: 0 | Y102: 0 | Z102: 0 | AA102: 0 | AB102: 0 | AC102: 0 | AD102: 0 | AE102: 0 | AF102: 0 | AG102: 0 | AH102: 0 | AI102: 0 | AJ102: 0 | AK102: 0 | AL102: 0 | AM102: 0 | AN102: 0 | AO102: 0 | AP102: 0 | AQ102: 0
B103: VolExpl | C103: OVOLERSADMaEC2 | D103: Volume ERS Admissible InclusActions aEC2 | F103: 0 | G103: 0 | H103: 0 | I103: 0 | J103: 0 | K103: 0 | L103: 0 | M103: 0 | N103: 0 | O103: 0 | P103: 0 | Q103: 0 | R103: 0 | S103: 0 | T103: 0 | U103: 0 | V103: 0 | W103: 0 | X103: 0 | Y103: 0 | Z103: 0 | AA103: 0 | AB103: 0 | AC103: 0 | AD103: 0 | AE103: 0 | AF103: 0 | AG103: 0 | AH103: 0 | AI103: 0 | AJ103: 0 | AK103: 0 | AL103: 0 | AM103: 0 | AN103: 0 | AO103: 0 | AP103: 0 | AQ103: 0
B104: VolExpl | C104: OVOLERSADMaEC3 | D104: Volume ERS Admissible InclusActions aEC3 | F104: 0 | G104: 0 | H104: 0 | I104: 0 | J104: 0 | K104: 0 | L104: 0 | M104: 0 | N104: 0 | O104: 0 | P104: 0 | Q104: 0 | R104: 0 | S104: 0 | T104: 0 | U104: 0 | V104: 0 | W104: 0 | X104: 0 | Y104: 0 | Z104: 0 | AA104: 0 | AB104: 0 | AC104: 0 | AD104: 0 | AE104: 0 | AF104: 0 | AG104: 0 | AH104: 0 | AI104: 0 | AJ104: 0 | AK104: 0 | AL104: 0 | AM104: 0 | AN104: 0 | AO104: 0 | AP104: 0 | AQ104: 0
B105: VolExpl | C105: OVOLERSADMaCA | D105: Volume ERS Admissible InclusActions aCA | F105: 0 | G105: 0 | H105: 0 | I105: 0 | J105: 0 | K105: 0 | L105: 0 | M105: 0 | N105: 0 | O105: 0 | P105: 0 | Q105: 0 | R105: 0 | S105: 0 | T105: 0 | U105: 0 | V105: 0 | W105: 0 | X105: 0 | Y105: 0 | Z105: 0 | AA105: 0 | AB105: 0 | AC105: 0 | AD105: 0 | AE105: 0 | AF105: 0 | AG105: 0 | AH105: 0 | AI105: 0 | AJ105: 0 | AK105: 0 | AL105: 0 | AM105: 0 | AN105: 0 | AO105: 0 | AP105: 0 | AQ105: 0
B106: VolExpl | C106: OVOLERSADMaCA2 | D106: Volume ERS Admissible InclusActions aCA2 | F106: 0 | G106: 0 | H106: 0 | I106: 0 | J106: 0 | K106: 0 | L106: 0 | M106: 0 | N106: 0 | O106: 0 | P106: 0 | Q106: 0 | R106: 0 | S106: 0 | T106: 0 | U106: 0 | V106: 0 | W106: 0 | X106: 0 | Y106: 0 | Z106: 0 | AA106: 0 | AB106: 0 | AC106: 0 | AD106: 0 | AE106: 0 | AF106: 0 | AG106: 0 | AH106: 0 | AI106: 0 | AJ106: 0 | AK106: 0 | AL106: 0 | AM106: 0 | AN106: 0 | AO106: 0 | AP106: 0 | AQ106: 0
B107: VolExpl | C107: OVOLERSADMaCPROG | D107: Volume ERS Admissible InclusActions aCPROG | F107: 0 | G107: 0 | H107: 0 | I107: 0 | J107: 0 | K107: 0 | L107: 0 | M107: 0 | N107: 0 | O107: 0 | P107: 0 | Q107: 0 | R107: 0 | S107: 0 | T107: 0 | U107: 0 | V107: 0 | W107: 0 | X107: 0 | Y107: 0 | Z107: 0 | AA107: 0 | AB107: 0 | AC107: 0 | AD107: 0 | AE107: 0 | AF107: 0 | AG107: 0 | AH107: 0 | AI107: 0 | AJ107: 0 | AK107: 0 | AL107: 0 | AM107: 0 | AN107: 0 | AO107: 0 | AP107: 0 | AQ107: 0
B108: VolExpl | C108: OVOLERSADMaCPIL | D108: Volume ERS Admissible InclusActions aCPIL | F108: 0 | G108: 0 | H108: 0 | I108: 0 | J108: 0 | K108: 0 | L108: 0 | M108: 0 | N108: 0 | O108: 0 | P108: 0 | Q108: 0 | R108: 0 | S108: 0 | T108: 0 | U108: 0 | V108: 0 | W108: 0 | X108: 0 | Y108: 0 | Z108: 0 | AA108: 0 | AB108: 0 | AC108: 0 | AD108: 0 | AE108: 0 | AF108: 0 | AG108: 0 | AH108: 0 | AI108: 0 | AJ108: 0 | AK108: 0 | AL108: 0 | AM108: 0 | AN108: 0 | AO108: 0 | AP108: 0 | AQ108: 0
B109: VolExpl | C109: OVOLERSADMaCPIP | D109: Volume ERS Admissible InclusActions aCPIP | F109: 0 | G109: 0 | H109: 0 | I109: 0 | J109: 0 | K109: 0 | L109: 0 | M109: 0 | N109: 0 | O109: 0 | P109: 0 | Q109: 0 | R109: 0 | S109: 0 | T109: 0 | U109: 0 | V109: 0 | W109: 0 | X109: 0 | Y109: 0 | Z109: 0 | AA109: 0 | AB109: 0 | AC109: 0 | AD109: 0 | AE109: 0 | AF109: 0 | AG109: 0 | AH109: 0 | AI109: 0 | AJ109: 0 | AK109: 0 | AL109: 0 | AM109: 0 | AN109: 0 | AO109: 0 | AP109: 0 | AQ109: 0
B110: VolExpl | C110: OVOLERSADMaCPFORT | D110: Volume ERS Admissible InclusActions aCPFORT | F110: 0 | G110: 0 | H110: 0 | I110: 0 | J110: 0 | K110: 0 | L110: 0 | M110: 0 | N110: 0 | O110: 0 | P110: 0 | Q110: 0 | R110: 0 | S110: 0 | T110: 0 | U110: 0 | V110: 0 | W110: 0 | X110: 0 | Y110: 0 | Z110: 0 | AA110: 0 | AB110: 0 | AC110: 0 | AD110: 0 | AE110: 0 | AF110: 0 | AG110: 0 | AH110: 0 | AI110: 0 | AJ110: 0 | AK110: 0 | AL110: 0 | AM110: 0 | AN110: 0 | AO110: 0 | AP110: 0 | AQ110: 0
B111: VolExpl | C111: OVOLERSADMaCPFAIBL | D111: Volume ERS Admissible InclusActions aCPFAIBL | F111: 0 | G111: 0 | H111: 0 | I111: 0 | J111: 0 | K111: 0 | L111: 0 | M111: 0 | N111: 0 | O111: 0 | P111: 0 | Q111: 0 | R111: 0 | S111: 0 | T111: 0 | U111: 0 | V111: 0 | W111: 0 | X111: 0 | Y111: 0 | Z111: 0 | AA111: 0 | AB111: 0 | AC111: 0 | AD111: 0 | AE111: 0 | AF111: 0 | AG111: 0 | AH111: 0 | AI111: 0 | AJ111: 0 | AK111: 0 | AL111: 0 | AM111: 0 | AN111: 0 | AO111: 0 | AP111: 0 | AQ111: 0
B112: VolExpl | C112: OVOLERSADMaCP | D112: Volume ERS Admissible InclusActions aCP | F112: 0 | G112: 0 | H112: 0 | I112: 0 | J112: 0 | K112: 0 | L112: 0 | M112: 0 | N112: 0 | O112: 0 | P112: 0 | Q112: 0 | R112: 0 | S112: 0 | T112: 0 | U112: 0 | V112: 0 | W112: 0 | X112: 0 | Y112: 0 | Z112: 0 | AA112: 0 | AB112: 0 | AC112: 0 | AD112: 0 | AE112: 0 | AF112: 0 | AG112: 0 | AH112: 0 | AI112: 0 | AJ112: 0 | AK112: 0 | AL112: 0 | AM112: 0 | AN112: 0 | AO112: 0 | AP112: 0 | AQ112: 0
B113: VolExpl | C113: OVOLERSADMaCPJ | D113: Volume ERS Admissible InclusActions aCPJ | F113: 0 | G113: 0 | H113: 0 | I113: 0 | J113: 0 | K113: 0 | L113: 0 | M113: 0 | N113: 0 | O113: 0 | P113: 0 | Q113: 0 | R113: 0 | S113: 0 | T113: 0 | U113: 0 | V113: 0 | W113: 0 | X113: 0 | Y113: 0 | Z113: 0 | AA113: 0 | AB113: 0 | AC113: 0 | AD113: 0 | AE113: 0 | AF113: 0 | AG113: 0 | AH113: 0 | AI113: 0 | AJ113: 0 | AK113: 0 | AL113: 0 | AM113: 0 | AN113: 0 | AO113: 0 | AP113: 0 | AQ113: 0
B114: VolExpl | C114: OVOLERSADMaCJ | D114: Volume ERS Admissible InclusActions aCJ | F114: 0 | G114: 0 | H114: 0 | I114: 0 | J114: 0 | K114: 0 | L114: 0 | M114: 0 | N114: 0 | O114: 0 | P114: 0 | Q114: 0 | R114: 0 | S114: 0 | T114: 0 | U114: 0 | V114: 0 | W114: 0 | X114: 0 | Y114: 0 | Z114: 0 | AA114: 0 | AB114: 0 | AC114: 0 | AD114: 0 | AE114: 0 | AF114: 0 | AG114: 0 | AH114: 0 | AI114: 0 | AJ114: 0 | AK114: 0 | AL114: 0 | AM114: 0 | AN114: 0 | AO114: 0 | AP114: 0 | AQ114: 0
B115: VolExpl | C115: OVOLERSADMaCRV | D115: Volume ERS Admissible InclusActions aCRV | F115: 0 | G115: 0 | H115: 0 | I115: 0 | J115: 0 | K115: 0 | L115: 0 | M115: 0 | N115: 0 | O115: 0 | P115: 0 | Q115: 0 | R115: 0 | S115: 0 | T115: 0 | U115: 0 | V115: 0 | W115: 0 | X115: 0 | Y115: 0 | Z115: 0 | AA115: 0 | AB115: 0 | AC115: 0 | AD115: 0 | AE115: 0 | AF115: 0 | AG115: 0 | AH115: 0 | AI115: 0 | AJ115: 0 | AK115: 0 | AL115: 0 | AM115: 0 | AN115: 0 | AO115: 0 | AP115: 0 | AQ115: 0
B116: VolExpl | C116: OVOLERSADMaCRS | D116: Volume ERS Admissible InclusActions aCRS | F116: 0 | G116: 0 | H116: 0 | I116: 0 | J116: 0 | K116: 0 | L116: 0 | M116: 0 | N116: 0 | O116: 0 | P116: 0 | Q116: 0 | R116: 0 | S116: 0 | T116: 0 | U116: 0 | V116: 0 | W116: 0 | X116: 0 | Y116: 0 | Z116: 0 | AA116: 0 | AB116: 0 | AC116: 0 | AD116: 0 | AE116: 0 | AF116: 0 | AG116: 0 | AH116: 0 | AI116: 0 | AJ116: 0 | AK116: 0 | AL116: 0 | AM116: 0 | AN116: 0 | AO116: 0 | AP116: 0 | AQ116: 0
B117: VolExpl | C117: OVOLERSADMaCFP | D117: Volume ERS Admissible InclusActions aCFP | F117: 0 | G117: 0 | H117: 0 | I117: 0 | J117: 0 | K117: 0 | L117: 0 | M117: 0 | N117: 0 | O117: 0 | P117: 0 | Q117: 0 | R117: 0 | S117: 0 | T117: 0 | U117: 0 | V117: 0 | W117: 0 | X117: 0 | Y117: 0 | Z117: 0 | AA117: 0 | AB117: 0 | AC117: 0 | AD117: 0 | AE117: 0 | AF117: 0 | AG117: 0 | AH117: 0 | AI117: 0 | AJ117: 0 | AK117: 0 | AL117: 0 | AM117: 0 | AN117: 0 | AO117: 0 | AP117: 0 | AQ117: 0
B118: VolExpl | C118: OVOLERSADMaCPPTM | D118: Volume ERS Admissible InclusActions aCPPTM | F118: 0 | G118: 0 | H118: 0 | I118: 0 | J118: 0 | K118: 0 | L118: 0 | M118: 0 | N118: 0 | O118: 0 | P118: 0 | Q118: 0 | R118: 0 | S118: 0 | T118: 0 | U118: 0 | V118: 0 | W118: 0 | X118: 0 | Y118: 0 | Z118: 0 | AA118: 0 | AB118: 0 | AC118: 0 | AD118: 0 | AE118: 0 | AF118: 0 | AG118: 0 | AH118: 0 | AI118: 0 | AJ118: 0 | AK118: 0 | AL118: 0 | AM118: 0 | AN118: 0 | AO118: 0 | AP118: 0 | AQ118: 0
B119: VolExpl | C119: OVOLERSADMaCT | D119: Volume ERS Admissible InclusActions aCT | F119: 0 | G119: 0 | H119: 0 | I119: 0 | J119: 0 | K119: 0 | L119: 0 | M119: 0 | N119: 0 | O119: 0 | P119: 0 | Q119: 0 | R119: 0 | S119: 0 | T119: 0 | U119: 0 | V119: 0 | W119: 0 | X119: 0 | Y119: 0 | Z119: 0 | AA119: 0 | AB119: 0 | AC119: 0 | AD119: 0 | AE119: 0 | AF119: 0 | AG119: 0 | AH119: 0 | AI119: 0 | AJ119: 0 | AK119: 0 | AL119: 0 | AM119: 0 | AN119: 0 | AO119: 0 | AP119: 0 | AQ119: 0
B120: VolExpl | C120: OVOLERSADMregaPRE | D120: Volume ERS Admissible InclusActions regaPRE | F120: 0 | G120: 0 | H120: 0 | I120: 0 | J120: 0 | K120: 0 | L120: 0 | M120: 0 | N120: 0 | O120: 0 | P120: 0 | Q120: 0 | R120: 0 | S120: 0 | T120: 0 | U120: 0 | V120: 0 | W120: 0 | X120: 0 | Y120: 0 | Z120: 0 | AA120: 0 | AB120: 0 | AC120: 0 | AD120: 0 | AE120: 0 | AF120: 0 | AG120: 0 | AH120: 0 | AI120: 0 | AJ120: 0 | AK120: 0 | AL120: 0 | AM120: 0 | AN120: 0 | AO120: 0 | AP120: 0 | AQ120: 0
B121: VolExpl | C121: OVOLSABADMaEC | D121: Volume SAB Admissible InclusActions aEC | F121: 0 | G121: 247.9 | H121: 0 | I121: 0 | J121: 0 | K121: 0 | L121: 0 | M121: 0 | N121: 0 | O121: 247.9 | P121: 159.07 | Q121: 79.14 | R121: 10.85 | S121: 0 | T121: 0 | U121: 0 | V121: 0 | W121: 0 | X121: 0 | Y121: 0 | Z121: 0 | AA121: 0 | AB121: 0 | AC121: 0 | AD121: 0 | AE121: 0 | AF121: 0 | AG121: 0 | AH121: 0 | AI121: 0 | AJ121: 0 | AK121: 0 | AL121: 0 | AM121: 0 | AN121: 99.392 | AO121: 0 | AP121: 0 | AQ121: 17.13655172
B122: VolExpl | C122: OVOLSABADMaEC2 | D122: Volume SAB Admissible InclusActions aEC2 | F122: 0 | G122: 0 | H122: 0 | I122: 0 | J122: 0 | K122: 0 | L122: 0 | M122: 0 | N122: 0 | O122: 0 | P122: 0 | Q122: 0 | R122: 0 | S122: 0 | T122: 0 | U122: 0 | V122: 0 | W122: 0 | X122: 0 | Y122: 0 | Z122: 0 | AA122: 0 | AB122: 0 | AC122: 0 | AD122: 0 | AE122: 0 | AF122: 0 | AG122: 0 | AH122: 0 | AI122: 0 | AJ122: 0 | AK122: 0 | AL122: 0 | AM122: 0 | AN122: 0 | AO122: 0 | AP122: 0 | AQ122: 0
B123: VolExpl | C123: OVOLSABADMaEC3 | D123: Volume SAB Admissible InclusActions aEC3 | F123: 0 | G123: 0 | H123: 0 | I123: 0 | J123: 0 | K123: 0 | L123: 0 | M123: 0 | N123: 0 | O123: 0 | P123: 0 | Q123: 0 | R123: 0 | S123: 0 | T123: 0 | U123: 0 | V123: 0 | W123: 0 | X123: 0 | Y123: 0 | Z123: 0 | AA123: 0 | AB123: 0 | AC123: 0 | AD123: 0 | AE123: 0 | AF123: 0 | AG123: 0 | AH123: 0 | AI123: 0 | AJ123: 0 | AK123: 0 | AL123: 0 | AM123: 0 | AN123: 0 | AO123: 0 | AP123: 0 | AQ123: 0
B124: VolExpl | C124: OVOLSABADMaCA | D124: Volume SAB Admissible InclusActions aCA | F124: 0 | G124: 0 | H124: 0 | I124: 0 | J124: 0 | K124: 0 | L124: 0 | M124: 0 | N124: 0 | O124: 0 | P124: 0 | Q124: 0 | R124: 0 | S124: 0 | T124: 0 | U124: 0 | V124: 0 | W124: 0 | X124: 0 | Y124: 0 | Z124: 0 | AA124: 0 | AB124: 0 | AC124: 0 | AD124: 0 | AE124: 0 | AF124: 0 | AG124: 0 | AH124: 0 | AI124: 0 | AJ124: 0 | AK124: 0 | AL124: 0 | AM124: 0 | AN124: 0 | AO124: 0 | AP124: 0 | AQ124: 0
B125: VolExpl | C125: OVOLSABADMaCA2 | D125: Volume SAB Admissible InclusActions aCA2 | F125: 0 | G125: 0 | H125: 0 | I125: 0 | J125: 0 | K125: 0 | L125: 0 | M125: 0 | N125: 0 | O125: 0 | P125: 0 | Q125: 0 | R125: 0 | S125: 0 | T125: 0 | U125: 0 | V125: 0 | W125: 0 | X125: 0 | Y125: 0 | Z125: 0 | AA125: 0 | AB125: 0 | AC125: 0 | AD125: 0 | AE125: 0 | AF125: 0 | AG125: 0 | AH125: 0 | AI125: 0 | AJ125: 0 | AK125: 0 | AL125: 0 | AM125: 0 | AN125: 0 | AO125: 0 | AP125: 0 | AQ125: 0
B126: VolExpl | C126: OVOLSABADMaCPROG | D126: Volume SAB Admissible InclusActions aCPROG | F126: 0 | G126: 0 | H126: 0 | I126: 0 | J126: 0 | K126: 0 | L126: 0 | M126: 0 | N126: 0 | O126: 0 | P126: 0 | Q126: 0 | R126: 0 | S126: 0 | T126: 0 | U126: 0 | V126: 0 | W126: 0 | X126: 0 | Y126: 0 | Z126: 0 | AA126: 0 | AB126: 0 | AC126: 0 | AD126: 0 | AE126: 0 | AF126: 0 | AG126: 0 | AH126: 0 | AI126: 0 | AJ126: 0 | AK126: 0 | AL126: 0 | AM126: 0 | AN126: 0 | AO126: 0 | AP126: 0 | AQ126: 0
B127: VolExpl | C127: OVOLSABADMaCPIL | D127: Volume SAB Admissible InclusActions aCPIL | F127: 0 | G127: 1150.47 | H127: 0 | I127: 736.06 | J127: 957.54 | K127: 985.71 | L127: 579.56 | M127: 755.94 | N127: 1041.15 | O127: 1097.37 | P127: 1150.47 | Q127: 874.65 | R127: 837.76 | S127: 375.37 | T127: 143.73 | U127: 55.93 | V127: 51.07 | W127: 52.47 | X127: 0 | Y127: 0 | Z127: 0 | AA127: 0 | AB127: 0 | AC127: 42.69 | AD127: 351.1 | AE127: 471.79 | AF127: 565.58 | AG127: 600.29 | AH127: 633.5 | AI127: 732.11 | AJ127: 787.04 | AK127: 1027.81 | AL127: 988.33 | AM127: 863.98 | AN127: 867.124 | AO127: 33.68888889 | AP127: 620.024 | AQ127: 522.7227586
B128: VolExpl | C128: OVOLSABADMaCPIP | D128: Volume SAB Admissible InclusActions aCPIP | F128: 0 | G128: 0 | H128: 0 | I128: 0 | J128: 0 | K128: 0 | L128: 0 | M128: 0 | N128: 0 | O128: 0 | P128: 0 | Q128: 0 | R128: 0 | S128: 0 | T128: 0 | U128: 0 | V128: 0 | W128: 0 | X128: 0 | Y128: 0 | Z128: 0 | AA128: 0 | AB128: 0 | AC128: 0 | AD128: 0 | AE128: 0 | AF128: 0 | AG128: 0 | AH128: 0 | AI128: 0 | AJ128: 0 | AK128: 0 | AL128: 0 | AM128: 0 | AN128: 0 | AO128: 0 | AP128: 0 | AQ128: 0
B129: VolExpl | C129: OVOLSABADMaCPFORT | D129: Volume SAB Admissible InclusActions aCPFORT | F129: 0 | G129: 0 | H129: 0 | I129: 0 | J129: 0 | K129: 0 | L129: 0 | M129: 0 | N129: 0 | O129: 0 | P129: 0 | Q129: 0 | R129: 0 | S129: 0 | T129: 0 | U129: 0 | V129: 0 | W129: 0 | X129: 0 | Y129: 0 | Z129: 0 | AA129: 0 | AB129: 0 | AC129: 0 | AD129: 0 | AE129: 0 | AF129: 0 | AG129: 0 | AH129: 0 | AI129: 0 | AJ129: 0 | AK129: 0 | AL129: 0 | AM129: 0 | AN129: 0 | AO129: 0 | AP129: 0 | AQ129: 0
B130: VolExpl | C130: OVOLSABADMaCPFAIBL | D130: Volume SAB Admissible InclusActions aCPFAIBL | F130: 0 | G130: 0 | H130: 0 | I130: 0 | J130: 0 | K130: 0 | L130: 0 | M130: 0 | N130: 0 | O130: 0 | P130: 0 | Q130: 0 | R130: 0 | S130: 0 | T130: 0 | U130: 0 | V130: 0 | W130: 0 | X130: 0 | Y130: 0 | Z130: 0 | AA130: 0 | AB130: 0 | AC130: 0 | AD130: 0 | AE130: 0 | AF130: 0 | AG130: 0 | AH130: 0 | AI130: 0 | AJ130: 0 | AK130: 0 | AL130: 0 | AM130: 0 | AN130: 0 | AO130: 0 | AP130: 0 | AQ130: 0
B131: VolExpl | C131: OVOLSABADMaCP | D131: Volume SAB Admissible InclusActions aCP | F131: 0 | G131: 0 | H131: 0 | I131: 0 | J131: 0 | K131: 0 | L131: 0 | M131: 0 | N131: 0 | O131: 0 | P131: 0 | Q131: 0 | R131: 0 | S131: 0 | T131: 0 | U131: 0 | V131: 0 | W131: 0 | X131: 0 | Y131: 0 | Z131: 0 | AA131: 0 | AB131: 0 | AC131: 0 | AD131: 0 | AE131: 0 | AF131: 0 | AG131: 0 | AH131: 0 | AI131: 0 | AJ131: 0 | AK131: 0 | AL131: 0 | AM131: 0 | AN131: 0 | AO131: 0 | AP131: 0 | AQ131: 0
B132: VolExpl | C132: OVOLSABADMaCPJ | D132: Volume SAB Admissible InclusActions aCPJ | F132: 0 | G132: 0 | H132: 0 | I132: 0 | J132: 0 | K132: 0 | L132: 0 | M132: 0 | N132: 0 | O132: 0 | P132: 0 | Q132: 0 | R132: 0 | S132: 0 | T132: 0 | U132: 0 | V132: 0 | W132: 0 | X132: 0 | Y132: 0 | Z132: 0 | AA132: 0 | AB132: 0 | AC132: 0 | AD132: 0 | AE132: 0 | AF132: 0 | AG132: 0 | AH132: 0 | AI132: 0 | AJ132: 0 | AK132: 0 | AL132: 0 | AM132: =AVERAGE(J132:N132) -> 0 | AN132: =AVERAGE(O132:S132) -> 0 | AO132: =AVERAGE(T132:AB132) -> 0 | AP132: =AVERAGE(AC132:AL132) -> 0 | AQ132: =AVERAGE(J132:AL132) -> 0
B133: VolExpl | C133: OVOLSABADMaCJ | D133: Volume SAB Admissible InclusActions aCJ | F133: 0 | G133: 0 | H133: 0 | I133: 0 | J133: 0 | K133: 0 | L133: 0 | M133: 0 | N133: 0 | O133: 0 | P133: 0 | Q133: 0 | R133: 0 | S133: 0 | T133: 0 | U133: 0 | V133: 0 | W133: 0 | X133: 0 | Y133: 0 | Z133: 0 | AA133: 0 | AB133: 0 | AC133: 0 | AD133: 0 | AE133: 0 | AF133: 0 | AG133: 0 | AH133: 0 | AI133: 0 | AJ133: 0 | AK133: 0 | AL133: 0 | AM133: 0 | AN133: 0 | AO133: 0 | AP133: 0 | AQ133: 0
B134: VolExpl | C134: OVOLSABADMaCRV | D134: Volume SAB Admissible InclusActions aCRV | F134: 0 | G134: 0 | H134: 0 | I134: 0 | J134: 0 | K134: 0 | L134: 0 | M134: 0 | N134: 0 | O134: 0 | P134: 0 | Q134: 0 | R134: 0 | S134: 0 | T134: 0 | U134: 0 | V134: 0 | W134: 0 | X134: 0 | Y134: 0 | Z134: 0 | AA134: 0 | AB134: 0 | AC134: 0 | AD134: 0 | AE134: 0 | AF134: 0 | AG134: 0 | AH134: 0 | AI134: 0 | AJ134: 0 | AK134: 0 | AL134: 0 | AM134: 0 | AN134: 0 | AO134: 0 | AP134: 0 | AQ134: 0
B135: VolExpl | C135: OVOLSABADMaCRS | D135: Volume SAB Admissible InclusActions aCRS | F135: 0 | G135: 0 | H135: 0 | I135: 0 | J135: 0 | K135: 0 | L135: 0 | M135: 0 | N135: 0 | O135: 0 | P135: 0 | Q135: 0 | R135: 0 | S135: 0 | T135: 0 | U135: 0 | V135: 0 | W135: 0 | X135: 0 | Y135: 0 | Z135: 0 | AA135: 0 | AB135: 0 | AC135: 0 | AD135: 0 | AE135: 0 | AF135: 0 | AG135: 0 | AH135: 0 | AI135: 0 | AJ135: 0 | AK135: 0 | AL135: 0 | AM135: 0 | AN135: 0 | AO135: 0 | AP135: 0 | AQ135: 0
B136: VolExpl | C136: OVOLSABADMaCFP | D136: Volume SAB Admissible InclusActions aCFP | F136: 0 | G136: 11015.35 | H136: 0 | I136: 95.48 | J136: 541.5 | K136: 724.66 | L136: 909.82 | M136: 3518.49 | N136: 4472.94 | O136: 4665.52 | P136: 2004.96 | Q136: 3854.99 | R136: 4037.43 | S136: 5135.72 | T136: 4563 | U136: 3040.89 | V136: 3576.62 | W136: 4879.59 | X136: 6071.73 | Y136: 5950.99 | Z136: 6030.35 | AA136: 5206.33 | AB136: 4401.75 | AC136: 4362.63 | AD136: 3900.72 | AE136: 3683.59 | AF136: 5266.2 | AG136: 5753.29 | AH136: 6133.67 | AI136: 6143.99 | AJ136: 9464.98 | AK136: 11015.35 | AL136: 10386.03 | AM136: 2033.482 | AN136: 3939.724 | AO136: 4857.916667 | AP136: 6611.045 | AQ136: 4817.163103
B137: VolExpl | C137: OVOLSABADMaCPPTM | D137: Volume SAB Admissible InclusActions aCPPTM | F137: 0 | G137: 0 | H137: 0 | I137: 0 | J137: 0 | K137: 0 | L137: 0 | M137: 0 | N137: 0 | O137: 0 | P137: 0 | Q137: 0 | R137: 0 | S137: 0 | T137: 0 | U137: 0 | V137: 0 | W137: 0 | X137: 0 | Y137: 0 | Z137: 0 | AA137: 0 | AB137: 0 | AC137: 0 | AD137: 0 | AE137: 0 | AF137: 0 | AG137: 0 | AH137: 0 | AI137: 0 | AJ137: 0 | AK137: 0 | AL137: 0 | AM137: 0 | AN137: 0 | AO137: 0 | AP137: 0 | AQ137: 0
B138: VolExpl | C138: OVOLSABADMaCT | D138: Volume SAB Admissible InclusActions aCT | F138: 0 | G138: 42062.92 | H138: 0 | I138: 21447.49 | J138: 22748.54 | K138: 24779.08 | L138: 25310.8 | M138: 28787.49 | N138: 32000.38 | O138: 34911.44 | P138: 39041.88 | Q138: 38668.82 | R138: 42062.92 | S138: 39659.57 | T138: 37804.51 | U138: 38386.86 | V138: 39739.21 | W138: 38994.57 | X138: 32816.83 | Y138: 27329.96 | Z138: 27076.91 | AA138: 25623.14 | AB138: 27215.92 | AC138: 36085.2 | AD138: 35048.17 | AE138: 33655.31 | AF138: 31169.14 | AG138: 27764.06 | AH138: 28516.89 | AI138: 26683.5 | AJ138: 25002.52 | AK138: 26338.72 | AL138: 25471.12 | AM138: 26725.258 | AN138: 38868.926 | AO138: 32776.43444 | AP138: 29573.463 | AQ138: 31679.08483
B139: VolExpl | C139: OVOLSABADMregaPRE | D139: Volume SAB Admissible InclusActions regaPRE | F139: 0 | G139: 47074.05 | H139: 0 | I139: 21982.62 | J139: 23765.35 | K139: 26024.22 | L139: 26755.74 | M139: 32965.29 | N139: 37217.67 | O139: 41135.87 | P139: 42366.55 | Q139: 43631.47 | R139: 47074.05 | S139: 45709.47 | T139: 43232.15 | U139: 42273.21 | V139: 44199.82 | W139: 44769.55 | X139: 39682.2 | Y139: 33960.16 | Z139: 33782.91 | AA139: 31458.64 | AB139: 32262.92 | AC139: 41273.3 | AD139: 39743.77 | AE139: 38100.92 | AF139: 37178.92 | AG139: 34201.38 | AH139: 35357.71 | AI139: 33497.44 | AJ139: 35170.91 | AK139: 38116.4 | AL139: 36588.93 | AM139: 29345.654 | AN139: 43983.482 | AO139: 38402.39556 | AP139: 36922.968 | AQ139: 37292.99724
